Workbook

Sheet Assumptions
A1: x | B1: Project NPV | C1: =AssetLevelCF!D241 -> 56372.86767 | D1: IRR | E1: =AssetLevelCF!D245 -> 0.09946399331 | W1: x | Y1: Saved XLSim Models
B2: REAL ESTATE DEVELOPMENT | Y2: ={"Sim",76,"Project NPV","'Assumptions'!$C$1","IRR","'Assumptions'!$E$1","NRI_1","'Assumptions'!$G$22","NRI_2","'Assumptions'!$H$22","NRI_3","'Assumptions'!$I$22","NRI_4","'Assumptions'!$J$22","NRI_5","'Assumptions'!$K$22","NRI_6","'Assumptions'!$L$22","K_psm_1","'Assumptions'!$G$23","K_psm_2","'Assumptions'!$H$23","K_psm_3","'Assumptions'!$I$23","K_psm_4","'Assumptions'!$J$23","K_psm_5","'Assumptions'!$K$23","K_psm_6","'Assumptions'!$L$23","abcd_psm_1","'Assumptions'!$G$24","abcd_psm_2","'Assumptions'!$H$24","abcd_psm_3","'Assumptions'!$I$24","abcd_psm_4","'Assumptions'!$J$24","abcd_psm_5","'Assumptions'!$K$24","abcd_psm_6","'Assumptions'!$L$24","T_Permit_1","'Assumptions'!$G$25","T_Permit_2","'Assumptions'!$H$25","T_Permit_3","'Assumptions'!$I$25","T_Permit_4","'Assumptions'!$J$25","T_Permit_5","'Assumptions'!$K$25","T_Permit_6","'Assumptions'!$L$25","T_Works_1","'Assumptions'!$G$26","T_Works_2","'Assumptions'!$H$26","T_Works_3","'Assumptions'!$I$26","T_Works_4","'Assumptions'!$J$26","T_Works_5","'Assumptions'!$K$26","T_Works_6","'Assumptions'!$L$26","T_Stab_1","'Assumptions'!$G$27","T_Stab_2","'Assumptions'!$H$27","T_Stab_3","'Assumptions'!$I$27","T_Stab_4","'Assumptions'!$J$27","T_Stab_5","'Assumptions'!$K$27","T_Stab_6","'Assumptions'!$L$27","Delta_I_1","'Assumptions'!$G$28","Delta_I_2","'Assumptions'!$H$28","Delta_I_3","'Assumptions'!$I$28","Delta_I_4","'Assumptions'!$J$28","Delta_I_5","'Assumptions'!$K$28","Delta_I_6","'Assumptions'!$L$28","Delta_Q_1","'Assumptions'!$G$29","Delta_Q_2","'Assumptions'!$H$29","Delta_Q_3","'Assumptions'!$I$29","Delta_Q_4","'Assumptions'!$J$29","Delta_Q_5","'Assumptions'!$K$29","Delta_Q_6","'Assumptions'!$L$29","DQ_DI_1","'Assumptions'!$G$30","DQ_DI_2","'Assumptions'!$H$30","DQ_DI_3","'Assumptions'!$I$30","DQ_DI_4","'Assumptions'!$J$30","DQ_DI_5","'Assumptions'!$K$30","DQ_DI_6","'Assumptions'!$L$30","P_1","'Assumptions'!$G$31","P_2","'Assumptions'!$H$31","P_3","'Assumptions'!$I$31","P_4","'Assumptions'!$J$31","P_5","'Assumptions'!$K$31","P_6","'Assumptions'!$L$31","PhaseOccurance_1","'Assumptions'!$G$32","PhaseOccurance_2","'Assumptions'!$H$32","PhaseOccurance_3","'Assumptions'!$I$32","PhaseOccurance_4","'Assumptions'!$J$32","PhaseOccurance_5","'Assumptions'!$K$32","PhaseOccurance_6","'Assumptions'!$L$32","JointEx_1","'Assumptions'!$G$33","JointEx_2","'Assumptions'!$H$33","JointEx_3","'Assumptions'!$I$33","JointEx_4","'Assumptions'!$J$33","JointEx_5","'Assumptions'!$K$33","JointEx_6","'Assumptions'!$L$33","AGA","'Assumptions'!$G$17","ExitCap","'Assumptions'!$G$18","2","1","20","0",""} -> Sim
B3: Assumptions Database
B5: General Assumptions | H5: St. Dev. | K5: Scenario Switches
B6: Variable | D6: Value | E6: Unit/Info | F6: Value | H6: p.a. | I6: p.quarter | M6: Value | N6: Unit/Info
B7: Market rent growth | D7: =D12-D9 -> 0.01 | E7: mu | F7: =(1+MktRentGrowth)^(1/4)-1 -> 0.002490679314 | G7: p.quarter | H7: =S22 -> 0.2 | I7: =H7*SQRT(1/4) -> 0.1 | K7: Scenario | M7: 1 | N7: 1=base, 2=up, 3=down, 4=random
B8: Rent Indexation | D8: 0.02 | E8: p.a. | K8: Scenario w/in Randomisation | M8: 1 | N8: 1=base, 2=up, 3=down
B9: Convenience yield | D9: 0.04 | E9: delta | K9: Vertical Phasing? | M9: 1 | N9: 1=vertical, 0=horizontal
B10: Sale disposition fee | D10: 0.02 | E10: for sale of an asset | K10: Start of development | M10: 2 | N10: 1=earliest, 2=optimal
B11: Closing costs | D11: 0.01 | E11: at sale of an asset
B12: Discount rate | D12: 0.05 | E12: r
B13: Construction cost growth | D13: =D12 -> 0.05 | E13: y_K
B15: Module for Randomised Input Variables (general) | G15: Random | I15: Standard | J15: Realistic | K15: Distribution | N15: Rent vs. Cost
G16: Realisation | H16: Mean | I16: Deviation | J16: Minimum | K16: Shape | N16: Correlation | O16: Covariance | P16: Joint StDev | Y16: Variable Descriptors for Simulation
B17: =AssetDB!B14 -> Authorized gross area remaining (AGA) (sqm) | G17: =MAX([1]!gen_Lognormal(0,I17)*H17,J17) -> 22618.31974 | H17: 20000 | I17: 0.25 | J17: 10000 | K17: lognormal | N17: 0.5 | O17: =N17*S22*S23 -> 0.02 | P17: =SQRT(S22^2+S23^2-2*O17) -> 0.2 | Y17: AGA
B18: =AssetDB!B87 -> Exit Cap Rate | G18: =MAX([1]!gen_Lognormal(0,I18)*H18,J18) -> 0.07605427552 | H18: 0.06 | I18: 0.5 | J18: 0.03 | K18: lognormal | Y18: ExitCap
B20: Module for Randomised Input Variables (per Phase) | G20: Random Realisations | M20: Mean | S20: St. Dev | T20: Realistic Limits | V20: Distribution
G21: 1 | H21: =G21+1 -> 2 | I21: =H21+1 -> 3 | J21: =I21+1 -> 4 | K21: =J21+1 -> 5 | L21: =K21+1 -> 6 | M21: 1 | N21: =M21+1 -> 2 | O21: =N21+1 -> 3 | P21: =O21+1 -> 4 | Q21: =P21+1 -> 5 | R21: =Q21+1 -> 6 | S21: all Stages | T21: Min | U21: Max | V21: Shape | Y21: 1 | Z21: 2 | AA21: 3 | AB21: 4 | AC21: 5 | AD21: 6
B22: =AssetDB!B35&" "&AssetDB!B36 -> Planned Net Rent (€/psm pa) Office | G22: =[1]!gen_Lognormal(0,$S22)*M22 -> 483.4912438 | H22: =G22+(N22-M22) -> 483.4912438 | I22: =H22+(O22-N22) -> 483.4912438 | J22: =I22+(P22-O22) -> 483.4912438 | K22: =J22+(Q22-P22) -> 483.4912438 | L22: =K22+(R22-Q22) -> 483.4912438 | M22: 400 | N22: =M22 -> 400 | O22: =N22 -> 400 | P22: =O22 -> 400 | Q22: =P22 -> 400 | R22: =Q22 -> 400 | S22: 0.2 | V22: lognormal | Y22: ="NRI_"&Y$21 -> NRI_1 | Z22: NRI_2 | AA22: NRI_3 | AB22: NRI_4 | AC22: NRI_5 | AD22: NRI_6
B23: =AssetDB!B47&" "&AssetDB!B48 -> Construction costs € psm of PGA | G23: =[1]!gen_Lognormal(0,$S23)*M23 -> 2547.309424 | H23: =[1]!gen_Lognormal(0,$S23)*N23 -> 3472.797009 | I23: =[1]!gen_Lognormal(0,$S23)*O23 -> 3575.227671 | J23: =[1]!gen_Lognormal(0,$S23)*P23 -> 3167.37941 | K23: =[1]!gen_Lognormal(0,$S23)*Q23 -> 5567.991683 | L23: =[1]!gen_Lognormal(0,$S23)*R23 -> 4043.844443 | M23: 2500 | N23: =M23+500 -> 3000 | O23: =N23+500 -> 3500 | P23: =O23+500 -> 4000 | Q23: =P23+500 -> 4500 | R23: =Q23+500 -> 5000 | S23: 0.2 | V23: lognormal | Y23: ="K_psm_"&Y$21 -> K_psm_1 | Z23: K_psm_2 | AA23: K_psm_3 | AB23: K_psm_4 | AC23: K_psm_5 | AD23: K_psm_6
B24: =AssetDB!B54&" "&AssetDB!B55 -> Additional Phasing Cost € psm of PGA | G24: =[1]!gen_Lognormal(0,$S24)*M24 -> 232.7696641 | H24: =[1]!gen_Lognormal(0,$S24)*N24 -> 622.5001304 | I24: =[1]!gen_Lognormal(0,$S24)*O24 -> 1224.025998 | J24: =[1]!gen_Lognormal(0,$S24)*P24 -> 1595.232087 | K24: =[1]!gen_Lognormal(0,$S24)*Q24 -> 2080.628094 | L24: =[1]!gen_Lognormal(0,$S24)*R24 -> 2672.024682 | M24: =10%*M23 -> 250 | N24: =25%*N23 -> 750 | O24: =30%*O23 -> 1050 | P24: =35%*P23 -> 1400 | Q24: =40%*Q23 -> 1800 | R24: =50%*R23 -> 2500 | S24: =S23 -> 0.2 | V24: lognormal | Y24: ="abcd_psm_"&Y$21 -> abcd_psm_1 | Z24: abcd_psm_2 | AA24: abcd_psm_3 | AB24: abcd_psm_4 | AC24: abcd_psm_5 | AD24: abcd_psm_6
B25: =AssetDB!B76 -> Time to Obtain Pemit | G25: =ROUND(MAX([1]!gen_Lognormal(0,$S25)*M25,$T25),0) -> 8 | H25: =ROUND(MAX([1]!gen_Lognormal(0,$S25)*N25,$T25),0) -> 3 | I25: =ROUND(MAX([1]!gen_Lognormal(0,$S25)*O25,$T25),0) -> 3 | J25: =ROUND(MAX([1]!gen_Lognormal(0,$S25)*P25,$T25),0) -> 3 | K25: =ROUND(MAX([1]!gen_Lognormal(0,$S25)*Q25,$T25),0) -> 3 | L25: =ROUND(MAX([1]!gen_Lognormal(0,$S25)*R25,$T25),0) -> 5 | M25: 6 | N25: 4 | O25: 3 | P25: 3 | Q25: 3 | R25: 3 | S25: 0.25 | T25: 2 | V25: lognormal | Y25: ="T_Permit_"&Y$21 -> T_Permit_1 | Z25: ="T_Permit_"&Z$21 -> T_Permit_2 | AA25: T_Permit_3 | AB25: T_Permit_4 | AC25: T_Permit_5 | AD25: T_Permit_6
B26: =AssetDB!B82 -> Works Duration (Qtrs) | G26: =MAX(MIN(ROUND([1]!gen_Lognormal(0,$S26)*M26,0),$U26),$T26) -> 6 | H26: =MAX(MIN(ROUND([1]!gen_Lognormal(0,$S26)*N26,0),$U26),$T26) -> 6 | I26: =MAX(MIN(ROUND([1]!gen_Lognormal(0,$S26)*O26,0),$U26),$T26) -> 11 | J26: =MAX(MIN(ROUND([1]!gen_Lognormal(0,$S26)*P26,0),$U26),$T26) -> 3 | K26: =MAX(MIN(ROUND([1]!gen_Lognormal(0,$S26)*Q26,0),$U26),$T26) -> 5 | L26: =MAX(MIN(ROUND([1]!gen_Lognormal(0,$S26)*R26,0),$U26),$T26) -> 8 | M26: 10 | N26: 8 | O26: 7 | P26: 7 | Q26: 7 | R26: 6 | S26: 0.5 | T26: 3 | U26: 16 | V26: lognormal | Y26: ="T_Works_"&Y$21 -> T_Works_1 | Z26: T_Works_2 | AA26: T_Works_3 | AB26: T_Works_4 | AC26: T_Works_5 | AD26: T_Works_6
B27: =AssetDB!B85 -> Stabilisation Speed (indicates micro market demand for space) | G27: =ROUND([1]!gen_Lognormal(0,$S27)*M27,0) -> 5 | H27: =ROUND([1]!gen_Lognormal(0,$S27)*N27,0) -> 8 | I27: =ROUND([1]!gen_Lognormal(0,$S27)*O27,0) -> 16 | J27: =ROUND([1]!gen_Lognormal(0,$S27)*P27,0) -> 11 | K27: =ROUND([1]!gen_Lognormal(0,$S27)*Q27,0) -> 30 | L27: =ROUND([1]!gen_Lognormal(0,$S27)*R27,0) -> 18 | M27: =8 -> 8 | N27: 10 | O27: 12 | P27: 14 | Q27: 16 | R27: 18 | S27: 0.5 | V27: lognormal | Y27: ="T_Stab_"&Y$21 -> T_Stab_1 | Z27: T_Stab_2 | AA27: T_Stab_3 | AB27: T_Stab_4 | AC27: T_Stab_5 | AD27: T_Stab_6
B28: Total Investment Cost (in € '000) | G28: =AssetDB!G44+AssetDB!G58+AssetDB!G65 -> 37600 | H28: =AssetDB!M44+AssetDB!M58+AssetDB!M65 -> 23604.75 | I28: =AssetDB!S44+AssetDB!S58+AssetDB!S65 -> 13452.075 | J28: =AssetDB!Y44+AssetDB!Y58+AssetDB!Y65 -> 10249.2 | K28: =AssetDB!AE44+AssetDB!AE58+AssetDB!AE65 -> 5765.175 | L28: =AssetDB!AK44+AssetDB!AK58+AssetDB!AK65 -> 6405.75 | Y28: ="Delta_I_"&Y$21 -> Delta_I_1 | Z28: Delta_I_2 | AA28: Delta_I_3 | AB28: Delta_I_4 | AC28: Delta_I_5 | AD28: Delta_I_6
B29: Total Added Capacity | G29: =AssetDB!G32 -> 7500 | H29: =AssetDB!M32 -> 4000 | I29: =AssetDB!S32 -> 2400 | J29: =AssetDB!Y32 -> 1700 | K29: =AssetDB!AE32 -> 850 | L29: =AssetDB!AK32 -> 850 | Y29: ="Delta_Q_"&Y$21 -> Delta_Q_1 | Z29: Delta_Q_2 | AA29: Delta_Q_3 | AB29: Delta_Q_4 | AC29: Delta_Q_5 | AD29: Delta_Q_6
B30: Investment Cost per Added Capacity | G30: =IFERROR(G28/G29*1000,0) -> 5013.333333 | H30: 5901.1875 | I30: 5605.03125 | J30: 6028.941176 | K30: 6782.558824 | L30: 7536.176471 | Y30: ="DQ_DI_"&Y$21 -> DQ_DI_1 | Z30: DQ_DI_2 | AA30: DQ_DI_3 | AB30: DQ_DI_4 | AC30: DQ_DI_5 | AD30: DQ_DI_6
B31: Optimal Rental Price Threshold to Build next Phase (P_i) | G31: =INDEX(PhaseCombinationModule!$J$9:$J$14,MATCH(G21,PhaseCombinationModule!$G$9:$G$14,0)) -> 436.2383142 | H31: =INDEX(PhaseCombinationModule!$J$9:$J$14,MATCH(H21,PhaseCombinationModule!$G$9:$G$14,0)) -> 503.8316635 | I31: =INDEX(PhaseCombinationModule!$J$9:$J$14,MATCH(I21,PhaseCombinationModule!$G$9:$G$14,0)) -> 503.8316635 | J31: =INDEX(PhaseCombinationModule!$J$9:$J$14,MATCH(J21,PhaseCombinationModule!$G$9:$G$14,0)) -> 524.6120616 | K31: =INDEX(PhaseCombinationModule!$J$9:$J$14,MATCH(K21,PhaseCombinationModule!$G$9:$G$14,0)) -> 590.1885693 | L31: =INDEX(PhaseCombinationModule!$J$9:$J$14,MATCH(L21,PhaseCombinationModule!$G$9:$G$14,0)) -> 655.765077 | Y31: ="P_"&Y$21 -> P_1 | Z31: P_2 | AA31: P_3 | AB31: P_4 | AC31: P_5 | AD31: P_6
B32: Joint Exercise with previous phase (where applicable) | G32: 1 | H32: =IF(H31=G31,G32,H21) -> 2 | I32: =IF(I31=H31,H32,I21) -> 2 | J32: =IF(J31=I31,I32,J21) -> 4 | K32: =IF(K31=J31,J32,K21) -> 5 | L32: =IF(L31=K31,K32,L21) -> 6 | Y32: ="PhaseOccurance_"&Y$21 -> PhaseOccurance_1 | Z32: PhaseOccurance_2 | AA32: PhaseOccurance_3 | AB32: PhaseOccurance_4 | AC32: PhaseOccurance_5 | AD32: PhaseOccurance_6
B33: Joint Exercise? | G33: =IF(COUNTIF($G$32:$L$32,G32)>1,1,0)*(G28>0) -> 0 | H33: 1 | I33: 1 | J33: 0 | K33: 0 | L33: 0 | Y33: ="JointEx_"&Y$21 -> JointEx_1 | Z33: JointEx_2 | AA33: JointEx_3 | AB33: JointEx_4 | AC33: JointEx_5 | AD33: JointEx_6
B35: Side calculations
I36: Value VP
B37: Beta | G37: beta | I37: =(delta-ConstCostGrowth+(P17^2)/2+SQRT((ConstCostGrowth-delta-(P17^2)/2)^2+2*ConstCostGrowth*P17^2))/P17^2 -> 1.850781059
B38: Beta - 1 | G38: beta-1 | I38: =beta-1 -> 0.8507810594
B39: Hurdle Benefit-to-Cost Ratio | G39: beta / (beta-1) | I39: =I37/(I37-1) -> 2.17539053
G40: 1 / (beta-1) | I40: =1/(I37-1) -> 1.17539053
G41: [(beta-1) / delta beta]^beta | I41: =((beta-1)/(delta*beta))^beta -> 91.74309168
A42: x | W42: x

Sheet AssetDB
A1: x | G1: 1 | M1: 2 | S1: 3 | Y1: 4 | AE1: 5 | AK1: 6 | AQ1: Total | AR1: Choose | AS1: x
G2: =G1 -> 1 | H2: =G2 -> 1 | I2: =H2 -> 1 | J2: =I2 -> 1 | K2: =J2 -> 1 | L2: =K2 -> 1 | M2: =M1 -> 2 | N2: =M2 -> 2 | O2: 2 | P2: 2 | Q2: 2 | R2: 2 | S2: =S1 -> 3 | T2: =S2 -> 3 | U2: 3 | V2: 3 | W2: 3 | X2: 3 | Y2: =Y1 -> 4 | Z2: =Y2 -> 4 | AA2: 4 | AB2: 4 | AC2: 4 | AD2: 4 | AE2: =AE1 -> 5 | AF2: =AE2 -> 5 | AG2: 5 | AH2: 5 | AI2: 5 | AJ2: 5 | AK2: =AK1 -> 6 | AL2: =AK2 -> 6 | AM2: 6 | AN2: 6 | AO2: 6 | AP2: 6
B3: REAL ESTATE DEVELOPMENT
B4: Assumptions Database
B5: all data in Euro 000's, unless otherwise indicated | J5: Random KPDs | AR5: Selected Phase
AR6: 1
H8: Phase 1 | N8: Phase 2 | T8: Phase 3 | Z8: Phase 4 | AF8: Phase 5 | AL8: Phase 6 | AQ8: Total for | AR8: Selected
H9: Base Case | I9: Upside | J9: Downside | K9: Random | L9: Simulated | N9: Base Case | O9: Upside | P9: Downside | Q9: Random | R9: Simulated | T9: Base Case | U9: Upside | V9: Downside | W9: Random | X9: Simulated | Z9: Base Case | AA9: Upside | AB9: Downside | AC9: Random | AD9: Simulated | AF9: Base Case | AG9: Upside | AH9: Downside | AI9: Random | AJ9: Simulated | AL9: Base Case | AM9: Upside | AN9: Downside | AO9: Random | AP9: Simulated | AQ9: all Phases | AR9: Phase
B10: Selected Scenario | G10: =Scenario -> 1 | M10: =Scenario -> 1 | S10: =Scenario -> 1 | Y10: =Scenario -> 1 | AE10: =Scenario -> 1 | AK10: =Scenario -> 1
B12: Land plot size (sqm) | G12: =CHOOSE(G$10,H12,I12,J12,K12,L12) -> 5000 | H12: 5000 | I12: =H12 -> 5000 | J12: =I12 -> 5000 | K12: =J12 -> 5000 | L12: =K12 -> 5000 | M12: =CHOOSE(M$10,N12,O12,P12,Q12,R12) -> 0 | N12: 0 | O12: =N12 -> 0 | P12: =O12 -> 0 | S12: =CHOOSE(S$10,T12,U12,V12,W12,X12) -> 0 | T12: 0 | U12: =T12 -> 0 | V12: =U12 -> 0 | Y12: =CHOOSE(Y$10,Z12,AA12,AB12,AC12,AD12) -> 0 | Z12: 0 | AA12: =Z12 -> 0 | AB12: =AA12 -> 0 | AE12: =CHOOSE(AE$10,AF12,AG12,AH12,AI12,AJ12) -> 0 | AF12: 0 | AG12: =AF12 -> 0 | AH12: =AG12 -> 0 | AK12: =CHOOSE(AK$10,AL12,AM12,AN12,AO12,AP12) -> 0 | AL12: 0 | AM12: =AL12 -> 0 | AN12: =AM12 -> 0 | AQ12: =G12+M12+S12+Y12+AE12+AK12 -> 5000 | AR12: =CHOOSE(Selected_Phase,G12,M12,S12,Y12,AE12,AK12) -> 5000
B14: Authorized gross area remaining (AGA) (sqm) | G14: =CHOOSE(G$10,H14,I14,J14,K14,L14) -> 20000 | H14: 20000 | I14: =H14 -> 20000 | J14: 20000 | K14: =Assumptions!G17 -> 22618.31974 | L14: 20000 | M14: =CHOOSE(M$10,N14,O14,P14,Q14,R14) -> 10000 | N14: =H14-H15 -> 10000 | O14: =I14-I15 -> 10000 | P14: =J14-J15 -> 10000 | Q14: =K14-K15 -> 12618.31974 | R14: =L14-L15 -> 10000 | S14: =CHOOSE(S$10,T14,U14,V14,W14,X14) -> 5000 | T14: =N14-N15 -> 5000 | U14: =O14-O15 -> 5000 | V14: =P14-P15 -> 5000 | W14: =Q14-Q15 -> 7618.31974 | X14: =R14-R15 -> 5000 | Y14: =CHOOSE(Y$10,Z14,AA14,AB14,AC14,AD14) -> 2000 | Z14: =T14-T15 -> 2000 | AA14: =U14-U15 -> 2000 | AB14: =V14-V15 -> 2000 | AC14: =W14-W15 -> 4618.31974 | AD14: =X14-X15 -> 2000 | AE14: =CHOOSE(AE$10,AF14,AG14,AH14,AI14,AJ14) -> 0 | AF14: =Z14-Z15 -> 0 | AG14: =AA14-AA15 -> 0 | AH14: =AB14-AB15 -> 0 | AI14: =AC14-AC15 -> 2618.31974 | AJ14: =AD14-AD15 -> 0 | AK14: =CHOOSE(AK$10,AL14,AM14,AN14,AO14,AP14) -> -1000 | AL14: =AF14-AF15 -> -1000 | AM14: =AG14-AG15 -> -1000 | AN14: =AH14-AH15 -> -1000 | AO14: =AI14-AI15 -> 1618.31974 | AP14: =AJ14-AJ15 -> -1000 | AQ14: =G14+M14+S14+Y14+AE14+AK14 -> 36000 | AR14: =CHOOSE(Selected_Phase,G14,M14,S14,Y14,AE14,AK14) -> 20000
B15: Planned gross area (PGA) (sqm) | G15: =MIN(CHOOSE(G$10,H15,I15,J15,K15,L15),G14) -> 10000 | H15: 10000 | I15: 10000 | J15: 10000 | K15: =MIN(CHOOSE(ScenarioWithinRandom,H15,I15,J15),K14) -> 10000 | L15: =K15 -> 10000 | M15: =MIN(CHOOSE(M$10,N15,O15,P15,Q15,R15),M14) -> 5000 | N15: 5000 | O15: =N15 -> 5000 | P15: =O15 -> 5000 | Q15: =MIN(CHOOSE(ScenarioWithinRandom,N15,O15,P15),Q14) -> 5000 | R15: =Q15 -> 5000 | S15: =MIN(CHOOSE(S$10,T15,U15,V15,W15,X15),S14) -> 3000 | T15: 3000 | U15: =T15 -> 3000 | V15: =U15 -> 3000 | W15: =MIN(CHOOSE(ScenarioWithinRandom,T15,U15,V15),W14) -> 3000 | X15: =W15 -> 3000 | Y15: =MIN(CHOOSE(Y$10,Z15,AA15,AB15,AC15,AD15),Y14) -> 2000 | Z15: 2000 | AA15: =Z15 -> 2000 | AB15: =AA15 -> 2000 | AC15: =MIN(CHOOSE(ScenarioWithinRandom,Z15,AA15,AB15),AC14) -> 2000 | AD15: =AC15 -> 2000 | AE15: =MIN(CHOOSE(AE$10,AF15,AG15,AH15,AI15,AJ15),AE14) -> 0 | AF15: 1000 | AG15: =AF15 -> 1000 | AH15: =AG15 -> 1000 | AI15: =MIN(CHOOSE(ScenarioWithinRandom,AF15,AG15,AH15),AI14) -> 1000 | AJ15: =AI15 -> 1000 | AK15: =MIN(CHOOSE(AK$10,AL15,AM15,AN15,AO15,AP15),AK14) -> -1000 | AL15: 1000 | AM15: =AL15 -> 1000 | AN15: =AM15 -> 1000 | AO15: =MIN(CHOOSE(ScenarioWithinRandom,AL15,AM15,AN15),AO14) -> 1000 | AP15: =AO15 -> 1000 | AQ15: =G15+M15+S15+Y15+AE15+AK15 -> 19000 | AR15: =CHOOSE(Selected_Phase,G15,M15,S15,Y15,AE15,AK15) -> 10000
B16: LA/PGA Ratio | G16: =CHOOSE(G$10,H16,I16,J16,K16,L16) -> 0.75 | H16: 0.75 | I16: 0.75 | J16: 0.75 | K16: =CHOOSE(ScenarioWithinRandom,H16,I16,J16) -> 0.75 | L16: =K16 -> 0.75 | M16: =CHOOSE(M$10,N16,O16,P16,Q16,R16) -> 0.8 | N16: 0.8 | O16: =N16 -> 0.8 | P16: =O16 -> 0.8 | Q16: =CHOOSE(ScenarioWithinRandom,N16,O16,P16) -> 0.8 | R16: =Q16 -> 0.8 | S16: =CHOOSE(S$10,T16,U16,V16,W16,X16) -> 0.8 | T16: 0.8 | U16: =T16 -> 0.8 | V16: =U16 -> 0.8 | W16: =CHOOSE(ScenarioWithinRandom,T16,U16,V16) -> 0.8 | X16: =W16 -> 0.8 | Y16: =CHOOSE(Y$10,Z16,AA16,AB16,AC16,AD16) -> 0.85 | Z16: 0.85 | AA16: =Z16 -> 0.85 | AB16: =AA16 -> 0.85 | AC16: =CHOOSE(ScenarioWithinRandom,Z16,AA16,AB16) -> 0.85 | AD16: =AC16 -> 0.85 | AE16: =CHOOSE(AE$10,AF16,AG16,AH16,AI16,AJ16) -> 0.85 | AF16: 0.85 | AG16: =AF16 -> 0.85 | AH16: =AG16 -> 0.85 | AI16: =CHOOSE(ScenarioWithinRandom,AF16,AG16,AH16) -> 0.85 | AJ16: =AI16 -> 0.85 | AK16: =CHOOSE(AK$10,AL16,AM16,AN16,AO16,AP16) -> 0.85 | AL16: 0.85 | AM16: =AL16 -> 0.85 | AN16: =AM16 -> 0.85 | AO16: =CHOOSE(ScenarioWithinRandom,AL16,AM16,AN16) -> 0.85 | AP16: =AO16 -> 0.85 | AQ16: =AQ17/AQ15 -> 0.9105263158 | AR16: =CHOOSE(Selected_Phase,G16,M16,S16,Y16,AE16,AK16) -> 0.75
B17: Lettable Area (LA) (sqm) | G17: =CHOOSE(G$10,H17,I17,J17,K17,L17) -> 7500 | H17: =H15*H16 -> 7500 | I17: =I15*I16 -> 7500 | J17: =J15*J16 -> 7500 | K17: =K15*K16 -> 7500 | L17: =L15*L16 -> 7500 | M17: =CHOOSE(M$10,N17,O17,P17,Q17,R17) -> 4000 | N17: =N15*N16 -> 4000 | O17: =O15*O16 -> 4000 | P17: =P15*P16 -> 4000 | Q17: =Q15*Q16 -> 4000 | R17: =R15*R16 -> 4000 | S17: =CHOOSE(S$10,T17,U17,V17,W17,X17) -> 2400 | T17: =T15*T16 -> 2400 | U17: =U15*U16 -> 2400 | V17: =V15*V16 -> 2400 | W17: =W15*W16 -> 2400 | X17: =X15*X16 -> 2400 | Y17: =CHOOSE(Y$10,Z17,AA17,AB17,AC17,AD17) -> 1700 | Z17: =Z15*Z16 -> 1700 | AA17: =AA15*AA16 -> 1700 | AB17: =AB15*AB16 -> 1700 | AC17: =AC15*AC16 -> 1700 | AD17: =AD15*AD16 -> 1700 | AE17: =CHOOSE(AE$10,AF17,AG17,AH17,AI17,AJ17) -> 850 | AF17: =AF15*AF16 -> 850 | AG17: =AG15*AG16 -> 850 | AH17: =AH15*AH16 -> 850 | AI17: =AI15*AI16 -> 850 | AJ17: =AJ15*AJ16 -> 850 | AK17: =CHOOSE(AK$10,AL17,AM17,AN17,AO17,AP17) -> 850 | AL17: =AL15*AL16 -> 850 | AM17: =AM15*AM16 -> 850 | AN17: =AN15*AN16 -> 850 | AO17: =AO15*AO16 -> 850 | AP17: =AP15*AP16 -> 850 | AQ17: =G17+M17+S17+Y17+AE17+AK17 -> 17300 | AR17: =CHOOSE(Selected_Phase,G17,M17,S17,Y17,AE17,AK17) -> 7500
B19: Area Breakdown (in %)
B20: Office | G20: =CHOOSE(G$10,H20,I20,J20,K20,L20) -> 1 | H20: 1 | I20: 1 | J20: 1 | K20: =J20 -> 1 | L20: =K20 -> 1 | M20: =CHOOSE(M$10,N20,O20,P20,Q20,R20) -> 1 | N20: 1 | O20: 1 | P20: 1 | Q20: =P20 -> 1 | R20: =Q20 -> 1 | S20: =CHOOSE(S$10,T20,U20,V20,W20,X20) -> 1 | T20: 1 | U20: 1 | V20: 1 | W20: =V20 -> 1 | X20: =W20 -> 1 | Y20: =CHOOSE(Y$10,Z20,AA20,AB20,AC20,AD20) -> 1 | Z20: 1 | AA20: 1 | AB20: 1 | AC20: =AB20 -> 1 | AD20: =AC20 -> 1 | AE20: =CHOOSE(AE$10,AF20,AG20,AH20,AI20,AJ20) -> 1 | AF20: 1 | AG20: 1 | AH20: 1 | AI20: =AH20 -> 1 | AJ20: =AI20 -> 1 | AK20: =CHOOSE(AK$10,AL20,AM20,AN20,AO20,AP20) -> 1 | AL20: 1 | AM20: 1 | AN20: 1 | AO20: =AN20 -> 1 | AP20: =AO20 -> 1 | AQ20: =AQ28/$AQ$32 -> 1 | AR20: =CHOOSE(Selected_Phase,G20,M20,S20,Y20,AE20,AK20) -> 1
B21: Retail | G21: =CHOOSE(G$10,H21,I21,J21,K21,L21) -> 0 | H21: 0 | I21: 0 | J21: 0 | K21: =J21 -> 0 | M21: =CHOOSE(M$10,N21,O21,P21,Q21,R21) -> 0 | N21: 0 | O21: 0 | P21: 0 | Q21: =P21 -> 0 | S21: =CHOOSE(S$10,T21,U21,V21,W21,X21) -> 0 | T21: 0 | U21: 0 | V21: 0 | W21: 0 | X21: 0 | Y21: =CHOOSE(Y$10,Z21,AA21,AB21,AC21,AD21) -> 0 | Z21: 0 | AA21: 0 | AB21: 0 | AC21: 0 | AD21: 0 | AE21: =CHOOSE(AE$10,AF21,AG21,AH21,AI21,AJ21) -> 0 | AF21: 0 | AG21: 0 | AH21: 0 | AI21: 0 | AJ21: 0 | AK21: =CHOOSE(AK$10,AL21,AM21,AN21,AO21,AP21) -> 0 | AL21: 0 | AM21: 0 | AN21: 0 | AO21: 0 | AP21: 0 | AQ21: =AQ29/$AQ$32 -> 0 | AR21: =CHOOSE(Selected_Phase,G21,M21,S21,Y21,AE21,AK21) -> 0
B22: Residential | G22: =CHOOSE(G$10,H22,I22,J22,K22,L22) -> 0 | H22: 0 | I22: 0 | J22: 0 | K22: =J22 -> 0 | M22: =CHOOSE(M$10,N22,O22,P22,Q22,R22) -> 0 | N22: 0 | O22: 0 | P22: 0 | Q22: =P22 -> 0 | S22: =CHOOSE(S$10,T22,U22,V22,W22,X22) -> 0 | T22: 0 | U22: 0 | V22: 0 | W22: 0 | X22: 0 | Y22: =CHOOSE(Y$10,Z22,AA22,AB22,AC22,AD22) -> 0 | Z22: 0 | AA22: 0 | AB22: 0 | AC22: 0 | AD22: 0 | AE22: =CHOOSE(AE$10,AF22,AG22,AH22,AI22,AJ22) -> 0 | AF22: 0 | AG22: 0 | AH22: 0 | AI22: 0 | AJ22: 0 | AK22: =CHOOSE(AK$10,AL22,AM22,AN22,AO22,AP22) -> 0 | AL22: 0 | AM22: 0 | AN22: 0 | AO22: 0 | AP22: 0 | AQ22: =AQ30/$AQ$32 -> 0 | AR22: =CHOOSE(Selected_Phase,G22,M22,S22,Y22,AE22,AK22) -> 0
B23: Other | G23: =CHOOSE(G$10,H23,I23,J23,K23,L23) -> 0 | H23: 0 | I23: 0 | J23: 0 | K23: =J23 -> 0 | M23: =CHOOSE(M$10,N23,O23,P23,Q23,R23) -> 0 | N23: 0 | O23: 0 | P23: 0 | Q23: =P23 -> 0 | S23: =CHOOSE(S$10,T23,U23,V23,W23,X23) -> 0 | T23: 0 | U23: 0 | V23: 0 | W23: 0 | X23: 0 | Y23: =CHOOSE(Y$10,Z23,AA23,AB23,AC23,AD23) -> 0 | Z23: 0 | AA23: 0 | AB23: 0 | AC23: 0 | AD23: 0 | AE23: =CHOOSE(AE$10,AF23,AG23,AH23,AI23,AJ23) -> 0 | AF23: 0 | AG23: 0 | AH23: 0 | AI23: 0 | AJ23: 0 | AK23: =CHOOSE(AK$10,AL23,AM23,AN23,AO23,AP23) -> 0 | AL23: 0 | AM23: 0 | AN23: 0 | AO23: 0 | AP23: 0 | AQ23: =AQ31/$AQ$32 -> 0 | AR23: =CHOOSE(Selected_Phase,G23,M23,S23,Y23,AE23,AK23) -> 0
B24: Total (%) | G24: =CHOOSE(G$10,H24,I24,J24,K24,L24) -> 1 | H24: =SUM(H20:H23) -> 1 | I24: =SUM(I20:I23) -> 1 | J24: =SUM(J20:J23) -> 1 | K24: =SUM(K20:K23) -> 1 | L24: =SUM(L20:L23) -> 1 | M24: =CHOOSE(M$10,N24,O24,P24,Q24,R24) -> 1 | N24: =SUM(N20:N23) -> 1 | O24: =SUM(O20:O23) -> 1 | P24: =SUM(P20:P23) -> 1 | Q24: =SUM(Q20:Q23) -> 1 | R24: =SUM(R20:R23) -> 1 | S24: =CHOOSE(S$10,T24,U24,V24,W24,X24) -> 1 | T24: =SUM(T20:T23) -> 1 | U24: =SUM(U20:U23) -> 1 | V24: =SUM(V20:V23) -> 1 | W24: =SUM(W20:W23) -> 1 | X24: =SUM(X20:X23) -> 1 | Y24: =CHOOSE(Y$10,Z24,AA24,AB24,AC24,AD24) -> 1 | Z24: =SUM(Z20:Z23) -> 1 | AA24: =SUM(AA20:AA23) -> 1 | AB24: =SUM(AB20:AB23) -> 1 | AC24: =SUM(AC20:AC23) -> 1 | AD24: =SUM(AD20:AD23) -> 1 | AE24: =CHOOSE(AE$10,AF24,AG24,AH24,AI24,AJ24) -> 1 | AF24: =SUM(AF20:AF23) -> 1 | AG24: =SUM(AG20:AG23) -> 1 | AH24: =SUM(AH20:AH23) -> 1 | AI24: =SUM(AI20:AI23) -> 1 | AJ24: =SUM(AJ20:AJ23) -> 1 | AK24: =CHOOSE(AK$10,AL24,AM24,AN24,AO24,AP24) -> 1 | AL24: =SUM(AL20:AL23) -> 1 | AM24: =SUM(AM20:AM23) -> 1 | AN24: =SUM(AN20:AN23) -> 1 | AO24: =SUM(AO20:AO23) -> 1 | AP24: =SUM(AP20:AP23) -> 1 | AQ24: =SUM(AQ28:AQ31)/AQ32 -> 1 | AR24: =CHOOSE(Selected_Phase,G24,M24,S24,Y24,AE24,AK24) -> 1
B27: Area Breakdown (sqm)
B28: Office | G28: =CHOOSE(G$10,H28,I28,J28,K28,L28) -> 7500 | H28: =H20*H$17 -> 7500 | I28: 7500 | J28: 7500 | K28: =K20*K$17 -> 7500 | L28: 7500 | M28: =CHOOSE(M$10,N28,O28,P28,Q28,R28) -> 4000 | N28: =N20*N$17 -> 4000 | O28: 4000 | P28: 4000 | Q28: 4000 | R28: 4000 | S28: =CHOOSE(S$10,T28,U28,V28,W28,X28) -> 2400 | T28: =T20*T$17 -> 2400 | U28: 2400 | V28: 2400 | W28: 2400 | X28: 2400 | Y28: =CHOOSE(Y$10,Z28,AA28,AB28,AC28,AD28) -> 1700 | Z28: =Z20*Z$17 -> 1700 | AA28: 1700 | AB28: 1700 | AC28: 1700 | AD28: 1700 | AE28: =CHOOSE(AE$10,AF28,AG28,AH28,AI28,AJ28) -> 850 | AF28: =AF20*AF$17 -> 850 | AG28: 850 | AH28: 850 | AI28: 850 | AJ28: 850 | AK28: =CHOOSE(AK$10,AL28,AM28,AN28,AO28,AP28) -> 850 | AL28: =AL20*AL$17 -> 850 | AM28: 850 | AN28: 850 | AO28: 850 | AP28: 850 | AQ28: =G28+M28+S28+Y28+AE28+AK28 -> 17300 | AR28: =CHOOSE(Selected_Phase,G28,M28,S28,Y28,AE28,AK28) -> 7500
B29: Retail | G29: =CHOOSE(G$10,H29,I29,J29,K29,L29) -> 0 | H29: 0 | I29: 0 | J29: 0 | K29: 0 | L29: 0 | M29: =CHOOSE(M$10,N29,O29,P29,Q29,R29) -> 0 | N29: 0 | O29: 0 | P29: 0 | Q29: 0 | R29: 0 | S29: =CHOOSE(S$10,T29,U29,V29,W29,X29) -> 0 | T29: 0 | U29: 0 | V29: 0 | W29: 0 | X29: 0 | Y29: =CHOOSE(Y$10,Z29,AA29,AB29,AC29,AD29) -> 0 | Z29: 0 | AA29: 0 | AB29: 0 | AC29: 0 | AD29: 0 | AE29: =CHOOSE(AE$10,AF29,AG29,AH29,AI29,AJ29) -> 0 | AF29: 0 | AG29: 0 | AH29: 0 | AI29: 0 | AJ29: 0 | AK29: =CHOOSE(AK$10,AL29,AM29,AN29,AO29,AP29) -> 0 | AL29: 0 | AM29: 0 | AN29: 0 | AO29: 0 | AP29: 0 | AQ29: =G29+M29+S29+Y29+AE29+AK29 -> 0 | AR29: =CHOOSE(Selected_Phase,G29,M29,S29,Y29,AE29,AK29) -> 0
B30: Residential | G30: =CHOOSE(G$10,H30,I30,J30,K30,L30) -> 0 | H30: 0 | I30: 0 | J30: 0 | K30: 0 | L30: 0 | M30: =CHOOSE(M$10,N30,O30,P30,Q30,R30) -> 0 | N30: 0 | O30: 0 | P30: 0 | Q30: 0 | R30: 0 | S30: =CHOOSE(S$10,T30,U30,V30,W30,X30) -> 0 | T30: 0 | U30: 0 | V30: 0 | W30: 0 | X30: 0 | Y30: =CHOOSE(Y$10,Z30,AA30,AB30,AC30,AD30) -> 0 | Z30: 0 | AA30: 0 | AB30: 0 | AC30: 0 | AD30: 0 | AE30: =CHOOSE(AE$10,AF30,AG30,AH30,AI30,AJ30) -> 0 | AF30: 0 | AG30: 0 | AH30: 0 | AI30: 0 | AJ30: 0 | AK30: =CHOOSE(AK$10,AL30,AM30,AN30,AO30,AP30) -> 0 | AL30: 0 | AM30: 0 | AN30: 0 | AO30: 0 | AP30: 0 | AQ30: =G30+M30+S30+Y30+AE30+AK30 -> 0 | AR30: =CHOOSE(Selected_Phase,G30,M30,S30,Y30,AE30,AK30) -> 0
B31: Other | G31: =CHOOSE(G$10,H31,I31,J31,K31,L31) -> 0 | H31: 0 | I31: 0 | J31: 0 | K31: 0 | L31: 0 | M31: =CHOOSE(M$10,N31,O31,P31,Q31,R31) -> 0 | N31: 0 | O31: 0 | P31: 0 | Q31: 0 | R31: 0 | S31: =CHOOSE(S$10,T31,U31,V31,W31,X31) -> 0 | T31: 0 | U31: 0 | V31: 0 | W31: 0 | X31: 0 | Y31: =CHOOSE(Y$10,Z31,AA31,AB31,AC31,AD31) -> 0 | Z31: 0 | AA31: 0 | AB31: 0 | AC31: 0 | AD31: 0 | AE31: =CHOOSE(AE$10,AF31,AG31,AH31,AI31,AJ31) -> 0 | AF31: 0 | AG31: 0 | AH31: 0 | AI31: 0 | AJ31: 0 | AK31: =CHOOSE(AK$10,AL31,AM31,AN31,AO31,AP31) -> 0 | AL31: 0 | AM31: 0 | AN31: 0 | AO31: 0 | AP31: 0 | AQ31: =G31+M31+S31+Y31+AE31+AK31 -> 0 | AR31: =CHOOSE(Selected_Phase,G31,M31,S31,Y31,AE31,AK31) -> 0
B32: Total (sqm) | G32: =CHOOSE(G$10,H32,I32,J32,K32,L32) -> 7500 | H32: =SUM(H28:H31) -> 7500 | I32: =SUM(I28:I31) -> 7500 | J32: =SUM(J28:J31) -> 7500 | K32: =SUM(K28:K31) -> 7500 | L32: =SUM(L28:L31) -> 7500 | M32: =CHOOSE(M$10,N32,O32,P32,Q32,R32) -> 4000 | N32: =SUM(N28:N31) -> 4000 | O32: =SUM(O28:O31) -> 4000 | P32: =SUM(P28:P31) -> 4000 | Q32: =SUM(Q28:Q31) -> 4000 | R32: =SUM(R28:R31) -> 4000 | S32: =CHOOSE(S$10,T32,U32,V32,W32,X32) -> 2400 | T32: =SUM(T28:T31) -> 2400 | U32: =SUM(U28:U31) -> 2400 | V32: =SUM(V28:V31) -> 2400 | W32: =SUM(W28:W31) -> 2400 | X32: =SUM(X28:X31) -> 2400 | Y32: =CHOOSE(Y$10,Z32,AA32,AB32,AC32,AD32) -> 1700 | Z32: =SUM(Z28:Z31) -> 1700 | AA32: =SUM(AA28:AA31) -> 1700 | AB32: =SUM(AB28:AB31) -> 1700 | AC32: =SUM(AC28:AC31) -> 1700 | AD32: =SUM(AD28:AD31) -> 1700 | AE32: =CHOOSE(AE$10,AF32,AG32,AH32,AI32,AJ32) -> 850 | AF32: =SUM(AF28:AF31) -> 850 | AG32: =SUM(AG28:AG31) -> 850 | AH32: =SUM(AH28:AH31) -> 850 | AI32: =SUM(AI28:AI31) -> 850 | AJ32: =SUM(AJ28:AJ31) -> 850 | AK32: =CHOOSE(AK$10,AL32,AM32,AN32,AO32,AP32) -> 850 | AL32: =SUM(AL28:AL31) -> 850 | AM32: =SUM(AM28:AM31) -> 850 | AN32: =SUM(AN28:AN31) -> 850 | AO32: =SUM(AO28:AO31) -> 850 | AP32: =SUM(AP28:AP31) -> 850 | AQ32: =G32+M32+S32+Y32+AE32+AK32 -> 17300 | AR32: =CHOOSE(Selected_Phase,G32,M32,S32,Y32,AE32,AK32) -> 7500
B35: Planned Net Rent (€/psm pa)
B36: Office | G36: =CHOOSE(G$10,H36,I36,J36,K36,L36) -> 400 | H36: =Assumptions!M22 -> 400 | I36: =H36+50 -> 450 | J36: =H36-50 -> 350 | K36: =Assumptions!G22 -> 483.4912438 | M36: =CHOOSE(M$10,N36,O36,P36,Q36,R36) -> 400 | N36: =Assumptions!N22 -> 400 | O36: =N36+50 -> 450 | P36: =N36-50 -> 350 | Q36: =Assumptions!H22 -> 483.4912438 | S36: =CHOOSE(S$10,T36,U36,V36,W36,X36) -> 400 | T36: =Assumptions!O22 -> 400 | U36: =T36+50 -> 450 | V36: =T36-50 -> 350 | W36: =Assumptions!I22 -> 483.4912438 | Y36: =CHOOSE(Y$10,Z36,AA36,AB36,AC36,AD36) -> 400 | Z36: =Assumptions!P22 -> 400 | AA36: =Z36+50 -> 450 | AB36: =Z36-50 -> 350 | AC36: =Assumptions!J22 -> 483.4912438 | AE36: =CHOOSE(AE$10,AF36,AG36,AH36,AI36,AJ36) -> 400 | AF36: =Assumptions!Q22 -> 400 | AG36: =AF36+50 -> 450 | AH36: =AF36-50 -> 350 | AI36: =Assumptions!K22 -> 483.4912438 | AK36: =CHOOSE(AK$10,AL36,AM36,AN36,AO36,AP36) -> 400 | AL36: =Assumptions!R22 -> 400 | AM36: =AL36+50 -> 450 | AN36: =AL36-50 -> 350 | AO36: =Assumptions!L22 -> 483.4912438 | AQ36: =G36+M36+S36+Y36+AE36+AK36 -> 2400 | AR36: =CHOOSE(Selected_Phase,G36,M36,S36,Y36,AE36,AK36) -> 400
B37: Retail | G37: 0 | H37: 0 | I37: 0 | J37: 0 | K37: =J37 -> 0 | L37: 0 | M37: 0 | N37: 0 | O37: 0 | P37: 0 | Q37: 0 | R37: 0 | S37: 0 | T37: 0 | U37: 0 | V37: 0 | W37: 0 | X37: 0 | Y37: 0 | Z37: 0 | AA37: 0 | AB37: 0 | AC37: 0 | AD37: 0 | AE37: 0 | AF37: 0 | AG37: 0 | AH37: 0 | AI37: 0 | AJ37: 0 | AK37: 0 | AL37: 0 | AM37: 0 | AN37: 0 | AO37: 0 | AP37: 0 | AQ37: =G37+M37+S37+Y37+AE37+AK37 -> 0 | AR37: =CHOOSE(Selected_Phase,G37,M37,S37,Y37,AE37,AK37) -> 0
B38: Residential | G38: 0 | H38: 0 | I38: 0 | J38: 0 | K38: =J38 -> 0 | L38: 0 | M38: 0 | N38: 0 | O38: 0 | P38: 0 | Q38: 0 | R38: 0 | S38: 0 | T38: 0 | U38: 0 | V38: 0 | W38: 0 | X38: 0 | Y38: 0 | Z38: 0 | AA38: 0 | AB38: 0 | AC38: 0 | AD38: 0 | AE38: 0 | AF38: 0 | AG38: 0 | AH38: 0 | AI38: 0 | AJ38: 0 | AK38: 0 | AL38: 0 | AM38: 0 | AN38: 0 | AO38: 0 | AP38: 0 | AQ38: 0 | AR38: 0
B39: Other | G39: 0 | H39: 0 | I39: 0 | J39: 0 | K39: =J39 -> 0 | L39: 0 | M39: 0 | N39: 0 | O39: 0 | P39: 0 | Q39: 0 | R39: 0 | S39: 0 | T39: 0 | U39: 0 | V39: 0 | W39: 0 | X39: 0 | Y39: 0 | Z39: 0 | AA39: 0 | AB39: 0 | AC39: 0 | AD39: 0 | AE39: 0 | AF39: 0 | AG39: 0 | AH39: 0 | AI39: 0 | AJ39: 0 | AK39: 0 | AL39: 0 | AM39: 0 | AN39: 0 | AO39: 0 | AP39: 0 | AQ39: 0 | AR39: 0
B40: Weighted Average | G40: 400 | H40: =SUMPRODUCT(H36:H39,H28:H31)/H32 -> 400 | I40: 450 | J40: =SUMPRODUCT(J36:J39,J28:J31)/J32 -> 350 | K40: =IFERROR(SUMPRODUCT(K36:K39,K28:K31)/K32,0) -> 483.4912438 | L40: =SUMPRODUCT(L36:L39,L28:L31)/L32 -> 0 | M40: 400 | N40: 400 | O40: 450 | P40: 350 | Q40: =IFERROR(SUMPRODUCT(Q36:Q39,Q28:Q31)/Q32,0) -> 483.4912438 | R40: =SUMPRODUCT(R36:R39,R28:R31)/R32 -> 0 | S40: 400 | T40: 400 | U40: 450 | V40: 350 | W40: =IFERROR(SUMPRODUCT(W36:W39,W28:W31)/W32,0) -> 483.4912438 | X40: =SUMPRODUCT(X36:X39,X28:X31)/X32 -> 0 | Y40: 400 | Z40: 400 | AA40: 450 | AB40: 350 | AC40: =IFERROR(SUMPRODUCT(AC36:AC39,AC28:AC31)/AC32,0) -> 483.4912438 | AD40: =SUMPRODUCT(AD36:AD39,AD28:AD31)/AD32 -> 0 | AE40: 400 | AF40: 400 | AG40: 450 | AH40: 350 | AI40: =IFERROR(SUMPRODUCT(AI36:AI39,AI28:AI31)/AI32,0) -> 483.4912438 | AJ40: =SUMPRODUCT(AJ36:AJ39,AJ28:AJ31)/AJ32 -> 0 | AK40: 400 | AL40: 400 | AM40: 450 | AN40: 350 | AO40: =IFERROR(SUMPRODUCT(AO36:AO39,AO28:AO31)/AO32,0) -> 483.4912438 | AP40: =SUMPRODUCT(AP36:AP39,AP28:AP31)/AP32 -> 0 | AQ40: 2400 | AR40: 400
B41: Total (€ pa) | G41: 3000000 | H41: =SUMPRODUCT(H36:H39,H28:H31) -> 3000000 | I41: =SUMPRODUCT(I36:I39,I28:I31) -> 3375000 | J41: =SUMPRODUCT(J36:J39,J28:J31) -> 2625000 | K41: =SUMPRODUCT(K36:K39,K28:K31) -> 3626184.328 | L41: =SUMPRODUCT(L36:L39,L28:L31) -> 0 | M41: 1600000 | N41: =SUMPRODUCT(N36:N39,N28:N31) -> 1600000 | O41: =SUMPRODUCT(O36:O39,O28:O31) -> 1800000 | P41: =SUMPRODUCT(P36:P39,P28:P31) -> 1400000 | Q41: =SUMPRODUCT(Q36:Q39,Q28:Q31) -> 1933964.975 | R41: =SUMPRODUCT(R36:R39,R28:R31) -> 0 | S41: 960000 | T41: =SUMPRODUCT(T36:T39,T28:T31) -> 960000 | U41: =SUMPRODUCT(U36:U39,U28:U31) -> 1080000 | V41: =SUMPRODUCT(V36:V39,V28:V31) -> 840000 | W41: =SUMPRODUCT(W36:W39,W28:W31) -> 1160378.985 | X41: =SUMPRODUCT(X36:X39,X28:X31) -> 0 | Y41: 680000 | Z41: =SUMPRODUCT(Z36:Z39,Z28:Z31) -> 680000 | AA41: =SUMPRODUCT(AA36:AA39,AA28:AA31) -> 765000 | AB41: =SUMPRODUCT(AB36:AB39,AB28:AB31) -> 595000 | AC41: =SUMPRODUCT(AC36:AC39,AC28:AC31) -> 821935.1145 | AD41: =SUMPRODUCT(AD36:AD39,AD28:AD31) -> 0 | AE41: 340000 | AF41: =SUMPRODUCT(AF36:AF39,AF28:AF31) -> 340000 | AG41: =SUMPRODUCT(AG36:AG39,AG28:AG31) -> 382500 | AH41: =SUMPRODUCT(AH36:AH39,AH28:AH31) -> 297500 | AI41: =SUMPRODUCT(AI36:AI39,AI28:AI31) -> 410967.5572 | AJ41: =SUMPRODUCT(AJ36:AJ39,AJ28:AJ31) -> 0 | AK41: 340000 | AL41: =SUMPRODUCT(AL36:AL39,AL28:AL31) -> 340000 | AM41: =SUMPRODUCT(AM36:AM39,AM28:AM31) -> 382500 | AN41: =SUMPRODUCT(AN36:AN39,AN28:AN31) -> 297500 | AO41: =SUMPRODUCT(AO36:AO39,AO28:AO31) -> 410967.5572 | AP41: =SUMPRODUCT(AP36:AP39,AP28:AP31) -> 0 | AQ41: 6920000 | AR41: 3000000
B43: Land Cost
B44: Land Cost | G44: =CHOOSE(G$10,H44,I44,J44,K44,L44) -> 4000 | H44: 4000 | I44: =H44 -> 4000 | J44: =I44 -> 4000 | K44: =CHOOSE(ScenarioWithinRandom,H44,I44,J44) -> 4000 | L44: =K44 -> 4000 | M44: =CHOOSE(M$10,N44,O44,P44,Q44,R44) -> 0 | N44: =IF(VerticalPhasing=1,0,H44*N14/$H14) -> 0 | O44: =IF(VerticalPhasing=1,0,I44*O14/$H14) -> 0 | P44: =IF(VerticalPhasing=1,0,J44*P14/$H14) -> 0 | Q44: =IF(VerticalPhasing=1,0,K44*Q14/$H14) -> 0 | R44: =IF(VerticalPhasing=1,0,L44*R14/$H14) -> 0 | S44: =CHOOSE(S$10,T44,U44,V44,W44,X44) -> 0 | T44: =IF(VerticalPhasing=1,0,N44*T14/$H14) -> 0 | U44: =IF(VerticalPhasing=1,0,O44*U14/$H14) -> 0 | V44: =IF(VerticalPhasing=1,0,P44*V14/$H14) -> 0 | W44: =IF(VerticalPhasing=1,0,Q44*W14/$H14) -> 0 | X44: =IF(VerticalPhasing=1,0,R44*X14/$H14) -> 0 | Y44: =CHOOSE(Y$10,Z44,AA44,AB44,AC44,AD44) -> 0 | Z44: =IF(VerticalPhasing=1,0,T44*Z14/$H14) -> 0 | AA44: =IF(VerticalPhasing=1,0,U44*AA14/$H14) -> 0 | AB44: =IF(VerticalPhasing=1,0,V44*AB14/$H14) -> 0 | AC44: =IF(VerticalPhasing=1,0,W44*AC14/$H14) -> 0 | AD44: =IF(VerticalPhasing=1,0,X44*AD14/$H14) -> 0 | AE44: =CHOOSE(AE$10,AF44,AG44,AH44,AI44,AJ44) -> 0 | AF44: =IF(VerticalPhasing=1,0,Z44*AF14/$H14) -> 0 | AG44: =IF(VerticalPhasing=1,0,AA44*AG14/$H14) -> 0 | AH44: =IF(VerticalPhasing=1,0,AB44*AH14/$H14) -> 0 | AI44: =IF(VerticalPhasing=1,0,AC44*AI14/$H14) -> 0 | AJ44: =IF(VerticalPhasing=1,0,AD44*AJ14/$H14) -> 0 | AK44: =CHOOSE(AK$10,AL44,AM44,AN44,AO44,AP44) -> 0 | AL44: =IF(VerticalPhasing=1,0,AF44*AL14/$H14) -> 0 | AM44: =IF(VerticalPhasing=1,0,AG44*AM14/$H14) -> 0 | AN44: =IF(VerticalPhasing=1,0,AH44*AN14/$H14) -> 0 | AO44: =IF(VerticalPhasing=1,0,AI44*AO14/$H14) -> 0 | AP44: =IF(VerticalPhasing=1,0,AJ44*AP14/$H14) -> 0 | AQ44: =G44+M44+S44+Y44+AE44+AK44 -> 4000 | AR44: =CHOOSE(Selected_Phase,G44,M44,S44,Y44,AE44,AK44) -> 4000
B46: Construction Cost
B47: Construction costs | G47: =CHOOSE(G$10,H47,I47,J47,K47,L47) -> 25000 | H47: =H49*H15/1000 -> 25000 | I47: =I49*I15/1000 -> 22500 | J47: =J49*J15/1000 -> 30000 | K47: =K49*K15/1000 -> 25473.09424 | L47: =L49*L15/1000 -> 0 | M47: =CHOOSE(M$10,N47,O47,P47,Q47,R47) -> 15000 | N47: =N49*N15/1000 -> 15000 | O47: =O49*O15/1000 -> 13750 | P47: =P49*P15/1000 -> 17500 | Q47: =Q49*Q15/1000 -> 17363.98505 | R47: =R49*R15/1000 -> 0 | S47: =CHOOSE(S$10,T47,U47,V47,W47,X47) -> 10500 | T47: =T49*T15/1000 -> 10500 | U47: =U49*U15/1000 -> 9750 | V47: =V49*V15/1000 -> 12000 | W47: =W49*W15/1000 -> 10725.68301 | X47: =X49*X15/1000 -> 0 | Y47: =CHOOSE(Y$10,Z47,AA47,AB47,AC47,AD47) -> 8000 | Z47: =Z49*Z15/1000 -> 8000 | AA47: =AA49*AA15/1000 -> 7500 | AB47: =AB49*AB15/1000 -> 9000 | AC47: =AC49*AC15/1000 -> 6334.75882 | AD47: =AD49*AD15/1000 -> 0 | AE47: =CHOOSE(AE$10,AF47,AG47,AH47,AI47,AJ47) -> 4500 | AF47: =AF49*AF15/1000 -> 4500 | AG47: =AG49*AG15/1000 -> 4250 | AH47: =AH49*AH15/1000 -> 5000 | AI47: =AI49*AI15/1000 -> 5567.991683 | AJ47: =AJ49*AJ15/1000 -> 0 | AK47: =CHOOSE(AK$10,AL47,AM47,AN47,AO47,AP47) -> 5000 | AL47: =AL49*AL15/1000 -> 5000 | AM47: =AM49*AM15/1000 -> 4750 | AN47: =AN49*AN15/1000 -> 5500 | AO47: =AO49*AO15/1000 -> 5567.991683 | AP47: =AP49*AP15/1000 -> 0 | AQ47: =G47+M47+S47+Y47+AE47+AK47 -> 68000 | AR47: =CHOOSE(Selected_Phase,G47,M47,S47,Y47,AE47,AK47) -> 25000
B48: € psm of PGA | G48: 2500 | H48: =Assumptions!M23 -> 2500 | I48: =H48-250 -> 2250 | J48: =H48+500 -> 3000 | K48: =Assumptions!G23 -> 2547.309424 | M48: 3000 | N48: =Assumptions!N23 -> 3000 | O48: =N48-250 -> 2750 | P48: =N48+500 -> 3500 | Q48: =Assumptions!H23 -> 3472.797009 | S48: 3500 | T48: =Assumptions!O23 -> 3500 | U48: =T48-250 -> 3250 | V48: =T48+500 -> 4000 | W48: =Assumptions!I23 -> 3575.227671 | Y48: 4000 | Z48: =Assumptions!P23 -> 4000 | AA48: =Z48-250 -> 3750 | AB48: =Z48+500 -> 4500 | AC48: =Assumptions!J23 -> 3167.37941 | AE48: 4500 | AF48: =Assumptions!Q23 -> 4500 | AG48: =AF48-250 -> 4250 | AH48: =AF48+500 -> 5000 | AI48: =Assumptions!K23 -> 5567.991683 | AK48: 5000 | AL48: =Assumptions!R23 -> 5000 | AM48: =AL48-250 -> 4750 | AN48: =AL48+500 -> 5500 | AO48: =Assumptions!K23 -> 5567.991683 | AR48: 2500
B49: € psm of PGA (for sensitivity) | G49: 2500 | H49: =H48*1 -> 2500 | I49: =I48*1 -> 2250 | J49: =J48*1 -> 3000 | K49: =K48*1 -> 2547.309424 | L49: =L48*1 -> 0 | M49: 3000 | N49: =N48*1 -> 3000 | O49: =O48*1 -> 2750 | P49: =P48*1 -> 3500 | Q49: =Q48*1 -> 3472.797009 | R49: =R48*1 -> 0 | S49: 3500 | T49: =T48*1 -> 3500 | U49: =U48*1 -> 3250 | V49: =V48*1 -> 4000 | W49: =W48*1 -> 3575.227671 | X49: =X48*1 -> 0 | Y49: 4000 | Z49: =Z48*1 -> 4000 | AA49: =AA48*1 -> 3750 | AB49: =AB48*1 -> 4500 | AC49: =AC48*1 -> 3167.37941 | AD49: =AD48*1 -> 0 | AE49: 4500 | AF49: =AF48*1 -> 4500 | AG49: =AG48*1 -> 4250 | AH49: =AH48*1 -> 5000 | AI49: =AI48*1 -> 5567.991683 | AJ49: =AJ48*1 -> 0 | AK49: 5000 | AL49: =AL48*1 -> 5000 | AM49: =AM48*1 -> 4750 | AN49: =AN48*1 -> 5500 | AO49: =AO48*1 -> 5567.991683 | AP49: =AP48*1 -> 0 | AQ49: =AQ47/AQ15*1000 -> 3578.947368 | AR49: 2500
B50: Contingencies | G50: 1000 | H50: =H51*H$47 -> 1000 | I50: =I51*I$47 -> 900 | J50: =J51*J$47 -> 1200 | K50: =K51*K$47 -> 1018.92377 | L50: =L51*L$47 -> 0 | M50: 600 | N50: =N51*N$47 -> 600 | O50: =O51*O$47 -> 550 | P50: =P51*P$47 -> 700 | Q50: =Q51*Q$47 -> 694.5594018 | R50: =R51*R$47 -> 0 | S50: 420 | T50: =T51*T$47 -> 420 | U50: =U51*U$47 -> 390 | V50: =V51*V$47 -> 480 | W50: =W51*W$47 -> 429.0273205 | X50: =X51*X$47 -> 0 | Y50: 320 | Z50: =Z51*Z$47 -> 320 | AA50: =AA51*AA$47 -> 300 | AB50: =AB51*AB$47 -> 360 | AC50: =AC51*AC$47 -> 253.3903528 | AD50: =AD51*AD$47 -> 0 | AE50: 180 | AF50: =AF51*AF$47 -> 180 | AG50: =AG51*AG$47 -> 170 | AH50: =AH51*AH$47 -> 200 | AI50: =AI51*AI$47 -> 222.7196673 | AJ50: =AJ51*AJ$47 -> 0 | AK50: 200 | AL50: =AL51*AL$47 -> 200 | AM50: =AM51*AM$47 -> 190 | AN50: =AN51*AN$47 -> 220 | AO50: =AO51*AO$47 -> 222.7196673 | AP50: =AP51*AP$47 -> 0 | AQ50: =G50+M50+S50+Y50+AE50+AK50 -> 2720 | AR50: 1000
B51: % of Construction Costs | G51: 0.04 | H51: 0.04 | I51: =H51 -> 0.04 | J51: =I51 -> 0.04 | K51: =CHOOSE(ScenarioWithinRandom,H51,I51,J51) -> 0.04 | M51: 0.04 | N51: 0.04 | O51: =N51 -> 0.04 | P51: =O51 -> 0.04 | Q51: =CHOOSE(ScenarioWithinRandom,N51,O51,P51) -> 0.04 | R51: =Q51 -> 0.04 | S51: 0.04 | T51: 0.04 | U51: =T51 -> 0.04 | V51: 0.04 | W51: =CHOOSE(ScenarioWithinRandom,T51,U51,V51) -> 0.04 | X51: =W51 -> 0.04 | Y51: 0.04 | Z51: 0.04 | AA51: =Z51 -> 0.04 | AB51: 0.04 | AC51: =CHOOSE(ScenarioWithinRandom,Z51,AA51,AB51) -> 0.04 | AD51: =AC51 -> 0.04 | AE51: 0.04 | AF51: 0.04 | AG51: =AF51 -> 0.04 | AH51: 0.04 | AI51: =CHOOSE(ScenarioWithinRandom,AF51,AG51,AH51) -> 0.04 | AJ51: =AI51 -> 0.04 | AK51: 0.04 | AL51: 0.04 | AM51: =AL51 -> 0.04 | AN51: 0.04 | AO51: =CHOOSE(ScenarioWithinRandom,AL51,AM51,AN51) -> 0.04 | AP51: =AO51 -> 0.04 | AQ51: =AQ50/AQ47 -> 0.04 | AR51: 0.04
B52: Other Miscellaneous Cost | G52: 1250 | H52: =H53*H$47 -> 1250 | I52: =I53*I$47 -> 1125 | J52: =J53*J$47 -> 1500 | K52: =K53*K$47 -> 1273.654712 | L52: =L53*L$47 -> 0 | M52: 750 | N52: =N53*N$47 -> 750 | O52: =O53*O$47 -> 687.5 | P52: =P53*P$47 -> 875 | Q52: =Q53*Q$47 -> 868.1992523 | R52: =R53*R$47 -> 0 | S52: 525 | T52: =T53*T$47 -> 525 | U52: =U53*U$47 -> 487.5 | V52: =V53*V$47 -> 600 | W52: =W53*W$47 -> 536.2841506 | X52: =X53*X$47 -> 0 | Y52: 400 | Z52: =Z53*Z$47 -> 400 | AA52: =AA53*AA$47 -> 375 | AB52: =AB53*AB$47 -> 450 | AC52: =AC53*AC$47 -> 316.737941 | AD52: =AD53*AD$47 -> 0 | AE52: 225 | AF52: =AF53*AF$47 -> 225 | AG52: =AG53*AG$47 -> 212.5 | AH52: =AH53*AH$47 -> 250 | AI52: =AI53*AI$47 -> 278.3995842 | AJ52: =AJ53*AJ$47 -> 0 | AK52: 250 | AL52: =AL53*AL$47 -> 250 | AM52: =AM53*AM$47 -> 237.5 | AN52: =AN53*AN$47 -> 275 | AO52: =AO53*AO$47 -> 278.3995842 | AP52: =AP53*AP$47 -> 0 | AQ52: =G52+M52+S52+Y52+AE52+AK52 -> 3400 | AR52: 1250
B53: % of Construction Costs | G53: 0.05 | H53: 0.05 | I53: =H53 -> 0.05 | J53: =I53 -> 0.05 | K53: =CHOOSE(ScenarioWithinRandom,H53,I53,J53) -> 0.05 | M53: 0.05 | N53: 0.05 | O53: =N53 -> 0.05 | P53: =O53 -> 0.05 | Q53: =CHOOSE(ScenarioWithinRandom,N53,O53,P53) -> 0.05 | R53: =Q53 -> 0.05 | S53: 0.05 | T53: 0.05 | U53: 0.05 | V53: 0.05 | W53: =CHOOSE(ScenarioWithinRandom,T53,U53,V53) -> 0.05 | X53: =W53 -> 0.05 | Y53: 0.05 | Z53: 0.05 | AA53: 0.05 | AB53: 0.05 | AC53: =CHOOSE(ScenarioWithinRandom,Z53,AA53,AB53) -> 0.05 | AD53: =AC53 -> 0.05 | AE53: 0.05 | AF53: 0.05 | AG53: 0.05 | AH53: 0.05 | AI53: =CHOOSE(ScenarioWithinRandom,AF53,AG53,AH53) -> 0.05 | AJ53: =AI53 -> 0.05 | AK53: 0.05 | AL53: 0.05 | AM53: 0.05 | AN53: 0.05 | AO53: =CHOOSE(ScenarioWithinRandom,AL53,AM53,AN53) -> 0.05 | AP53: =AO53 -> 0.05 | AQ53: =AQ52/AQ49 -> 0.95 | AR53: 0.05
B54: Additional Phasing Cost | G54: =CHOOSE(G$10,H54,I54,J54,K54,L54) -> 2500 | H54: =H15*H$55/1000 -> 2500 | I54: =I15*I$55/1000 -> 2500 | J54: =J15*J$55/1000 -> 2500 | K54: =K15*K$55/1000 -> 2327.696641 | L54: =L15*L$55/1000 -> 0 | M54: 3750 | N54: =N15*N$55/1000 -> 3750 | O54: =O15*O$55/1000 -> 3750 | P54: =P15*P$55/1000 -> 3750 | Q54: =Q15*Q$55/1000 -> 3112.500652 | R54: =R15*R$55/1000 -> 3112.500652 | S54: 0 | T54: =T15*T$55/1000 -> 0 | U54: =U15*U$55/1000 -> 0 | V54: =V15*V$55/1000 -> 0 | W54: =W15*W$55/1000 -> 3672.077994 | X54: =X15*X$55/1000 -> 0 | Y54: 0 | Z54: =Z15*Z$55/1000 -> 0 | AA54: =AA15*AA$55/1000 -> 0 | AB54: =AB15*AB$55/1000 -> 0 | AC54: =AC15*AC$55/1000 -> 3190.464173 | AD54: =AD15*AD$55/1000 -> 3190.464173 | AE54: 0 | AF54: =AF15*AF$55/1000 -> 0 | AG54: =AG15*AG$55/1000 -> 0 | AH54: =AH15*AH$55/1000 -> 0 | AI54: =AI15*AI$55/1000 -> 2080.628094 | AJ54: =AJ15*AJ$55/1000 -> 2080.628094 | AK54: 0 | AL54: =AL15*AL$55/1000 -> 0 | AM54: =AM15*AM$55/1000 -> 0 | AN54: =AN15*AN$55/1000 -> 0 | AO54: =AO15*AO$55/1000 -> 2672.024682 | AP54: =AP15*AP$55/1000 -> 2672.024682 | AQ54: =G54+M54+S54+Y54+AE54+AK54 -> 6250 | AR54: =CHOOSE(Selected_Phase,G54,M54,S54,Y54,AE54,AK54) -> 2500
B55: € psm of PGA | G55: =CHOOSE(G$10,H55,I55,J55,K55,L55) -> 250 | H55: =Assumptions!M24 -> 250 | I55: =H55 -> 250 | J55: =I55 -> 250 | K55: =Assumptions!G24 -> 232.7696641 | M55: 750 | N55: =Assumptions!N24 -> 750 | O55: =N55 -> 750 | P55: =O55 -> 750 | Q55: =Assumptions!H24 -> 622.5001304 | R55: =Q55 -> 622.5001304 | S55: 0 | T55: 0 | U55: =T55 -> 0 | V55: =U55 -> 0 | W55: =Assumptions!I24 -> 1224.025998 | Y55: 0 | Z55: 0 | AA55: =Z55 -> 0 | AB55: =AA55 -> 0 | AC55: =Assumptions!J24 -> 1595.232087 | AD55: =AC55 -> 1595.232087 | AE55: 0 | AF55: 0 | AG55: =AF55 -> 0 | AH55: =AG55 -> 0 | AI55: =Assumptions!K24 -> 2080.628094 | AJ55: =AI55 -> 2080.628094 | AK55: 0 | AL55: 0 | AM55: =AL55 -> 0 | AN55: =AM55 -> 0 | AO55: =Assumptions!L24 -> 2672.024682 | AP55: =AO55 -> 2672.024682 | AR55: =CHOOSE(Selected_Phase,G55,M55,S55,Y55,AE55,AK55) -> 250
B56: Site Preparation Costs | G56: =CHOOSE(G$10,H56,I56,J56,K56,L56) -> 250 | H56: =H57*H$47 -> 250 | I56: =I57*I$47 -> 225 | J56: =J57*J$47 -> 300 | K56: =K57*K$47 -> 254.7309424 | L56: =L57*L$47 -> 0 | M56: 75 | N56: =N57*N$47 -> 75 | O56: =O57*O$47 -> 68.75 | P56: =P57*P$47 -> 87.5 | Q56: =Q57*Q$47 -> 86.81992523 | R56: =R57*R$47 -> 0 | S56: 52.5 | T56: =T57*T$47 -> 52.5 | U56: =U57*U$47 -> 48.75 | V56: =V57*V$47 -> 60 | W56: =W57*W$47 -> 53.62841506 | X56: =X57*X$47 -> 0 | Y56: 40 | Z56: =Z57*Z$47 -> 40 | AA56: =AA57*AA$47 -> 37.5 | AB56: =AB57*AB$47 -> 45 | AC56: =AC57*AC$47 -> 31.6737941 | AD56: =AD57*AD$47 -> 0 | AE56: 22.5 | AF56: =AF57*AF$47 -> 22.5 | AG56: =AG57*AG$47 -> 21.25 | AH56: =AH57*AH$47 -> 25 | AI56: =AI57*AI$47 -> 27.83995842 | AJ56: =AJ57*AJ$47 -> 0 | AK56: 25 | AL56: =AL57*AL$47 -> 25 | AM56: =AM57*AM$47 -> 23.75 | AN56: =AN57*AN$47 -> 27.5 | AO56: =AO57*AO$47 -> 27.83995842 | AP56: =AP57*AP$47 -> 0 | AQ56: =G56+M56+S56+Y56+AE56+AK56 -> 465 | AR56: =CHOOSE(Selected_Phase,G56,M56,S56,Y56,AE56,AK56) -> 250
B57: % of Construction Costs | G57: =CHOOSE(G$10,H57,I57,J57,K57,L57) -> 0.01 | H57: 0.01 | I57: =H57 -> 0.01 | J57: =I57 -> 0.01 | K57: =CHOOSE(ScenarioWithinRandom,H57,I57,J57) -> 0.01 | M57: 0.005 | N57: 0.005 | O57: =N57 -> 0.005 | P57: =O57 -> 0.005 | Q57: =CHOOSE(ScenarioWithinRandom,N57,O57,P57) -> 0.005 | R57: =Q57 -> 0.005 | S57: 0.005 | T57: 0.005 | U57: =T57 -> 0.005 | V57: =U57 -> 0.005 | W57: =CHOOSE(ScenarioWithinRandom,T57,U57,V57) -> 0.005 | X57: =W57 -> 0.005 | Y57: 0.005 | Z57: 0.005 | AA57: =Z57 -> 0.005 | AB57: =AA57 -> 0.005 | AC57: =CHOOSE(ScenarioWithinRandom,Z57,AA57,AB57) -> 0.005 | AD57: =AC57 -> 0.005 | AE57: 0.005 | AF57: 0.005 | AG57: =AF57 -> 0.005 | AH57: =AG57 -> 0.005 | AI57: =CHOOSE(ScenarioWithinRandom,AF57,AG57,AH57) -> 0.005 | AJ57: =AI57 -> 0.005 | AK57: 0.005 | AL57: 0.005 | AM57: =AL57 -> 0.005 | AN57: =AM57 -> 0.005 | AO57: =CHOOSE(ScenarioWithinRandom,AL57,AM57,AN57) -> 0.005 | AP57: =AO57 -> 0.005 | AQ57: =AQ56/AQ53 -> 489.4736842 | AR57: =CHOOSE(Selected_Phase,G57,M57,S57,Y57,AE57,AK57) -> 0.01
B58: Total | G58: =CHOOSE(G$10,H58,I58,J58,K58,L58) -> 30000 | H58: =H47+H50+H52+H54+H56 -> 30000 | I58: =I47+I50+I52+I54+I56 -> 27250 | J58: =J47+J50+J52+J54+J56 -> 35500 | K58: =K47+K50+K52+K54+K56 -> 30348.10031 | L58: =L47+L50+L52+L54+L56 -> 0 | M58: 20175 | N58: =N47+N50+N52+N54+N56 -> 20175 | O58: =O47+O50+O52+O54+O56 -> 18806.25 | P58: =P47+P50+P52+P54+P56 -> 22912.5 | Q58: =Q47+Q50+Q52+Q54+Q56 -> 22126.06428 | R58: =R47+R50+R52+R54+R56 -> 3112.500652 | S58: 11497.5 | T58: =T47+T50+T52+T54+T56 -> 11497.5 | U58: =U47+U50+U52+U54+U56 -> 10676.25 | V58: =V47+V50+V52+V54+V56 -> 13140 | W58: =W47+W50+W52+W54+W56 -> 15416.70089 | X58: =X47+X50+X52+X54+X56 -> 0 | Y58: 8760 | Z58: =Z47+Z50+Z52+Z54+Z56 -> 8760 | AA58: =AA47+AA50+AA52+AA54+AA56 -> 8212.5 | AB58: =AB47+AB50+AB52+AB54+AB56 -> 9855 | AC58: =AC47+AC50+AC52+AC54+AC56 -> 10127.02508 | AD58: =AD47+AD50+AD52+AD54+AD56 -> 3190.464173 | AE58: 4927.5 | AF58: =AF47+AF50+AF52+AF54+AF56 -> 4927.5 | AG58: =AG47+AG50+AG52+AG54+AG56 -> 4653.75 | AH58: =AH47+AH50+AH52+AH54+AH56 -> 5475 | AI58: =AI47+AI50+AI52+AI54+AI56 -> 8177.578987 | AJ58: =AJ47+AJ50+AJ52+AJ54+AJ56 -> 2080.628094 | AK58: 5475 | AL58: =AL47+AL50+AL52+AL54+AL56 -> 5475 | AM58: =AM47+AM50+AM52+AM54+AM56 -> 5201.25 | AN58: =AN47+AN50+AN52+AN54+AN56 -> 6022.5 | AO58: =AO47+AO50+AO52+AO54+AO56 -> 8768.975575 | AP58: =AP47+AP50+AP52+AP54+AP56 -> 2672.024682 | AQ58: =G58+M58+S58+Y58+AE58+AK58 -> 80835 | AR58: =CHOOSE(Selected_Phase,G58,M58,S58,Y58,AE58,AK58) -> 30000
B60: Fees & Other Soft Costs
B61: Architect & Engineer Fees | G61: =CHOOSE(G$10,H61,I61,J61,K61,L61) -> 3000 | H61: =H62*H$58 -> 3000 | I61: =I62*I$58 -> 2725 | J61: =J62*J$58 -> 3550 | K61: =K62*K$58 -> 3034.810031 | L61: =L62*L$58 -> 0 | M61: =CHOOSE(M$10,N61,O61,P61,Q61,R61) -> 3026.25 | N61: =N62*N$58 -> 3026.25 | O61: =O62*O$58 -> 2820.9375 | P61: =P62*P$58 -> 3436.875 | Q61: =Q62*Q$58 -> 3318.909641 | R61: =R62*R$58 -> 466.8750978 | S61: =CHOOSE(S$10,T61,U61,V61,W61,X61) -> 1724.625 | T61: =T62*T$58 -> 1724.625 | U61: =U62*U$58 -> 1601.4375 | V61: =V62*V$58 -> 1971 | W61: =W62*W$58 -> 2312.505134 | X61: =X62*X$58 -> 0 | Y61: =CHOOSE(Y$10,Z61,AA61,AB61,AC61,AD61) -> 1314 | Z61: =Z62*Z$58 -> 1314 | AA61: =AA62*AA$58 -> 1231.875 | AB61: =AB62*AB$58 -> 1478.25 | AC61: =AC62*AC$58 -> 1519.053762 | AD61: =AD62*AD$58 -> 478.569626 | AE61: =CHOOSE(AE$10,AF61,AG61,AH61,AI61,AJ61) -> 739.125 | AF61: =AF62*AF$58 -> 739.125 | AG61: =AG62*AG$58 -> 698.0625 | AH61: =AH62*AH$58 -> 821.25 | AI61: =AI62*AI$58 -> 1226.636848 | AJ61: =AJ62*AJ$58 -> 312.0942141 | AK61: =CHOOSE(AK$10,AL61,AM61,AN61,AO61,AP61) -> 821.25 | AL61: =AL62*AL$58 -> 821.25 | AM61: =AM62*AM$58 -> 780.1875 | AN61: =AN62*AN$58 -> 903.375 | AO61: =AO62*AO$58 -> 1315.346336 | AP61: =AP62*AP$58 -> 400.8037023 | AQ61: =G61+M61+S61+Y61+AE61+AK61 -> 10625.25 | AR61: =CHOOSE(Selected_Phase,G61,M61,S61,Y61,AE61,AK61) -> 3000
B62: % of Total Building Costs | G62: =CHOOSE(G$10,H62,I62,J62,K62,L62) -> 0.1 | H62: 0.1 | I62: =H62 -> 0.1 | J62: =I62 -> 0.1 | K62: =CHOOSE(ScenarioWithinRandom,H62,I62,J62) -> 0.1 | M62: =CHOOSE(M$10,N62,O62,P62,Q62,R62) -> 0.15 | N62: 0.15 | O62: =N62 -> 0.15 | P62: =O62 -> 0.15 | Q62: =CHOOSE(ScenarioWithinRandom,N62,O62,P62) -> 0.15 | R62: =Q62 -> 0.15 | S62: =CHOOSE(S$10,T62,U62,V62,W62,X62) -> 0.15 | T62: 0.15 | U62: =T62 -> 0.15 | V62: =U62 -> 0.15 | W62: =CHOOSE(ScenarioWithinRandom,T62,U62,V62) -> 0.15 | X62: =W62 -> 0.15 | Y62: =CHOOSE(Y$10,Z62,AA62,AB62,AC62,AD62) -> 0.15 | Z62: 0.15 | AA62: =Z62 -> 0.15 | AB62: =AA62 -> 0.15 | AC62: =CHOOSE(ScenarioWithinRandom,Z62,AA62,AB62) -> 0.15 | AD62: =AC62 -> 0.15 | AE62: =CHOOSE(AE$10,AF62,AG62,AH62,AI62,AJ62) -> 0.15 | AF62: 0.15 | AG62: =AF62 -> 0.15 | AH62: =AG62 -> 0.15 | AI62: =CHOOSE(ScenarioWithinRandom,AF62,AG62,AH62) -> 0.15 | AJ62: =AI62 -> 0.15 | AK62: =CHOOSE(AK$10,AL62,AM62,AN62,AO62,AP62) -> 0.15 | AL62: 0.15 | AM62: =AL62 -> 0.15 | AN62: =AM62 -> 0.15 | AO62: =CHOOSE(ScenarioWithinRandom,AL62,AM62,AN62) -> 0.15 | AP62: =AO62 -> 0.15 | AQ62: =AQ61/AQ$58 -> 0.1314436816 | AR62: =CHOOSE(Selected_Phase,G62,M62,S62,Y62,AE62,AK62) -> 0.1
B63: Other Soft Costs | G63: =CHOOSE(G$10,H63,I63,J63,K63,L63) -> 600 | H63: =H64*H$58 -> 600 | I63: =I64*I$58 -> 545 | J63: =J64*J$58 -> 710 | K63: =K64*K$58 -> 606.9620062 | L63: =L64*L$58 -> 0 | M63: =CHOOSE(M$10,N63,O63,P63,Q63,R63) -> 403.5 | N63: =N64*N$58 -> 403.5 | O63: =O64*O$58 -> 376.125 | P63: =P64*P$58 -> 458.25 | Q63: =Q64*Q$58 -> 442.5212855 | R63: =R64*R$58 -> 62.25001304 | S63: =CHOOSE(S$10,T63,U63,V63,W63,X63) -> 229.95 | T63: =T64*T$58 -> 229.95 | U63: =U64*U$58 -> 213.525 | V63: =V64*V$58 -> 262.8 | W63: =W64*W$58 -> 308.3340178 | X63: =X64*X$58 -> 0 | Y63: =CHOOSE(Y$10,Z63,AA63,AB63,AC63,AD63) -> 175.2 | Z63: =Z64*Z$58 -> 175.2 | AA63: =AA64*AA$58 -> 164.25 | AB63: =AB64*AB$58 -> 197.1 | AC63: =AC64*AC$58 -> 202.5405016 | AD63: =AD64*AD$58 -> 63.80928346 | AE63: =CHOOSE(AE$10,AF63,AG63,AH63,AI63,AJ63) -> 98.55 | AF63: =AF64*AF$58 -> 98.55 | AG63: =AG64*AG$58 -> 93.075 | AH63: =AH64*AH$58 -> 109.5 | AI63: =AI64*AI$58 -> 163.5515797 | AJ63: =AJ64*AJ$58 -> 41.61256187 | AK63: =CHOOSE(AK$10,AL63,AM63,AN63,AO63,AP63) -> 109.5 | AL63: =AL64*AL$58 -> 109.5 | AM63: =AM64*AM$58 -> 104.025 | AN63: =AN64*AN$58 -> 120.45 | AO63: =AO64*AO$58 -> 175.3795115 | AP63: =AP64*AP$58 -> 53.44049365 | AQ63: =G63+M63+S63+Y63+AE63+AK63 -> 1616.7 | AR63: =CHOOSE(Selected_Phase,G63,M63,S63,Y63,AE63,AK63) -> 600
B64: % of Total Building Costs | G64: =CHOOSE(G$10,H64,I64,J64,K64,L64) -> 0.02 | H64: 0.02 | I64: =H64 -> 0.02 | J64: =I64 -> 0.02 | K64: =CHOOSE(ScenarioWithinRandom,H64,I64,J64) -> 0.02 | M64: =CHOOSE(M$10,N64,O64,P64,Q64,R64) -> 0.02 | N64: =H64 -> 0.02 | O64: =N64 -> 0.02 | P64: =O64 -> 0.02 | Q64: =CHOOSE(ScenarioWithinRandom,N64,O64,P64) -> 0.02 | R64: =Q64 -> 0.02 | S64: =CHOOSE(S$10,T64,U64,V64,W64,X64) -> 0.02 | T64: =N64 -> 0.02 | U64: =T64 -> 0.02 | V64: =U64 -> 0.02 | W64: =CHOOSE(ScenarioWithinRandom,T64,U64,V64) -> 0.02 | X64: =W64 -> 0.02 | Y64: =CHOOSE(Y$10,Z64,AA64,AB64,AC64,AD64) -> 0.02 | Z64: =T64 -> 0.02 | AA64: =Z64 -> 0.02 | AB64: =AA64 -> 0.02 | AC64: =CHOOSE(ScenarioWithinRandom,Z64,AA64,AB64) -> 0.02 | AD64: =AC64 -> 0.02 | AE64: =CHOOSE(AE$10,AF64,AG64,AH64,AI64,AJ64) -> 0.02 | AF64: =Z64 -> 0.02 | AG64: =AF64 -> 0.02 | AH64: =AG64 -> 0.02 | AI64: =CHOOSE(ScenarioWithinRandom,AF64,AG64,AH64) -> 0.02 | AJ64: =AI64 -> 0.02 | AK64: =CHOOSE(AK$10,AL64,AM64,AN64,AO64,AP64) -> 0.02 | AL64: =AF64 -> 0.02 | AM64: =AL64 -> 0.02 | AN64: =AM64 -> 0.02 | AO64: =CHOOSE(ScenarioWithinRandom,AL64,AM64,AN64) -> 0.02 | AP64: =AO64 -> 0.02 | AQ64: =AQ63/AQ$58 -> 0.02 | AR64: =CHOOSE(Selected_Phase,G64,M64,S64,Y64,AE64,AK64) -> 0.02
B65: Total | G65: =CHOOSE(G$10,H65,I65,J65,K65,L65) -> 3600 | H65: =H61+H63 -> 3600 | I65: 3270 | J65: =J61+J63 -> 4260 | K65: =K61+K63 -> 3641.772037 | L65: =L61+L63 -> 0 | M65: =CHOOSE(M$10,N65,O65,P65,Q65,R65) -> 3429.75 | N65: 3429.75 | O65: 3197.0625 | P65: 3895.125 | Q65: 3761.430927 | R65: 529.1251108 | S65: =CHOOSE(S$10,T65,U65,V65,W65,X65) -> 1954.575 | T65: 1954.575 | U65: 1814.9625 | V65: 2233.8 | W65: =W61+W63 -> 2620.839152 | X65: =X61+X63 -> 0 | Y65: =CHOOSE(Y$10,Z65,AA65,AB65,AC65,AD65) -> 1489.2 | Z65: 1489.2 | AA65: 1396.125 | AB65: 1675.35 | AC65: =AC61+AC63 -> 1721.594264 | AD65: =AD61+AD63 -> 542.3789094 | AE65: =CHOOSE(AE$10,AF65,AG65,AH65,AI65,AJ65) -> 837.675 | AF65: 837.675 | AG65: 791.1375 | AH65: =AH61+AH63 -> 930.75 | AI65: =AI61+AI63 -> 1390.188428 | AJ65: =AJ61+AJ63 -> 353.7067759 | AK65: =CHOOSE(AK$10,AL65,AM65,AN65,AO65,AP65) -> 930.75 | AL65: 930.75 | AM65: 884.2125 | AN65: =AN61+AN63 -> 1023.825 | AO65: =AO61+AO63 -> 1490.725848 | AP65: =AP61+AP63 -> 454.244196 | AQ65: =G65+M65+S65+Y65+AE65+AK65 -> 12241.95 | AR65: =CHOOSE(Selected_Phase,G65,M65,S65,Y65,AE65,AK65) -> 3600
B67: Other Costs (Absorption Budget)
B68: Free Rent Periods | G68: =CHOOSE(G$10,H68,I68,J68,K68,L68) -> 1 | H68: 1 | I68: =H68 -> 1 | J68: =I68 -> 1 | K68: =CHOOSE(ScenarioWithinRandom,H68,I68,J68) -> 1 | L68: 1 | M68: =CHOOSE(M$10,N68,O68,P68,Q68,R68) -> 1 | N68: 1 | O68: =N68 -> 1 | P68: =O68 -> 1 | Q68: =CHOOSE(ScenarioWithinRandom,N68,O68,P68) -> 1 | R68: 1 | S68: =CHOOSE(S$10,T68,U68,V68,W68,X68) -> 1 | T68: 1 | U68: =T68 -> 1 | V68: 1 | W68: =CHOOSE(ScenarioWithinRandom,T68,U68,V68) -> 1 | X68: 1 | Y68: =CHOOSE(Y$10,Z68,AA68,AB68,AC68,AD68) -> 1 | Z68: 1 | AA68: =Z68 -> 1 | AB68: 1 | AC68: =CHOOSE(ScenarioWithinRandom,Z68,AA68,AB68) -> 1 | AD68: =AC68 -> 1 | AE68: =CHOOSE(AE$10,AF68,AG68,AH68,AI68,AJ68) -> 1 | AF68: 1 | AG68: =AF68 -> 1 | AH68: 1 | AI68: =CHOOSE(ScenarioWithinRandom,AF68,AG68,AH68) -> 1 | AJ68: =AI68 -> 1 | AK68: =CHOOSE(AK$10,AL68,AM68,AN68,AO68,AP68) -> 1 | AL68: 1 | AM68: =AL68 -> 1 | AN68: 1 | AO68: =CHOOSE(ScenarioWithinRandom,AL68,AM68,AN68) -> 1 | AP68: =AO68 -> 1 | AR68: =CHOOSE(Selected_Phase,G68,M68,S68,Y68,AE68,AK68) -> 1
B69: Void Costs (€ psm) | G69: =CHOOSE(G$10,H69,I69,J69,K69,L69) -> 35 | H69: 35 | I69: =H69 -> 35 | J69: 35 | K69: =CHOOSE(ScenarioWithinRandom,H69,I69,J69) -> 35 | L69: 35 | M69: =CHOOSE(M$10,N69,O69,P69,Q69,R69) -> 35 | N69: 35 | O69: =N69 -> 35 | P69: 35 | Q69: =CHOOSE(ScenarioWithinRandom,N69,O69,P69) -> 35 | R69: 35 | S69: =CHOOSE(S$10,T69,U69,V69,W69,X69) -> 35 | T69: 35 | U69: 35 | V69: 35 | W69: =CHOOSE(ScenarioWithinRandom,T69,U69,V69) -> 35 | X69: 35 | Y69: =CHOOSE(Y$10,Z69,AA69,AB69,AC69,AD69) -> 35 | Z69: 35 | AA69: 35 | AB69: 35 | AC69: =CHOOSE(ScenarioWithinRandom,Z69,AA69,AB69) -> 35 | AD69: =AC69 -> 35 | AE69: =CHOOSE(AE$10,AF69,AG69,AH69,AI69,AJ69) -> 35 | AF69: 35 | AG69: 35 | AH69: 35 | AI69: =CHOOSE(ScenarioWithinRandom,AF69,AG69,AH69) -> 35 | AJ69: =AI69 -> 35 | AK69: =CHOOSE(AK$10,AL69,AM69,AN69,AO69,AP69) -> 35 | AL69: 35 | AM69: 35 | AN69: 35 | AO69: =CHOOSE(ScenarioWithinRandom,AL69,AM69,AN69) -> 35 | AP69: =AO69 -> 35 | AR69: =CHOOSE(Selected_Phase,G69,M69,S69,Y69,AE69,AK69) -> 35
B70: Tenant Improvements (Tis) (€ psm) | G70: =CHOOSE(G$10,H70,I70,J70,K70,L70) -> 100 | H70: 100 | I70: =H70 -> 100 | J70: 100 | K70: =CHOOSE(ScenarioWithinRandom,H70,I70,J70) -> 100 | L70: 100 | M70: =CHOOSE(M$10,N70,O70,P70,Q70,R70) -> 100 | N70: 100 | O70: =N70 -> 100 | P70: 100 | Q70: =CHOOSE(ScenarioWithinRandom,N70,O70,P70) -> 100 | R70: 100 | S70: =CHOOSE(S$10,T70,U70,V70,W70,X70) -> 100 | T70: 100 | U70: =T70 -> 100 | V70: =U70 -> 100 | W70: =CHOOSE(ScenarioWithinRandom,T70,U70,V70) -> 100 | X70: =W70 -> 100 | Y70: =CHOOSE(Y$10,Z70,AA70,AB70,AC70,AD70) -> 100 | Z70: 100 | AA70: 100 | AB70: 100 | AC70: =CHOOSE(ScenarioWithinRandom,Z70,AA70,AB70) -> 100 | AD70: =AC70 -> 100 | AE70: =CHOOSE(AE$10,AF70,AG70,AH70,AI70,AJ70) -> 100 | AF70: 100 | AG70: 100 | AH70: 100 | AI70: =CHOOSE(ScenarioWithinRandom,AF70,AG70,AH70) -> 100 | AJ70: =AI70 -> 100 | AK70: =CHOOSE(AK$10,AL70,AM70,AN70,AO70,AP70) -> 100 | AL70: 100 | AM70: 100 | AN70: 100 | AO70: =CHOOSE(ScenarioWithinRandom,AL70,AM70,AN70) -> 100 | AP70: =AO70 -> 100 | AR70: =CHOOSE(Selected_Phase,G70,M70,S70,Y70,AE70,AK70) -> 100
B72: Timing
B73: Joint Exercise of Phases | G73: =IF(VerticalPhasing=1,INDEX(Assumptions!$G$32:$L$32,MATCH(G$1,Assumptions!$G$21:$L$21,0)),0) -> 1 | M73: =IF(VerticalPhasing=1,INDEX(Assumptions!$G$32:$L$32,MATCH(M$1,Assumptions!$G$21:$L$21,0)),0) -> 2 | S73: =IF(VerticalPhasing=1,INDEX(Assumptions!$G$32:$L$32,MATCH(S$1,Assumptions!$G$21:$L$21,0)),0) -> 2 | Y73: =IF(VerticalPhasing=1,INDEX(Assumptions!$G$32:$L$32,MATCH(Y$1,Assumptions!$G$21:$L$21,0)),0) -> 4 | AE73: =IF(VerticalPhasing=1,INDEX(Assumptions!$G$32:$L$32,MATCH(AE$1,Assumptions!$G$21:$L$21,0)),0) -> 5 | AK73: =IF(VerticalPhasing=1,INDEX(Assumptions!$G$32:$L$32,MATCH(AK$1,Assumptions!$G$21:$L$21,0)),0) -> 6 | AR73: =CHOOSE(Selected_Phase,G73,M73,S73,Y73,AE73,AK73) -> 1
B74: Start Permiting (Qtr) | G74: =CHOOSE(G$10,H74,I74,J74,K74,L74) -> 0 | H74: 0 | I74: 0 | J74: 0 | K74: 0 | L74: 0 | M74: =CHOOSE(M$10,N74,O74,P74,Q74,R74) -> 0 | N74: 0 | O74: 0 | P74: 0 | Q74: 0 | R74: 0 | S74: =CHOOSE(S$10,T74,U74,V74,W74,X74) -> 0 | T74: 0 | U74: 0 | V74: 0 | W74: 0 | X74: 0 | Y74: =CHOOSE(Y$10,Z74,AA74,AB74,AC74,AD74) -> 0 | Z74: 0 | AA74: 0 | AB74: 0 | AC74: 0 | AD74: 0 | AE74: =CHOOSE(AE$10,AF74,AG74,AH74,AI74,AJ74) -> 0 | AF74: 0 | AG74: 0 | AH74: 0 | AI74: 0 | AJ74: 0 | AK74: =CHOOSE(AK$10,AL74,AM74,AN74,AO74,AP74) -> 0 | AL74: 0 | AM74: 0 | AN74: 0 | AO74: 0 | AP74: 0 | AR74: =CHOOSE(Selected_Phase,G74,M74,S74,Y74,AE74,AK74) -> 0
B75: Start Permiting (Date) | G75: 2011-12-31 | H75: 2011-12-31 | I75: =H75 -> 2011-12-31 | J75: =I75 -> 2011-12-31 | K75: =CHOOSE(ScenarioWithinRandom,H75,I75,J75) -> 2011-12-31 | L75: =K75 -> 2011-12-31 | M75: 2011-12-31 | N75: 2011-12-31 | O75: =N75 -> 2011-12-31 | P75: =O75 -> 2011-12-31 | Q75: =CHOOSE(ScenarioWithinRandom,N75,O75,P75) -> 2011-12-31 | R75: =Q75 -> 2011-12-31 | S75: 2011-12-31 | T75: 2011-12-31 | U75: =T75 -> 2011-12-31 | V75: =U75 -> 2011-12-31 | W75: =CHOOSE(ScenarioWithinRandom,T75,U75,V75) -> 2011-12-31 | X75: =W75 -> 2011-12-31 | Y75: 2011-12-31 | Z75: 2011-12-31 | AA75: =Z75 -> 2011-12-31 | AB75: =AA75 -> 2011-12-31 | AC75: =CHOOSE(ScenarioWithinRandom,Z75,AA75,AB75) -> 2011-12-31 | AD75: =AC75 -> 2011-12-31 | AE75: 2011-12-31 | AF75: 2011-12-31 | AG75: =AF75 -> 2011-12-31 | AH75: =AG75 -> 2011-12-31 | AI75: =CHOOSE(ScenarioWithinRandom,AF75,AG75,AH75) -> 2011-12-31 | AJ75: =AI75 -> 2011-12-31 | AK75: 2011-12-31 | AL75: 2011-12-31 | AM75: =AL75 -> 2011-12-31 | AN75: =AM75 -> 2011-12-31 | AO75: =CHOOSE(ScenarioWithinRandom,AL75,AM75,AN75) -> 2011-12-31 | AP75: =AO75 -> 2011-12-31 | AR75: 2011-12-31
B76: Time to Obtain Pemit | G76: 6 | H76: =Assumptions!M25 -> 6 | I76: =H76-2 -> 4 | J76: =H76+4 -> 10 | K76: =Assumptions!G25 -> 8 | M76: 4 | N76: =Assumptions!N25 -> 4 | O76: =N76-1 -> 3 | P76: =N76+2 -> 6 | Q76: =Assumptions!H25 -> 3 | S76: 3 | T76: =Assumptions!O25 -> 3 | U76: =T76-1 -> 2 | V76: =T76+2 -> 5 | W76: =Assumptions!I25 -> 3 | Y76: 3 | Z76: =Assumptions!P25 -> 3 | AA76: =Z76-1 -> 2 | AB76: =Z76+2 -> 5 | AC76: =Assumptions!J25 -> 3 | AE76: 3 | AF76: =Assumptions!Q25 -> 3 | AG76: =AF76-1 -> 2 | AH76: =AF76+2 -> 5 | AI76: =Assumptions!K25 -> 3 | AK76: 3 | AL76: =Assumptions!R25 -> 3 | AM76: =AL76-1 -> 2 | AN76: =AL76+2 -> 5 | AO76: =Assumptions!L25 -> 5 | AR76: 6
B77: Permit Acquired | G77: 6 | H77: =H76+H74 -> 6 | I77: =I76+I74 -> 4 | J77: =J76+J74 -> 10 | K77: =K76+K74 -> 8 | L77: =L76+L74 -> 0 | M77: 4 | N77: =N76+N74 -> 4 | O77: =O76+O74 -> 3 | P77: =P76+P74 -> 6 | Q77: =Q76+Q74 -> 3 | R77: =R76+R74 -> 0 | S77: 3 | T77: =T76+T74 -> 3 | U77: =U76+U74 -> 2 | V77: =V76+V74 -> 5 | W77: =W76+W74 -> 3 | X77: =X76+X74 -> 0 | Y77: 3 | Z77: =Z76+Z74 -> 3 | AA77: =AA76+AA74 -> 2 | AB77: =AB76+AB74 -> 5 | AC77: =AC76+AC74 -> 3 | AD77: =AD76+AD74 -> 0 | AE77: 3 | AF77: =AF76+AF74 -> 3 | AG77: =AG76+AG74 -> 2 | AH77: =AH76+AH74 -> 5 | AI77: =AI76+AI74 -> 3 | AJ77: =AJ76+AJ74 -> 0 | AK77: 3 | AL77: =AL76+AL74 -> 3 | AM77: =AM76+AM74 -> 2 | AN77: =AN76+AN74 -> 5 | AO77: =AO76+AO74 -> 5 | AP77: =AP76+AP74 -> 0 | AR77: 6
B78: Delay Works (Qtrs) | G78: 0 | H78: 0 | I78: 0 | J78: 0 | K78: 0 | L78: 0 | M78: 0 | N78: 0 | O78: 0 | P78: 0 | Q78: 0 | R78: 0 | S78: 0 | T78: 0 | U78: 0 | V78: 0 | W78: 0 | X78: 0 | Y78: 0 | Z78: 0 | AA78: 0 | AB78: 0 | AC78: 0 | AD78: 0 | AE78: 0 | AF78: 0 | AG78: 0 | AH78: 0 | AI78: 0 | AJ78: 0 | AK78: 0 | AL78: 0 | AM78: 0 | AN78: 0 | AO78: 0 | AP78: 0 | AR78: 0
B79: Earliest Start Works | G79: =CHOOSE(G$10,H79,I79,J79,K79,L79) -> 6 | H79: =H77+H78 -> 6 | I79: =I77+I78 -> 4 | J79: =J77+J78 -> 10 | K79: =K77+K78 -> 8 | L79: =L77+L78 -> 0 | M79: 44 | N79: =IF(VerticalPhasing=1,IF($M73=$G73,MAX($G80,N78+N77),MAX($G$84,N78+N77)),N78+N77) -> 44 | O79: =IF(VerticalPhasing=1,IF($M73=$G73,MAX($G80,O78+O77),MAX($G$84,O78+O77)),O78+O77) -> 44 | P79: =IF(VerticalPhasing=1,IF($M73=$G73,MAX($G80,P78+P77),MAX($G$84,P78+P77)),P78+P77) -> 44 | Q79: =IF(VerticalPhasing=1,IF($M73=$G73,MAX($G80,Q78+Q77),MAX($G$84,Q78+Q77)),Q78+Q77) -> 44 | R79: =IF(VerticalPhasing=1,IF($M73=$G73,MAX($G80,R78+R77),MAX($G$84,R78+R77)),R78+R77) -> 44 | S79: 93 | T79: =IF(VerticalPhasing=1,IF($S73=$M73,MAX($M80,T78+T77),MAX($M$84,T78+T77)),T78+T77) -> 93 | U79: =IF(VerticalPhasing=1,IF($S73=$M73,MAX($M80,U78+U77),MAX($M$84,U78+U77)),U78+U77) -> 93 | V79: =IF(VerticalPhasing=1,IF($S73=$M73,MAX($M80,V78+V77),MAX($M$84,V78+V77)),V78+V77) -> 93 | W79: =IF(VerticalPhasing=1,IF($S73=$M73,MAX($M80,W78+W77),MAX($M$84,W78+W77)),W78+W77) -> 93 | X79: =IF(VerticalPhasing=1,IF($S73=$M73,MAX($M80,X78+X77),MAX($M$84,X78+X77)),X78+X77) -> 93 | Y79: 100 | Z79: =IF(VerticalPhasing=1,IF($Y73=$S73,MAX($S80,Z78+Z77),MAX($S$84,Z78+Z77)),Z78+Z77) -> 100 | AA79: =IF(VerticalPhasing=1,IF($Y73=$S73,MAX($S80,AA78+AA77),MAX($S$84,AA78+AA77)),AA78+AA77) -> 100 | AB79: =IF(VerticalPhasing=1,IF($Y73=$S73,MAX($S80,AB78+AB77),MAX($S$84,AB78+AB77)),AB78+AB77) -> 100 | AC79: =IF(VerticalPhasing=1,IF($Y73=$S73,MAX($S80,AC78+AC77),MAX($S$84,AC78+AC77)),AC78+AC77) -> 100 | AD79: =IF(VerticalPhasing=1,IF($Y73=$S73,MAX($S80,AD78+AD77),MAX($S$84,AD78+AD77)),AD78+AD77) -> 100 | AE79: 116 | AF79: =IF(VerticalPhasing=1,IF($AE73=$Y73,MAX($Y80,AF78+AF77),MAX($Y$84,AF78+AF77)),AF78+AF77) -> 116 | AG79: =IF(VerticalPhasing=1,IF($AE73=$Y73,MAX($Y80,AG78+AG77),MAX($Y$84,AG78+AG77)),AG78+AG77) -> 116 | AH79: =IF(VerticalPhasing=1,IF($AE73=$Y73,MAX($Y80,AH78+AH77),MAX($Y$84,AH78+AH77)),AH78+AH77) -> 116 | AI79: =IF(VerticalPhasing=1,IF($AE73=$Y73,MAX($Y80,AI78+AI77),MAX($Y$84,AI78+AI77)),AI78+AI77) -> 116 | AJ79: =IF(VerticalPhasing=1,IF($AE73=$Y73,MAX($Y80,AJ78+AJ77),MAX($Y$84,AJ78+AJ77)),AJ78+AJ77) -> 116 | AK79: 10006 | AL79: =IF(VerticalPhasing=1,IF($AK73=$AE73,MAX($AE80,AL78+AL77),MAX($AE$84,AL78+AL77)),AL78+AL77) -> 10006 | AM79: =IF(VerticalPhasing=1,IF($AK73=$AE73,MAX($AE80,AM78+AM77),MAX($AE$84,AM78+AM77)),AM78+AM77) -> 10006 | AN79: =IF(VerticalPhasing=1,IF($AK73=$AE73,MAX($AE80,AN78+AN77),MAX($AE$84,AN78+AN77)),AN78+AN77) -> 10006 | AO79: =IF(VerticalPhasing=1,IF($AK73=$AE73,MAX($AE80,AO78+AO77),MAX($AE$84,AO78+AO77)),AO78+AO77) -> 10006 | AP79: =IF(VerticalPhasing=1,IF($AK73=$AE73,MAX($AE80,AP78+AP77),MAX($AE$84,AP78+AP77)),AP78+AP77) -> 10006
B80: Actual Start Works | G80: 35 | H80: =IF(WhenToStart=1,H79,INDEX(DevCosts!$AT$23:$AT$28,MATCH(H$2,DevCosts!$AQ$23:$AQ$28,0))) -> 35 | I80: =IF(WhenToStart=1,I79,INDEX(DevCosts!$AT$23:$AT$28,MATCH(I$2,DevCosts!$AQ$23:$AQ$28,0))) -> 35 | J80: =IF(WhenToStart=1,J79,INDEX(DevCosts!$AT$23:$AT$28,MATCH(J$2,DevCosts!$AQ$23:$AQ$28,0))) -> 35 | K80: =IF(WhenToStart=1,K79,INDEX(DevCosts!$AT$23:$AT$28,MATCH(K$2,DevCosts!$AQ$23:$AQ$28,0))) -> 35 | L80: =IF(WhenToStart=1,L79,INDEX(DevCosts!$AT$23:$AT$28,MATCH(L$2,DevCosts!$AQ$23:$AQ$28,0))) -> 35 | M80: 93 | N80: =IF(WhenToStart=1,N79,INDEX(DevCosts!$AT$23:$AT$28,MATCH(N$2,DevCosts!$AQ$23:$AQ$28,0))) -> 93 | O80: =IF(WhenToStart=1,O79,INDEX(DevCosts!$AT$23:$AT$28,MATCH(O$2,DevCosts!$AQ$23:$AQ$28,0))) -> 93 | P80: =IF(WhenToStart=1,P79,INDEX(DevCosts!$AT$23:$AT$28,MATCH(P$2,DevCosts!$AQ$23:$AQ$28,0))) -> 93 | Q80: =IF(WhenToStart=1,Q79,INDEX(DevCosts!$AT$23:$AT$28,MATCH(Q$2,DevCosts!$AQ$23:$AQ$28,0))) -> 93 | R80: =IF(WhenToStart=1,R79,INDEX(DevCosts!$AT$23:$AT$28,MATCH(R$2,DevCosts!$AQ$23:$AQ$28,0))) -> 93 | S80: 93 | T80: =IF(WhenToStart=1,T79,INDEX(DevCosts!$AT$23:$AT$28,MATCH(T$2,DevCosts!$AQ$23:$AQ$28,0))) -> 93 | U80: =IF(WhenToStart=1,U79,INDEX(DevCosts!$AT$23:$AT$28,MATCH(U$2,DevCosts!$AQ$23:$AQ$28,0))) -> 93 | V80: =IF(WhenToStart=1,V79,INDEX(DevCosts!$AT$23:$AT$28,MATCH(V$2,DevCosts!$AQ$23:$AQ$28,0))) -> 93 | W80: =IF(WhenToStart=1,W79,INDEX(DevCosts!$AT$23:$AT$28,MATCH(W$2,DevCosts!$AQ$23:$AQ$28,0))) -> 93 | X80: =IF(WhenToStart=1,X79,INDEX(DevCosts!$AT$23:$AT$28,MATCH(X$2,DevCosts!$AQ$23:$AQ$28,0))) -> 93 | Y80: 110 | Z80: =IF(WhenToStart=1,Z79,INDEX(DevCosts!$AT$23:$AT$28,MATCH(Z$2,DevCosts!$AQ$23:$AQ$28,0))) -> 110 | AA80: =IF(WhenToStart=1,AA79,INDEX(DevCosts!$AT$23:$AT$28,MATCH(AA$2,DevCosts!$AQ$23:$AQ$28,0))) -> 110 | AB80: =IF(WhenToStart=1,AB79,INDEX(DevCosts!$AT$23:$AT$28,MATCH(AB$2,DevCosts!$AQ$23:$AQ$28,0))) -> 110 | AC80: =IF(WhenToStart=1,AC79,INDEX(DevCosts!$AT$23:$AT$28,MATCH(AC$2,DevCosts!$AQ$23:$AQ$28,0))) -> 110 | AD80: =IF(WhenToStart=1,AD79,INDEX(DevCosts!$AT$23:$AT$28,MATCH(AD$2,DevCosts!$AQ$23:$AQ$28,0))) -> 110 | AE80: 10000 | AF80: =IF(WhenToStart=1,AF79,INDEX(DevCosts!$AT$23:$AT$28,MATCH(AF$2,DevCosts!$AQ$23:$AQ$28,0))) -> 10000 | AG80: =IF(WhenToStart=1,AG79,INDEX(DevCosts!$AT$23:$AT$28,MATCH(AG$2,DevCosts!$AQ$23:$AQ$28,0))) -> 10000 | AH80: =IF(WhenToStart=1,AH79,INDEX(DevCosts!$AT$23:$AT$28,MATCH(AH$2,DevCosts!$AQ$23:$AQ$28,0))) -> 10000 | AI80: =IF(WhenToStart=1,AI79,INDEX(DevCosts!$AT$23:$AT$28,MATCH(AI$2,DevCosts!$AQ$23:$AQ$28,0))) -> 10000 | AJ80: =IF(WhenToStart=1,AJ79,INDEX(DevCosts!$AT$23:$AT$28,MATCH(AJ$2,DevCosts!$AQ$23:$AQ$28,0))) -> 10000 | AK80: 10000 | AL80: =IF(WhenToStart=1,AL79,INDEX(DevCosts!$AT$23:$AT$28,MATCH(AL$2,DevCosts!$AQ$23:$AQ$28,0))) -> 10000 | AM80: =IF(WhenToStart=1,AM79,INDEX(DevCosts!$AT$23:$AT$28,MATCH(AM$2,DevCosts!$AQ$23:$AQ$28,0))) -> 10000 | AN80: =IF(WhenToStart=1,AN79,INDEX(DevCosts!$AT$23:$AT$28,MATCH(AN$2,DevCosts!$AQ$23:$AQ$28,0))) -> 10000 | AO80: =IF(WhenToStart=1,AO79,INDEX(DevCosts!$AT$23:$AT$28,MATCH(AO$2,DevCosts!$AQ$23:$AQ$28,0))) -> 10000 | AP80: =IF(WhenToStart=1,AP79,INDEX(DevCosts!$AT$23:$AT$28,MATCH(AP$2,DevCosts!$AQ$23:$AQ$28,0))) -> 10000 | AR80: 35
B81: Start Works (Date) | G81: 2020-08-31 | H81: =EOMONTH(H75+H80*90,0) -> 2020-08-31 | I81: =EOMONTH(I75+I80*90,0) -> 2020-08-31 | J81: =EOMONTH(J75+J80*90,0) -> 2020-08-31 | K81: =EOMONTH(K75+K80*90,0) -> 2020-08-31 | L81: =EOMONTH(L75+L80*90,0) -> 2020-08-31 | M81: 2034-11-30 | N81: =EOMONTH(N75+N80*90,0) -> 2034-11-30 | O81: =EOMONTH(O75+O80*90,0) -> 2034-11-30 | P81: =EOMONTH(P75+P80*90,0) -> 2034-11-30 | Q81: =EOMONTH(Q75+Q80*90,0) -> 2034-11-30 | R81: =EOMONTH(R75+R80*90,0) -> 2034-11-30 | S81: 2034-11-30 | T81: =EOMONTH(T75+T80*90,0) -> 2034-11-30 | U81: =EOMONTH(U75+U80*90,0) -> 2034-11-30 | V81: =EOMONTH(V75+V80*90,0) -> 2034-11-30 | W81: =EOMONTH(W75+W80*90,0) -> 2034-11-30 | X81: =EOMONTH(X75+X80*90,0) -> 2034-11-30 | Y81: 2039-02-28 | Z81: =EOMONTH(Z75+Z80*90,0) -> 2039-02-28 | AA81: =EOMONTH(AA75+AA80*90,0) -> 2039-02-28 | AB81: =EOMONTH(AB75+AB80*90,0) -> 2039-02-28 | AC81: =EOMONTH(AC75+AC80*90,0) -> 2039-02-28 | AD81: =EOMONTH(AD75+AD80*90,0) -> 2039-02-28 | AE81: 4476-02-29 | AF81: =EOMONTH(AF75+AF80*90,0) -> 4476-02-29 | AG81: =EOMONTH(AG75+AG80*90,0) -> 4476-02-29 | AH81: =EOMONTH(AH75+AH80*90,0) -> 4476-02-29 | AI81: =EOMONTH(AI75+AI80*90,0) -> 4476-02-29 | AJ81: =EOMONTH(AJ75+AJ80*90,0) -> 4476-02-29 | AK81: 4476-02-29 | AL81: =EOMONTH(AL75+AL80*90,0) -> 4476-02-29 | AM81: =EOMONTH(AM75+AM80*90,0) -> 4476-02-29 | AN81: =EOMONTH(AN75+AN80*90,0) -> 4476-02-29 | AO81: =EOMONTH(AO75+AO80*90,0) -> 4476-02-29 | AP81: =EOMONTH(AP75+AP80*90,0) -> 4476-02-29 | AR81: 2020-08-31
B82: Works Duration (Qtrs) | G82: 10 | H82: =Assumptions!M26 -> 10 | I82: =H82-2 -> 8 | J82: =H82+4 -> 14 | K82: =Assumptions!G26 -> 6 | M82: 8 | N82: =Assumptions!N26 -> 8 | O82: =N82-2 -> 6 | P82: =N82+4 -> 12 | Q82: =Assumptions!H26 -> 6 | S82: 7 | T82: =Assumptions!O26 -> 7 | U82: =T82-2 -> 5 | V82: =T82+4 -> 11 | W82: =Assumptions!I26 -> 11 | Y82: 7 | Z82: =Assumptions!P26 -> 7 | AA82: =Z82-2 -> 5 | AB82: =Z82+4 -> 11 | AC82: =Assumptions!J26 -> 3 | AE82: 7 | AF82: =Assumptions!Q26 -> 7 | AG82: =AF82-2 -> 5 | AH82: =AF82+4 -> 11 | AI82: =Assumptions!K26 -> 5 | AK82: 6 | AL82: =Assumptions!R26 -> 6 | AM82: =AL82-2 -> 4 | AN82: =AL82+4 -> 10 | AO82: =Assumptions!L26 -> 8 | AR82: 10
B83: Works Duration (Qtrs) (for sensitivity) | G83: 10 | H83: =H82+1*0 -> 10 | I83: =I82+1*0 -> 8 | J83: =J82+1*0 -> 14 | K83: =K82+1*0 -> 6 | L83: =L82+1*0 -> 0 | M83: 8 | N83: =N82+1*0 -> 8 | O83: =O82+1*0 -> 6 | P83: =P82+1*0 -> 12 | Q83: =Q82+1*0 -> 6 | R83: =R82+1*0 -> 0 | S83: 7 | T83: =T82+1*0 -> 7 | U83: =U82+1*0 -> 5 | V83: =V82+1*0 -> 11 | W83: =W82+1*0 -> 11 | X83: =X82+1*0 -> 0 | Y83: 7 | Z83: =Z82+1*0 -> 7 | AA83: =AA82+1*0 -> 5 | AB83: =AB82+1*0 -> 11 | AC83: =AC82+1*0 -> 3 | AD83: =AD82+1*0 -> 0 | AE83: 7 | AF83: =AF82+1*0 -> 7 | AG83: =AG82+1*0 -> 5 | AH83: =AH82+1*0 -> 11 | AI83: =AI82+1*0 -> 5 | AJ83: =AJ82+1*0 -> 0 | AK83: 6 | AL83: =AL82+1*0 -> 6 | AM83: =AM82+1*0 -> 4 | AN83: =AN82+1*0 -> 10 | AO83: =AO82+1*0 -> 8 | AP83: =AP82+1*0 -> 0 | AR83: 10
B84: Delivery | G84: =CHOOSE(G$10,H84,I84,J84,K84,L84) -> 44 | H84: =H80+H83-1 -> 44 | I84: =I80+I83-1 -> 42 | J84: =J80+J83-1 -> 48 | K84: =K80+K83-1 -> 40 | L84: =L80+L83-1 -> 34 | M84: 100 | N84: =IF($M73=$G73,MAX($G84,N80+N83-1),N80+N83-1) -> 100 | O84: =IF($M73=$G73,MAX($G84,O80+O83-1),O80+O83-1) -> 98 | P84: =IF($M73=$G73,MAX($G84,P80+P83-1),P80+P83-1) -> 104 | Q84: =IF($M73=$G73,MAX($G84,Q80+Q83-1),Q80+Q83-1) -> 98 | R84: =IF($M73=$G73,MAX($G84,R80+R83-1),R80+R83-1) -> 92 | S84: 100 | T84: =IF($S73=$M73,MAX($M84,T80+T83-1),T80+T83-1) -> 100 | U84: =IF($S73=$M73,MAX($M84,U80+U83-1),U80+U83-1) -> 100 | V84: =IF($S73=$M73,MAX($M84,V80+V83-1),V80+V83-1) -> 103 | W84: =IF($S73=$M73,MAX($M84,W80+W83-1),W80+W83-1) -> 103 | X84: =IF($S73=$M73,MAX($M84,X80+X83-1),X80+X83-1) -> 100 | Y84: 116 | Z84: =IF($Y73=$S73,MAX($S84,Z80+Z83-1),Z80+Z83-1) -> 116 | AA84: =IF($Y73=$S73,MAX($S84,AA80+AA83-1),AA80+AA83-1) -> 114 | AB84: =IF($Y73=$S73,MAX($S84,AB80+AB83-1),AB80+AB83-1) -> 120 | AC84: =IF($Y73=$S73,MAX($S84,AC80+AC83-1),AC80+AC83-1) -> 112 | AD84: =IF($Y73=$S73,MAX($S84,AD80+AD83-1),AD80+AD83-1) -> 109 | AE84: 10006 | AF84: =IF($AE73=$Y73,MAX($Y84,AF80+AF83-1),AF80+AF83-1) -> 10006 | AG84: =IF($AE73=$Y73,MAX($Y84,AG80+AG83-1),AG80+AG83-1) -> 10004 | AH84: =IF($AE73=$Y73,MAX($Y84,AH80+AH83-1),AH80+AH83-1) -> 10010 | AI84: =IF($AE73=$Y73,MAX($Y84,AI80+AI83-1),AI80+AI83-1) -> 10004 | AJ84: =IF($AE73=$Y73,MAX($Y84,AJ80+AJ83-1),AJ80+AJ83-1) -> 9999 | AK84: 10005 | AL84: =IF($AK73=$AE73,MAX($AE84,AL80+AL83-1),AL80+AL83-1) -> 10005 | AM84: =IF($AK73=$AE73,MAX($AE84,AM80+AM83-1),AM80+AM83-1) -> 10003 | AN84: =IF($AK73=$AE73,MAX($AE84,AN80+AN83-1),AN80+AN83-1) -> 10009 | AO84: =IF($AK73=$AE73,MAX($AE84,AO80+AO83-1),AO80+AO83-1) -> 10007 | AP84: =IF($AK73=$AE73,MAX($AE84,AP80+AP83-1),AP80+AP83-1) -> 9999 | AR84: 44
B85: Stabilisation Speed (indicates micro market demand for space) | G85: =CHOOSE(G$10,H85,I85,J85,K85,L85) -> 8 | H85: =Assumptions!M27 -> 8 | I85: =H85-2 -> 6 | J85: =H85+4 -> 12 | K85: =Assumptions!G27 -> 5 | M85: 10 | N85: =Assumptions!N27 -> 10 | O85: =N85-2 -> 8 | P85: =N85+4 -> 14 | Q85: =Assumptions!H27 -> 8 | S85: 12 | T85: =Assumptions!O27 -> 12 | U85: =T85-2 -> 10 | V85: =T85+4 -> 16 | W85: =Assumptions!I27 -> 16 | Y85: 14 | Z85: =Assumptions!P27 -> 14 | AA85: =Z85-2 -> 12 | AB85: =Z85+4 -> 18 | AC85: =Assumptions!J27 -> 11 | AE85: 16 | AF85: =Assumptions!Q27 -> 16 | AG85: =AF85-2 -> 14 | AH85: =AF85+4 -> 20 | AI85: =Assumptions!K27 -> 30 | AK85: 18 | AL85: =Assumptions!R27 -> 18 | AM85: =AL85-2 -> 16 | AN85: =AL85+4 -> 22 | AO85: =Assumptions!L27 -> 18 | AR85: 8
B86: Disposal Date | G86: 84 | H86: =H84+40 -> 84 | I86: =I84+40 -> 82 | J86: =J84+40 -> 88 | K86: =MIN(K84+40,120) -> 80 | L86: =L84+40 -> 74 | M86: 140 | N86: =N84+40 -> 140 | O86: =O84+40 -> 138 | P86: =P84+40 -> 144 | Q86: =MIN(Q84+40,120) -> 120 | R86: =R84+40 -> 132 | S86: 140 | T86: =T84+40 -> 140 | U86: =U84+40 -> 140 | V86: =V84+40 -> 143 | W86: =MIN(W84+40,120) -> 120 | X86: =X84+40 -> 140 | Y86: 156 | Z86: =Z84+40 -> 156 | AA86: =AA84+40 -> 154 | AB86: =AB84+40 -> 160 | AC86: =MIN(AC84+40,120) -> 120 | AD86: =AD84+40 -> 149 | AE86: 10046 | AF86: =AF84+40 -> 10046 | AG86: =AG84+40 -> 10044 | AH86: =AH84+40 -> 10050 | AI86: =MIN(AI84+40,120) -> 120 | AJ86: =AJ84+40 -> 10039 | AK86: 10045 | AL86: =AL84+40 -> 10045 | AM86: =AM84+40 -> 10043 | AN86: =AN84+40 -> 10049 | AO86: =MIN(AO84+40,120) -> 120 | AP86: =AP84+40 -> 10039 | AR86: 84
B87: Exit Cap Rate | G87: 0.07 | H87: 0.07 | I87: 0.06 | J87: 0.08 | K87: =Assumptions!G18 -> 0.07605427552 | M87: 0.07 | N87: =H87 -> 0.07 | O87: =I87 -> 0.06 | P87: =J87 -> 0.08 | Q87: =$K87 -> 0.07605427552 | S87: 0.07 | T87: =N87 -> 0.07 | U87: =O87 -> 0.06 | V87: =P87 -> 0.08 | W87: =$K87 -> 0.07605427552 | Y87: 0.07 | Z87: =T87 -> 0.07 | AA87: =U87 -> 0.06 | AB87: =V87 -> 0.08 | AC87: =$K87 -> 0.07605427552 | AE87: 0.07 | AF87: =Z87 -> 0.07 | AG87: =AA87 -> 0.06 | AH87: =AB87 -> 0.08 | AI87: =$K87 -> 0.07605427552 | AK87: 0.07 | AL87: =AF87 -> 0.07 | AM87: =AG87 -> 0.06 | AN87: =AH87 -> 0.08 | AO87: =$K87 -> 0.07605427552 | AR87: 0.07
A88: x | AS88: x

Sheet TimingDB
A1: x | E1: 1 | F1: 1 | G1: 2 | H1: 2 | I1: 3 | J1: 3 | K1: 4 | L1: 4 | M1: 5 | N1: 5 | O1: 6 | P1: 6 | Q1: Choose | R1: Choose | T1: x
E2: Q | F2: P | G2: Q | H2: P | I2: Q | J2: P | K2: Q | L2: P | M2: Q | N2: P | O2: Q | P2: P | Q2: Q | R2: P
B3: REAL ESTATE DEVELOPMENT
B4: Timing Assumptions
B6: Vertical phasing poses timing constraints as later phases can only be build sequentially, not simultaneously
B7: Vertical phasing? | D7: =VerticalPhasing -> 1
B8: Purchase & Works Timing | E8: Phase 1 | G8: Phase 2 | I8: Phase 3 | K8: Phase 4 | M8: Phase 5 | O8: Phase 6 | Q8: Choose
E9: Qtr | F9: % Paid | G9: Qtr | H9: % Paid | I9: Qtr | J9: % Paid | K9: Qtr | L9: % Paid | M9: Qtr | N9: % Paid | O9: Qtr | P9: % Paid | Q9: Qtr | R9: % Paid
B10: Planning
B11: Tranche 1 | E11: 2 | F11: 0.5 | G11: 2 | H11: 0.1 | I11: 2 | J11: 0.1 | K11: 2 | L11: 0.1 | M11: 2 | N11: 0.1 | O11: 2 | P11: 0.1 | Q11: =CHOOSE(Selected_Phase,E11,G11,I11,K11,M11,O11) -> 2 | R11: =CHOOSE(Selected_Phase,F11,H11,J11,L11,N11,P11) -> 0.5
B12: Tranche 2 | E12: 4 | F12: 0.5 | G12: =IF(VerticalPhasing=1,E31+F30-2,E12) -> 43 | H12: 0.9 | I12: =IF(VerticalPhasing=1,G31+H30-2,G12) -> 51 | J12: 0.9 | K12: =IF(VerticalPhasing=1,I31+J30-2,I12) -> 58 | L12: 0.9 | M12: =IF(VerticalPhasing=1,K31+L30-2,K12) -> 65 | N12: 0.9 | O12: =IF(VerticalPhasing=1,M31+N30-2,M12) -> 72 | P12: 0.9 | Q12: 4 | R12: 0.5
B13: Tranche 3 | E13: =E12+1 -> 5 | F13: 0 | G13: =G12+1 -> 44 | H13: 0 | I13: =I12+1 -> 52 | J13: 0 | K13: =K12+1 -> 59 | L13: 0 | M13: =M12+1 -> 66 | N13: 0 | O13: =O12+1 -> 73 | P13: 0 | Q13: 5 | R13: 0
B14: Tranche 4 | E14: =E13+1 -> 6 | F14: 0 | G14: 45 | H14: 0 | I14: 53 | J14: 0 | K14: 60 | L14: 0 | M14: 67 | N14: 0 | O14: 74 | P14: 0 | Q14: 6 | R14: 0
B15: Tranche 5 | E15: 7 | F15: 0 | G15: 46 | H15: 0 | I15: 54 | J15: 0 | K15: 61 | L15: 0 | M15: 68 | N15: 0 | O15: 75 | P15: 0 | Q15: 7 | R15: 0
B16: Tranche 6 | E16: 8 | F16: 0 | G16: 47 | H16: 0 | I16: 55 | J16: 0 | K16: 62 | L16: 0 | M16: 69 | N16: 0 | O16: 76 | P16: 0 | Q16: 8 | R16: 0
B17: Tranche 7 | E17: 9 | F17: 0 | G17: 48 | H17: 0 | I17: 56 | J17: 0 | K17: 63 | L17: 0 | M17: 70 | N17: 0 | O17: 77 | P17: 0 | Q17: 9 | R17: 0
B18: Tranche 8 | E18: 10 | F18: 0 | G18: 49 | H18: 0 | I18: 57 | J18: 0 | K18: 64 | L18: 0 | M18: 71 | N18: 0 | O18: 78 | P18: 0 | Q18: 10 | R18: 0
B19: Tranche 9 | E19: 11 | F19: 0 | G19: 50 | H19: 0 | I19: 58 | J19: 0 | K19: 65 | L19: 0 | M19: 72 | N19: 0 | O19: 79 | P19: 0 | Q19: 11 | R19: 0
B20: Tranche 10 | E20: 12 | F20: 0 | G20: 51 | H20: 0 | I20: 59 | J20: 0 | K20: 66 | L20: 0 | M20: 73 | N20: 0 | O20: 80 | P20: 0 | Q20: 12 | R20: 0
B21: Tranche 11 | E21: 13 | F21: 0 | G21: 52 | H21: 0 | I21: 60 | J21: 0 | K21: 67 | L21: 0 | M21: 74 | N21: 0 | O21: 81 | P21: 0 | Q21: 13 | R21: 0
B22: Tranche 12 | E22: =E21+1 -> 14 | F22: 0 | G22: =G21+1 -> 53 | H22: 0 | I22: =I21+1 -> 61 | J22: 0 | K22: =K21+1 -> 68 | L22: 0 | M22: =M21+1 -> 75 | N22: 0 | O22: =O21+1 -> 82 | P22: 0 | Q22: =CHOOSE(Selected_Phase,E22,G22,I22,K22,M22,O22) -> 14 | R22: 0
B23: Tranche 13 | E23: =E22+1 -> 15 | F23: 0 | G23: =G22+1 -> 54 | H23: 0 | I23: =I22+1 -> 62 | J23: 0 | K23: =K22+1 -> 69 | L23: 0 | M23: =M22+1 -> 76 | N23: 0 | O23: =O22+1 -> 83 | P23: 0 | Q23: 15 | R23: 0
B24: Tranche 14 | E24: =E23+1 -> 16 | F24: 0 | G24: =G23+1 -> 55 | H24: 0 | I24: =I23+1 -> 63 | J24: 0 | K24: =K23+1 -> 70 | L24: 0 | M24: =M23+1 -> 77 | N24: 0 | O24: =O23+1 -> 84 | P24: 0 | Q24: 16 | R24: 0
B25: Tranche 15 | E25: =E24+1 -> 17 | F25: 0 | G25: =G24+1 -> 56 | H25: 0 | I25: =I24+1 -> 64 | J25: 0 | K25: =K24+1 -> 71 | L25: 0 | M25: =M24+1 -> 78 | N25: 0 | O25: =O24+1 -> 85 | P25: 0 | Q25: 17 | R25: 0
B26: Tranche 16 | E26: =E25+1 -> 18 | F26: 0 | G26: =G25+1 -> 57 | H26: 0 | I26: =I25+1 -> 65 | J26: 0 | K26: =K25+1 -> 72 | L26: 0 | M26: =M25+1 -> 79 | N26: 0 | O26: =O25+1 -> 86 | P26: 0 | Q26: 18 | R26: 0
B27: Total | F27: =SUM(F11:F26) -> 1 | H27: =SUM(H11:H26) -> 1 | J27: =SUM(J11:J26) -> 1 | L27: =SUM(L11:L26) -> 1 | N27: =SUM(N11:N26) -> 1 | P27: =SUM(P11:P26) -> 1 | R27: =SUM(R11:R26) -> 1
B29: Construction Works
B30: Assumed duration (in quarters): | F30: =AssetDB!G82 -> 10 | H30: =AssetDB!M82 -> 8 | J30: =AssetDB!S82 -> 7 | L30: =AssetDB!Y82 -> 7 | N30: =AssetDB!AE82 -> 7 | P30: =AssetDB!AK82 -> 6
B31: Tranche 1 | E31: =AssetDB!G80 -> 35 | F31: =INDEX($D71:$Q71,MATCH(F$30,$D$70:$Q$70,0)) -> 0.06 | G31: =IF(VerticalPhasing=1,E31+F30,G12+2) -> 45 | H31: 0.1 | I31: =IF(VerticalPhasing=1,G31+H30,I12+2) -> 53 | J31: =INDEX($D71:$Q71,MATCH(J$30,$D$70:$Q$70,0)) -> 0.1 | K31: =IF(VerticalPhasing=1,I31+J30,K12+2) -> 60 | L31: =INDEX($D71:$Q71,MATCH(L$30,$D$70:$Q$70,0)) -> 0.1 | M31: =IF(VerticalPhasing=1,K31+L30,M12+2) -> 67 | N31: =INDEX($D71:$Q71,MATCH(N$30,$D$70:$Q$70,0)) -> 0.1 | O31: =IF(VerticalPhasing=1,M31+N30,O12+2) -> 74 | P31: =INDEX($D71:$Q71,MATCH(P$30,$D$70:$Q$70,0)) -> 0.1 | Q31: =CHOOSE(Selected_Phase,E31,G31,I31,K31,M31,O31) -> 35 | R31: =CHOOSE(Selected_Phase,F31,H31,J31,L31,N31,P31) -> 0.06
B32: Tranche 2 | E32: =E31+1 -> 36 | F32: 0.12 | G32: =G31+1 -> 46 | H32: 0.15 | I32: =I31+1 -> 54 | J32: 0.18 | K32: =K31+1 -> 61 | L32: 0.18 | M32: =M31+1 -> 68 | N32: 0.18 | O32: =O31+1 -> 75 | P32: 0.2 | Q32: 36 | R32: 0.12
B33: Tranche 3 | E33: =E32+1 -> 37 | F33: 0.12 | G33: 47 | H33: 0.15 | I33: 55 | J33: 0.18 | K33: 62 | L33: 0.18 | M33: 69 | N33: 0.18 | O33: 76 | P33: 0.2 | Q33: 37 | R33: 0.12
B34: Tranche 4 | E34: 38 | F34: 0.12 | G34: 48 | H34: 0.15 | I34: 56 | J34: 0.18 | K34: 63 | L34: 0.18 | M34: 70 | N34: 0.18 | O34: 77 | P34: 0.2 | Q34: 38 | R34: 0.12
B35: Tranche 5 | E35: 39 | F35: 0.12 | G35: 49 | H35: 0.15 | I35: 57 | J35: 0.18 | K35: 64 | L35: 0.18 | M35: 71 | N35: 0.18 | O35: 78 | P35: 0.15 | Q35: 39 | R35: 0.12
B36: Tranche 6 | E36: 40 | F36: 0.12 | G36: 50 | H36: 0.1 | I36: 58 | J36: 0.09 | K36: 65 | L36: 0.09 | M36: 72 | N36: 0.09 | O36: 79 | P36: 0.15 | Q36: 40 | R36: 0.12
B37: Tranche 7 | E37: 41 | F37: 0.12 | G37: 51 | H37: 0.1 | I37: 59 | J37: 0.09 | K37: 66 | L37: 0.09 | M37: 73 | N37: 0.09 | O37: 80 | P37: 0 | Q37: 41 | R37: 0.12
B38: Tranche 8 | E38: 42 | F38: 0.12 | G38: 52 | H38: 0.1 | I38: 60 | J38: 0 | K38: 67 | L38: 0 | M38: 74 | N38: 0 | O38: 81 | P38: 0 | Q38: 42 | R38: 0.12
B39: Tranche 9 | E39: 43 | F39: 0.05 | G39: 53 | H39: 0 | I39: 61 | J39: 0 | K39: 68 | L39: 0 | M39: 75 | N39: 0 | O39: 82 | P39: 0 | Q39: 43 | R39: 0.05
B40: Tranche 10 | E40: 44 | F40: 0.05 | G40: 54 | H40: 0 | I40: 62 | J40: 0 | K40: 69 | L40: 0 | M40: 76 | N40: 0 | O40: 83 | P40: 0 | Q40: 44 | R40: 0.05
B41: Tranche 11 | E41: 45 | F41: 0 | G41: 55 | H41: 0 | I41: 63 | J41: 0 | K41: 70 | L41: 0 | M41: 77 | N41: 0 | O41: 84 | P41: 0 | Q41: 45 | R41: 0
B42: Tranche 12 | E42: =E41+1 -> 46 | F42: 0 | G42: =G41+1 -> 56 | H42: 0 | I42: =I41+1 -> 64 | J42: 0 | K42: =K41+1 -> 71 | L42: 0 | M42: =M41+1 -> 78 | N42: 0 | O42: =O41+1 -> 85 | P42: 0 | Q42: =CHOOSE(Selected_Phase,E42,G42,I42,K42,M42,O42) -> 46 | R42: 0
B43: Tranche 13 | E43: =E42+1 -> 47 | F43: 0 | G43: =G42+1 -> 57 | H43: 0 | I43: =I42+1 -> 65 | J43: 0 | K43: =K42+1 -> 72 | L43: 0 | M43: =M42+1 -> 79 | N43: 0 | O43: =O42+1 -> 86 | P43: 0 | Q43: 47 | R43: 0
B44: Tranche 14 | E44: =E43+1 -> 48 | F44: 0 | G44: =G43+1 -> 58 | H44: 0 | I44: =I43+1 -> 66 | J44: 0 | K44: =K43+1 -> 73 | L44: 0 | M44: =M43+1 -> 80 | N44: 0 | O44: =O43+1 -> 87 | P44: 0 | Q44: 48 | R44: 0
B45: Tranche 15 | E45: =E44+1 -> 49 | F45: 0 | G45: =G44+1 -> 59 | H45: 0 | I45: =I44+1 -> 67 | J45: 0 | K45: =K44+1 -> 74 | L45: 0 | M45: =M44+1 -> 81 | N45: 0 | O45: =O44+1 -> 88 | P45: 0 | Q45: 49 | R45: 0
B46: Tranche 16 | E46: =E45+1 -> 50 | F46: 0 | G46: =G45+1 -> 60 | H46: 0 | I46: =I45+1 -> 68 | J46: 0 | K46: =K45+1 -> 75 | L46: 0 | M46: =M45+1 -> 82 | N46: 0 | O46: =O45+1 -> 89 | P46: 0 | Q46: 50 | R46: 0
B47: Total | F47: =SUM(F31:F46) -> 1 | H47: =SUM(H31:H46) -> 1 | J47: =SUM(J31:J46) -> 1 | L47: =SUM(L31:L46) -> 1 | N47: =SUM(N31:N46) -> 1 | P47: =SUM(P31:P46) -> 1 | R47: =SUM(R31:R46) -> 1
B49: Cumulative Construction Works
B50: Tranche 1 | E50: =E31 -> 35 | F50: =SUM(F$31:F31) -> 0.06 | G50: =G31 -> 45 | H50: =SUM(H$31:H31) -> 0.1 | I50: =I31 -> 53 | J50: =SUM(J$31:J31) -> 0.1 | K50: =K31 -> 60 | L50: =SUM(L$31:L31) -> 0.1 | M50: =M31 -> 67 | N50: =SUM(N$31:N31) -> 0.1 | O50: =O31 -> 74 | P50: =SUM(P$31:P31) -> 0.1 | Q50: =CHOOSE(Selected_Phase,E50,G50,I50,K50,M50,O50) -> 35 | R50: =CHOOSE(Selected_Phase,F50,H50,J50,L50,N50,P50) -> 0.06
B51: Tranche 2 | E51: 36 | F51: =SUM(F$31:F32) -> 0.18 | G51: 46 | H51: =SUM(H$31:H32) -> 0.25 | I51: 54 | J51: =SUM(J$31:J32) -> 0.28 | K51: 61 | L51: =SUM(L$31:L32) -> 0.28 | M51: 68 | N51: =SUM(N$31:N32) -> 0.28 | O51: 75 | P51: =SUM(P$31:P32) -> 0.3 | Q51: 36 | R51: 0.18
B52: Tranche 3 | E52: 37 | F52: =SUM(F$31:F33) -> 0.3 | G52: 47 | H52: =SUM(H$31:H33) -> 0.4 | I52: 55 | J52: =SUM(J$31:J33) -> 0.46 | K52: 62 | L52: =SUM(L$31:L33) -> 0.46 | M52: 69 | N52: =SUM(N$31:N33) -> 0.46 | O52: 76 | P52: =SUM(P$31:P33) -> 0.5 | Q52: 37 | R52: 0.3
B53: Tranche 4 | E53: 38 | F53: =SUM(F$31:F34) -> 0.42 | G53: 48 | H53: =SUM(H$31:H34) -> 0.55 | I53: 56 | J53: =SUM(J$31:J34) -> 0.64 | K53: 63 | L53: =SUM(L$31:L34) -> 0.64 | M53: 70 | N53: =SUM(N$31:N34) -> 0.64 | O53: 77 | P53: =SUM(P$31:P34) -> 0.7 | Q53: 38 | R53: 0.42
B54: Tranche 5 | E54: 39 | F54: =SUM(F$31:F35) -> 0.54 | G54: 49 | H54: =SUM(H$31:H35) -> 0.7 | I54: 57 | J54: =SUM(J$31:J35) -> 0.82 | K54: 64 | L54: =SUM(L$31:L35) -> 0.82 | M54: 71 | N54: =SUM(N$31:N35) -> 0.82 | O54: 78 | P54: =SUM(P$31:P35) -> 0.85 | Q54: 39 | R54: 0.54
B55: Tranche 6 | E55: 40 | F55: =SUM(F$31:F36) -> 0.66 | G55: 50 | H55: =SUM(H$31:H36) -> 0.8 | I55: 58 | J55: =SUM(J$31:J36) -> 0.91 | K55: 65 | L55: =SUM(L$31:L36) -> 0.91 | M55: 72 | N55: =SUM(N$31:N36) -> 0.91 | O55: 79 | P55: =SUM(P$31:P36) -> 1 | Q55: 40 | R55: 0.66
B56: Tranche 7 | E56: 41 | F56: =SUM(F$31:F37) -> 0.78 | G56: 51 | H56: =SUM(H$31:H37) -> 0.9 | I56: 59 | J56: =SUM(J$31:J37) -> 1 | K56: 66 | L56: =SUM(L$31:L37) -> 1 | M56: 73 | N56: =SUM(N$31:N37) -> 1 | O56: 80 | P56: =SUM(P$31:P37) -> 1 | Q56: 41 | R56: 0.78
B57: Tranche 8 | E57: 42 | F57: =SUM(F$31:F38) -> 0.9 | G57: 52 | H57: =SUM(H$31:H38) -> 1 | I57: 60 | J57: =SUM(J$31:J38) -> 1 | K57: 67 | L57: =SUM(L$31:L38) -> 1 | M57: 74 | N57: =SUM(N$31:N38) -> 1 | O57: 81 | P57: =SUM(P$31:P38) -> 1 | Q57: 42 | R57: 0.9
B58: Tranche 9 | E58: 43 | F58: =SUM(F$31:F39) -> 0.95 | G58: 53 | H58: =SUM(H$31:H39) -> 1 | I58: 61 | J58: =SUM(J$31:J39) -> 1 | K58: 68 | L58: =SUM(L$31:L39) -> 1 | M58: 75 | N58: =SUM(N$31:N39) -> 1 | O58: 82 | P58: =SUM(P$31:P39) -> 1 | Q58: 43 | R58: 0.95
B59: Tranche 10 | E59: 44 | F59: =SUM(F$31:F40) -> 1 | G59: 54 | H59: =SUM(H$31:H40) -> 1 | I59: 62 | J59: =SUM(J$31:J40) -> 1 | K59: 69 | L59: =SUM(L$31:L40) -> 1 | M59: 76 | N59: =SUM(N$31:N40) -> 1 | O59: 83 | P59: =SUM(P$31:P40) -> 1 | Q59: 44 | R59: 1
B60: Tranche 11 | E60: 45 | F60: =SUM(F$31:F41) -> 1 | G60: 55 | H60: =SUM(H$31:H41) -> 1 | I60: 63 | J60: =SUM(J$31:J41) -> 1 | K60: 70 | L60: =SUM(L$31:L41) -> 1 | M60: 77 | N60: =SUM(N$31:N41) -> 1 | O60: 84 | P60: =SUM(P$31:P41) -> 1 | Q60: 45 | R60: 1
B61: Tranche 12 | E61: =E42 -> 46 | F61: =SUM(F$31:F42) -> 1 | G61: =G42 -> 56 | H61: =SUM(H$31:H42) -> 1 | I61: =I42 -> 64 | J61: =SUM(J$31:J42) -> 1 | K61: =K42 -> 71 | L61: =SUM(L$31:L42) -> 1 | M61: =M42 -> 78 | N61: =SUM(N$31:N42) -> 1 | O61: =O42 -> 85 | P61: =SUM(P$31:P42) -> 1 | Q61: =CHOOSE(Selected_Phase,E61,G61,I61,K61,M61,O61) -> 46 | R61: 1
B62: Tranche 13 | E62: =E43 -> 47 | F62: =SUM(F$31:F43) -> 1 | G62: =G43 -> 57 | H62: =SUM(H$31:H43) -> 1 | I62: =I43 -> 65 | J62: =SUM(J$31:J43) -> 1 | K62: =K43 -> 72 | L62: =SUM(L$31:L43) -> 1 | M62: =M43 -> 79 | N62: =SUM(N$31:N43) -> 1 | O62: =O43 -> 86 | P62: =SUM(P$31:P43) -> 1 | Q62: 47 | R62: 1
B63: Tranche 14 | E63: =E44 -> 48 | F63: =SUM(F$31:F44) -> 1 | G63: =G44 -> 58 | H63: =SUM(H$31:H44) -> 1 | I63: =I44 -> 66 | J63: =SUM(J$31:J44) -> 1 | K63: =K44 -> 73 | L63: =SUM(L$31:L44) -> 1 | M63: =M44 -> 80 | N63: =SUM(N$31:N44) -> 1 | O63: =O44 -> 87 | P63: =SUM(P$31:P44) -> 1 | Q63: 48 | R63: 1
B64: Tranche 15 | E64: =E45 -> 49 | F64: =SUM(F$31:F45) -> 1 | G64: =G45 -> 59 | H64: =SUM(H$31:H45) -> 1 | I64: =I45 -> 67 | J64: =SUM(J$31:J45) -> 1 | K64: =K45 -> 74 | L64: =SUM(L$31:L45) -> 1 | M64: =M45 -> 81 | N64: =SUM(N$31:N45) -> 1 | O64: =O45 -> 88 | P64: =SUM(P$31:P45) -> 1 | Q64: 49 | R64: 1
B65: Tranche 16 | E65: =E46 -> 50 | F65: =SUM(F$31:F46) -> 1 | G65: =G46 -> 60 | H65: =SUM(H$31:H46) -> 1 | I65: =I46 -> 68 | J65: =SUM(J$31:J46) -> 1 | K65: =K46 -> 75 | L65: =SUM(L$31:L46) -> 1 | M65: =M46 -> 82 | N65: =SUM(N$31:N46) -> 1 | O65: =O46 -> 89 | P65: =SUM(P$31:P46) -> 1 | Q65: 50 | R65: 1
B68: Works Duration Lookup Table
D69: Number of Quarters over which Construction is spread
D70: 3 | E70: =D70+1 -> 4 | F70: 5 | G70: 6 | H70: 7 | I70: 8 | J70: 9 | K70: 10 | L70: 11 | M70: 12 | N70: 13 | O70: 14 | P70: 15 | Q70: 16
B71: Assumed Distribution of Construction Works | C71: 1 | D71: 0.3333333333 | E71: 0.2 | F71: 0.1 | G71: 0.1 | H71: 0.1 | I71: 0.1 | J71: 0.08 | K71: 0.06 | L71: 0.06 | M71: 0.06 | N71: 0.06 | O71: 0.05 | P71: 0.05 | Q71: 0.05
C72: =C71+1 -> 2 | D72: 0.3333333333 | E72: 0.3 | F72: 0.25 | G72: 0.2 | H72: 0.18 | I72: 0.15 | J72: 0.13 | K72: 0.12 | L72: 0.1 | M72: 0.09 | N72: 0.08 | O72: 0.08 | P72: 0.07 | Q72: 0.07
C73: 3 | D73: 0.3333333333 | E73: 0.3 | F73: 0.25 | G73: 0.2 | H73: 0.18 | I73: 0.15 | J73: 0.13 | K73: 0.12 | L73: 0.1 | M73: 0.09 | N73: 0.08 | O73: 0.08 | P73: 0.07 | Q73: 0.07
C74: 4 | D74: 0 | E74: 0.2 | F74: 0.25 | G74: 0.2 | H74: 0.18 | I74: 0.15 | J74: 0.13 | K74: 0.12 | L74: 0.1 | M74: 0.09 | N74: 0.09 | O74: 0.08 | P74: 0.07 | Q74: 0.07
C75: 5 | D75: 0 | E75: 0 | F75: 0.15 | G75: 0.15 | H75: 0.18 | I75: 0.15 | J75: 0.13 | K75: 0.12 | L75: 0.1 | M75: 0.09 | N75: 0.09 | O75: 0.08 | P75: 0.07 | Q75: 0.07
C76: 6 | D76: 0 | E76: 0 | F76: 0 | G76: 0.15 | H76: 0.09 | I76: 0.1 | J76: 0.13 | K76: 0.12 | L76: 0.1 | M76: 0.09 | N76: 0.09 | O76: 0.08 | P76: 0.07 | Q76: 0.07
C77: 7 | D77: 0 | E77: 0 | F77: 0 | G77: 0 | H77: 0.09 | I77: 0.1 | J77: 0.13 | K77: 0.12 | L77: 0.1 | M77: 0.09 | N77: 0.08 | O77: 0.08 | P77: 0.07 | Q77: 0.07
C78: 8 | D78: 0 | E78: 0 | F78: 0 | G78: 0 | H78: 0 | I78: 0.1 | J78: 0.07 | K78: 0.12 | L78: 0.1 | M78: 0.09 | N78: 0.08 | O78: 0.08 | P78: 0.07 | Q78: 0.07
C79: 9 | D79: 0 | E79: 0 | F79: 0 | G79: 0 | H79: 0 | I79: 0 | J79: 0.07 | K79: 0.05 | L79: 0.1 | M79: 0.09 | N79: 0.08 | O79: 0.08 | P79: 0.07 | Q79: 0.06
C80: 10 | D80: 0 | E80: 0 | F80: 0 | G80: 0 | H80: 0 | I80: 0 | J80: 0 | K80: 0.05 | L80: 0.07 | M80: 0.09 | N80: 0.08 | O80: 0.08 | P80: 0.07 | Q80: 0.06
C81: 11 | D81: 0 | E81: 0 | F81: 0 | G81: 0 | H81: 0 | I81: 0 | J81: 0 | K81: 0 | L81: 0.07 | M81: 0.07 | N81: 0.07 | O81: 0.07 | P81: 0.07 | Q81: 0.06
C82: 12 | D82: 0 | E82: 0 | F82: 0 | G82: 0 | H82: 0 | I82: 0 | J82: 0 | K82: 0 | L82: 0 | M82: 0.06 | N82: 0.06 | O82: 0.06 | P82: 0.07 | Q82: 0.06
C83: 13 | D83: 0 | E83: 0 | F83: 0 | G83: 0 | H83: 0 | I83: 0 | J83: 0 | K83: 0 | L83: 0 | M83: 0 | N83: 0.06 | O83: 0.05 | P83: 0.07 | Q83: 0.06
C84: 14 | D84: 0 | E84: 0 | F84: 0 | G84: 0 | H84: 0 | I84: 0 | J84: 0 | K84: 0 | L84: 0 | M84: 0 | N84: 0 | O84: 0.04 | P84: 0.06 | Q84: 0.06
C85: 15 | D85: 0 | E85: 0 | F85: 0 | G85: 0 | H85: 0 | I85: 0 | J85: 0 | K85: 0 | L85: 0 | M85: 0 | N85: 0 | O85: 0 | P85: 0.05 | Q85: 0.05
C86: 16 | D86: 0 | E86: 0 | F86: 0 | G86: 0 | H86: 0 | I86: 0 | J86: 0 | K86: 0 | L86: 0 | M86: 0 | N86: 0 | O86: 0 | P86: 0 | Q86: 0.05
A87: x | T87: x

Sheet PhaseCombinationModule
B2: REAL ESTATE DEVELOPMENT
B3: Side Calculation for Optimal Combination of Stages
B5: Side Calculations | G5: Optimal Combinations
H6: Combine | I6: Optimal | J6: Optimal
G7: Stage s_i | H7: next j Stages | I7: dK/dQ | J7: Threshold
B9: Last stage of project | E9: =COUNTIF(E20:E25,">0") -> 6 | G9: =D20 -> 1 | H9: =MAX(H8-1,IFERROR(INDEX($E$40:$J$40,MATCH(MIN($E42:$J42),$E42:$J42,0)),0)) -> 1 | I9: =IF(D20>s_n,0,IFERROR(IF(H9<H8,I8,INDEX($E42:$J42,MATCH($H9,E$40:J$40,0))),0)) -> 5013.333333 | J9: =I9*delta*$E$11 -> 436.2383142
B10: beta | E10: =beta -> 1.850781059 | G10: 2 | H10: 2 | I10: 5790.128906 | J10: 503.8316635
B11: beta / (beta-1) | E11: =beta/(beta-1) -> 2.17539053 | G11: 3 | H11: 1 | I11: 5790.128906 | J11: 503.8316635
B12: 1 / (beta-1) | E12: =1/(beta-1) -> 1.17539053 | G12: 4 | H12: 1 | I12: 6028.941176 | J12: 524.6120616
B13: [(beta-1) / delta beta]^beta | E13: =((beta-1)/(delta*beta))^beta -> 91.74309168 | G13: 5 | H13: 1 | I13: 6782.558824 | J13: 590.1885693
G14: 6 | H14: 1 | I14: 7536.176471 | J14: 655.765077
I15: =F26/F37*1000 -> 5611.384393 | J15: 488.2780987
B17: Cost Assumptions | E17: Investment Cost | H17: Cumulative Cost
D18: Stage s_i | E18: per unit Q | F18: per Stage | G18: Parameter | H18: total | I18: Parameter
B20: Investment Cost | D20: 1 | E20: =TRANSPOSE(Assumptions!G30:L30) -> 5013.333333 | F20: =TRANSPOSE(Assumptions!G28:L28) -> 37600 | G20: dI_1 | H20: =SUM(F$20:F20) -> 37600 | I20: I_1
B21: Investment Cost | D21: =D20+1 -> 2 | E21: 5901.1875 | F21: 23604.75 | G21: dI_2 | H21: =SUM(F$20:F21) -> 61204.75 | I21: I_2
B22: Investment Cost | D22: =D21+1 -> 3 | E22: 5605.03125 | F22: 13452.075 | G22: dI_3 | H22: =SUM(F$20:F22) -> 74656.825 | I22: I_3
B23: Investment Cost | D23: =D22+1 -> 4 | E23: 6028.941176 | F23: 10249.2 | G23: dI_4 | H23: =SUM(F$20:F23) -> 84906.025 | I23: I_4
B24: Investment Cost | D24: =D23+1 -> 5 | E24: 6782.558824 | F24: 5765.175 | G24: dI_5 | H24: =SUM(F$20:F24) -> 90671.2 | I24: I_5
B25: Investment Cost | D25: =D24+1 -> 6 | E25: 7536.176471 | F25: 6405.75 | G25: dI_6 | H25: =SUM(F$20:F25) -> 97076.95 | I25: I_6
B26: Total cost (all stages) | F26: =SUM(F20:F25) -> 97076.95 | G26: I_i | H26: =H25 -> 97076.95
B28: Capacity Assumptions | E28: Added Capacity | H28: Cumulative Capacity
B29: Item | D29: Stage s_i | E29: per unit Q | F29: per Stage | G29: Parameter | H29: total | I29: Parameter
B31: Capacity | D31: 1 | E31: 1 | F31: =TRANSPOSE(Assumptions!G29:L29) -> 7500 | G31: dQ_1 | H31: =SUM(F$31:F31) -> 7500 | I31: Q_1
B32: Capacity | D32: =D31+1 -> 2 | E32: 1 | F32: 4000 | G32: dQ_2 | H32: =SUM(F$31:F32) -> 11500 | I32: Q_2
B33: Capacity | D33: =D32+1 -> 3 | E33: 1 | F33: 2400 | G33: dQ_3 | H33: =SUM(F$31:F33) -> 13900 | I33: Q_3
B34: Capacity | D34: =D33+1 -> 4 | E34: 1 | F34: 1700 | G34: dQ_4 | H34: =SUM(F$31:F34) -> 15600 | I34: Q_4
B35: Capacity | D35: =D34+1 -> 5 | E35: 1 | F35: 850 | G35: dQ_5 | H35: =SUM(F$31:F35) -> 16450 | I35: Q_5
B36: Capacity | D36: =D35+1 -> 6 | E36: 1 | F36: 850 | G36: dQ_5 | H36: =SUM(F$31:F36) -> 17300 | I36: Q_5
B37: Total capa (all stages) | F37: =SUM(F31:F36) -> 17300 | G37: Q_i | H37: =H36 -> 17300
B39: Lookup tables | D39: =H5 -> 0 | E39: Lookup for dI/dQ (optimally combined # of stages)
B40: Stage | D40: =H7 -> next j Stages | E40: 1 | F40: =E40+1 -> 2 | G40: =F40+1 -> 3 | H40: =G40+1 -> 4 | I40: =H40+1 -> 5 | J40: =I40+1 -> 6
B42: 1 | D42: =H9 -> 1 | E42: =IF(s_n-$D20+1<E$40,"",SUM($F20:OFFSET($F20,E$40-1,0))*1000/SUM($F31:OFFSET($F31,E$40-1,0))) -> 5013.333333 | F42: =IF(s_n-$D20+1<F$40,"",SUM($F20:OFFSET($F20,F$40-1,0))*1000/SUM($F31:OFFSET($F31,F$40-1,0))) -> 5322.152174 | G42: =IF(s_n-$D20+1<G$40,"",SUM($F20:OFFSET($F20,G$40-1,0))*1000/SUM($F31:OFFSET($F31,G$40-1,0))) -> 5370.994604 | H42: =IF(s_n-$D20+1<H$40,"",SUM($F20:OFFSET($F20,H$40-1,0))*1000/SUM($F31:OFFSET($F31,H$40-1,0))) -> 5442.69391 | I42: =IF(s_n-$D20+1<I$40,"",SUM($F20:OFFSET($F20,I$40-1,0))*1000/SUM($F31:OFFSET($F31,I$40-1,0))) -> 5511.927052 | J42: =IF(s_n-$D20+1<J$40,"",SUM($F20:OFFSET($F20,J$40-1,0))*1000/SUM($F31:OFFSET($F31,J$40-1,0))) -> 5611.384393
B43: =B42+1 -> 2 | D43: 2 | E43: =IF(s_n-$D21+1<E$40,"",SUM($F21:OFFSET($F21,E$40-1,0))*1000/SUM($F32:OFFSET($F32,E$40-1,0))) -> 5901.1875 | F43: =IF(s_n-$D21+1<F$40,"",SUM($F21:OFFSET($F21,F$40-1,0))*1000/SUM($F32:OFFSET($F32,F$40-1,0))) -> 5790.128906 | G43: =IF(s_n-$D21+1<G$40,"",SUM($F21:OFFSET($F21,G$40-1,0))*1000/SUM($F32:OFFSET($F32,G$40-1,0))) -> 5840.25 | H43: =IF(s_n-$D21+1<H$40,"",SUM($F21:OFFSET($F21,H$40-1,0))*1000/SUM($F32:OFFSET($F32,H$40-1,0))) -> 5929.743017 | I43: =IF(s_n-$D21+1<I$40,"",SUM($F21:OFFSET($F21,I$40-1,0))*1000/SUM($F32:OFFSET($F32,I$40-1,0))) -> 6069.076531 | J43: =IF(s_n-$D21+1<J$40,"",SUM($F21:OFFSET($F21,J$40-1,0))*1000/SUM($F32:OFFSET($F32,J$40-1,0))) -> 
B44: =B43+1 -> 3 | D44: 1 | E44: =IF(s_n-$D22+1<E$40,"",SUM($F22:OFFSET($F22,E$40-1,0))*1000/SUM($F33:OFFSET($F33,E$40-1,0))) -> 5605.03125 | F44: =IF(s_n-$D22+1<F$40,"",SUM($F22:OFFSET($F22,F$40-1,0))*1000/SUM($F33:OFFSET($F33,F$40-1,0))) -> 5780.79878 | G44: =IF(s_n-$D22+1<G$40,"",SUM($F22:OFFSET($F22,G$40-1,0))*1000/SUM($F33:OFFSET($F33,G$40-1,0))) -> 5952.818182 | H44: =IF(s_n-$D22+1<H$40,"",SUM($F22:OFFSET($F22,H$40-1,0))*1000/SUM($F33:OFFSET($F33,H$40-1,0))) -> 6184.862069 | I44: =IF(s_n-$D22+1<I$40,"",SUM($F22:OFFSET($F22,I$40-1,0))*1000/SUM($F33:OFFSET($F33,I$40-1,0))) ->  | J44: =IF(s_n-$D22+1<J$40,"",SUM($F22:OFFSET($F22,J$40-1,0))*1000/SUM($F33:OFFSET($F33,J$40-1,0))) -> 
B45: =B44+1 -> 4 | D45: 1 | E45: =IF(s_n-$D23+1<E$40,"",SUM($F23:OFFSET($F23,E$40-1,0))*1000/SUM($F34:OFFSET($F34,E$40-1,0))) -> 6028.941176 | F45: =IF(s_n-$D23+1<F$40,"",SUM($F23:OFFSET($F23,F$40-1,0))*1000/SUM($F34:OFFSET($F34,F$40-1,0))) -> 6280.147059 | G45: =IF(s_n-$D23+1<G$40,"",SUM($F23:OFFSET($F23,G$40-1,0))*1000/SUM($F34:OFFSET($F34,G$40-1,0))) -> 6594.154412 | H45: =IF(s_n-$D23+1<H$40,"",SUM($F23:OFFSET($F23,H$40-1,0))*1000/SUM($F34:OFFSET($F34,H$40-1,0))) ->  | I45: =IF(s_n-$D23+1<I$40,"",SUM($F23:OFFSET($F23,I$40-1,0))*1000/SUM($F34:OFFSET($F34,I$40-1,0))) ->  | J45: =IF(s_n-$D23+1<J$40,"",SUM($F23:OFFSET($F23,J$40-1,0))*1000/SUM($F34:OFFSET($F34,J$40-1,0))) -> 
B46: =B45+1 -> 5 | D46: 1 | E46: =IF(s_n-$D24+1<E$40,"",SUM($F24:OFFSET($F24,E$40-1,0))*1000/SUM($F35:OFFSET($F35,E$40-1,0))) -> 6782.558824 | F46: =IF(s_n-$D24+1<F$40,"",SUM($F24:OFFSET($F24,F$40-1,0))*1000/SUM($F35:OFFSET($F35,F$40-1,0))) -> 7159.367647 | G46: =IF(s_n-$D24+1<G$40,"",SUM($F24:OFFSET($F24,G$40-1,0))*1000/SUM($F35:OFFSET($F35,G$40-1,0))) ->  | H46: =IF(s_n-$D24+1<H$40,"",SUM($F24:OFFSET($F24,H$40-1,0))*1000/SUM($F35:OFFSET($F35,H$40-1,0))) ->  | I46: =IF(s_n-$D24+1<I$40,"",SUM($F24:OFFSET($F24,I$40-1,0))*1000/SUM($F35:OFFSET($F35,I$40-1,0))) ->  | J46: =IF(s_n-$D24+1<J$40,"",SUM($F24:OFFSET($F24,J$40-1,0))*1000/SUM($F35:OFFSET($F35,J$40-1,0))) -> 
B47: =B46+1 -> 6 | D47: 1 | E47: =IF(s_n-$D25+1<E$40,"",SUM($F25:OFFSET($F25,E$40-1,0))*1000/SUM($F36:OFFSET($F36,E$40-1,0))) -> 7536.176471 | F47: =IF(s_n-$D25+1<F$40,"",SUM($F25:OFFSET($F25,F$40-1,0))*1000/SUM($F36:OFFSET($F36,F$40-1,0))) ->  | G47: =IF(s_n-$D25+1<G$40,"",SUM($F25:OFFSET($F25,G$40-1,0))*1000/SUM($F36:OFFSET($F36,G$40-1,0))) ->  | H47: =IF(s_n-$D25+1<H$40,"",SUM($F25:OFFSET($F25,H$40-1,0))*1000/SUM($F36:OFFSET($F36,H$40-1,0))) ->  | I47: =IF(s_n-$D25+1<I$40,"",SUM($F25:OFFSET($F25,I$40-1,0))*1000/SUM($F36:OFFSET($F36,I$40-1,0))) ->  | J47: =IF(s_n-$D25+1<J$40,"",SUM($F25:OFFSET($F25,J$40-1,0))*1000/SUM($F36:OFFSET($F36,J$40-1,0))) -> 
B49: Lookup tables | D49: =H5 -> 0 | E49: Lookup for dI (optimally combined # of stages)
B50: Stage | D50: =H7 -> next j Stages | E50: 1 | F50: =E50+1 -> 2 | G50: =F50+1 -> 3 | H50: =G50+1 -> 4 | I50: =H50+1 -> 5 | J50: =I50+1 -> 6
B52: 1 | D52: =H9 -> 1 | E52: =IF(s_n-$D20+1<E$50,"",SUM($F20:OFFSET($F20,E$50-1,0))) -> 37600 | F52: =IF(s_n-$D20+1<F$50,"",SUM($F20:OFFSET($F20,F$50-1,0))) -> 61204.75 | G52: =IF(s_n-$D20+1<G$50,"",SUM($F20:OFFSET($F20,G$50-1,0))) -> 74656.825 | H52: =IF(s_n-$D20+1<H$50,"",SUM($F20:OFFSET($F20,H$50-1,0))) -> 84906.025 | I52: =IF(s_n-$D20+1<I$50,"",SUM($F20:OFFSET($F20,I$50-1,0))) -> 90671.2 | J52: =IF(s_n-$D20+1<J$50,"",SUM($F20:OFFSET($F20,J$50-1,0))) -> 97076.95
B53: =B52+1 -> 2 | D53: 2 | E53: =IF(s_n-$D21+1<E$50,"",SUM($F21:OFFSET($F21,E$50-1,0))) -> 23604.75 | F53: =IF(s_n-$D21+1<F$50,"",SUM($F21:OFFSET($F21,F$50-1,0))) -> 37056.825 | G53: =IF(s_n-$D21+1<G$50,"",SUM($F21:OFFSET($F21,G$50-1,0))) -> 47306.025 | H53: =IF(s_n-$D21+1<H$50,"",SUM($F21:OFFSET($F21,H$50-1,0))) -> 53071.2 | I53: =IF(s_n-$D21+1<I$50,"",SUM($F21:OFFSET($F21,I$50-1,0))) -> 59476.95 | J53: =IF(s_n-$D21+1<J$50,"",SUM($F21:OFFSET($F21,J$50-1,0))) -> 
B54: =B53+1 -> 3 | D54: 1 | E54: =IF(s_n-$D22+1<E$50,"",SUM($F22:OFFSET($F22,E$50-1,0))) -> 13452.075 | F54: =IF(s_n-$D22+1<F$50,"",SUM($F22:OFFSET($F22,F$50-1,0))) -> 23701.275 | G54: =IF(s_n-$D22+1<G$50,"",SUM($F22:OFFSET($F22,G$50-1,0))) -> 29466.45 | H54: =IF(s_n-$D22+1<H$50,"",SUM($F22:OFFSET($F22,H$50-1,0))) -> 35872.2 | I54: =IF(s_n-$D22+1<I$50,"",SUM($F22:OFFSET($F22,I$50-1,0))) ->  | J54: =IF(s_n-$D22+1<J$50,"",SUM($F22:OFFSET($F22,J$50-1,0))) -> 
B55: =B54+1 -> 4 | D55: 1 | E55: =IF(s_n-$D23+1<E$50,"",SUM($F23:OFFSET($F23,E$50-1,0))) -> 10249.2 | F55: =IF(s_n-$D23+1<F$50,"",SUM($F23:OFFSET($F23,F$50-1,0))) -> 16014.375 | G55: =IF(s_n-$D23+1<G$50,"",SUM($F23:OFFSET($F23,G$50-1,0))) -> 22420.125 | H55: =IF(s_n-$D23+1<H$50,"",SUM($F23:OFFSET($F23,H$50-1,0))) ->  | I55: =IF(s_n-$D23+1<I$50,"",SUM($F23:OFFSET($F23,I$50-1,0))) ->  | J55: =IF(s_n-$D23+1<J$50,"",SUM($F23:OFFSET($F23,J$50-1,0))) -> 
B56: =B55+1 -> 5 | D56: 1 | E56: =IF(s_n-$D24+1<E$50,"",SUM($F24:OFFSET($F24,E$50-1,0))) -> 5765.175 | F56: =IF(s_n-$D24+1<F$50,"",SUM($F24:OFFSET($F24,F$50-1,0))) -> 12170.925 | G56: =IF(s_n-$D24+1<G$50,"",SUM($F24:OFFSET($F24,G$50-1,0))) ->  | H56: =IF(s_n-$D24+1<H$50,"",SUM($F24:OFFSET($F24,H$50-1,0))) ->  | I56: =IF(s_n-$D24+1<I$50,"",SUM($F24:OFFSET($F24,I$50-1,0))) ->  | J56: =IF(s_n-$D24+1<J$50,"",SUM($F24:OFFSET($F24,J$50-1,0))) -> 
B57: =B56+1 -> 6 | D57: 1 | E57: =IF(s_n-$D25+1<E$50,"",SUM($F25:OFFSET($F25,E$50-1,0))) -> 6405.75 | F57: =IF(s_n-$D25+1<F$50,"",SUM($F25:OFFSET($F25,F$50-1,0))) ->  | G57: =IF(s_n-$D25+1<G$50,"",SUM($F25:OFFSET($F25,G$50-1,0))) ->  | H57: =IF(s_n-$D25+1<H$50,"",SUM($F25:OFFSET($F25,H$50-1,0))) ->  | I57: =IF(s_n-$D25+1<I$50,"",SUM($F25:OFFSET($F25,I$50-1,0))) ->  | J57: =IF(s_n-$D25+1<J$50,"",SUM($F25:OFFSET($F25,J$50-1,0))) -> 
B59: Lookup tables | D59: =H5 -> 0 | E59: Lookup for dQ (optimally combined # of stages)
B60: Stage | D60: =H7 -> next j Stages | E60: 1 | F60: =E60+1 -> 2 | G60: =F60+1 -> 3 | H60: =G60+1 -> 4 | I60: =H60+1 -> 5 | J60: =I60+1 -> 6
B62: 1 | D62: =H9 -> 1 | E62: =IF(s_n-$B62+1<E$60,"",SUM($F31:OFFSET($F31,E$60-1,0))) -> 7500 | F62: =IF(s_n-$B62+1<F$60,"",SUM($F31:OFFSET($F31,F$60-1,0))) -> 11500 | G62: =IF(s_n-$B62+1<G$60,"",SUM($F31:OFFSET($F31,G$60-1,0))) -> 13900 | H62: =IF(s_n-$B62+1<H$60,"",SUM($F31:OFFSET($F31,H$60-1,0))) -> 15600 | I62: =IF(s_n-$B62+1<I$60,"",SUM($F31:OFFSET($F31,I$60-1,0))) -> 16450 | J62: =IF(s_n-$B62+1<J$60,"",SUM($F31:OFFSET($F31,J$60-1,0))) -> 17300
B63: =B62+1 -> 2 | D63: 2 | E63: =IF(s_n-$B63+1<E$60,"",SUM($F32:OFFSET($F32,E$60-1,0))) -> 4000 | F63: =IF(s_n-$B63+1<F$60,"",SUM($F32:OFFSET($F32,F$60-1,0))) -> 6400 | G63: =IF(s_n-$B63+1<G$60,"",SUM($F32:OFFSET($F32,G$60-1,0))) -> 8100 | H63: =IF(s_n-$B63+1<H$60,"",SUM($F32:OFFSET($F32,H$60-1,0))) -> 8950 | I63: =IF(s_n-$B63+1<I$60,"",SUM($F32:OFFSET($F32,I$60-1,0))) -> 9800 | J63: =IF(s_n-$B63+1<J$60,"",SUM($F32:OFFSET($F32,J$60-1,0))) -> 
B64: =B63+1 -> 3 | D64: 1 | E64: =IF(s_n-$B64+1<E$60,"",SUM($F33:OFFSET($F33,E$60-1,0))) -> 2400 | F64: =IF(s_n-$B64+1<F$60,"",SUM($F33:OFFSET($F33,F$60-1,0))) -> 4100 | G64: =IF(s_n-$B64+1<G$60,"",SUM($F33:OFFSET($F33,G$60-1,0))) -> 4950 | H64: =IF(s_n-$B64+1<H$60,"",SUM($F33:OFFSET($F33,H$60-1,0))) -> 5800 | I64: =IF(s_n-$B64+1<I$60,"",SUM($F33:OFFSET($F33,I$60-1,0))) ->  | J64: =IF(s_n-$B64+1<J$60,"",SUM($F33:OFFSET($F33,J$60-1,0))) -> 
B65: =B64+1 -> 4 | D65: 1 | E65: =IF(s_n-$B65+1<E$60,"",SUM($F34:OFFSET($F34,E$60-1,0))) -> 1700 | F65: =IF(s_n-$B65+1<F$60,"",SUM($F34:OFFSET($F34,F$60-1,0))) -> 2550 | G65: =IF(s_n-$B65+1<G$60,"",SUM($F34:OFFSET($F34,G$60-1,0))) -> 3400 | H65: =IF(s_n-$B65+1<H$60,"",SUM($F34:OFFSET($F34,H$60-1,0))) ->  | I65: =IF(s_n-$B65+1<I$60,"",SUM($F34:OFFSET($F34,I$60-1,0))) ->  | J65: =IF(s_n-$B65+1<J$60,"",SUM($F34:OFFSET($F34,J$60-1,0))) -> 
B66: =B65+1 -> 5 | D66: 1 | E66: =IF(s_n-$B66+1<E$60,"",SUM($F35:OFFSET($F35,E$60-1,0))) -> 850 | F66: =IF(s_n-$B66+1<F$60,"",SUM($F35:OFFSET($F35,F$60-1,0))) -> 1700 | G66: =IF(s_n-$B66+1<G$60,"",SUM($F35:OFFSET($F35,G$60-1,0))) ->  | H66: =IF(s_n-$B66+1<H$60,"",SUM($F35:OFFSET($F35,H$60-1,0))) ->  | I66: =IF(s_n-$B66+1<I$60,"",SUM($F35:OFFSET($F35,I$60-1,0))) ->  | J66: =IF(s_n-$B66+1<J$60,"",SUM($F35:OFFSET($F35,J$60-1,0))) -> 
B67: =B66+1 -> 6 | D67: 1 | E67: =IF(s_n-$B67+1<E$60,"",SUM($F36:OFFSET($F36,E$60-1,0))) -> 850 | F67: =IF(s_n-$B67+1<F$60,"",SUM($F36:OFFSET($F36,F$60-1,0))) ->  | G67: =IF(s_n-$B67+1<G$60,"",SUM($F36:OFFSET($F36,G$60-1,0))) ->  | H67: =IF(s_n-$B67+1<H$60,"",SUM($F36:OFFSET($F36,H$60-1,0))) ->  | I67: =IF(s_n-$B67+1<I$60,"",SUM($F36:OFFSET($F36,I$60-1,0))) ->  | J67: =IF(s_n-$B67+1<J$60,"",SUM($F36:OFFSET($F36,J$60-1,0))) -> 

Sheet DevCosts
A1: x | AN1: x | AU1: Qtr # | AV1: 0 | AW1: =AV1+1 -> 1 | AX1: 2 | AY1: 3 | AZ1: 4 | BA1: 5 | BB1: 6 | BC1: 7 | BD1: 8 | BE1: 9 | BF1: 10 | BG1: 11 | BH1: 12 | BI1: 13 | BJ1: 14 | BK1: 15 | BL1: 16 | BM1: 17 | BN1: 18 | BO1: 19 | BP1: 20 | BQ1: 21 | BR1: 22 | BS1: 23 | BT1: 24 | BU1: 25 | BV1: 26 | BW1: 27 | BX1: 28 | BY1: 29 | BZ1: 30 | CA1: 31 | CB1: 32 | CC1: =CB1+1 -> 33 | CD1: 34 | CE1: 35 | CF1: 36 | CG1: 37 | CH1: 38 | CI1: 39 | CJ1: 40 | CK1: 41 | CL1: 42 | CM1: 43 | CN1: 44 | CO1: 45 | CP1: 46 | CQ1: 47 | CR1: 48 | CS1: 49 | CT1: 50 | CU1: 51 | CV1: 52 | CW1: 53 | CX1: 54 | CY1: 55 | CZ1: 56 | DA1: 57 | DB1: 58 | DC1: 59 | DD1: =DC1+1 -> 60 | DE1: 61 | DF1: 62 | DG1: 63 | DH1: 64 | DI1: 65 | DJ1: 66 | DK1: 67 | DL1: 68 | DM1: 69 | DN1: 70 | DO1: 71 | DP1: 72 | DQ1: 73 | DR1: 74 | DS1: 75 | DT1: 76 | DU1: 77 | DV1: 78 | DW1: 79 | DX1: 80 | DY1: 81 | DZ1: 82 | EA1: 83 | EB1: 84 | EC1: 85 | ED1: 86 | EE1: 87 | EF1: 88 | EG1: 89 | EH1: 90 | EI1: 91 | EJ1: =EI1+1 -> 92 | EK1: 93 | EL1: 94 | EM1: 95 | EN1: 96 | EO1: 97 | EP1: 98 | EQ1: 99 | ER1: 100 | ES1: 101 | ET1: 102 | EU1: 103 | EV1: 104 | EW1: 105 | EX1: 106 | EY1: 107 | EZ1: 108 | FA1: 109 | FB1: 110 | FC1: 111 | FD1: 112 | FE1: 113 | FF1: 114 | FG1: 115 | FH1: 116 | FI1: 117 | FJ1: 118 | FK1: 119 | FL1: 120 | FM1: x
B2: REAL ESTATE DEVELOPMENT | AO2: =B2 -> REAL ESTATE DEVELOPMENT
B3: Development Costs Schedule | AO3: =B3 -> Development Costs Schedule
B4: all data in Euro 000's, unless otherwise indicated | AO4: =B4 -> all data in Euro 000's, unless otherwise indicated
G7: 0 | H7: =G7+1 -> 1 | I7: 2 | J7: 3 | K7: 4 | L7: 5 | M7: 6 | N7: 7 | O7: 8 | P7: 9 | Q7: 10 | R7: 11 | S7: 12 | T7: 13 | U7: 14 | V7: 15 | W7: =V7+1 -> 16 | X7: 17 | Y7: 18 | Z7: 19 | AA7: 20 | AB7: 21 | AC7: 22 | AD7: 23 | AE7: 24 | AF7: 25 | AG7: 26 | AH7: 27 | AI7: 28 | AJ7: 29 | AK7: 30 | AO7: Quarter | AV7: 4 | AW7: =IF(AV7=4,1,AV7+1) -> 1 | AX7: 2 | AY7: 3 | AZ7: 4 | BA7: 1 | BB7: 2 | BC7: 3 | BD7: 4 | BE7: 1 | BF7: 2 | BG7: 3 | BH7: 4 | BI7: 1 | BJ7: 2 | BK7: 3 | BL7: 4 | BM7: 1 | BN7: 2 | BO7: 3 | BP7: 4 | BQ7: 1 | BR7: 2 | BS7: 3 | BT7: 4 | BU7: 1 | BV7: 2 | BW7: 3 | BX7: 4 | BY7: 1 | BZ7: 2 | CA7: 3 | CB7: 4 | CC7: =IF(CB7=4,1,CB7+1) -> 1 | CD7: 2 | CE7: 3 | CF7: 4 | CG7: 1 | CH7: 2 | CI7: 3 | CJ7: 4 | CK7: 1 | CL7: 2 | CM7: 3 | CN7: 4 | CO7: 1 | CP7: 2 | CQ7: 3 | CR7: 4 | CS7: 1 | CT7: 2 | CU7: 3 | CV7: 4 | CW7: 1 | CX7: 2 | CY7: 3 | CZ7: 4 | DA7: 1 | DB7: 2 | DC7: 3 | DD7: =IF(DC7=4,1,DC7+1) -> 4 | DE7: 1 | DF7: 2 | DG7: 3 | DH7: 4 | DI7: 1 | DJ7: 2 | DK7: 3 | DL7: 4 | DM7: 1 | DN7: 2 | DO7: 3 | DP7: 4 | DQ7: 1 | DR7: 2 | DS7: 3 | DT7: 4 | DU7: 1 | DV7: 2 | DW7: 3 | DX7: 4 | DY7: 1 | DZ7: 2 | EA7: 3 | EB7: 4 | EC7: 1 | ED7: 2 | EE7: 3 | EF7: 4 | EG7: 1 | EH7: 2 | EI7: 3 | EJ7: =IF(EI7=4,1,EI7+1) -> 4 | EK7: 1 | EL7: 2 | EM7: 3 | EN7: 4 | EO7: 1 | EP7: 2 | EQ7: 3 | ER7: 4 | ES7: 1 | ET7: 2 | EU7: 3 | EV7: 4 | EW7: 1 | EX7: 2 | EY7: 3 | EZ7: 4 | FA7: 1 | FB7: 2 | FC7: 3 | FD7: 4 | FE7: 1 | FF7: 2 | FG7: 3 | FH7: 4 | FI7: 1 | FJ7: 2 | FK7: 3 | FL7: 4
G8: 2011 | H8: =G8+1 -> 2012 | I8: 2013 | J8: 2014 | K8: 2015 | L8: 2016 | M8: 2017 | N8: 2018 | O8: 2019 | P8: 2020 | Q8: 2021 | R8: 2022 | S8: 2023 | T8: 2024 | U8: 2025 | V8: 2026 | W8: =V8+1 -> 2027 | X8: 2028 | Y8: 2029 | Z8: 2030 | AA8: 2031 | AB8: 2032 | AC8: 2033 | AD8: 2034 | AE8: 2035 | AF8: 2036 | AG8: 2037 | AH8: 2038 | AI8: 2039 | AJ8: 2040 | AK8: 2041 | AM8: TOTAL | AO8: Year | AV8: =G8 -> 2011 | AW8: =IF(AW7=1,AV8+1,AV8) -> 2012 | AX8: 2012 | AY8: 2012 | AZ8: 2012 | BA8: 2013 | BB8: 2013 | BC8: 2013 | BD8: 2013 | BE8: 2014 | BF8: 2014 | BG8: 2014 | BH8: 2014 | BI8: 2015 | BJ8: 2015 | BK8: 2015 | BL8: 2015 | BM8: 2016 | BN8: 2016 | BO8: 2016 | BP8: 2016 | BQ8: 2017 | BR8: 2017 | BS8: 2017 | BT8: 2017 | BU8: 2018 | BV8: 2018 | BW8: 2018 | BX8: 2018 | BY8: 2019 | BZ8: 2019 | CA8: 2019 | CB8: 2019 | CC8: =IF(CC7=1,CB8+1,CB8) -> 2020 | CD8: 2020 | CE8: 2020 | CF8: 2020 | CG8: 2021 | CH8: 2021 | CI8: 2021 | CJ8: 2021 | CK8: 2022 | CL8: 2022 | CM8: 2022 | CN8: 2022 | CO8: 2023 | CP8: 2023 | CQ8: 2023 | CR8: 2023 | CS8: 2024 | CT8: 2024 | CU8: 2024 | CV8: 2024 | CW8: 2025 | CX8: 2025 | CY8: 2025 | CZ8: 2025 | DA8: 2026 | DB8: 2026 | DC8: 2026 | DD8: =IF(DD7=1,DC8+1,DC8) -> 2026 | DE8: 2027 | DF8: 2027 | DG8: 2027 | DH8: 2027 | DI8: 2028 | DJ8: 2028 | DK8: 2028 | DL8: 2028 | DM8: 2029 | DN8: 2029 | DO8: 2029 | DP8: 2029 | DQ8: 2030 | DR8: 2030 | DS8: 2030 | DT8: 2030 | DU8: 2031 | DV8: 2031 | DW8: 2031 | DX8: 2031 | DY8: 2032 | DZ8: 2032 | EA8: 2032 | EB8: 2032 | EC8: 2033 | ED8: 2033 | EE8: 2033 | EF8: 2033 | EG8: 2034 | EH8: 2034 | EI8: 2034 | EJ8: =IF(EJ7=1,EI8+1,EI8) -> 2034 | EK8: 2035 | EL8: 2035 | EM8: 2035 | EN8: 2035 | EO8: 2036 | EP8: 2036 | EQ8: 2036 | ER8: 2036 | ES8: 2037 | ET8: 2037 | EU8: 2037 | EV8: 2037 | EW8: 2038 | EX8: 2038 | EY8: 2038 | EZ8: 2038 | FA8: 2039 | FB8: 2039 | FC8: 2039 | FD8: 2039 | FE8: 2040 | FF8: 2040 | FG8: 2040 | FH8: 2040 | FI8: 2041 | FJ8: 2041 | FK8: 2041 | FL8: 2041
AO9: Running Quarter | AV9: =AV1 -> 0 | AW9: =AW1 -> 1 | AX9: 2 | AY9: 3 | AZ9: 4 | BA9: 5 | BB9: 6 | BC9: 7 | BD9: 8 | BE9: 9 | BF9: 10 | BG9: 11 | BH9: 12 | BI9: 13 | BJ9: 14 | BK9: 15 | BL9: 16 | BM9: 17 | BN9: 18 | BO9: 19 | BP9: 20 | BQ9: 21 | BR9: 22 | BS9: 23 | BT9: 24 | BU9: 25 | BV9: 26 | BW9: 27 | BX9: 28 | BY9: 29 | BZ9: 30 | CA9: 31 | CB9: 32 | CC9: 33 | CD9: 34 | CE9: 35 | CF9: 36 | CG9: 37 | CH9: 38 | CI9: 39 | CJ9: 40 | CK9: 41 | CL9: 42 | CM9: 43 | CN9: 44 | CO9: 45 | CP9: 46 | CQ9: 47 | CR9: 48 | CS9: 49 | CT9: 50 | CU9: 51 | CV9: 52 | CW9: 53 | CX9: 54 | CY9: 55 | CZ9: 56 | DA9: 57 | DB9: 58 | DC9: 59 | DD9: =DD1 -> 60 | DE9: 61 | DF9: 62 | DG9: 63 | DH9: 64 | DI9: 65 | DJ9: 66 | DK9: 67 | DL9: 68 | DM9: 69 | DN9: 70 | DO9: 71 | DP9: 72 | DQ9: 73 | DR9: 74 | DS9: 75 | DT9: 76 | DU9: 77 | DV9: 78 | DW9: 79 | DX9: 80 | DY9: 81 | DZ9: 82 | EA9: 83 | EB9: 84 | EC9: 85 | ED9: 86 | EE9: 87 | EF9: 88 | EG9: 89 | EH9: 90 | EI9: 91 | EJ9: 92 | EK9: 93 | EL9: 94 | EM9: 95 | EN9: 96 | EO9: 97 | EP9: 98 | EQ9: 99 | ER9: 100 | ES9: 101 | ET9: 102 | EU9: 103 | EV9: 104 | EW9: 105 | EX9: 106 | EY9: 107 | EZ9: 108 | FA9: 109 | FB9: 110 | FC9: 111 | FD9: 112 | FE9: 113 | FF9: 114 | FG9: 115 | FH9: 116 | FI9: 117 | FJ9: 118 | FK9: 119 | FL9: 120
AO11: Cumulative Market Rent Growth | AV11: =RentRoll!T9 -> 1 | AW11: =RentRoll!U9 -> 1.002490679 | AX11: =RentRoll!V9 -> 1.004987562 | AY11: =RentRoll!W9 -> 1.007490664 | AZ11: =RentRoll!X9 -> 1.01 | BA11: =RentRoll!Y9 -> 1.012515586 | BB11: =RentRoll!Z9 -> 1.015037438 | BC11: =RentRoll!AA9 -> 1.01756557 | BD11: =RentRoll!AB9 -> 1.0201 | BE11: =RentRoll!AC9 -> 1.022640742 | BF11: =RentRoll!AD9 -> 1.025187812 | BG11: =RentRoll!AE9 -> 1.027741226 | BH11: =RentRoll!AF9 -> 1.030301 | BI11: =RentRoll!AG9 -> 1.032867149 | BJ11: =RentRoll!AH9 -> 1.03543969 | BK11: =RentRoll!AI9 -> 1.038018638 | BL11: =RentRoll!AJ9 -> 1.04060401 | BM11: =RentRoll!AK9 -> 1.043195821 | BN11: =RentRoll!AL9 -> 1.045794087 | BO11: =RentRoll!AM9 -> 1.048398825 | BP11: =RentRoll!AN9 -> 1.05101005 | BQ11: =RentRoll!AO9 -> 1.053627779 | BR11: =RentRoll!AP9 -> 1.056252028 | BS11: =RentRoll!AQ9 -> 1.058882813 | BT11: =RentRoll!AR9 -> 1.061520151 | BU11: =RentRoll!AS9 -> 1.064164057 | BV11: =RentRoll!AT9 -> 1.066814548 | BW11: =RentRoll!AU9 -> 1.069471641 | BX11: =RentRoll!AV9 -> 1.072135352 | BY11: =RentRoll!AW9 -> 1.074805697 | BZ11: =RentRoll!AX9 -> 1.077482694 | CA11: =RentRoll!AY9 -> 1.080166358 | CB11: =RentRoll!AZ9 -> 1.082856706 | CC11: =RentRoll!BA9 -> 1.085553754 | CD11: =RentRoll!BB9 -> 1.088257521 | CE11: =RentRoll!BC9 -> 1.090968021 | CF11: =RentRoll!BD9 -> 1.093685273 | CG11: =RentRoll!BE9 -> 1.096409292 | CH11: =RentRoll!BF9 -> 1.099140096 | CI11: =RentRoll!BG9 -> 1.101877701 | CJ11: =RentRoll!BH9 -> 1.104622125 | CK11: =RentRoll!BI9 -> 1.107373385 | CL11: =RentRoll!BJ9 -> 1.110131497 | CM11: =RentRoll!BK9 -> 1.112896478 | CN11: =RentRoll!BL9 -> 1.115668347 | CO11: =RentRoll!BM9 -> 1.118447119 | CP11: =RentRoll!BN9 -> 1.121232812 | CQ11: =RentRoll!BO9 -> 1.124025443 | CR11: =RentRoll!BP9 -> 1.12682503 | CS11: =RentRoll!BQ9 -> 1.12963159 | CT11: =RentRoll!BR9 -> 1.13244514 | CU11: =RentRoll!BS9 -> 1.135265698 | CV11: =RentRoll!BT9 -> 1.13809328 | CW11: =RentRoll!BU9 -> 1.140927906 | CX11: =RentRoll!BV9 -> 1.143769591 | CY11: =RentRoll!BW9 -> 1.146618355 | CZ11: =RentRoll!BX9 -> 1.149474213 | DA11: =RentRoll!BY9 -> 1.152337185 | DB11: =RentRoll!BZ9 -> 1.155207287 | DC11: =RentRoll!CA9 -> 1.158084538 | DD11: =RentRoll!CB9 -> 1.160968955 | DE11: =RentRoll!CC9 -> 1.163860557 | DF11: =RentRoll!CD9 -> 1.16675936 | DG11: =RentRoll!CE9 -> 1.169665384 | DH11: =RentRoll!CF9 -> 1.172578645 | DI11: =RentRoll!CG9 -> 1.175499162 | DJ11: =RentRoll!CH9 -> 1.178426954 | DK11: =RentRoll!CI9 -> 1.181362037 | DL11: =RentRoll!CJ9 -> 1.184304431 | DM11: =RentRoll!CK9 -> 1.187254154 | DN11: =RentRoll!CL9 -> 1.190211223 | DO11: =RentRoll!CM9 -> 1.193175658 | DP11: =RentRoll!CN9 -> 1.196147476 | DQ11: =RentRoll!CO9 -> 1.199126695 | DR11: =RentRoll!CP9 -> 1.202113336 | DS11: =RentRoll!CQ9 -> 1.205107414 | DT11: =RentRoll!CR9 -> 1.20810895 | DU11: =RentRoll!CS9 -> 1.211117962 | DV11: =RentRoll!CT9 -> 1.214134469 | DW11: =RentRoll!CU9 -> 1.217158488 | DX11: =RentRoll!CV9 -> 1.22019004 | DY11: =RentRoll!CW9 -> 1.223229142 | DZ11: =RentRoll!CX9 -> 1.226275814 | EA11: =RentRoll!CY9 -> 1.229330073 | EB11: =RentRoll!CZ9 -> 1.23239194 | EC11: =RentRoll!DA9 -> 1.235461433 | ED11: =RentRoll!DB9 -> 1.238538572 | EE11: =RentRoll!DC9 -> 1.241623374 | EF11: =RentRoll!DD9 -> 1.24471586 | EG11: =RentRoll!DE9 -> 1.247816048 | EH11: =RentRoll!DF9 -> 1.250923957 | EI11: =RentRoll!DG9 -> 1.254039608 | EJ11: =RentRoll!DH9 -> 1.257163018 | EK11: =RentRoll!DI9 -> 1.260294208 | EL11: =RentRoll!DJ9 -> 1.263433197 | EM11: =RentRoll!DK9 -> 1.266580004 | EN11: =RentRoll!DL9 -> 1.269734649 | EO11: =RentRoll!DM9 -> 1.27289715 | EP11: =RentRoll!DN9 -> 1.276067529 | EQ11: =RentRoll!DO9 -> 1.279245804 | ER11: =RentRoll!DP9 -> 1.282431995 | ES11: =RentRoll!DQ9 -> 1.285626122 | ET11: =RentRoll!DR9 -> 1.288828204 | EU11: =RentRoll!DS9 -> 1.292038262 | EV11: =RentRoll!DT9 -> 1.295256315 | EW11: =RentRoll!DU9 -> 1.298482383 | EX11: =RentRoll!DV9 -> 1.301716486 | EY11: =RentRoll!DW9 -> 1.304958645 | EZ11: =RentRoll!DX9 -> 1.308208878 | FA11: =RentRoll!DY9 -> 1.311467207 | FB11: =RentRoll!DZ9 -> 1.314733651 | FC11: =RentRoll!EA9 -> 1.318008231 | FD11: =RentRoll!EB9 -> 1.321290967 | FE11: =RentRoll!EC9 -> 1.324581879 | FF11: =RentRoll!ED9 -> 1.327880988 | FG11: =RentRoll!EE9 -> 1.331188313 | FH11: =RentRoll!EF9 -> 1.334503877 | FI11: =RentRoll!EG9 -> 1.337827698 | FJ11: =RentRoll!EH9 -> 1.341159798 | FK11: =RentRoll!EI9 -> 1.344500197 | FL11: =RentRoll!EJ9 -> 1.347848915
AO12: Cost Inflation | AV12: =(1+ConstCostGrowth/4)^(AV9) -> 1 | AW12: 1.0125 | AX12: 1.02515625 | AY12: 1.037970703 | AZ12: 1.050945337 | BA12: 1.064082154 | BB12: 1.077383181 | BC12: 1.09085047 | BD12: 1.104486101 | BE12: 1.118292177 | BF12: 1.13227083 | BG12: 1.146424215 | BH12: 1.160754518 | BI12: 1.175263949 | BJ12: 1.189954749 | BK12: 1.204829183 | BL12: 1.219889548 | BM12: 1.235138167 | BN12: 1.250577394 | BO12: 1.266209612 | BP12: 1.282037232 | BQ12: 1.298062697 | BR12: 1.314288481 | BS12: 1.330717087 | BT12: 1.34735105 | BU12: 1.364192939 | BV12: 1.38124535 | BW12: 1.398510917 | BX12: 1.415992304 | BY12: 1.433692207 | BZ12: 1.45161336 | CA12: 1.469758527 | CB12: =(1+ConstCostGrowth/4)^(CB9) -> 1.488130509 | CC12: 1.50673214 | CD12: 1.525566292 | CE12: 1.54463587 | CF12: 1.563943819 | CG12: 1.583493116 | CH12: 1.60328678 | CI12: 1.623327865 | CJ12: 1.643619463 | CK12: 1.664164707 | CL12: 1.684966766 | CM12: 1.70602885 | CN12: 1.727354211 | CO12: 1.748946138 | CP12: 1.770807965 | CQ12: 1.792943065 | CR12: 1.815354853 | CS12: 1.838046789 | CT12: 1.861022374 | CU12: 1.884285153 | CV12: 1.907838718 | CW12: 1.931686702 | CX12: 1.955832785 | CY12: 1.980280695 | CZ12: 2.005034204 | DA12: 2.030097131 | DB12: 2.055473346 | DC12: 2.081166762 | DD12: =(1+ConstCostGrowth/4)^(DD9) -> 2.107181347 | DE12: 2.133521114 | DF12: 2.160190128 | DG12: 2.187192504 | DH12: 2.214532411 | DI12: 2.242214066 | DJ12: 2.270241742 | DK12: 2.298619763 | DL12: 2.32735251 | DM12: 2.356444417 | DN12: 2.385899972 | DO12: 2.415723722 | DP12: 2.445920268 | DQ12: 2.476494271 | DR12: 2.50745045 | DS12: 2.538793581 | DT12: 2.5705285 | DU12: 2.602660107 | DV12: 2.635193358 | DW12: 2.668133275 | DX12: 2.701484941 | DY12: 2.735253503 | DZ12: 2.769444171 | EA12: 2.804062223 | EB12: 2.839113001 | EC12: 2.874601914 | ED12: 2.910534438 | EE12: 2.946916118 | EF12: 2.98375257 | EG12: 3.021049477 | EH12: 3.058812595 | EI12: 3.097047753 | EJ12: 3.13576085 | EK12: 3.17495786 | EL12: 3.214644833 | EM12: 3.254827894 | EN12: 3.295513243 | EO12: 3.336707158 | EP12: 3.378415998 | EQ12: 3.420646197 | ER12: 3.463404275 | ES12: 3.506696828 | ET12: 3.550530539 | EU12: 3.59491217 | EV12: 3.639848573 | EW12: 3.68534668 | EX12: 3.731413513 | EY12: 3.778056182 | EZ12: 3.825281884 | FA12: 3.873097908 | FB12: 3.921511632 | FC12: 3.970530527 | FD12: 4.020162159 | FE12: 4.070414186 | FF12: 4.121294363 | FG12: 4.172810543 | FH12: 4.224970674 | FI12: 4.277782808 | FJ12: 4.331255093 | FK12: 4.385395782 | FL12: 4.440213229
AQ14: Phase | AR14: Initial Market Rent
AO15: Mkt Rent | AQ15: 1 | AR15: =INDEX(AssetDB!$G$40:$AR$40,MATCH(DevCosts!$AQ15,AssetDB!$G$1:$AR$1,0)) -> 400 | AV15: =$AR15*AV$11 -> 400 | AW15: 400.9962717 | AX15: 401.9950248 | AY15: 402.9962655 | AZ15: 404 | BA15: 405.0062344 | BB15: 406.0149751 | BC15: 407.0262282 | BD15: 408.04 | BE15: 409.0562968 | BF15: =$AR15*BF$11 -> 410.0751248 | BG15: 411.0964905 | BH15: 412.1204 | BI15: 413.1468598 | BJ15: 414.1758761 | BK15: 415.2074554 | BL15: 416.241604 | BM15: 417.2783284 | BN15: 418.3176349 | BO15: 419.3595299 | BP15: =$AR15*BP$11 -> 420.40402 | BQ15: 421.4511116 | BR15: 422.5008112 | BS15: 423.5531252 | BT15: 424.6080602 | BU15: 425.6656228 | BV15: 426.7258193 | BW15: 427.7886565 | BX15: 428.8541408 | BY15: 429.922279 | BZ15: =$AR15*BZ$11 -> 430.9930775 | CA15: 432.0665431 | CB15: 433.1426823 | CC15: 434.2215018 | CD15: 435.3030083 | CE15: 436.3872085 | CF15: 437.4741091 | CG15: 438.5637168 | CH15: 439.6560384 | CI15: 440.7510806 | CJ15: =$AR15*CJ$11 -> 441.8488502 | CK15: 442.949354 | CL15: 444.0525987 | CM15: 445.1585914 | CN15: 446.2673387 | CO15: 447.3788475 | CP15: 448.4931247 | CQ15: 449.6101773 | CR15: 450.7300121 | CS15: 451.852636 | CT15: =$AR15*CT$11 -> 452.978056 | CU15: 454.1062791 | CV15: 455.2373122 | CW15: 456.3711623 | CX15: 457.5078365 | CY15: 458.6473418 | CZ15: 459.7896853 | DA15: 460.934874 | DB15: 462.0829149 | DC15: 463.2338153 | DD15: =$AR15*DD$11 -> 464.3875821 | DE15: 465.5442227 | DF15: 466.7037441 | DG15: 467.8661534 | DH15: 469.031458 | DI15: 470.1996649 | DJ15: 471.3707815 | DK15: 472.544815 | DL15: 473.7217725 | DM15: 474.9016616 | DN15: =$AR15*DN$11 -> 476.0844893 | DO15: 477.2702631 | DP15: 478.4589903 | DQ15: 479.6506782 | DR15: 480.8453342 | DS15: 482.0429657 | DT15: 483.2435802 | DU15: 484.447185 | DV15: 485.6537875 | DW15: 486.8633954 | DX15: =$AR15*DX$11 -> 488.076016 | DY15: 489.2916568 | DZ15: 490.5103254 | EA15: 491.7320293 | EB15: 492.9567761 | EC15: 494.1845734 | ED15: 495.4154287 | EE15: 496.6493496 | EF15: 497.8863439 | EG15: 499.1264191 | EH15: =$AR15*EH$11 -> 500.369583 | EI15: 501.6158431 | EJ15: 502.8652073 | EK15: 504.1176833 | EL15: 505.3732788 | EM15: 506.6320016 | EN15: 507.8938594 | EO15: 509.1588601 | EP15: 510.4270116 | EQ15: 511.6983216 | ER15: =$AR15*ER$11 -> 512.972798 | ES15: 514.2504487 | ET15: 515.5312817 | EU15: 516.8153048 | EV15: 518.102526 | EW15: 519.3929532 | EX15: 520.6865945 | EY15: 521.9834578 | EZ15: 523.2835512 | FA15: 524.5868828 | FB15: =$AR15*FB$11 -> 525.8934605 | FC15: 527.2032924 | FD15: 528.5163868 | FE15: 529.8327516 | FF15: 531.1523951 | FG15: 532.4753253 | FH15: 533.8015506 | FI15: 535.1310791 | FJ15: 536.463919 | FK15: 537.8000786 | FL15: 539.1395661
AO16: Mkt Rent | AQ16: =AQ15+1 -> 2 | AR16: =INDEX(AssetDB!$G$40:$AR$40,MATCH(DevCosts!$AQ16,AssetDB!$G$1:$AR$1,0)) -> 400 | AV16: 400 | AW16: 400.9962717 | AX16: 401.9950248 | AY16: 402.9962655 | AZ16: 404 | BA16: 405.0062344 | BB16: 406.0149751 | BC16: 407.0262282 | BD16: 408.04 | BE16: 409.0562968 | BF16: 410.0751248 | BG16: 411.0964905 | BH16: 412.1204 | BI16: 413.1468598 | BJ16: 414.1758761 | BK16: 415.2074554 | BL16: 416.241604 | BM16: 417.2783284 | BN16: 418.3176349 | BO16: 419.3595299 | BP16: 420.40402 | BQ16: 421.4511116 | BR16: 422.5008112 | BS16: 423.5531252 | BT16: 424.6080602 | BU16: 425.6656228 | BV16: 426.7258193 | BW16: 427.7886565 | BX16: 428.8541408 | BY16: 429.922279 | BZ16: 430.9930775 | CA16: 432.0665431 | CB16: 433.1426823 | CC16: 434.2215018 | CD16: 435.3030083 | CE16: 436.3872085 | CF16: 437.4741091 | CG16: 438.5637168 | CH16: 439.6560384 | CI16: 440.7510806 | CJ16: 441.8488502 | CK16: 442.949354 | CL16: 444.0525987 | CM16: 445.1585914 | CN16: 446.2673387 | CO16: 447.3788475 | CP16: 448.4931247 | CQ16: 449.6101773 | CR16: 450.7300121 | CS16: 451.852636 | CT16: 452.978056 | CU16: 454.1062791 | CV16: 455.2373122 | CW16: 456.3711623 | CX16: 457.5078365 | CY16: 458.6473418 | CZ16: 459.7896853 | DA16: 460.934874 | DB16: 462.0829149 | DC16: 463.2338153 | DD16: 464.3875821 | DE16: 465.5442227 | DF16: 466.7037441 | DG16: 467.8661534 | DH16: 469.031458 | DI16: 470.1996649 | DJ16: 471.3707815 | DK16: 472.544815 | DL16: 473.7217725 | DM16: 474.9016616 | DN16: 476.0844893 | DO16: 477.2702631 | DP16: 478.4589903 | DQ16: 479.6506782 | DR16: 480.8453342 | DS16: 482.0429657 | DT16: 483.2435802 | DU16: 484.447185 | DV16: 485.6537875 | DW16: 486.8633954 | DX16: 488.076016 | DY16: 489.2916568 | DZ16: 490.5103254 | EA16: 491.7320293 | EB16: 492.9567761 | EC16: 494.1845734 | ED16: 495.4154287 | EE16: 496.6493496 | EF16: 497.8863439 | EG16: 499.1264191 | EH16: 500.369583 | EI16: 501.6158431 | EJ16: 502.8652073 | EK16: 504.1176833 | EL16: 505.3732788 | EM16: 506.6320016 | EN16: 507.8938594 | EO16: 509.1588601 | EP16: 510.4270116 | EQ16: 511.6983216 | ER16: 512.972798 | ES16: 514.2504487 | ET16: 515.5312817 | EU16: 516.8153048 | EV16: 518.102526 | EW16: 519.3929532 | EX16: 520.6865945 | EY16: 521.9834578 | EZ16: 523.2835512 | FA16: 524.5868828 | FB16: 525.8934605 | FC16: 527.2032924 | FD16: 528.5163868 | FE16: 529.8327516 | FF16: 531.1523951 | FG16: 532.4753253 | FH16: 533.8015506 | FI16: 535.1310791 | FJ16: 536.463919 | FK16: 537.8000786 | FL16: 539.1395661
AO17: Mkt Rent | AQ17: =AQ16+1 -> 3 | AR17: =INDEX(AssetDB!$G$40:$AR$40,MATCH(DevCosts!$AQ17,AssetDB!$G$1:$AR$1,0)) -> 400 | AV17: 400 | AW17: 400.9962717 | AX17: 401.9950248 | AY17: 402.9962655 | AZ17: 404 | BA17: 405.0062344 | BB17: 406.0149751 | BC17: 407.0262282 | BD17: 408.04 | BE17: 409.0562968 | BF17: 410.0751248 | BG17: 411.0964905 | BH17: 412.1204 | BI17: 413.1468598 | BJ17: 414.1758761 | BK17: 415.2074554 | BL17: 416.241604 | BM17: 417.2783284 | BN17: 418.3176349 | BO17: 419.3595299 | BP17: 420.40402 | BQ17: 421.4511116 | BR17: 422.5008112 | BS17: 423.5531252 | BT17: 424.6080602 | BU17: 425.6656228 | BV17: 426.7258193 | BW17: 427.7886565 | BX17: 428.8541408 | BY17: 429.922279 | BZ17: 430.9930775 | CA17: 432.0665431 | CB17: 433.1426823 | CC17: 434.2215018 | CD17: 435.3030083 | CE17: 436.3872085 | CF17: 437.4741091 | CG17: 438.5637168 | CH17: 439.6560384 | CI17: 440.7510806 | CJ17: 441.8488502 | CK17: 442.949354 | CL17: 444.0525987 | CM17: 445.1585914 | CN17: 446.2673387 | CO17: 447.3788475 | CP17: 448.4931247 | CQ17: 449.6101773 | CR17: 450.7300121 | CS17: 451.852636 | CT17: 452.978056 | CU17: 454.1062791 | CV17: 455.2373122 | CW17: 456.3711623 | CX17: 457.5078365 | CY17: 458.6473418 | CZ17: 459.7896853 | DA17: 460.934874 | DB17: 462.0829149 | DC17: 463.2338153 | DD17: 464.3875821 | DE17: 465.5442227 | DF17: 466.7037441 | DG17: 467.8661534 | DH17: 469.031458 | DI17: 470.1996649 | DJ17: 471.3707815 | DK17: 472.544815 | DL17: 473.7217725 | DM17: 474.9016616 | DN17: 476.0844893 | DO17: 477.2702631 | DP17: 478.4589903 | DQ17: 479.6506782 | DR17: 480.8453342 | DS17: 482.0429657 | DT17: 483.2435802 | DU17: 484.447185 | DV17: 485.6537875 | DW17: 486.8633954 | DX17: 488.076016 | DY17: 489.2916568 | DZ17: 490.5103254 | EA17: 491.7320293 | EB17: 492.9567761 | EC17: 494.1845734 | ED17: 495.4154287 | EE17: 496.6493496 | EF17: 497.8863439 | EG17: 499.1264191 | EH17: 500.369583 | EI17: 501.6158431 | EJ17: 502.8652073 | EK17: 504.1176833 | EL17: 505.3732788 | EM17: 506.6320016 | EN17: 507.8938594 | EO17: 509.1588601 | EP17: 510.4270116 | EQ17: 511.6983216 | ER17: 512.972798 | ES17: 514.2504487 | ET17: 515.5312817 | EU17: 516.8153048 | EV17: 518.102526 | EW17: 519.3929532 | EX17: 520.6865945 | EY17: 521.9834578 | EZ17: 523.2835512 | FA17: 524.5868828 | FB17: 525.8934605 | FC17: 527.2032924 | FD17: 528.5163868 | FE17: 529.8327516 | FF17: 531.1523951 | FG17: 532.4753253 | FH17: 533.8015506 | FI17: 535.1310791 | FJ17: 536.463919 | FK17: 537.8000786 | FL17: 539.1395661
AO18: Mkt Rent | AQ18: =AQ17+1 -> 4 | AR18: =INDEX(AssetDB!$G$40:$AR$40,MATCH(DevCosts!$AQ18,AssetDB!$G$1:$AR$1,0)) -> 400 | AV18: 400 | AW18: 400.9962717 | AX18: 401.9950248 | AY18: 402.9962655 | AZ18: 404 | BA18: 405.0062344 | BB18: 406.0149751 | BC18: 407.0262282 | BD18: 408.04 | BE18: 409.0562968 | BF18: 410.0751248 | BG18: 411.0964905 | BH18: 412.1204 | BI18: 413.1468598 | BJ18: 414.1758761 | BK18: 415.2074554 | BL18: 416.241604 | BM18: 417.2783284 | BN18: 418.3176349 | BO18: 419.3595299 | BP18: 420.40402 | BQ18: 421.4511116 | BR18: 422.5008112 | BS18: 423.5531252 | BT18: 424.6080602 | BU18: 425.6656228 | BV18: 426.7258193 | BW18: 427.7886565 | BX18: 428.8541408 | BY18: 429.922279 | BZ18: 430.9930775 | CA18: 432.0665431 | CB18: 433.1426823 | CC18: 434.2215018 | CD18: 435.3030083 | CE18: 436.3872085 | CF18: 437.4741091 | CG18: 438.5637168 | CH18: 439.6560384 | CI18: 440.7510806 | CJ18: 441.8488502 | CK18: 442.949354 | CL18: 444.0525987 | CM18: 445.1585914 | CN18: 446.2673387 | CO18: 447.3788475 | CP18: 448.4931247 | CQ18: 449.6101773 | CR18: 450.7300121 | CS18: 451.852636 | CT18: 452.978056 | CU18: 454.1062791 | CV18: 455.2373122 | CW18: 456.3711623 | CX18: 457.5078365 | CY18: 458.6473418 | CZ18: 459.7896853 | DA18: 460.934874 | DB18: 462.0829149 | DC18: 463.2338153 | DD18: 464.3875821 | DE18: 465.5442227 | DF18: 466.7037441 | DG18: 467.8661534 | DH18: 469.031458 | DI18: 470.1996649 | DJ18: 471.3707815 | DK18: 472.544815 | DL18: 473.7217725 | DM18: 474.9016616 | DN18: 476.0844893 | DO18: 477.2702631 | DP18: 478.4589903 | DQ18: 479.6506782 | DR18: 480.8453342 | DS18: 482.0429657 | DT18: 483.2435802 | DU18: 484.447185 | DV18: 485.6537875 | DW18: 486.8633954 | DX18: 488.076016 | DY18: 489.2916568 | DZ18: 490.5103254 | EA18: 491.7320293 | EB18: 492.9567761 | EC18: 494.1845734 | ED18: 495.4154287 | EE18: 496.6493496 | EF18: 497.8863439 | EG18: 499.1264191 | EH18: 500.369583 | EI18: 501.6158431 | EJ18: 502.8652073 | EK18: 504.1176833 | EL18: 505.3732788 | EM18: 506.6320016 | EN18: 507.8938594 | EO18: 509.1588601 | EP18: 510.4270116 | EQ18: 511.6983216 | ER18: 512.972798 | ES18: 514.2504487 | ET18: 515.5312817 | EU18: 516.8153048 | EV18: 518.102526 | EW18: 519.3929532 | EX18: 520.6865945 | EY18: 521.9834578 | EZ18: 523.2835512 | FA18: 524.5868828 | FB18: 525.8934605 | FC18: 527.2032924 | FD18: 528.5163868 | FE18: 529.8327516 | FF18: 531.1523951 | FG18: 532.4753253 | FH18: 533.8015506 | FI18: 535.1310791 | FJ18: 536.463919 | FK18: 537.8000786 | FL18: 539.1395661
AO19: Mkt Rent | AQ19: =AQ18+1 -> 5 | AR19: =INDEX(AssetDB!$G$40:$AR$40,MATCH(DevCosts!$AQ19,AssetDB!$G$1:$AR$1,0)) -> 400 | AV19: 400 | AW19: 400.9962717 | AX19: 401.9950248 | AY19: 402.9962655 | AZ19: 404 | BA19: 405.0062344 | BB19: 406.0149751 | BC19: 407.0262282 | BD19: 408.04 | BE19: 409.0562968 | BF19: 410.0751248 | BG19: 411.0964905 | BH19: 412.1204 | BI19: 413.1468598 | BJ19: 414.1758761 | BK19: 415.2074554 | BL19: 416.241604 | BM19: 417.2783284 | BN19: 418.3176349 | BO19: 419.3595299 | BP19: 420.40402 | BQ19: 421.4511116 | BR19: 422.5008112 | BS19: 423.5531252 | BT19: 424.6080602 | BU19: 425.6656228 | BV19: 426.7258193 | BW19: 427.7886565 | BX19: 428.8541408 | BY19: 429.922279 | BZ19: 430.9930775 | CA19: 432.0665431 | CB19: 433.1426823 | CC19: 434.2215018 | CD19: 435.3030083 | CE19: 436.3872085 | CF19: 437.4741091 | CG19: 438.5637168 | CH19: 439.6560384 | CI19: 440.7510806 | CJ19: 441.8488502 | CK19: 442.949354 | CL19: 444.0525987 | CM19: 445.1585914 | CN19: 446.2673387 | CO19: 447.3788475 | CP19: 448.4931247 | CQ19: 449.6101773 | CR19: 450.7300121 | CS19: 451.852636 | CT19: 452.978056 | CU19: 454.1062791 | CV19: 455.2373122 | CW19: 456.3711623 | CX19: 457.5078365 | CY19: 458.6473418 | CZ19: 459.7896853 | DA19: 460.934874 | DB19: 462.0829149 | DC19: 463.2338153 | DD19: 464.3875821 | DE19: 465.5442227 | DF19: 466.7037441 | DG19: 467.8661534 | DH19: 469.031458 | DI19: 470.1996649 | DJ19: 471.3707815 | DK19: 472.544815 | DL19: 473.7217725 | DM19: 474.9016616 | DN19: 476.0844893 | DO19: 477.2702631 | DP19: 478.4589903 | DQ19: 479.6506782 | DR19: 480.8453342 | DS19: 482.0429657 | DT19: 483.2435802 | DU19: 484.447185 | DV19: 485.6537875 | DW19: 486.8633954 | DX19: 488.076016 | DY19: 489.2916568 | DZ19: 490.5103254 | EA19: 491.7320293 | EB19: 492.9567761 | EC19: 494.1845734 | ED19: 495.4154287 | EE19: 496.6493496 | EF19: 497.8863439 | EG19: 499.1264191 | EH19: 500.369583 | EI19: 501.6158431 | EJ19: 502.8652073 | EK19: 504.1176833 | EL19: 505.3732788 | EM19: 506.6320016 | EN19: 507.8938594 | EO19: 509.1588601 | EP19: 510.4270116 | EQ19: 511.6983216 | ER19: 512.972798 | ES19: 514.2504487 | ET19: 515.5312817 | EU19: 516.8153048 | EV19: 518.102526 | EW19: 519.3929532 | EX19: 520.6865945 | EY19: 521.9834578 | EZ19: 523.2835512 | FA19: 524.5868828 | FB19: 525.8934605 | FC19: 527.2032924 | FD19: 528.5163868 | FE19: 529.8327516 | FF19: 531.1523951 | FG19: 532.4753253 | FH19: 533.8015506 | FI19: 535.1310791 | FJ19: 536.463919 | FK19: 537.8000786 | FL19: 539.1395661
AO20: Mkt Rent | AQ20: =AQ19+1 -> 6 | AR20: =INDEX(AssetDB!$G$40:$AR$40,MATCH(DevCosts!$AQ20,AssetDB!$G$1:$AR$1,0)) -> 400 | AV20: 400 | AW20: 400.9962717 | AX20: 401.9950248 | AY20: 402.9962655 | AZ20: 404 | BA20: 405.0062344 | BB20: 406.0149751 | BC20: 407.0262282 | BD20: 408.04 | BE20: 409.0562968 | BF20: 410.0751248 | BG20: 411.0964905 | BH20: 412.1204 | BI20: 413.1468598 | BJ20: 414.1758761 | BK20: 415.2074554 | BL20: 416.241604 | BM20: 417.2783284 | BN20: 418.3176349 | BO20: 419.3595299 | BP20: 420.40402 | BQ20: 421.4511116 | BR20: 422.5008112 | BS20: 423.5531252 | BT20: 424.6080602 | BU20: 425.6656228 | BV20: 426.7258193 | BW20: 427.7886565 | BX20: 428.8541408 | BY20: 429.922279 | BZ20: 430.9930775 | CA20: 432.0665431 | CB20: 433.1426823 | CC20: 434.2215018 | CD20: 435.3030083 | CE20: 436.3872085 | CF20: 437.4741091 | CG20: 438.5637168 | CH20: 439.6560384 | CI20: 440.7510806 | CJ20: 441.8488502 | CK20: 442.949354 | CL20: 444.0525987 | CM20: 445.1585914 | CN20: 446.2673387 | CO20: 447.3788475 | CP20: 448.4931247 | CQ20: 449.6101773 | CR20: 450.7300121 | CS20: 451.852636 | CT20: 452.978056 | CU20: 454.1062791 | CV20: 455.2373122 | CW20: 456.3711623 | CX20: 457.5078365 | CY20: 458.6473418 | CZ20: 459.7896853 | DA20: 460.934874 | DB20: 462.0829149 | DC20: 463.2338153 | DD20: 464.3875821 | DE20: 465.5442227 | DF20: 466.7037441 | DG20: 467.8661534 | DH20: 469.031458 | DI20: 470.1996649 | DJ20: 471.3707815 | DK20: 472.544815 | DL20: 473.7217725 | DM20: 474.9016616 | DN20: 476.0844893 | DO20: 477.2702631 | DP20: 478.4589903 | DQ20: 479.6506782 | DR20: 480.8453342 | DS20: 482.0429657 | DT20: 483.2435802 | DU20: 484.447185 | DV20: 485.6537875 | DW20: 486.8633954 | DX20: 488.076016 | DY20: 489.2916568 | DZ20: 490.5103254 | EA20: 491.7320293 | EB20: 492.9567761 | EC20: 494.1845734 | ED20: 495.4154287 | EE20: 496.6493496 | EF20: 497.8863439 | EG20: 499.1264191 | EH20: 500.369583 | EI20: 501.6158431 | EJ20: 502.8652073 | EK20: 504.1176833 | EL20: 505.3732788 | EM20: 506.6320016 | EN20: 507.8938594 | EO20: 509.1588601 | EP20: 510.4270116 | EQ20: 511.6983216 | ER20: 512.972798 | ES20: 514.2504487 | ET20: 515.5312817 | EU20: 516.8153048 | EV20: 518.102526 | EW20: 519.3929532 | EX20: 520.6865945 | EY20: 521.9834578 | EZ20: 523.2835512 | FA20: 524.5868828 | FB20: 525.8934605 | FC20: 527.2032924 | FD20: 528.5163868 | FE20: 529.8327516 | FF20: 531.1523951 | FG20: 532.4753253 | FH20: 533.8015506 | FI20: 535.1310791 | FJ20: 536.463919 | FK20: 537.8000786 | FL20: 539.1395661
AO21: Optimal start works dates | AR21: Exercise | AS21: Start works date
AQ22: Phase | AR22: Threshold | AS22: Earliest | AT22: Optimal | AU22: Actual
AO23: Exercise Decision | AQ23: =AQ15 -> 1 | AR23: =PhaseCombinationModule!J9 -> 436.2383142 | AS23: =INDEX(AssetDB!$G$79:$AR$79,MATCH($AQ23,AssetDB!$G$1:$AR$1,0)) -> 6 | AT23: =IFERROR(INDEX($AV$9:$FL$9,MATCH(1,$AV23:$FL23,0)),10000) -> 35 | AU23: =CHOOSE(WhenToStart,AS23,AT23) -> 35 | AV23: 0 | AW23: =IF(AV23=1,1,(AW15>=$AR23)*(AW$9>=$AS23)*($AR23>0)) -> 0 | AX23: 0 | AY23: 0 | AZ23: 0 | BA23: 0 | BB23: 0 | BC23: 0 | BD23: 0 | BE23: 0 | BF23: 0 | BG23: 0 | BH23: 0 | BI23: 0 | BJ23: 0 | BK23: 0 | BL23: 0 | BM23: 0 | BN23: 0 | BO23: 0 | BP23: 0 | BQ23: 0 | BR23: 0 | BS23: 0 | BT23: 0 | BU23: 0 | BV23: 0 | BW23: 0 | BX23: 0 | BY23: 0 | BZ23: 0 | CA23: 0 | CB23: 0 | CC23: =IF(CB23=1,1,(CC15>=$AR23)*(CC$9>=$AS23)*($AR23>0)) -> 0 | CD23: 0 | CE23: 1 | CF23: 1 | CG23: 1 | CH23: 1 | CI23: 1 | CJ23: 1 | CK23: 1 | CL23: 1 | CM23: 1 | CN23: 1 | CO23: 1 | CP23: 1 | CQ23: 1 | CR23: 1 | CS23: 1 | CT23: 1 | CU23: 1 | CV23: 1 | CW23: 1 | CX23: 1 | CY23: 1 | CZ23: 1 | DA23: 1 | DB23: 1 | DC23: 1 | DD23: 1 | DE23: 1 | DF23: 1 | DG23: 1 | DH23: 1 | DI23: =IF(DH23=1,1,(DI15>=$AR23)*(DI$9>=$AS23)*($AR23>0)) -> 1 | DJ23: 1 | DK23: 1 | DL23: 1 | DM23: 1 | DN23: 1 | DO23: 1 | DP23: 1 | DQ23: 1 | DR23: 1 | DS23: 1 | DT23: 1 | DU23: 1 | DV23: 1 | DW23: 1 | DX23: 1 | DY23: 1 | DZ23: 1 | EA23: 1 | EB23: 1 | EC23: 1 | ED23: 1 | EE23: 1 | EF23: 1 | EG23: 1 | EH23: 1 | EI23: 1 | EJ23: 1 | EK23: 1 | EL23: 1 | EM23: 1 | EN23: 1 | EO23: =IF(EN23=1,1,(EO15>=$AR23)*(EO$9>=$AS23)*($AR23>0)) -> 1 | EP23: 1 | EQ23: 1 | ER23: 1 | ES23: 1 | ET23: 1 | EU23: 1 | EV23: 1 | EW23: 1 | EX23: 1 | EY23: 1 | EZ23: 1 | FA23: 1 | FB23: 1 | FC23: 1 | FD23: 1 | FE23: 1 | FF23: 1 | FG23: 1 | FH23: 1 | FI23: 1 | FJ23: 1 | FK23: 1 | FL23: 1
AO24: Exercise Decision | AQ24: 2 | AR24: =PhaseCombinationModule!J10 -> 503.8316635 | AS24: =INDEX(AssetDB!$G$79:$AR$79,MATCH($AQ24,AssetDB!$G$1:$AR$1,0)) -> 44 | AT24: 93 | AU24: 93 | AV24: 0 | AW24: =IF(AV24=1,1,(AW16>=$AR24)*(AW$9>=$AS24)*($AR24>0)) -> 0 | AX24: 0 | AY24: 0 | AZ24: 0 | BA24: 0 | BB24: 0 | BC24: 0 | BD24: 0 | BE24: 0 | BF24: 0 | BG24: 0 | BH24: 0 | BI24: 0 | BJ24: 0 | BK24: 0 | BL24: 0 | BM24: 0 | BN24: 0 | BO24: 0 | BP24: 0 | BQ24: 0 | BR24: 0 | BS24: 0 | BT24: 0 | BU24: 0 | BV24: 0 | BW24: 0 | BX24: 0 | BY24: 0 | BZ24: 0 | CA24: 0 | CB24: 0 | CC24: =IF(CB24=1,1,(CC16>=$AR24)*(CC$9>=$AS24)*($AR24>0)) -> 0 | CD24: 0 | CE24: 0 | CF24: 0 | CG24: 0 | CH24: 0 | CI24: 0 | CJ24: 0 | CK24: 0 | CL24: 0 | CM24: 0 | CN24: 0 | CO24: 0 | CP24: 0 | CQ24: 0 | CR24: 0 | CS24: 0 | CT24: 0 | CU24: 0 | CV24: 0 | CW24: 0 | CX24: 0 | CY24: 0 | CZ24: 0 | DA24: 0 | DB24: 0 | DC24: 0 | DD24: 0 | DE24: 0 | DF24: 0 | DG24: 0 | DH24: 0 | DI24: =IF(DH24=1,1,(DI16>=$AR24)*(DI$9>=$AS24)*($AR24>0)) -> 0 | DJ24: 0 | DK24: 0 | DL24: 0 | DM24: 0 | DN24: 0 | DO24: 0 | DP24: 0 | DQ24: 0 | DR24: 0 | DS24: 0 | DT24: 0 | DU24: 0 | DV24: 0 | DW24: 0 | DX24: 0 | DY24: 0 | DZ24: 0 | EA24: 0 | EB24: 0 | EC24: 0 | ED24: 0 | EE24: 0 | EF24: 0 | EG24: 0 | EH24: 0 | EI24: 0 | EJ24: 0 | EK24: 1 | EL24: 1 | EM24: 1 | EN24: 1 | EO24: =IF(EN24=1,1,(EO16>=$AR24)*(EO$9>=$AS24)*($AR24>0)) -> 1 | EP24: 1 | EQ24: 1 | ER24: 1 | ES24: 1 | ET24: 1 | EU24: 1 | EV24: 1 | EW24: 1 | EX24: 1 | EY24: 1 | EZ24: 1 | FA24: 1 | FB24: 1 | FC24: 1 | FD24: 1 | FE24: 1 | FF24: 1 | FG24: 1 | FH24: 1 | FI24: 1 | FJ24: 1 | FK24: 1 | FL24: 1
AO25: Exercise Decision | AQ25: 3 | AR25: =PhaseCombinationModule!J11 -> 503.8316635 | AS25: =INDEX(AssetDB!$G$79:$AR$79,MATCH($AQ25,AssetDB!$G$1:$AR$1,0)) -> 93 | AT25: 93 | AU25: 93 | AV25: 0 | AW25: =IF(AV25=1,1,(AW17>=$AR25)*(AW$9>=$AS25)*($AR25>0)) -> 0 | AX25: 0 | AY25: 0 | AZ25: 0 | BA25: 0 | BB25: 0 | BC25: 0 | BD25: 0 | BE25: 0 | BF25: 0 | BG25: 0 | BH25: 0 | BI25: 0 | BJ25: 0 | BK25: 0 | BL25: 0 | BM25: 0 | BN25: 0 | BO25: 0 | BP25: 0 | BQ25: 0 | BR25: 0 | BS25: 0 | BT25: 0 | BU25: 0 | BV25: 0 | BW25: 0 | BX25: 0 | BY25: 0 | BZ25: 0 | CA25: 0 | CB25: 0 | CC25: =IF(CB25=1,1,(CC17>=$AR25)*(CC$9>=$AS25)*($AR25>0)) -> 0 | CD25: 0 | CE25: 0 | CF25: 0 | CG25: 0 | CH25: 0 | CI25: 0 | CJ25: 0 | CK25: 0 | CL25: 0 | CM25: 0 | CN25: 0 | CO25: 0 | CP25: 0 | CQ25: 0 | CR25: 0 | CS25: 0 | CT25: 0 | CU25: 0 | CV25: 0 | CW25: 0 | CX25: 0 | CY25: 0 | CZ25: 0 | DA25: 0 | DB25: 0 | DC25: 0 | DD25: 0 | DE25: 0 | DF25: 0 | DG25: 0 | DH25: 0 | DI25: =IF(DH25=1,1,(DI17>=$AR25)*(DI$9>=$AS25)*($AR25>0)) -> 0 | DJ25: 0 | DK25: 0 | DL25: 0 | DM25: 0 | DN25: 0 | DO25: 0 | DP25: 0 | DQ25: 0 | DR25: 0 | DS25: 0 | DT25: 0 | DU25: 0 | DV25: 0 | DW25: 0 | DX25: 0 | DY25: 0 | DZ25: 0 | EA25: 0 | EB25: 0 | EC25: 0 | ED25: 0 | EE25: 0 | EF25: 0 | EG25: 0 | EH25: 0 | EI25: 0 | EJ25: 0 | EK25: 1 | EL25: 1 | EM25: 1 | EN25: 1 | EO25: =IF(EN25=1,1,(EO17>=$AR25)*(EO$9>=$AS25)*($AR25>0)) -> 1 | EP25: 1 | EQ25: 1 | ER25: 1 | ES25: 1 | ET25: 1 | EU25: 1 | EV25: 1 | EW25: 1 | EX25: 1 | EY25: 1 | EZ25: 1 | FA25: 1 | FB25: 1 | FC25: 1 | FD25: 1 | FE25: 1 | FF25: 1 | FG25: 1 | FH25: 1 | FI25: 1 | FJ25: 1 | FK25: 1 | FL25: 1
AO26: Exercise Decision | AQ26: 4 | AR26: =PhaseCombinationModule!J12 -> 524.6120616 | AS26: =INDEX(AssetDB!$G$79:$AR$79,MATCH($AQ26,AssetDB!$G$1:$AR$1,0)) -> 100 | AT26: 110 | AU26: 110 | AV26: 0 | AW26: =IF(AV26=1,1,(AW18>=$AR26)*(AW$9>=$AS26)*($AR26>0)) -> 0 | AX26: 0 | AY26: 0 | AZ26: 0 | BA26: 0 | BB26: 0 | BC26: 0 | BD26: 0 | BE26: 0 | BF26: 0 | BG26: 0 | BH26: 0 | BI26: 0 | BJ26: 0 | BK26: 0 | BL26: 0 | BM26: 0 | BN26: 0 | BO26: 0 | BP26: 0 | BQ26: 0 | BR26: 0 | BS26: 0 | BT26: 0 | BU26: 0 | BV26: 0 | BW26: 0 | BX26: 0 | BY26: 0 | BZ26: 0 | CA26: 0 | CB26: 0 | CC26: =IF(CB26=1,1,(CC18>=$AR26)*(CC$9>=$AS26)*($AR26>0)) -> 0 | CD26: 0 | CE26: 0 | CF26: 0 | CG26: 0 | CH26: 0 | CI26: 0 | CJ26: 0 | CK26: 0 | CL26: 0 | CM26: 0 | CN26: 0 | CO26: 0 | CP26: 0 | CQ26: 0 | CR26: 0 | CS26: 0 | CT26: 0 | CU26: 0 | CV26: 0 | CW26: 0 | CX26: 0 | CY26: 0 | CZ26: 0 | DA26: 0 | DB26: 0 | DC26: 0 | DD26: 0 | DE26: 0 | DF26: 0 | DG26: 0 | DH26: 0 | DI26: =IF(DH26=1,1,(DI18>=$AR26)*(DI$9>=$AS26)*($AR26>0)) -> 0 | DJ26: 0 | DK26: 0 | DL26: 0 | DM26: 0 | DN26: 0 | DO26: 0 | DP26: 0 | DQ26: 0 | DR26: 0 | DS26: 0 | DT26: 0 | DU26: 0 | DV26: 0 | DW26: 0 | DX26: 0 | DY26: 0 | DZ26: 0 | EA26: 0 | EB26: 0 | EC26: 0 | ED26: 0 | EE26: 0 | EF26: 0 | EG26: 0 | EH26: 0 | EI26: 0 | EJ26: 0 | EK26: 0 | EL26: 0 | EM26: 0 | EN26: 0 | EO26: =IF(EN26=1,1,(EO18>=$AR26)*(EO$9>=$AS26)*($AR26>0)) -> 0 | EP26: 0 | EQ26: 0 | ER26: 0 | ES26: 0 | ET26: 0 | EU26: 0 | EV26: 0 | EW26: 0 | EX26: 0 | EY26: 0 | EZ26: 0 | FA26: 0 | FB26: 1 | FC26: 1 | FD26: 1 | FE26: 1 | FF26: 1 | FG26: 1 | FH26: 1 | FI26: 1 | FJ26: 1 | FK26: 1 | FL26: 1
AO27: Exercise Decision | AQ27: 5 | AR27: =PhaseCombinationModule!J13 -> 590.1885693 | AS27: =INDEX(AssetDB!$G$79:$AR$79,MATCH($AQ27,AssetDB!$G$1:$AR$1,0)) -> 116 | AT27: 10000 | AU27: 10000 | AV27: 0 | AW27: =IF(AV27=1,1,(AW19>=$AR27)*(AW$9>=$AS27)*($AR27>0)) -> 0 | AX27: 0 | AY27: 0 | AZ27: 0 | BA27: 0 | BB27: 0 | BC27: 0 | BD27: 0 | BE27: 0 | BF27: 0 | BG27: 0 | BH27: 0 | BI27: 0 | BJ27: 0 | BK27: 0 | BL27: 0 | BM27: 0 | BN27: 0 | BO27: 0 | BP27: 0 | BQ27: 0 | BR27: 0 | BS27: 0 | BT27: 0 | BU27: 0 | BV27: 0 | BW27: 0 | BX27: 0 | BY27: 0 | BZ27: 0 | CA27: 0 | CB27: 0 | CC27: =IF(CB27=1,1,(CC19>=$AR27)*(CC$9>=$AS27)*($AR27>0)) -> 0 | CD27: 0 | CE27: 0 | CF27: 0 | CG27: 0 | CH27: 0 | CI27: 0 | CJ27: 0 | CK27: 0 | CL27: 0 | CM27: 0 | CN27: 0 | CO27: 0 | CP27: 0 | CQ27: 0 | CR27: 0 | CS27: 0 | CT27: 0 | CU27: 0 | CV27: 0 | CW27: 0 | CX27: 0 | CY27: 0 | CZ27: 0 | DA27: 0 | DB27: 0 | DC27: 0 | DD27: 0 | DE27: 0 | DF27: 0 | DG27: 0 | DH27: 0 | DI27: =IF(DH27=1,1,(DI19>=$AR27)*(DI$9>=$AS27)*($AR27>0)) -> 0 | DJ27: 0 | DK27: 0 | DL27: 0 | DM27: 0 | DN27: 0 | DO27: 0 | DP27: 0 | DQ27: 0 | DR27: 0 | DS27: 0 | DT27: 0 | DU27: 0 | DV27: 0 | DW27: 0 | DX27: 0 | DY27: 0 | DZ27: 0 | EA27: 0 | EB27: 0 | EC27: 0 | ED27: 0 | EE27: 0 | EF27: 0 | EG27: 0 | EH27: 0 | EI27: 0 | EJ27: 0 | EK27: 0 | EL27: 0 | EM27: 0 | EN27: 0 | EO27: =IF(EN27=1,1,(EO19>=$AR27)*(EO$9>=$AS27)*($AR27>0)) -> 0 | EP27: 0 | EQ27: 0 | ER27: 0 | ES27: 0 | ET27: 0 | EU27: 0 | EV27: 0 | EW27: 0 | EX27: 0 | EY27: 0 | EZ27: 0 | FA27: 0 | FB27: 0 | FC27: 0 | FD27: 0 | FE27: 0 | FF27: 0 | FG27: 0 | FH27: 0 | FI27: 0 | FJ27: 0 | FK27: 0 | FL27: 0
AO28: Exercise Decision | AQ28: 6 | AR28: =PhaseCombinationModule!J14 -> 655.765077 | AS28: =INDEX(AssetDB!$G$79:$AR$79,MATCH($AQ28,AssetDB!$G$1:$AR$1,0)) -> 10006 | AT28: 10000 | AU28: 10000 | AV28: 0 | AW28: =IF(AV28=1,1,(AW20>=$AR28)*(AW$9>=$AS28)*($AR28>0)) -> 0 | AX28: 0 | AY28: 0 | AZ28: 0 | BA28: 0 | BB28: 0 | BC28: 0 | BD28: 0 | BE28: 0 | BF28: 0 | BG28: 0 | BH28: 0 | BI28: 0 | BJ28: 0 | BK28: 0 | BL28: 0 | BM28: 0 | BN28: 0 | BO28: 0 | BP28: 0 | BQ28: 0 | BR28: 0 | BS28: 0 | BT28: 0 | BU28: 0 | BV28: 0 | BW28: 0 | BX28: 0 | BY28: 0 | BZ28: 0 | CA28: 0 | CB28: 0 | CC28: =IF(CB28=1,1,(CC20>=$AR28)*(CC$9>=$AS28)*($AR28>0)) -> 0 | CD28: 0 | CE28: 0 | CF28: 0 | CG28: 0 | CH28: 0 | CI28: 0 | CJ28: 0 | CK28: 0 | CL28: 0 | CM28: 0 | CN28: 0 | CO28: 0 | CP28: 0 | CQ28: 0 | CR28: 0 | CS28: 0 | CT28: 0 | CU28: 0 | CV28: 0 | CW28: 0 | CX28: 0 | CY28: 0 | CZ28: 0 | DA28: 0 | DB28: 0 | DC28: 0 | DD28: 0 | DE28: 0 | DF28: 0 | DG28: 0 | DH28: 0 | DI28: =IF(DH28=1,1,(DI20>=$AR28)*(DI$9>=$AS28)*($AR28>0)) -> 0 | DJ28: 0 | DK28: 0 | DL28: 0 | DM28: 0 | DN28: 0 | DO28: 0 | DP28: 0 | DQ28: 0 | DR28: 0 | DS28: 0 | DT28: 0 | DU28: 0 | DV28: 0 | DW28: 0 | DX28: 0 | DY28: 0 | DZ28: 0 | EA28: 0 | EB28: 0 | EC28: 0 | ED28: 0 | EE28: 0 | EF28: 0 | EG28: 0 | EH28: 0 | EI28: 0 | EJ28: 0 | EK28: 0 | EL28: 0 | EM28: 0 | EN28: 0 | EO28: =IF(EN28=1,1,(EO20>=$AR28)*(EO$9>=$AS28)*($AR28>0)) -> 0 | EP28: 0 | EQ28: 0 | ER28: 0 | ES28: 0 | ET28: 0 | EU28: 0 | EV28: 0 | EW28: 0 | EX28: 0 | EY28: 0 | EZ28: 0 | FA28: 0 | FB28: 0 | FC28: 0 | FD28: 0 | FE28: 0 | FF28: 0 | FG28: 0 | FH28: 0 | FI28: 0 | FJ28: 0 | FK28: 0 | FL28: 0
AR30: Parameter | AS30: from Qtr. | AT30: to Qtr.
A31: 0 | B31: Selected Phase | AO31: =B31 -> Selected Phase | AR31: Choose
B33: Construction Cost | G33: =SUMIF($AV$8:$FL$8,G$8,$AV33:$FL33) -> 0 | H33: 0 | I33: 0 | J33: 0 | K33: 0 | L33: 0 | M33: 0 | N33: 0 | O33: 0 | P33: -7008.785262 | Q33: =SUMIF($AV$8:$FL$8,Q$8,$AV33:$FL33) -> -19361.18168 | R33: -14339.12324 | S33: 0 | T33: 0 | U33: 0 | V33: 0 | W33: 0 | X33: 0 | Y33: 0 | Z33: 0 | AA33: =SUMIF($AV$8:$FL$8,AA$8,$AV33:$FL33) -> 0 | AB33: 0 | AC33: 0 | AD33: 0 | AE33: 0 | AF33: 0 | AG33: 0 | AH33: 0 | AI33: 0 | AJ33: 0 | AK33: 0 | AM33: =SUM(G33:AK33) -> -40709.09018 | AO33: =B33 -> Construction Cost | AR33: =INDEX(AssetDB!$G$47:$AR$47,MATCH(DevCosts!$AR$31,AssetDB!$G$1:$AR$1,0)) -> 25000 | AV33: =-$AR33*AV34*AV$12 -> 0 | AW33: 0 | AX33: 0 | AY33: 0 | AZ33: 0 | BA33: 0 | BB33: 0 | BC33: 0 | BD33: 0 | BE33: 0 | BF33: 0 | BG33: 0 | BH33: 0 | BI33: 0 | BJ33: 0 | BK33: 0 | BL33: 0 | BM33: 0 | BN33: 0 | BO33: 0 | BP33: 0 | BQ33: 0 | BR33: 0 | BS33: 0 | BT33: 0 | BU33: 0 | BV33: 0 | BW33: 0 | BX33: 0 | BY33: 0 | BZ33: 0 | CA33: 0 | CB33: =-$AR33*CB34*CB$12 -> 0 | CC33: 0 | CD33: 0 | CE33: -2316.953806 | CF33: -4691.831456 | CG33: -4750.479349 | CH33: -4809.860341 | CI33: -4869.983596 | CJ33: -4930.85839 | CK33: -4992.49412 | CL33: -5054.900297 | CM33: -2132.536063 | CN33: -2159.192764 | CO33: 0 | CP33: 0 | CQ33: 0 | CR33: 0 | CS33: 0 | CT33: 0 | CU33: 0 | CV33: 0 | CW33: 0 | CX33: 0 | CY33: 0 | CZ33: 0 | DA33: 0 | DB33: 0 | DC33: 0 | DD33: 0 | DE33: 0 | DF33: 0 | DG33: 0 | DH33: 0 | DI33: 0 | DJ33: 0 | DK33: 0 | DL33: 0 | DM33: 0 | DN33: 0 | DO33: 0 | DP33: 0 | DQ33: 0 | DR33: 0 | DS33: 0 | DT33: 0 | DU33: 0 | DV33: 0 | DW33: 0 | DX33: 0 | DY33: 0 | DZ33: 0 | EA33: 0 | EB33: 0 | EC33: 0 | ED33: 0 | EE33: 0 | EF33: 0 | EG33: 0 | EH33: 0 | EI33: 0 | EJ33: 0 | EK33: 0 | EL33: 0 | EM33: 0 | EN33: 0 | EO33: 0 | EP33: 0 | EQ33: 0 | ER33: 0 | ES33: 0 | ET33: 0 | EU33: 0 | EV33: 0 | EW33: 0 | EX33: 0 | EY33: 0 | EZ33: 0 | FA33: 0 | FB33: 0 | FC33: 0 | FD33: 0 | FE33: 0 | FF33: 0 | FG33: 0 | FH33: 0 | FI33: 0 | FJ33: 0 | FK33: 0 | FL33: 0
B34: Payment Schedule | G34: 0 | H34: 0 | I34: 0 | J34: 0 | K34: 0 | L34: 0 | M34: 0 | N34: 0 | O34: 0 | P34: 0.18 | Q34: 0.48 | R34: 0.34 | S34: 0 | T34: 0 | U34: 0 | V34: 0 | W34: 0 | X34: 0 | Y34: 0 | Z34: 0 | AA34: 0 | AB34: 0 | AC34: 0 | AD34: 0 | AE34: 0 | AF34: 0 | AG34: 0 | AH34: 0 | AI34: 0 | AJ34: 0 | AK34: 0 | AM34: 1 | AO34: Payment Schedule | AV34: =SUMPRODUCT(--(TimingDB!$Q$31:$Q$46=AV$9),TimingDB!$R$31:$R$46) -> 0 | AW34: =SUMPRODUCT(--(TimingDB!$Q$31:$Q$46=AW$9),TimingDB!$R$31:$R$46) -> 0 | AX34: =SUMPRODUCT(--(TimingDB!$Q$31:$Q$46=AX$9),TimingDB!$R$31:$R$46) -> 0 | AY34: =SUMPRODUCT(--(TimingDB!$Q$31:$Q$46=AY$9),TimingDB!$R$31:$R$46) -> 0 | AZ34: =SUMPRODUCT(--(TimingDB!$Q$31:$Q$46=AZ$9),TimingDB!$R$31:$R$46) -> 0 | BA34: =SUMPRODUCT(--(TimingDB!$Q$31:$Q$46=BA$9),TimingDB!$R$31:$R$46) -> 0 | BB34: =SUMPRODUCT(--(TimingDB!$Q$31:$Q$46=BB$9),TimingDB!$R$31:$R$46) -> 0 | BC34: =SUMPRODUCT(--(TimingDB!$Q$31:$Q$46=BC$9),TimingDB!$R$31:$R$46) -> 0 | BD34: =SUMPRODUCT(--(TimingDB!$Q$31:$Q$46=BD$9),TimingDB!$R$31:$R$46) -> 0 | BE34: =SUMPRODUCT(--(TimingDB!$Q$31:$Q$46=BE$9),TimingDB!$R$31:$R$46) -> 0 | BF34: =SUMPRODUCT(--(TimingDB!$Q$31:$Q$46=BF$9),TimingDB!$R$31:$R$46) -> 0 | BG34: =SUMPRODUCT(--(TimingDB!$Q$31:$Q$46=BG$9),TimingDB!$R$31:$R$46) -> 0 | BH34: =SUMPRODUCT(--(TimingDB!$Q$31:$Q$46=BH$9),TimingDB!$R$31:$R$46) -> 0 | BI34: =SUMPRODUCT(--(TimingDB!$Q$31:$Q$46=BI$9),TimingDB!$R$31:$R$46) -> 0 | BJ34: =SUMPRODUCT(--(TimingDB!$Q$31:$Q$46=BJ$9),TimingDB!$R$31:$R$46) -> 0 | BK34: =SUMPRODUCT(--(TimingDB!$Q$31:$Q$46=BK$9),TimingDB!$R$31:$R$46) -> 0 | BL34: =SUMPRODUCT(--(TimingDB!$Q$31:$Q$46=BL$9),TimingDB!$R$31:$R$46) -> 0 | BM34: =SUMPRODUCT(--(TimingDB!$Q$31:$Q$46=BM$9),TimingDB!$R$31:$R$46) -> 0 | BN34: =SUMPRODUCT(--(TimingDB!$Q$31:$Q$46=BN$9),TimingDB!$R$31:$R$46) -> 0 | BO34: =SUMPRODUCT(--(TimingDB!$Q$31:$Q$46=BO$9),TimingDB!$R$31:$R$46) -> 0 | BP34: =SUMPRODUCT(--(TimingDB!$Q$31:$Q$46=BP$9),TimingDB!$R$31:$R$46) -> 0 | BQ34: =SUMPRODUCT(--(TimingDB!$Q$31:$Q$46=BQ$9),TimingDB!$R$31:$R$46) -> 0 | BR34: =SUMPRODUCT(--(TimingDB!$Q$31:$Q$46=BR$9),TimingDB!$R$31:$R$46) -> 0 | BS34: =SUMPRODUCT(--(TimingDB!$Q$31:$Q$46=BS$9),TimingDB!$R$31:$R$46) -> 0 | BT34: =SUMPRODUCT(--(TimingDB!$Q$31:$Q$46=BT$9),TimingDB!$R$31:$R$46) -> 0 | BU34: =SUMPRODUCT(--(TimingDB!$Q$31:$Q$46=BU$9),TimingDB!$R$31:$R$46) -> 0 | BV34: =SUMPRODUCT(--(TimingDB!$Q$31:$Q$46=BV$9),TimingDB!$R$31:$R$46) -> 0 | BW34: =SUMPRODUCT(--(TimingDB!$Q$31:$Q$46=BW$9),TimingDB!$R$31:$R$46) -> 0 | BX34: =SUMPRODUCT(--(TimingDB!$Q$31:$Q$46=BX$9),TimingDB!$R$31:$R$46) -> 0 | BY34: =SUMPRODUCT(--(TimingDB!$Q$31:$Q$46=BY$9),TimingDB!$R$31:$R$46) -> 0 | BZ34: =SUMPRODUCT(--(TimingDB!$Q$31:$Q$46=BZ$9),TimingDB!$R$31:$R$46) -> 0 | CA34: =SUMPRODUCT(--(TimingDB!$Q$31:$Q$46=CA$9),TimingDB!$R$31:$R$46) -> 0 | CB34: =SUMPRODUCT(--(TimingDB!$Q$31:$Q$46=CB$9),TimingDB!$R$31:$R$46) -> 0 | CC34: =SUMPRODUCT(--(TimingDB!$Q$31:$Q$46=CC$9),TimingDB!$R$31:$R$46) -> 0 | CD34: =SUMPRODUCT(--(TimingDB!$Q$31:$Q$46=CD$9),TimingDB!$R$31:$R$46) -> 0 | CE34: =SUMPRODUCT(--(TimingDB!$Q$31:$Q$46=CE$9),TimingDB!$R$31:$R$46) -> 0.06 | CF34: =SUMPRODUCT(--(TimingDB!$Q$31:$Q$46=CF$9),TimingDB!$R$31:$R$46) -> 0.12 | CG34: =SUMPRODUCT(--(TimingDB!$Q$31:$Q$46=CG$9),TimingDB!$R$31:$R$46) -> 0.12 | CH34: =SUMPRODUCT(--(TimingDB!$Q$31:$Q$46=CH$9),TimingDB!$R$31:$R$46) -> 0.12 | CI34: =SUMPRODUCT(--(TimingDB!$Q$31:$Q$46=CI$9),TimingDB!$R$31:$R$46) -> 0.12 | CJ34: =SUMPRODUCT(--(TimingDB!$Q$31:$Q$46=CJ$9),TimingDB!$R$31:$R$46) -> 0.12 | CK34: =SUMPRODUCT(--(TimingDB!$Q$31:$Q$46=CK$9),TimingDB!$R$31:$R$46) -> 0.12 | CL34: =SUMPRODUCT(--(TimingDB!$Q$31:$Q$46=CL$9),TimingDB!$R$31:$R$46) -> 0.12 | CM34: =SUMPRODUCT(--(TimingDB!$Q$31:$Q$46=CM$9),TimingDB!$R$31:$R$46) -> 0.05 | CN34: =SUMPRODUCT(--(TimingDB!$Q$31:$Q$46=CN$9),TimingDB!$R$31:$R$46) -> 0.05 | CO34: =SUMPRODUCT(--(TimingDB!$Q$31:$Q$46=CO$9),TimingDB!$R$31:$R$46) -> 0 | CP34: =SUMPRODUCT(--(TimingDB!$Q$31:$Q$46=CP$9),TimingDB!$R$31:$R$46) -> 0 | CQ34: =SUMPRODUCT(--(TimingDB!$Q$31:$Q$46=CQ$9),TimingDB!$R$31:$R$46) -> 0 | CR34: =SUMPRODUCT(--(TimingDB!$Q$31:$Q$46=CR$9),TimingDB!$R$31:$R$46) -> 0 | CS34: =SUMPRODUCT(--(TimingDB!$Q$31:$Q$46=CS$9),TimingDB!$R$31:$R$46) -> 0 | CT34: =SUMPRODUCT(--(TimingDB!$Q$31:$Q$46=CT$9),TimingDB!$R$31:$R$46) -> 0 | CU34: =SUMPRODUCT(--(TimingDB!$Q$31:$Q$46=CU$9),TimingDB!$R$31:$R$46) -> 0 | CV34: =SUMPRODUCT(--(TimingDB!$Q$31:$Q$46=CV$9),TimingDB!$R$31:$R$46) -> 0 | CW34: =SUMPRODUCT(--(TimingDB!$Q$31:$Q$46=CW$9),TimingDB!$R$31:$R$46) -> 0 | CX34: =SUMPRODUCT(--(TimingDB!$Q$31:$Q$46=CX$9),TimingDB!$R$31:$R$46) -> 0 | CY34: =SUMPRODUCT(--(TimingDB!$Q$31:$Q$46=CY$9),TimingDB!$R$31:$R$46) -> 0 | CZ34: =SUMPRODUCT(--(TimingDB!$Q$31:$Q$46=CZ$9),TimingDB!$R$31:$R$46) -> 0 | DA34: =SUMPRODUCT(--(TimingDB!$Q$31:$Q$46=DA$9),TimingDB!$R$31:$R$46) -> 0 | DB34: =SUMPRODUCT(--(TimingDB!$Q$31:$Q$46=DB$9),TimingDB!$R$31:$R$46) -> 0 | DC34: =SUMPRODUCT(--(TimingDB!$Q$31:$Q$46=DC$9),TimingDB!$R$31:$R$46) -> 0 | DD34: =SUMPRODUCT(--(TimingDB!$Q$31:$Q$46=DD$9),TimingDB!$R$31:$R$46) -> 0 | DE34: =SUMPRODUCT(--(TimingDB!$Q$31:$Q$46=DE$9),TimingDB!$R$31:$R$46) -> 0 | DF34: =SUMPRODUCT(--(TimingDB!$Q$31:$Q$46=DF$9),TimingDB!$R$31:$R$46) -> 0 | DG34: =SUMPRODUCT(--(TimingDB!$Q$31:$Q$46=DG$9),TimingDB!$R$31:$R$46) -> 0 | DH34: =SUMPRODUCT(--(TimingDB!$Q$31:$Q$46=DH$9),TimingDB!$R$31:$R$46) -> 0 | DI34: =SUMPRODUCT(--(TimingDB!$Q$31:$Q$46=DI$9),TimingDB!$R$31:$R$46) -> 0 | DJ34: =SUMPRODUCT(--(TimingDB!$Q$31:$Q$46=DJ$9),TimingDB!$R$31:$R$46) -> 0 | DK34: =SUMPRODUCT(--(TimingDB!$Q$31:$Q$46=DK$9),TimingDB!$R$31:$R$46) -> 0 | DL34: =SUMPRODUCT(--(TimingDB!$Q$31:$Q$46=DL$9),TimingDB!$R$31:$R$46) -> 0 | DM34: =SUMPRODUCT(--(TimingDB!$Q$31:$Q$46=DM$9),TimingDB!$R$31:$R$46) -> 0 | DN34: =SUMPRODUCT(--(TimingDB!$Q$31:$Q$46=DN$9),TimingDB!$R$31:$R$46) -> 0 | DO34: =SUMPRODUCT(--(TimingDB!$Q$31:$Q$46=DO$9),TimingDB!$R$31:$R$46) -> 0 | DP34: =SUMPRODUCT(--(TimingDB!$Q$31:$Q$46=DP$9),TimingDB!$R$31:$R$46) -> 0 | DQ34: =SUMPRODUCT(--(TimingDB!$Q$31:$Q$46=DQ$9),TimingDB!$R$31:$R$46) -> 0 | DR34: =SUMPRODUCT(--(TimingDB!$Q$31:$Q$46=DR$9),TimingDB!$R$31:$R$46) -> 0 | DS34: =SUMPRODUCT(--(TimingDB!$Q$31:$Q$46=DS$9),TimingDB!$R$31:$R$46) -> 0 | DT34: =SUMPRODUCT(--(TimingDB!$Q$31:$Q$46=DT$9),TimingDB!$R$31:$R$46) -> 0 | DU34: =SUMPRODUCT(--(TimingDB!$Q$31:$Q$46=DU$9),TimingDB!$R$31:$R$46) -> 0 | DV34: =SUMPRODUCT(--(TimingDB!$Q$31:$Q$46=DV$9),TimingDB!$R$31:$R$46) -> 0 | DW34: =SUMPRODUCT(--(TimingDB!$Q$31:$Q$46=DW$9),TimingDB!$R$31:$R$46) -> 0 | DX34: =SUMPRODUCT(--(TimingDB!$Q$31:$Q$46=DX$9),TimingDB!$R$31:$R$46) -> 0 | DY34: =SUMPRODUCT(--(TimingDB!$Q$31:$Q$46=DY$9),TimingDB!$R$31:$R$46) -> 0 | DZ34: =SUMPRODUCT(--(TimingDB!$Q$31:$Q$46=DZ$9),TimingDB!$R$31:$R$46) -> 0 | EA34: =SUMPRODUCT(--(TimingDB!$Q$31:$Q$46=EA$9),TimingDB!$R$31:$R$46) -> 0 | EB34: =SUMPRODUCT(--(TimingDB!$Q$31:$Q$46=EB$9),TimingDB!$R$31:$R$46) -> 0 | EC34: =SUMPRODUCT(--(TimingDB!$Q$31:$Q$46=EC$9),TimingDB!$R$31:$R$46) -> 0 | ED34: =SUMPRODUCT(--(TimingDB!$Q$31:$Q$46=ED$9),TimingDB!$R$31:$R$46) -> 0 | EE34: =SUMPRODUCT(--(TimingDB!$Q$31:$Q$46=EE$9),TimingDB!$R$31:$R$46) -> 0 | EF34: =SUMPRODUCT(--(TimingDB!$Q$31:$Q$46=EF$9),TimingDB!$R$31:$R$46) -> 0 | EG34: =SUMPRODUCT(--(TimingDB!$Q$31:$Q$46=EG$9),TimingDB!$R$31:$R$46) -> 0 | EH34: =SUMPRODUCT(--(TimingDB!$Q$31:$Q$46=EH$9),TimingDB!$R$31:$R$46) -> 0 | EI34: =SUMPRODUCT(--(TimingDB!$Q$31:$Q$46=EI$9),TimingDB!$R$31:$R$46) -> 0 | EJ34: =SUMPRODUCT(--(TimingDB!$Q$31:$Q$46=EJ$9),TimingDB!$R$31:$R$46) -> 0 | EK34: =SUMPRODUCT(--(TimingDB!$Q$31:$Q$46=EK$9),TimingDB!$R$31:$R$46) -> 0 | EL34: =SUMPRODUCT(--(TimingDB!$Q$31:$Q$46=EL$9),TimingDB!$R$31:$R$46) -> 0 | EM34: =SUMPRODUCT(--(TimingDB!$Q$31:$Q$46=EM$9),TimingDB!$R$31:$R$46) -> 0 | EN34: =SUMPRODUCT(--(TimingDB!$Q$31:$Q$46=EN$9),TimingDB!$R$31:$R$46) -> 0 | EO34: =SUMPRODUCT(--(TimingDB!$Q$31:$Q$46=EO$9),TimingDB!$R$31:$R$46) -> 0 | EP34: =SUMPRODUCT(--(TimingDB!$Q$31:$Q$46=EP$9),TimingDB!$R$31:$R$46) -> 0 | EQ34: =SUMPRODUCT(--(TimingDB!$Q$31:$Q$46=EQ$9),TimingDB!$R$31:$R$46) -> 0 | ER34: =SUMPRODUCT(--(TimingDB!$Q$31:$Q$46=ER$9),TimingDB!$R$31:$R$46) -> 0 | ES34: =SUMPRODUCT(--(TimingDB!$Q$31:$Q$46=ES$9),TimingDB!$R$31:$R$46) -> 0 | ET34: =SUMPRODUCT(--(TimingDB!$Q$31:$Q$46=ET$9),TimingDB!$R$31:$R$46) -> 0 | EU34: =SUMPRODUCT(--(TimingDB!$Q$31:$Q$46=EU$9),TimingDB!$R$31:$R$46) -> 0 | EV34: =SUMPRODUCT(--(TimingDB!$Q$31:$Q$46=EV$9),TimingDB!$R$31:$R$46) -> 0 | EW34: =SUMPRODUCT(--(TimingDB!$Q$31:$Q$46=EW$9),TimingDB!$R$31:$R$46) -> 0 | EX34: =SUMPRODUCT(--(TimingDB!$Q$31:$Q$46=EX$9),TimingDB!$R$31:$R$46) -> 0 | EY34: =SUMPRODUCT(--(TimingDB!$Q$31:$Q$46=EY$9),TimingDB!$R$31:$R$46) -> 0 | EZ34: =SUMPRODUCT(--(TimingDB!$Q$31:$Q$46=EZ$9),TimingDB!$R$31:$R$46) -> 0 | FA34: =SUMPRODUCT(--(TimingDB!$Q$31:$Q$46=FA$9),TimingDB!$R$31:$R$46) -> 0 | FB34: =SUMPRODUCT(--(TimingDB!$Q$31:$Q$46=FB$9),TimingDB!$R$31:$R$46) -> 0 | FC34: =SUMPRODUCT(--(TimingDB!$Q$31:$Q$46=FC$9),TimingDB!$R$31:$R$46) -> 0 | FD34: =SUMPRODUCT(--(TimingDB!$Q$31:$Q$46=FD$9),TimingDB!$R$31:$R$46) -> 0 | FE34: =SUMPRODUCT(--(TimingDB!$Q$31:$Q$46=FE$9),TimingDB!$R$31:$R$46) -> 0 | FF34: =SUMPRODUCT(--(TimingDB!$Q$31:$Q$46=FF$9),TimingDB!$R$31:$R$46) -> 0 | FG34: =SUMPRODUCT(--(TimingDB!$Q$31:$Q$46=FG$9),TimingDB!$R$31:$R$46) -> 0 | FH34: =SUMPRODUCT(--(TimingDB!$Q$31:$Q$46=FH$9),TimingDB!$R$31:$R$46) -> 0 | FI34: =SUMPRODUCT(--(TimingDB!$Q$31:$Q$46=FI$9),TimingDB!$R$31:$R$46) -> 0 | FJ34: =SUMPRODUCT(--(TimingDB!$Q$31:$Q$46=FJ$9),TimingDB!$R$31:$R$46) -> 0 | FK34: =SUMPRODUCT(--(TimingDB!$Q$31:$Q$46=FK$9),TimingDB!$R$31:$R$46) -> 0 | FL34: =SUMPRODUCT(--(TimingDB!$Q$31:$Q$46=FL$9),TimingDB!$R$31:$R$46) -> 0
B35: Contingencies | F35: =AR35 -> 0.04 | G35: 0 | H35: 0 | I35: 0 | J35: 0 | K35: 0 | L35: 0 | M35: 0 | N35: 0 | O35: 0 | P35: -280.3514105 | Q35: -774.4472671 | R35: -573.5649297 | S35: 0 | T35: 0 | U35: 0 | V35: 0 | W35: 0 | X35: 0 | Y35: 0 | Z35: 0 | AA35: 0 | AB35: 0 | AC35: 0 | AD35: 0 | AE35: 0 | AF35: 0 | AG35: 0 | AH35: 0 | AI35: 0 | AJ35: 0 | AK35: 0 | AM35: -1628.363607 | AO35: Contingencies | AR35: =INDEX(AssetDB!$G$51:$AR$51,MATCH(DevCosts!$AR$31,AssetDB!$G$1:$AR$1,0)) -> 0.04 | AV35: =$AR35*AV33 -> 0 | AW35: =$AR35*AW33 -> 0 | AX35: 0 | AY35: 0 | AZ35: 0 | BA35: 0 | BB35: 0 | BC35: 0 | BD35: 0 | BE35: 0 | BF35: 0 | BG35: 0 | BH35: 0 | BI35: 0 | BJ35: 0 | BK35: 0 | BL35: 0 | BM35: 0 | BN35: 0 | BO35: 0 | BP35: 0 | BQ35: 0 | BR35: 0 | BS35: 0 | BT35: 0 | BU35: 0 | BV35: 0 | BW35: 0 | BX35: 0 | BY35: 0 | BZ35: 0 | CA35: 0 | CB35: 0 | CC35: 0 | CD35: 0 | CE35: -92.67815222 | CF35: -187.6732582 | CG35: -190.019174 | CH35: -192.3944137 | CI35: -194.7993438 | CJ35: -197.2343356 | CK35: -199.6997648 | CL35: -202.1960119 | CM35: -85.30144251 | CN35: -86.36771054 | CO35: 0 | CP35: 0 | CQ35: 0 | CR35: 0 | CS35: 0 | CT35: 0 | CU35: 0 | CV35: 0 | CW35: 0 | CX35: 0 | CY35: 0 | CZ35: 0 | DA35: 0 | DB35: 0 | DC35: 0 | DD35: 0 | DE35: 0 | DF35: 0 | DG35: 0 | DH35: =$AR35*DH33 -> 0 | DI35: 0 | DJ35: 0 | DK35: 0 | DL35: 0 | DM35: 0 | DN35: 0 | DO35: 0 | DP35: 0 | DQ35: 0 | DR35: 0 | DS35: 0 | DT35: 0 | DU35: 0 | DV35: 0 | DW35: 0 | DX35: 0 | DY35: 0 | DZ35: 0 | EA35: 0 | EB35: 0 | EC35: 0 | ED35: 0 | EE35: 0 | EF35: 0 | EG35: 0 | EH35: 0 | EI35: 0 | EJ35: 0 | EK35: 0 | EL35: 0 | EM35: 0 | EN35: 0 | EO35: 0 | EP35: 0 | EQ35: 0 | ER35: 0 | ES35: 0 | ET35: 0 | EU35: 0 | EV35: 0 | EW35: 0 | EX35: 0 | EY35: 0 | EZ35: 0 | FA35: 0 | FB35: 0 | FC35: 0 | FD35: 0 | FE35: 0 | FF35: 0 | FG35: 0 | FH35: 0 | FI35: 0 | FJ35: 0 | FK35: 0 | FL35: 0
B36: Other Miscellaneous Cost | F36: =AR36 -> 0.05 | G36: 0 | H36: 0 | I36: 0 | J36: 0 | K36: 0 | L36: 0 | M36: 0 | N36: 0 | O36: 0 | P36: -350.4392631 | Q36: -968.0590838 | R36: -716.9561622 | S36: 0 | T36: 0 | U36: 0 | V36: 0 | W36: 0 | X36: 0 | Y36: 0 | Z36: 0 | AA36: 0 | AB36: 0 | AC36: 0 | AD36: 0 | AE36: 0 | AF36: 0 | AG36: 0 | AH36: 0 | AI36: 0 | AJ36: 0 | AK36: 0 | AM36: -2035.454509 | AO36: Other Miscellaneous Cost | AR36: =INDEX(AssetDB!$G$53:$AR$53,MATCH(DevCosts!$AR$31,AssetDB!$G$1:$AR$1,0)) -> 0.05 | AV36: =$AR36*AV33 -> 0 | AW36: 0 | AX36: 0 | AY36: 0 | AZ36: 0 | BA36: 0 | BB36: 0 | BC36: 0 | BD36: 0 | BE36: 0 | BF36: 0 | BG36: 0 | BH36: 0 | BI36: 0 | BJ36: 0 | BK36: 0 | BL36: 0 | BM36: 0 | BN36: 0 | BO36: 0 | BP36: 0 | BQ36: 0 | BR36: 0 | BS36: 0 | BT36: 0 | BU36: 0 | BV36: 0 | BW36: 0 | BX36: 0 | BY36: 0 | BZ36: 0 | CA36: 0 | CB36: 0 | CC36: 0 | CD36: 0 | CE36: -115.8476903 | CF36: -234.5915728 | CG36: -237.5239675 | CH36: -240.4930171 | CI36: -243.4991798 | CJ36: -246.5429195 | CK36: -249.624706 | CL36: -252.7450148 | CM36: -106.6268031 | CN36: -107.9596382 | CO36: 0 | CP36: 0 | CQ36: 0 | CR36: 0 | CS36: 0 | CT36: 0 | CU36: 0 | CV36: 0 | CW36: 0 | CX36: 0 | CY36: 0 | CZ36: 0 | DA36: 0 | DB36: 0 | DC36: 0 | DD36: 0 | DE36: 0 | DF36: 0 | DG36: 0 | DH36: =$AR36*DH33 -> 0 | DI36: 0 | DJ36: 0 | DK36: 0 | DL36: 0 | DM36: 0 | DN36: 0 | DO36: 0 | DP36: 0 | DQ36: 0 | DR36: 0 | DS36: 0 | DT36: 0 | DU36: 0 | DV36: 0 | DW36: 0 | DX36: 0 | DY36: 0 | DZ36: 0 | EA36: 0 | EB36: 0 | EC36: 0 | ED36: 0 | EE36: 0 | EF36: 0 | EG36: 0 | EH36: 0 | EI36: 0 | EJ36: 0 | EK36: 0 | EL36: 0 | EM36: 0 | EN36: 0 | EO36: 0 | EP36: 0 | EQ36: 0 | ER36: 0 | ES36: 0 | ET36: 0 | EU36: 0 | EV36: 0 | EW36: 0 | EX36: 0 | EY36: 0 | EZ36: 0 | FA36: 0 | FB36: 0 | FC36: 0 | FD36: 0 | FE36: 0 | FF36: 0 | FG36: 0 | FH36: 0 | FI36: 0 | FJ36: 0 | FK36: 0 | FL36: 0
B37: Additional Phasing Cost | G37: 0 | H37: 0 | I37: 0 | J37: 0 | K37: 0 | L37: 0 | M37: 0 | N37: 0 | O37: 0 | P37: -700.8785262 | Q37: -1936.118168 | R37: -1433.912324 | S37: 0 | T37: 0 | U37: 0 | V37: 0 | W37: 0 | X37: 0 | Y37: 0 | Z37: 0 | AA37: 0 | AB37: 0 | AC37: 0 | AD37: 0 | AE37: 0 | AF37: 0 | AG37: 0 | AH37: 0 | AI37: 0 | AJ37: 0 | AK37: 0 | AM37: -4070.909018 | AO37: Additional Phasing Cost | AR37: =INDEX(AssetDB!$G$54:$AR$54,MATCH(DevCosts!$AR$31,AssetDB!$G$1:$AR$1,0)) -> 2500 | AV37: =-$AR37*AV34*AV$12 -> 0 | AW37: 0 | AX37: 0 | AY37: 0 | AZ37: 0 | BA37: 0 | BB37: 0 | BC37: 0 | BD37: 0 | BE37: 0 | BF37: 0 | BG37: 0 | BH37: 0 | BI37: 0 | BJ37: 0 | BK37: 0 | BL37: 0 | BM37: 0 | BN37: 0 | BO37: 0 | BP37: 0 | BQ37: 0 | BR37: 0 | BS37: 0 | BT37: 0 | BU37: 0 | BV37: 0 | BW37: 0 | BX37: 0 | BY37: 0 | BZ37: 0 | CA37: 0 | CB37: =-$AR37*CB34*CB$12 -> 0 | CC37: 0 | CD37: 0 | CE37: -231.6953806 | CF37: -469.1831456 | CG37: -475.0479349 | CH37: -480.9860341 | CI37: -486.9983596 | CJ37: -493.085839 | CK37: -499.249412 | CL37: -505.4900297 | CM37: -213.2536063 | CN37: -215.9192764 | CO37: 0 | CP37: 0 | CQ37: 0 | CR37: 0 | CS37: 0 | CT37: 0 | CU37: 0 | CV37: 0 | CW37: 0 | CX37: 0 | CY37: 0 | CZ37: 0 | DA37: 0 | DB37: 0 | DC37: 0 | DD37: 0 | DE37: 0 | DF37: 0 | DG37: 0 | DH37: =-$AR37*DH34*DH$12 -> 0 | DI37: 0 | DJ37: 0 | DK37: 0 | DL37: 0 | DM37: 0 | DN37: 0 | DO37: 0 | DP37: 0 | DQ37: 0 | DR37: 0 | DS37: 0 | DT37: 0 | DU37: 0 | DV37: 0 | DW37: 0 | DX37: 0 | DY37: 0 | DZ37: 0 | EA37: 0 | EB37: 0 | EC37: 0 | ED37: 0 | EE37: 0 | EF37: 0 | EG37: 0 | EH37: 0 | EI37: 0 | EJ37: 0 | EK37: 0 | EL37: 0 | EM37: 0 | EN37: =-$AR37*EN34*EN$12 -> 0 | EO37: 0 | EP37: 0 | EQ37: 0 | ER37: 0 | ES37: 0 | ET37: 0 | EU37: 0 | EV37: 0 | EW37: 0 | EX37: 0 | EY37: 0 | EZ37: 0 | FA37: 0 | FB37: 0 | FC37: 0 | FD37: 0 | FE37: 0 | FF37: 0 | FG37: 0 | FH37: 0 | FI37: 0 | FJ37: 0 | FK37: 0 | FL37: 0
B38: =AssetDB!B56 -> Site Preparation Costs | G38: 0 | H38: 0 | I38: 0 | J38: 0 | K38: 0 | L38: 0 | M38: 0 | N38: 0 | O38: 0 | P38: -379.037304 | Q38: 0 | R38: 0 | S38: 0 | T38: 0 | U38: 0 | V38: 0 | W38: 0 | X38: 0 | Y38: 0 | Z38: 0 | AA38: 0 | AB38: 0 | AC38: 0 | AD38: 0 | AE38: 0 | AF38: 0 | AG38: 0 | AH38: 0 | AI38: 0 | AJ38: 0 | AK38: 0 | AM38: -379.037304 | AO38: Site Preparation Costs | AR38: =INDEX(AssetDB!$G$56:$AR$56,MATCH(DevCosts!$AR$31,AssetDB!$G$1:$AR$1,0)) -> 250 | AS38: =MAX(INDEX(AssetDB!$G$80:$AR$80,MATCH(DevCosts!$AR$31,AssetDB!$G$1:$AR$1,0))-2,0) -> 33 | AT38: =MAX(INDEX(AssetDB!$G$80:$AR$80,MATCH(DevCosts!$AR$31,AssetDB!$G$1:$AR$1,0))-1,0) -> 34 | AV38: =-($AS38<=AV$1)*($AT38>=AV$1)*$AR38/($AT38-$AS38+1)*AV$12 -> 0 | AW38: 0 | AX38: 0 | AY38: 0 | AZ38: 0 | BA38: 0 | BB38: 0 | BC38: 0 | BD38: 0 | BE38: 0 | BF38: =-($AS38<=BF$1)*($AT38>=BF$1)*$AR38/($AT38-$AS38+1)*BF$12 -> 0 | BG38: 0 | BH38: 0 | BI38: 0 | BJ38: 0 | BK38: 0 | BL38: 0 | BM38: 0 | BN38: 0 | BO38: 0 | BP38: =-($AS38<=BP$1)*($AT38>=BP$1)*$AR38/($AT38-$AS38+1)*BP$12 -> 0 | BQ38: 0 | BR38: 0 | BS38: 0 | BT38: 0 | BU38: 0 | BV38: 0 | BW38: 0 | BX38: 0 | BY38: 0 | BZ38: =-($AS38<=BZ$1)*($AT38>=BZ$1)*$AR38/($AT38-$AS38+1)*BZ$12 -> 0 | CA38: 0 | CB38: 0 | CC38: -188.3415175 | CD38: -190.6957865 | CE38: 0 | CF38: 0 | CG38: 0 | CH38: 0 | CI38: 0 | CJ38: =-($AS38<=CJ$1)*($AT38>=CJ$1)*$AR38/($AT38-$AS38+1)*CJ$12 -> 0 | CK38: 0 | CL38: 0 | CM38: 0 | CN38: 0 | CO38: 0 | CP38: 0 | CQ38: 0 | CR38: 0 | CS38: 0 | CT38: =-($AS38<=CT$1)*($AT38>=CT$1)*$AR38/($AT38-$AS38+1)*CT$12 -> 0 | CU38: 0 | CV38: 0 | CW38: 0 | CX38: 0 | CY38: 0 | CZ38: 0 | DA38: 0 | DB38: 0 | DC38: 0 | DD38: 0 | DE38: 0 | DF38: 0 | DG38: 0 | DH38: 0 | DI38: 0 | DJ38: 0 | DK38: 0 | DL38: 0 | DM38: 0 | DN38: 0 | DO38: 0 | DP38: 0 | DQ38: 0 | DR38: 0 | DS38: 0 | DT38: 0 | DU38: 0 | DV38: 0 | DW38: 0 | DX38: 0 | DY38: 0 | DZ38: 0 | EA38: 0 | EB38: 0 | EC38: 0 | ED38: 0 | EE38: 0 | EF38: 0 | EG38: 0 | EH38: 0 | EI38: 0 | EJ38: 0 | EK38: 0 | EL38: 0 | EM38: 0 | EN38: 0 | EO38: 0 | EP38: 0 | EQ38: 0 | ER38: 0 | ES38: 0 | ET38: 0 | EU38: 0 | EV38: 0 | EW38: 0 | EX38: 0 | EY38: 0 | EZ38: 0 | FA38: 0 | FB38: 0 | FC38: 0 | FD38: 0 | FE38: 0 | FF38: 0 | FG38: 0 | FH38: 0 | FI38: 0 | FJ38: 0 | FK38: 0 | FL38: 0
B40: Total Construction Cost | G40: =SUM(G33,G35,G36,G37,G38) -> 0 | H40: 0 | I40: 0 | J40: 0 | K40: 0 | L40: 0 | M40: 0 | N40: 0 | O40: 0 | P40: -8719.491765 | Q40: -23039.8062 | R40: -17063.55666 | S40: 0 | T40: 0 | U40: 0 | V40: 0 | W40: =SUM(W33,W35,W36,W37,W38) -> 0 | X40: 0 | Y40: 0 | Z40: 0 | AA40: 0 | AB40: 0 | AC40: 0 | AD40: 0 | AE40: 0 | AF40: 0 | AG40: 0 | AH40: 0 | AI40: 0 | AJ40: 0 | AK40: 0 | AM40: =SUM(G40:AK40) -> -48822.85462 | AO40: =B40 -> Total Construction Cost | AV40: =SUM(AV38,AV37,AV36,AV35,AV33) -> 0 | AW40: 0 | AX40: 0 | AY40: 0 | AZ40: 0 | BA40: 0 | BB40: 0 | BC40: 0 | BD40: 0 | BE40: 0 | BF40: 0 | BG40: 0 | BH40: 0 | BI40: 0 | BJ40: 0 | BK40: 0 | BL40: 0 | BM40: 0 | BN40: 0 | BO40: 0 | BP40: 0 | BQ40: 0 | BR40: 0 | BS40: 0 | BT40: 0 | BU40: 0 | BV40: 0 | BW40: 0 | BX40: 0 | BY40: 0 | BZ40: 0 | CA40: 0 | CB40: =SUM(CB38,CB37,CB36,CB35,CB33) -> 0 | CC40: -188.3415175 | CD40: -190.6957865 | CE40: -2757.175029 | CF40: -5583.279433 | CG40: -5653.070426 | CH40: -5723.733806 | CI40: -5795.280479 | CJ40: -5867.721485 | CK40: -5941.068003 | CL40: -6015.331353 | CM40: -2537.717915 | CN40: -2569.439389 | CO40: 0 | CP40: 0 | CQ40: 0 | CR40: 0 | CS40: 0 | CT40: 0 | CU40: 0 | CV40: 0 | CW40: 0 | CX40: 0 | CY40: 0 | CZ40: 0 | DA40: 0 | DB40: 0 | DC40: 0 | DD40: =SUM(DD38,DD37,DD36,DD35,DD33) -> 0 | DE40: 0 | DF40: 0 | DG40: 0 | DH40: 0 | DI40: 0 | DJ40: 0 | DK40: 0 | DL40: 0 | DM40: 0 | DN40: 0 | DO40: 0 | DP40: 0 | DQ40: 0 | DR40: 0 | DS40: 0 | DT40: 0 | DU40: 0 | DV40: 0 | DW40: 0 | DX40: 0 | DY40: 0 | DZ40: 0 | EA40: 0 | EB40: 0 | EC40: 0 | ED40: 0 | EE40: 0 | EF40: 0 | EG40: 0 | EH40: 0 | EI40: 0 | EJ40: 0 | EK40: 0 | EL40: 0 | EM40: 0 | EN40: 0 | EO40: 0 | EP40: 0 | EQ40: 0 | ER40: 0 | ES40: 0 | ET40: 0 | EU40: 0 | EV40: 0 | EW40: 0 | EX40: 0 | EY40: 0 | EZ40: 0 | FA40: 0 | FB40: 0 | FC40: 0 | FD40: 0 | FE40: 0 | FF40: 0 | FG40: 0 | FH40: 0 | FI40: 0 | FJ40: 0 | FK40: 0 | FL40: 0
B42: Architects and Engineer Fees | F42: =AM42/AM$40 -> 0.15 | G42: =SUMIF($AV$8:$FL$8,G$8,$AV42:$FL42) -> 0 | H42: -7323.428193 | I42: 0 | J42: 0 | K42: 0 | L42: 0 | M42: 0 | N42: 0 | O42: 0 | P42: 0 | Q42: =SUMIF($AV$8:$FL$8,Q$8,$AV42:$FL42) -> 0 | R42: 0 | S42: 0 | T42: 0 | U42: 0 | V42: 0 | W42: 0 | X42: 0 | Y42: 0 | Z42: 0 | AA42: =SUMIF($AV$8:$FL$8,AA$8,$AV42:$FL42) -> 0 | AB42: 0 | AC42: 0 | AD42: 0 | AE42: 0 | AF42: 0 | AG42: 0 | AH42: 0 | AI42: 0 | AJ42: 0 | AK42: 0 | AM42: =SUM(G42:AK42) -> -7323.428193 | AO42: =B42 -> Architects and Engineer Fees | AR42: =IF(AR33=0,0,INDEX(AssetDB!$G$62:$AR$62,MATCH(DevCosts!$AR$141,AssetDB!$G$1:$AR$1,0))) -> 0.15 | AV42: =$AR42*$AM$40*AV43 -> 0 | AW42: 0 | AX42: -3661.714097 | AY42: 0 | AZ42: -3661.714097 | BA42: 0 | BB42: 0 | BC42: 0 | BD42: 0 | BE42: 0 | BF42: 0 | BG42: 0 | BH42: 0 | BI42: 0 | BJ42: 0 | BK42: 0 | BL42: 0 | BM42: 0 | BN42: 0 | BO42: 0 | BP42: 0 | BQ42: 0 | BR42: 0 | BS42: 0 | BT42: 0 | BU42: 0 | BV42: 0 | BW42: 0 | BX42: 0 | BY42: 0 | BZ42: 0 | CA42: 0 | CB42: =$AR42*$AM$40*CB43 -> 0 | CC42: 0 | CD42: 0 | CE42: 0 | CF42: 0 | CG42: 0 | CH42: 0 | CI42: 0 | CJ42: 0 | CK42: 0 | CL42: 0 | CM42: 0 | CN42: 0 | CO42: 0 | CP42: 0 | CQ42: 0 | CR42: 0 | CS42: 0 | CT42: 0 | CU42: 0 | CV42: 0 | CW42: 0 | CX42: 0 | CY42: 0 | CZ42: 0 | DA42: 0 | DB42: 0 | DC42: 0 | DD42: 0 | DE42: 0 | DF42: 0 | DG42: 0 | DH42: 0 | DI42: 0 | DJ42: 0 | DK42: 0 | DL42: 0 | DM42: 0 | DN42: 0 | DO42: 0 | DP42: 0 | DQ42: 0 | DR42: 0 | DS42: 0 | DT42: 0 | DU42: 0 | DV42: 0 | DW42: 0 | DX42: 0 | DY42: 0 | DZ42: 0 | EA42: 0 | EB42: 0 | EC42: 0 | ED42: 0 | EE42: 0 | EF42: 0 | EG42: 0 | EH42: 0 | EI42: 0 | EJ42: 0 | EK42: 0 | EL42: 0 | EM42: 0 | EN42: 0 | EO42: 0 | EP42: 0 | EQ42: 0 | ER42: 0 | ES42: 0 | ET42: 0 | EU42: 0 | EV42: 0 | EW42: 0 | EX42: 0 | EY42: 0 | EZ42: 0 | FA42: 0 | FB42: 0 | FC42: 0 | FD42: 0 | FE42: 0 | FF42: 0 | FG42: 0 | FH42: 0 | FI42: 0 | FJ42: 0 | FK42: 0 | FL42: 0
B43: Payment Schedule | G43: 0 | H43: 1 | I43: 0 | J43: 0 | K43: 0 | L43: 0 | M43: 0 | N43: 0 | O43: 0 | P43: 0 | Q43: 0 | R43: 0 | S43: 0 | T43: 0 | U43: 0 | V43: 0 | W43: 0 | X43: 0 | Y43: 0 | Z43: 0 | AA43: 0 | AB43: 0 | AC43: 0 | AD43: 0 | AE43: 0 | AF43: 0 | AG43: 0 | AH43: 0 | AI43: 0 | AJ43: 0 | AK43: 0 | AM43: =SUM(G43:AK43) -> 1 | AO43: =B43 -> Payment Schedule | AV43: =SUMPRODUCT(--(TimingDB!$Q$11:$Q$26=AV$9),TimingDB!$R$11:$R$26) -> 0 | AW43: =SUMPRODUCT(--(TimingDB!$Q$11:$Q$26=AW$9),TimingDB!$R$11:$R$26) -> 0 | AX43: =SUMPRODUCT(--(TimingDB!$Q$11:$Q$26=AX$9),TimingDB!$R$11:$R$26) -> 0.5 | AY43: =SUMPRODUCT(--(TimingDB!$Q$11:$Q$26=AY$9),TimingDB!$R$11:$R$26) -> 0 | AZ43: =SUMPRODUCT(--(TimingDB!$Q$11:$Q$26=AZ$9),TimingDB!$R$11:$R$26) -> 0.5 | BA43: =SUMPRODUCT(--(TimingDB!$Q$11:$Q$26=BA$9),TimingDB!$R$11:$R$26) -> 0 | BB43: =SUMPRODUCT(--(TimingDB!$Q$11:$Q$26=BB$9),TimingDB!$R$11:$R$26) -> 0 | BC43: =SUMPRODUCT(--(TimingDB!$Q$11:$Q$26=BC$9),TimingDB!$R$11:$R$26) -> 0 | BD43: =SUMPRODUCT(--(TimingDB!$Q$11:$Q$26=BD$9),TimingDB!$R$11:$R$26) -> 0 | BE43: =SUMPRODUCT(--(TimingDB!$Q$11:$Q$26=BE$9),TimingDB!$R$11:$R$26) -> 0 | BF43: =SUMPRODUCT(--(TimingDB!$Q$11:$Q$26=BF$9),TimingDB!$R$11:$R$26) -> 0 | BG43: =SUMPRODUCT(--(TimingDB!$Q$11:$Q$26=BG$9),TimingDB!$R$11:$R$26) -> 0 | BH43: =SUMPRODUCT(--(TimingDB!$Q$11:$Q$26=BH$9),TimingDB!$R$11:$R$26) -> 0 | BI43: =SUMPRODUCT(--(TimingDB!$Q$11:$Q$26=BI$9),TimingDB!$R$11:$R$26) -> 0 | BJ43: =SUMPRODUCT(--(TimingDB!$Q$11:$Q$26=BJ$9),TimingDB!$R$11:$R$26) -> 0 | BK43: =SUMPRODUCT(--(TimingDB!$Q$11:$Q$26=BK$9),TimingDB!$R$11:$R$26) -> 0 | BL43: =SUMPRODUCT(--(TimingDB!$Q$11:$Q$26=BL$9),TimingDB!$R$11:$R$26) -> 0 | BM43: =SUMPRODUCT(--(TimingDB!$Q$11:$Q$26=BM$9),TimingDB!$R$11:$R$26) -> 0 | BN43: =SUMPRODUCT(--(TimingDB!$Q$11:$Q$26=BN$9),TimingDB!$R$11:$R$26) -> 0 | BO43: =SUMPRODUCT(--(TimingDB!$Q$11:$Q$26=BO$9),TimingDB!$R$11:$R$26) -> 0 | BP43: =SUMPRODUCT(--(TimingDB!$Q$11:$Q$26=BP$9),TimingDB!$R$11:$R$26) -> 0 | BQ43: =SUMPRODUCT(--(TimingDB!$Q$11:$Q$26=BQ$9),TimingDB!$R$11:$R$26) -> 0 | BR43: =SUMPRODUCT(--(TimingDB!$Q$11:$Q$26=BR$9),TimingDB!$R$11:$R$26) -> 0 | BS43: =SUMPRODUCT(--(TimingDB!$Q$11:$Q$26=BS$9),TimingDB!$R$11:$R$26) -> 0 | BT43: =SUMPRODUCT(--(TimingDB!$Q$11:$Q$26=BT$9),TimingDB!$R$11:$R$26) -> 0 | BU43: =SUMPRODUCT(--(TimingDB!$Q$11:$Q$26=BU$9),TimingDB!$R$11:$R$26) -> 0 | BV43: =SUMPRODUCT(--(TimingDB!$Q$11:$Q$26=BV$9),TimingDB!$R$11:$R$26) -> 0 | BW43: =SUMPRODUCT(--(TimingDB!$Q$11:$Q$26=BW$9),TimingDB!$R$11:$R$26) -> 0 | BX43: =SUMPRODUCT(--(TimingDB!$Q$11:$Q$26=BX$9),TimingDB!$R$11:$R$26) -> 0 | BY43: =SUMPRODUCT(--(TimingDB!$Q$11:$Q$26=BY$9),TimingDB!$R$11:$R$26) -> 0 | BZ43: =SUMPRODUCT(--(TimingDB!$Q$11:$Q$26=BZ$9),TimingDB!$R$11:$R$26) -> 0 | CA43: =SUMPRODUCT(--(TimingDB!$Q$11:$Q$26=CA$9),TimingDB!$R$11:$R$26) -> 0 | CB43: =SUMPRODUCT(--(TimingDB!$Q$11:$Q$26=CB$9),TimingDB!$R$11:$R$26) -> 0 | CC43: =SUMPRODUCT(--(TimingDB!$Q$11:$Q$26=CC$9),TimingDB!$R$11:$R$26) -> 0 | CD43: =SUMPRODUCT(--(TimingDB!$Q$11:$Q$26=CD$9),TimingDB!$R$11:$R$26) -> 0 | CE43: =SUMPRODUCT(--(TimingDB!$Q$11:$Q$26=CE$9),TimingDB!$R$11:$R$26) -> 0 | CF43: =SUMPRODUCT(--(TimingDB!$Q$11:$Q$26=CF$9),TimingDB!$R$11:$R$26) -> 0 | CG43: =SUMPRODUCT(--(TimingDB!$Q$11:$Q$26=CG$9),TimingDB!$R$11:$R$26) -> 0 | CH43: =SUMPRODUCT(--(TimingDB!$Q$11:$Q$26=CH$9),TimingDB!$R$11:$R$26) -> 0 | CI43: =SUMPRODUCT(--(TimingDB!$Q$11:$Q$26=CI$9),TimingDB!$R$11:$R$26) -> 0 | CJ43: =SUMPRODUCT(--(TimingDB!$Q$11:$Q$26=CJ$9),TimingDB!$R$11:$R$26) -> 0 | CK43: =SUMPRODUCT(--(TimingDB!$Q$11:$Q$26=CK$9),TimingDB!$R$11:$R$26) -> 0 | CL43: =SUMPRODUCT(--(TimingDB!$Q$11:$Q$26=CL$9),TimingDB!$R$11:$R$26) -> 0 | CM43: =SUMPRODUCT(--(TimingDB!$Q$11:$Q$26=CM$9),TimingDB!$R$11:$R$26) -> 0 | CN43: =SUMPRODUCT(--(TimingDB!$Q$11:$Q$26=CN$9),TimingDB!$R$11:$R$26) -> 0 | CO43: =SUMPRODUCT(--(TimingDB!$Q$11:$Q$26=CO$9),TimingDB!$R$11:$R$26) -> 0 | CP43: =SUMPRODUCT(--(TimingDB!$Q$11:$Q$26=CP$9),TimingDB!$R$11:$R$26) -> 0 | CQ43: =SUMPRODUCT(--(TimingDB!$Q$11:$Q$26=CQ$9),TimingDB!$R$11:$R$26) -> 0 | CR43: =SUMPRODUCT(--(TimingDB!$Q$11:$Q$26=CR$9),TimingDB!$R$11:$R$26) -> 0 | CS43: =SUMPRODUCT(--(TimingDB!$Q$11:$Q$26=CS$9),TimingDB!$R$11:$R$26) -> 0 | CT43: =SUMPRODUCT(--(TimingDB!$Q$11:$Q$26=CT$9),TimingDB!$R$11:$R$26) -> 0 | CU43: =SUMPRODUCT(--(TimingDB!$Q$11:$Q$26=CU$9),TimingDB!$R$11:$R$26) -> 0 | CV43: =SUMPRODUCT(--(TimingDB!$Q$11:$Q$26=CV$9),TimingDB!$R$11:$R$26) -> 0 | CW43: =SUMPRODUCT(--(TimingDB!$Q$11:$Q$26=CW$9),TimingDB!$R$11:$R$26) -> 0 | CX43: =SUMPRODUCT(--(TimingDB!$Q$11:$Q$26=CX$9),TimingDB!$R$11:$R$26) -> 0 | CY43: =SUMPRODUCT(--(TimingDB!$Q$11:$Q$26=CY$9),TimingDB!$R$11:$R$26) -> 0 | CZ43: =SUMPRODUCT(--(TimingDB!$Q$11:$Q$26=CZ$9),TimingDB!$R$11:$R$26) -> 0 | DA43: =SUMPRODUCT(--(TimingDB!$Q$11:$Q$26=DA$9),TimingDB!$R$11:$R$26) -> 0 | DB43: =SUMPRODUCT(--(TimingDB!$Q$11:$Q$26=DB$9),TimingDB!$R$11:$R$26) -> 0 | DC43: =SUMPRODUCT(--(TimingDB!$Q$11:$Q$26=DC$9),TimingDB!$R$11:$R$26) -> 0 | DD43: =SUMPRODUCT(--(TimingDB!$Q$11:$Q$26=DD$9),TimingDB!$R$11:$R$26) -> 0 | DE43: =SUMPRODUCT(--(TimingDB!$Q$11:$Q$26=DE$9),TimingDB!$R$11:$R$26) -> 0 | DF43: =SUMPRODUCT(--(TimingDB!$Q$11:$Q$26=DF$9),TimingDB!$R$11:$R$26) -> 0 | DG43: =SUMPRODUCT(--(TimingDB!$Q$11:$Q$26=DG$9),TimingDB!$R$11:$R$26) -> 0 | DH43: =SUMPRODUCT(--(TimingDB!$Q$11:$Q$26=DH$9),TimingDB!$R$11:$R$26) -> 0 | DI43: =SUMPRODUCT(--(TimingDB!$Q$11:$Q$26=DI$9),TimingDB!$R$11:$R$26) -> 0 | DJ43: =SUMPRODUCT(--(TimingDB!$Q$11:$Q$26=DJ$9),TimingDB!$R$11:$R$26) -> 0 | DK43: =SUMPRODUCT(--(TimingDB!$Q$11:$Q$26=DK$9),TimingDB!$R$11:$R$26) -> 0 | DL43: =SUMPRODUCT(--(TimingDB!$Q$11:$Q$26=DL$9),TimingDB!$R$11:$R$26) -> 0 | DM43: =SUMPRODUCT(--(TimingDB!$Q$11:$Q$26=DM$9),TimingDB!$R$11:$R$26) -> 0 | DN43: =SUMPRODUCT(--(TimingDB!$Q$11:$Q$26=DN$9),TimingDB!$R$11:$R$26) -> 0 | DO43: =SUMPRODUCT(--(TimingDB!$Q$11:$Q$26=DO$9),TimingDB!$R$11:$R$26) -> 0 | DP43: =SUMPRODUCT(--(TimingDB!$Q$11:$Q$26=DP$9),TimingDB!$R$11:$R$26) -> 0 | DQ43: =SUMPRODUCT(--(TimingDB!$Q$11:$Q$26=DQ$9),TimingDB!$R$11:$R$26) -> 0 | DR43: =SUMPRODUCT(--(TimingDB!$Q$11:$Q$26=DR$9),TimingDB!$R$11:$R$26) -> 0 | DS43: =SUMPRODUCT(--(TimingDB!$Q$11:$Q$26=DS$9),TimingDB!$R$11:$R$26) -> 0 | DT43: =SUMPRODUCT(--(TimingDB!$Q$11:$Q$26=DT$9),TimingDB!$R$11:$R$26) -> 0 | DU43: =SUMPRODUCT(--(TimingDB!$Q$11:$Q$26=DU$9),TimingDB!$R$11:$R$26) -> 0 | DV43: =SUMPRODUCT(--(TimingDB!$Q$11:$Q$26=DV$9),TimingDB!$R$11:$R$26) -> 0 | DW43: =SUMPRODUCT(--(TimingDB!$Q$11:$Q$26=DW$9),TimingDB!$R$11:$R$26) -> 0 | DX43: =SUMPRODUCT(--(TimingDB!$Q$11:$Q$26=DX$9),TimingDB!$R$11:$R$26) -> 0 | DY43: =SUMPRODUCT(--(TimingDB!$Q$11:$Q$26=DY$9),TimingDB!$R$11:$R$26) -> 0 | DZ43: =SUMPRODUCT(--(TimingDB!$Q$11:$Q$26=DZ$9),TimingDB!$R$11:$R$26) -> 0 | EA43: =SUMPRODUCT(--(TimingDB!$Q$11:$Q$26=EA$9),TimingDB!$R$11:$R$26) -> 0 | EB43: =SUMPRODUCT(--(TimingDB!$Q$11:$Q$26=EB$9),TimingDB!$R$11:$R$26) -> 0 | EC43: =SUMPRODUCT(--(TimingDB!$Q$11:$Q$26=EC$9),TimingDB!$R$11:$R$26) -> 0 | ED43: =SUMPRODUCT(--(TimingDB!$Q$11:$Q$26=ED$9),TimingDB!$R$11:$R$26) -> 0 | EE43: =SUMPRODUCT(--(TimingDB!$Q$11:$Q$26=EE$9),TimingDB!$R$11:$R$26) -> 0 | EF43: =SUMPRODUCT(--(TimingDB!$Q$11:$Q$26=EF$9),TimingDB!$R$11:$R$26) -> 0 | EG43: =SUMPRODUCT(--(TimingDB!$Q$11:$Q$26=EG$9),TimingDB!$R$11:$R$26) -> 0 | EH43: =SUMPRODUCT(--(TimingDB!$Q$11:$Q$26=EH$9),TimingDB!$R$11:$R$26) -> 0 | EI43: =SUMPRODUCT(--(TimingDB!$Q$11:$Q$26=EI$9),TimingDB!$R$11:$R$26) -> 0 | EJ43: =SUMPRODUCT(--(TimingDB!$Q$11:$Q$26=EJ$9),TimingDB!$R$11:$R$26) -> 0 | EK43: =SUMPRODUCT(--(TimingDB!$Q$11:$Q$26=EK$9),TimingDB!$R$11:$R$26) -> 0 | EL43: =SUMPRODUCT(--(TimingDB!$Q$11:$Q$26=EL$9),TimingDB!$R$11:$R$26) -> 0 | EM43: =SUMPRODUCT(--(TimingDB!$Q$11:$Q$26=EM$9),TimingDB!$R$11:$R$26) -> 0 | EN43: =SUMPRODUCT(--(TimingDB!$Q$11:$Q$26=EN$9),TimingDB!$R$11:$R$26) -> 0 | EO43: =SUMPRODUCT(--(TimingDB!$Q$11:$Q$26=EO$9),TimingDB!$R$11:$R$26) -> 0 | EP43: =SUMPRODUCT(--(TimingDB!$Q$11:$Q$26=EP$9),TimingDB!$R$11:$R$26) -> 0 | EQ43: =SUMPRODUCT(--(TimingDB!$Q$11:$Q$26=EQ$9),TimingDB!$R$11:$R$26) -> 0 | ER43: =SUMPRODUCT(--(TimingDB!$Q$11:$Q$26=ER$9),TimingDB!$R$11:$R$26) -> 0 | ES43: =SUMPRODUCT(--(TimingDB!$Q$11:$Q$26=ES$9),TimingDB!$R$11:$R$26) -> 0 | ET43: =SUMPRODUCT(--(TimingDB!$Q$11:$Q$26=ET$9),TimingDB!$R$11:$R$26) -> 0 | EU43: =SUMPRODUCT(--(TimingDB!$Q$11:$Q$26=EU$9),TimingDB!$R$11:$R$26) -> 0 | EV43: =SUMPRODUCT(--(TimingDB!$Q$11:$Q$26=EV$9),TimingDB!$R$11:$R$26) -> 0 | EW43: =SUMPRODUCT(--(TimingDB!$Q$11:$Q$26=EW$9),TimingDB!$R$11:$R$26) -> 0 | EX43: =SUMPRODUCT(--(TimingDB!$Q$11:$Q$26=EX$9),TimingDB!$R$11:$R$26) -> 0 | EY43: =SUMPRODUCT(--(TimingDB!$Q$11:$Q$26=EY$9),TimingDB!$R$11:$R$26) -> 0 | EZ43: =SUMPRODUCT(--(TimingDB!$Q$11:$Q$26=EZ$9),TimingDB!$R$11:$R$26) -> 0 | FA43: =SUMPRODUCT(--(TimingDB!$Q$11:$Q$26=FA$9),TimingDB!$R$11:$R$26) -> 0 | FB43: =SUMPRODUCT(--(TimingDB!$Q$11:$Q$26=FB$9),TimingDB!$R$11:$R$26) -> 0 | FC43: =SUMPRODUCT(--(TimingDB!$Q$11:$Q$26=FC$9),TimingDB!$R$11:$R$26) -> 0 | FD43: =SUMPRODUCT(--(TimingDB!$Q$11:$Q$26=FD$9),TimingDB!$R$11:$R$26) -> 0 | FE43: =SUMPRODUCT(--(TimingDB!$Q$11:$Q$26=FE$9),TimingDB!$R$11:$R$26) -> 0 | FF43: =SUMPRODUCT(--(TimingDB!$Q$11:$Q$26=FF$9),TimingDB!$R$11:$R$26) -> 0 | FG43: =SUMPRODUCT(--(TimingDB!$Q$11:$Q$26=FG$9),TimingDB!$R$11:$R$26) -> 0 | FH43: =SUMPRODUCT(--(TimingDB!$Q$11:$Q$26=FH$9),TimingDB!$R$11:$R$26) -> 0 | FI43: =SUMPRODUCT(--(TimingDB!$Q$11:$Q$26=FI$9),TimingDB!$R$11:$R$26) -> 0 | FJ43: =SUMPRODUCT(--(TimingDB!$Q$11:$Q$26=FJ$9),TimingDB!$R$11:$R$26) -> 0 | FK43: =SUMPRODUCT(--(TimingDB!$Q$11:$Q$26=FK$9),TimingDB!$R$11:$R$26) -> 0 | FL43: =SUMPRODUCT(--(TimingDB!$Q$11:$Q$26=FL$9),TimingDB!$R$11:$R$26) -> 0
B44: Other Soft Costs (Consultants, Insurance) | F44: =AM44/AM$40 -> 0.02 | G44: 0 | H44: 0 | I44: 0 | J44: 0 | K44: 0 | L44: 0 | M44: 0 | N44: 0 | O44: 0 | P44: -174.3898353 | Q44: -460.7961239 | R44: -341.2711332 | S44: 0 | T44: 0 | U44: 0 | V44: 0 | W44: 0 | X44: 0 | Y44: 0 | Z44: 0 | AA44: 0 | AB44: 0 | AC44: 0 | AD44: 0 | AE44: 0 | AF44: 0 | AG44: 0 | AH44: 0 | AI44: 0 | AJ44: 0 | AK44: 0 | AM44: =SUM(G44:AK44) -> -976.4570924 | AO44: =B44 -> Other Soft Costs (Consultants, Insurance) | AR44: =INDEX(AssetDB!$G$64:$AR$64,MATCH(DevCosts!$AR$31,AssetDB!$G$1:$AR$1,0)) -> 0.02 | AV44: =$AR44*AV40 -> 0 | AW44: 0 | AX44: 0 | AY44: 0 | AZ44: 0 | BA44: 0 | BB44: 0 | BC44: 0 | BD44: 0 | BE44: 0 | BF44: 0 | BG44: 0 | BH44: 0 | BI44: 0 | BJ44: 0 | BK44: 0 | BL44: 0 | BM44: 0 | BN44: 0 | BO44: 0 | BP44: 0 | BQ44: 0 | BR44: 0 | BS44: 0 | BT44: 0 | BU44: 0 | BV44: 0 | BW44: 0 | BX44: 0 | BY44: 0 | BZ44: 0 | CA44: 0 | CB44: =$AR44*CB40 -> 0 | CC44: -3.76683035 | CD44: -3.813915729 | CE44: -55.14350057 | CF44: -111.6655887 | CG44: -113.0614085 | CH44: -114.4746761 | CI44: -115.9056096 | CJ44: -117.3544297 | CK44: -118.8213601 | CL44: -120.3066271 | CM44: -50.75435829 | CN44: -51.38878777 | CO44: 0 | CP44: 0 | CQ44: 0 | CR44: 0 | CS44: 0 | CT44: 0 | CU44: 0 | CV44: 0 | CW44: 0 | CX44: 0 | CY44: 0 | CZ44: 0 | DA44: 0 | DB44: 0 | DC44: 0 | DD44: 0 | DE44: 0 | DF44: 0 | DG44: 0 | DH44: =$AR44*DH40 -> 0 | DI44: 0 | DJ44: 0 | DK44: 0 | DL44: 0 | DM44: 0 | DN44: 0 | DO44: 0 | DP44: 0 | DQ44: 0 | DR44: 0 | DS44: 0 | DT44: 0 | DU44: 0 | DV44: 0 | DW44: 0 | DX44: 0 | DY44: 0 | DZ44: 0 | EA44: 0 | EB44: 0 | EC44: 0 | ED44: 0 | EE44: 0 | EF44: 0 | EG44: 0 | EH44: 0 | EI44: 0 | EJ44: 0 | EK44: 0 | EL44: 0 | EM44: 0 | EN44: =$AR44*EN40 -> 0 | EO44: 0 | EP44: 0 | EQ44: 0 | ER44: 0 | ES44: 0 | ET44: 0 | EU44: 0 | EV44: 0 | EW44: 0 | EX44: 0 | EY44: 0 | EZ44: 0 | FA44: 0 | FB44: 0 | FC44: 0 | FD44: 0 | FE44: 0 | FF44: 0 | FG44: 0 | FH44: 0 | FI44: 0 | FJ44: 0 | FK44: 0 | FL44: 0
B46: Total Fees & Other Soft Costs | G46: =G42+G44 -> 0 | H46: -7323.428193 | I46: 0 | J46: 0 | K46: 0 | L46: 0 | M46: 0 | N46: 0 | O46: 0 | P46: -174.3898353 | Q46: -460.7961239 | R46: -341.2711332 | S46: 0 | T46: 0 | U46: 0 | V46: 0 | W46: =W42+W44 -> 0 | X46: 0 | Y46: 0 | Z46: 0 | AA46: 0 | AB46: 0 | AC46: 0 | AD46: 0 | AE46: 0 | AF46: 0 | AG46: 0 | AH46: 0 | AI46: 0 | AJ46: 0 | AK46: 0 | AM46: =SUM(G46:AK46) -> -8299.885285 | AO46: =B46 -> Total Fees & Other Soft Costs | AV46: =AV42+AV44 -> 0 | AW46: 0 | AX46: -3661.714097 | AY46: 0 | AZ46: -3661.714097 | BA46: 0 | BB46: 0 | BC46: 0 | BD46: 0 | BE46: 0 | BF46: 0 | BG46: 0 | BH46: 0 | BI46: 0 | BJ46: 0 | BK46: 0 | BL46: 0 | BM46: 0 | BN46: 0 | BO46: 0 | BP46: 0 | BQ46: 0 | BR46: 0 | BS46: 0 | BT46: 0 | BU46: 0 | BV46: 0 | BW46: 0 | BX46: 0 | BY46: 0 | BZ46: 0 | CA46: 0 | CB46: =CB42+CB44 -> 0 | CC46: -3.76683035 | CD46: -3.813915729 | CE46: -55.14350057 | CF46: -111.6655887 | CG46: -113.0614085 | CH46: -114.4746761 | CI46: -115.9056096 | CJ46: -117.3544297 | CK46: -118.8213601 | CL46: -120.3066271 | CM46: -50.75435829 | CN46: -51.38878777 | CO46: 0 | CP46: 0 | CQ46: 0 | CR46: 0 | CS46: 0 | CT46: 0 | CU46: 0 | CV46: 0 | CW46: 0 | CX46: 0 | CY46: 0 | CZ46: 0 | DA46: 0 | DB46: 0 | DC46: 0 | DD46: =DD42+DD44 -> 0 | DE46: 0 | DF46: 0 | DG46: 0 | DH46: 0 | DI46: 0 | DJ46: 0 | DK46: 0 | DL46: 0 | DM46: 0 | DN46: 0 | DO46: 0 | DP46: 0 | DQ46: 0 | DR46: 0 | DS46: 0 | DT46: 0 | DU46: 0 | DV46: 0 | DW46: 0 | DX46: 0 | DY46: 0 | DZ46: 0 | EA46: 0 | EB46: 0 | EC46: 0 | ED46: 0 | EE46: 0 | EF46: 0 | EG46: 0 | EH46: 0 | EI46: 0 | EJ46: 0 | EK46: 0 | EL46: 0 | EM46: 0 | EN46: 0 | EO46: 0 | EP46: 0 | EQ46: 0 | ER46: 0 | ES46: 0 | ET46: 0 | EU46: 0 | EV46: 0 | EW46: 0 | EX46: 0 | EY46: 0 | EZ46: 0 | FA46: 0 | FB46: 0 | FC46: 0 | FD46: 0 | FE46: 0 | FF46: 0 | FG46: 0 | FH46: 0 | FI46: 0 | FJ46: 0 | FK46: 0 | FL46: 0
B48: Total Construction Costs & Fees | G48: =G46+G40 -> 0 | H48: -7323.428193 | I48: 0 | J48: 0 | K48: 0 | L48: 0 | M48: 0 | N48: 0 | O48: 0 | P48: -8893.881601 | Q48: -23500.60232 | R48: -17404.82779 | S48: 0 | T48: 0 | U48: 0 | V48: 0 | W48: =W46+W40 -> 0 | X48: 0 | Y48: 0 | Z48: 0 | AA48: 0 | AB48: 0 | AC48: 0 | AD48: 0 | AE48: 0 | AF48: 0 | AG48: 0 | AH48: 0 | AI48: 0 | AJ48: 0 | AK48: 0 | AM48: =SUM(G48:AK48) -> -57122.73991 | AO48: =B48 -> Total Construction Costs & Fees | AV48: =AV40+AV46 -> 0 | AW48: 0 | AX48: -3661.714097 | AY48: 0 | AZ48: -3661.714097 | BA48: 0 | BB48: 0 | BC48: 0 | BD48: 0 | BE48: 0 | BF48: 0 | BG48: 0 | BH48: 0 | BI48: 0 | BJ48: 0 | BK48: 0 | BL48: 0 | BM48: 0 | BN48: 0 | BO48: 0 | BP48: 0 | BQ48: 0 | BR48: 0 | BS48: 0 | BT48: 0 | BU48: 0 | BV48: 0 | BW48: 0 | BX48: 0 | BY48: 0 | BZ48: 0 | CA48: 0 | CB48: =CB40+CB46 -> 0 | CC48: -192.1083478 | CD48: -194.5097022 | CE48: -2812.318529 | CF48: -5694.945022 | CG48: -5766.131834 | CH48: -5838.208482 | CI48: -5911.186088 | CJ48: -5985.075914 | CK48: -6059.889363 | CL48: -6135.63798 | CM48: -2588.472273 | CN48: -2620.828176 | CO48: 0 | CP48: 0 | CQ48: 0 | CR48: 0 | CS48: 0 | CT48: 0 | CU48: 0 | CV48: 0 | CW48: 0 | CX48: 0 | CY48: 0 | CZ48: 0 | DA48: 0 | DB48: 0 | DC48: 0 | DD48: =DD40+DD46 -> 0 | DE48: 0 | DF48: 0 | DG48: 0 | DH48: 0 | DI48: 0 | DJ48: 0 | DK48: 0 | DL48: 0 | DM48: 0 | DN48: 0 | DO48: 0 | DP48: 0 | DQ48: 0 | DR48: 0 | DS48: 0 | DT48: 0 | DU48: 0 | DV48: 0 | DW48: 0 | DX48: 0 | DY48: 0 | DZ48: 0 | EA48: 0 | EB48: 0 | EC48: 0 | ED48: 0 | EE48: 0 | EF48: 0 | EG48: 0 | EH48: 0 | EI48: 0 | EJ48: 0 | EK48: 0 | EL48: 0 | EM48: 0 | EN48: 0 | EO48: 0 | EP48: 0 | EQ48: 0 | ER48: 0 | ES48: 0 | ET48: 0 | EU48: 0 | EV48: 0 | EW48: 0 | EX48: 0 | EY48: 0 | EZ48: 0 | FA48: 0 | FB48: 0 | FC48: 0 | FD48: 0 | FE48: 0 | FF48: 0 | FG48: 0 | FH48: 0 | FI48: 0 | FJ48: 0 | FK48: 0 | FL48: 0
B50: Planned Gross Area | G50: =SUMPRODUCT(--($AV$8:$FL$8=G$8),--($AV$7:$FL$7=4),$AV50:$FL50) -> 0 | H50: 0 | I50: 0 | J50: 0 | K50: 0 | L50: 0 | M50: 0 | N50: 0 | O50: 0 | P50: 0 | Q50: =SUMPRODUCT(--($AV$8:$FL$8=Q$8),--($AV$7:$FL$7=4),$AV50:$FL50) -> 0 | R50: 0 | S50: 10000 | T50: 10000 | U50: 10000 | V50: 10000 | W50: 10000 | X50: 10000 | Y50: 10000 | Z50: 10000 | AA50: =SUMPRODUCT(--($AV$8:$FL$8=AA$8),--($AV$7:$FL$7=4),$AV50:$FL50) -> 10000 | AB50: 10000 | AC50: 0 | AD50: 0 | AE50: 0 | AF50: 0 | AG50: 0 | AH50: 0 | AI50: 0 | AJ50: 0 | AK50: 0 | AO50: =B50 -> Planned Gross Area | AR50: =INDEX(AssetDB!$G$15:$AR$15,MATCH(DevCosts!$AR$31,AssetDB!$G$1:$AR$1,0)) -> 10000 | AS50: =INDEX(AssetDB!$G$84:$AR$84,MATCH(DevCosts!$AR$31,AssetDB!$G$1:$AR$1,0)) -> 44 | AT50: =INDEX(AssetDB!$G$86:$AR$86,MATCH(DevCosts!$AR$31,AssetDB!$G$1:$AR$1,0)) -> 84 | AV50: =$AR50*(AV$9<=$AT50)*(AV$9>$AS50) -> 0 | AW50: 0 | AX50: 0 | AY50: 0 | AZ50: 0 | BA50: 0 | BB50: 0 | BC50: 0 | BD50: 0 | BE50: 0 | BF50: =$AR50*(BF$9<=$AT50)*(BF$9>$AS50) -> 0 | BG50: 0 | BH50: 0 | BI50: 0 | BJ50: 0 | BK50: 0 | BL50: 0 | BM50: 0 | BN50: 0 | BO50: 0 | BP50: =$AR50*(BP$9<=$AT50)*(BP$9>$AS50) -> 0 | BQ50: 0 | BR50: 0 | BS50: 0 | BT50: 0 | BU50: 0 | BV50: 0 | BW50: 0 | BX50: 0 | BY50: 0 | BZ50: =$AR50*(BZ$9<=$AT50)*(BZ$9>$AS50) -> 0 | CA50: 0 | CB50: 0 | CC50: 0 | CD50: 0 | CE50: 0 | CF50: 0 | CG50: 0 | CH50: 0 | CI50: 0 | CJ50: =$AR50*(CJ$9<=$AT50)*(CJ$9>$AS50) -> 0 | CK50: 0 | CL50: 0 | CM50: 0 | CN50: 0 | CO50: 10000 | CP50: 10000 | CQ50: 10000 | CR50: 10000 | CS50: 10000 | CT50: =$AR50*(CT$9<=$AT50)*(CT$9>$AS50) -> 10000 | CU50: 10000 | CV50: 10000 | CW50: 10000 | CX50: 10000 | CY50: 10000 | CZ50: 10000 | DA50: 10000 | DB50: 10000 | DC50: 10000 | DD50: 10000 | DE50: 10000 | DF50: 10000 | DG50: 10000 | DH50: 10000 | DI50: 10000 | DJ50: 10000 | DK50: 10000 | DL50: 10000 | DM50: 10000 | DN50: 10000 | DO50: 10000 | DP50: 10000 | DQ50: 10000 | DR50: 10000 | DS50: 10000 | DT50: 10000 | DU50: 10000 | DV50: 10000 | DW50: 10000 | DX50: 10000 | DY50: 10000 | DZ50: 10000 | EA50: 10000 | EB50: 10000 | EC50: 0 | ED50: 0 | EE50: 0 | EF50: 0 | EG50: 0 | EH50: 0 | EI50: 0 | EJ50: 0 | EK50: 0 | EL50: 0 | EM50: 0 | EN50: 0 | EO50: 0 | EP50: 0 | EQ50: 0 | ER50: 0 | ES50: 0 | ET50: 0 | EU50: 0 | EV50: 0 | EW50: 0 | EX50: 0 | EY50: 0 | EZ50: 0 | FA50: 0 | FB50: 0 | FC50: 0 | FD50: 0 | FE50: 0 | FF50: 0 | FG50: 0 | FH50: 0 | FI50: 0 | FJ50: 0 | FK50: 0 | FL50: 0
B51: Planned Lettable Area | G51: 0 | H51: 0 | I51: 0 | J51: 0 | K51: 0 | L51: 0 | M51: 0 | N51: 0 | O51: 0 | P51: 0 | Q51: 0 | R51: 0 | S51: 7500 | T51: 7500 | U51: 7500 | V51: 7500 | W51: 7500 | X51: 7500 | Y51: 7500 | Z51: 7500 | AA51: 7500 | AB51: 7500 | AC51: 0 | AD51: 0 | AE51: 0 | AF51: 0 | AG51: 0 | AH51: 0 | AI51: 0 | AJ51: 0 | AK51: 0 | AO51: =B51 -> Planned Lettable Area | AR51: =INDEX(AssetDB!$G$17:$AR$17,MATCH(DevCosts!$AR$31,AssetDB!$G$1:$AR$1,0)) -> 7500 | AS51: =AS50 -> 44 | AT51: =AT50 -> 84 | AV51: 0 | AW51: 0 | AX51: 0 | AY51: 0 | AZ51: 0 | BA51: 0 | BB51: 0 | BC51: 0 | BD51: 0 | BE51: 0 | BF51: 0 | BG51: 0 | BH51: 0 | BI51: 0 | BJ51: 0 | BK51: 0 | BL51: 0 | BM51: 0 | BN51: 0 | BO51: 0 | BP51: 0 | BQ51: 0 | BR51: 0 | BS51: 0 | BT51: 0 | BU51: 0 | BV51: 0 | BW51: 0 | BX51: 0 | BY51: 0 | BZ51: 0 | CA51: 0 | CB51: 0 | CC51: 0 | CD51: 0 | CE51: 0 | CF51: 0 | CG51: 0 | CH51: 0 | CI51: 0 | CJ51: 0 | CK51: 0 | CL51: 0 | CM51: 0 | CN51: 0 | CO51: 7500 | CP51: 7500 | CQ51: 7500 | CR51: 7500 | CS51: 7500 | CT51: 7500 | CU51: 7500 | CV51: 7500 | CW51: 7500 | CX51: 7500 | CY51: 7500 | CZ51: 7500 | DA51: 7500 | DB51: 7500 | DC51: 7500 | DD51: 7500 | DE51: 7500 | DF51: 7500 | DG51: 7500 | DH51: 7500 | DI51: 7500 | DJ51: 7500 | DK51: 7500 | DL51: 7500 | DM51: 7500 | DN51: 7500 | DO51: 7500 | DP51: 7500 | DQ51: 7500 | DR51: 7500 | DS51: 7500 | DT51: 7500 | DU51: 7500 | DV51: 7500 | DW51: 7500 | DX51: 7500 | DY51: 7500 | DZ51: 7500 | EA51: 7500 | EB51: 7500 | EC51: 0 | ED51: 0 | EE51: 0 | EF51: 0 | EG51: 0 | EH51: 0 | EI51: 0 | EJ51: 0 | EK51: 0 | EL51: 0 | EM51: 0 | EN51: 0 | EO51: 0 | EP51: 0 | EQ51: 0 | ER51: 0 | ES51: 0 | ET51: 0 | EU51: 0 | EV51: 0 | EW51: 0 | EX51: 0 | EY51: 0 | EZ51: 0 | FA51: 0 | FB51: 0 | FC51: 0 | FD51: 0 | FE51: 0 | FF51: 0 | FG51: 0 | FH51: 0 | FI51: 0 | FJ51: 0 | FK51: 0 | FL51: 0
A53: 1 | B53: Phase 1 | AO53: =B53 -> Phase 1 | AR53: =A53 -> 1
B55: =B33 -> Construction Cost | G55: =SUMIF($AV$8:$FL$8,G$8,$AV55:$FL55) -> 0 | H55: 0 | I55: 0 | J55: 0 | K55: 0 | L55: 0 | M55: 0 | N55: 0 | O55: 0 | P55: -7008.785262 | Q55: =SUMIF($AV$8:$FL$8,Q$8,$AV55:$FL55) -> -19361.18168 | R55: -14339.12324 | S55: 0 | T55: 0 | U55: 0 | V55: 0 | W55: 0 | X55: 0 | Y55: 0 | Z55: 0 | AA55: =SUMIF($AV$8:$FL$8,AA$8,$AV55:$FL55) -> 0 | AB55: 0 | AC55: 0 | AD55: 0 | AE55: 0 | AF55: 0 | AG55: 0 | AH55: 0 | AI55: 0 | AJ55: 0 | AK55: 0 | AM55: =SUM(G55:AK55) -> -40709.09018 | AO55: =B55 -> Construction Cost | AR55: =INDEX(AssetDB!$G$47:$AR$47,MATCH(DevCosts!$AR$53,AssetDB!$G$1:$AR$1,0)) -> 25000 | AV55: =-$AR55*AV56*AV$12 -> 0 | AW55: 0 | AX55: 0 | AY55: 0 | AZ55: 0 | BA55: 0 | BB55: 0 | BC55: 0 | BD55: 0 | BE55: 0 | BF55: 0 | BG55: 0 | BH55: 0 | BI55: 0 | BJ55: 0 | BK55: 0 | BL55: 0 | BM55: 0 | BN55: 0 | BO55: 0 | BP55: 0 | BQ55: 0 | BR55: 0 | BS55: 0 | BT55: 0 | BU55: 0 | BV55: 0 | BW55: 0 | BX55: 0 | BY55: 0 | BZ55: 0 | CA55: 0 | CB55: 0 | CC55: 0 | CD55: 0 | CE55: -2316.953806 | CF55: -4691.831456 | CG55: -4750.479349 | CH55: -4809.860341 | CI55: -4869.983596 | CJ55: -4930.85839 | CK55: -4992.49412 | CL55: -5054.900297 | CM55: -2132.536063 | CN55: -2159.192764 | CO55: 0 | CP55: 0 | CQ55: 0 | CR55: 0 | CS55: 0 | CT55: 0 | CU55: 0 | CV55: 0 | CW55: 0 | CX55: 0 | CY55: 0 | CZ55: 0 | DA55: 0 | DB55: 0 | DC55: 0 | DD55: 0 | DE55: 0 | DF55: 0 | DG55: 0 | DH55: 0 | DI55: 0 | DJ55: 0 | DK55: 0 | DL55: 0 | DM55: 0 | DN55: 0 | DO55: 0 | DP55: 0 | DQ55: 0 | DR55: 0 | DS55: 0 | DT55: 0 | DU55: 0 | DV55: 0 | DW55: 0 | DX55: 0 | DY55: 0 | DZ55: 0 | EA55: 0 | EB55: 0 | EC55: 0 | ED55: 0 | EE55: 0 | EF55: 0 | EG55: 0 | EH55: 0 | EI55: 0 | EJ55: 0 | EK55: 0 | EL55: 0 | EM55: 0 | EN55: 0 | EO55: 0 | EP55: 0 | EQ55: 0 | ER55: 0 | ES55: 0 | ET55: 0 | EU55: 0 | EV55: 0 | EW55: 0 | EX55: 0 | EY55: 0 | EZ55: 0 | FA55: 0 | FB55: 0 | FC55: 0 | FD55: 0 | FE55: 0 | FF55: 0 | FG55: 0 | FH55: 0 | FI55: 0 | FJ55: 0 | FK55: 0 | FL55: 0
B56: Payment Schedule | G56: 0 | H56: 0 | I56: 0 | J56: 0 | K56: 0 | L56: 0 | M56: 0 | N56: 0 | O56: 0 | P56: 0.18 | Q56: 0.48 | R56: 0.34 | S56: 0 | T56: 0 | U56: 0 | V56: 0 | W56: 0 | X56: 0 | Y56: 0 | Z56: 0 | AA56: 0 | AB56: 0 | AC56: 0 | AD56: 0 | AE56: 0 | AF56: 0 | AG56: 0 | AH56: 0 | AI56: 0 | AJ56: 0 | AK56: 0 | AM56: 1 | AO56: Payment Schedule | AV56: =SUMPRODUCT(--(TimingDB!$E$31:$E$46=AV$9),TimingDB!$F$31:$F$46) -> 0 | AW56: =SUMPRODUCT(--(TimingDB!$E$31:$E$46=AW$9),TimingDB!$F$31:$F$46) -> 0 | AX56: =SUMPRODUCT(--(TimingDB!$E$31:$E$46=AX$9),TimingDB!$F$31:$F$46) -> 0 | AY56: =SUMPRODUCT(--(TimingDB!$E$31:$E$46=AY$9),TimingDB!$F$31:$F$46) -> 0 | AZ56: =SUMPRODUCT(--(TimingDB!$E$31:$E$46=AZ$9),TimingDB!$F$31:$F$46) -> 0 | BA56: =SUMPRODUCT(--(TimingDB!$E$31:$E$46=BA$9),TimingDB!$F$31:$F$46) -> 0 | BB56: =SUMPRODUCT(--(TimingDB!$E$31:$E$46=BB$9),TimingDB!$F$31:$F$46) -> 0 | BC56: =SUMPRODUCT(--(TimingDB!$E$31:$E$46=BC$9),TimingDB!$F$31:$F$46) -> 0 | BD56: =SUMPRODUCT(--(TimingDB!$E$31:$E$46=BD$9),TimingDB!$F$31:$F$46) -> 0 | BE56: =SUMPRODUCT(--(TimingDB!$E$31:$E$46=BE$9),TimingDB!$F$31:$F$46) -> 0 | BF56: =SUMPRODUCT(--(TimingDB!$E$31:$E$46=BF$9),TimingDB!$F$31:$F$46) -> 0 | BG56: =SUMPRODUCT(--(TimingDB!$E$31:$E$46=BG$9),TimingDB!$F$31:$F$46) -> 0 | BH56: =SUMPRODUCT(--(TimingDB!$E$31:$E$46=BH$9),TimingDB!$F$31:$F$46) -> 0 | BI56: =SUMPRODUCT(--(TimingDB!$E$31:$E$46=BI$9),TimingDB!$F$31:$F$46) -> 0 | BJ56: =SUMPRODUCT(--(TimingDB!$E$31:$E$46=BJ$9),TimingDB!$F$31:$F$46) -> 0 | BK56: =SUMPRODUCT(--(TimingDB!$E$31:$E$46=BK$9),TimingDB!$F$31:$F$46) -> 0 | BL56: =SUMPRODUCT(--(TimingDB!$E$31:$E$46=BL$9),TimingDB!$F$31:$F$46) -> 0 | BM56: =SUMPRODUCT(--(TimingDB!$E$31:$E$46=BM$9),TimingDB!$F$31:$F$46) -> 0 | BN56: =SUMPRODUCT(--(TimingDB!$E$31:$E$46=BN$9),TimingDB!$F$31:$F$46) -> 0 | BO56: =SUMPRODUCT(--(TimingDB!$E$31:$E$46=BO$9),TimingDB!$F$31:$F$46) -> 0 | BP56: =SUMPRODUCT(--(TimingDB!$E$31:$E$46=BP$9),TimingDB!$F$31:$F$46) -> 0 | BQ56: =SUMPRODUCT(--(TimingDB!$E$31:$E$46=BQ$9),TimingDB!$F$31:$F$46) -> 0 | BR56: =SUMPRODUCT(--(TimingDB!$E$31:$E$46=BR$9),TimingDB!$F$31:$F$46) -> 0 | BS56: =SUMPRODUCT(--(TimingDB!$E$31:$E$46=BS$9),TimingDB!$F$31:$F$46) -> 0 | BT56: =SUMPRODUCT(--(TimingDB!$E$31:$E$46=BT$9),TimingDB!$F$31:$F$46) -> 0 | BU56: =SUMPRODUCT(--(TimingDB!$E$31:$E$46=BU$9),TimingDB!$F$31:$F$46) -> 0 | BV56: =SUMPRODUCT(--(TimingDB!$E$31:$E$46=BV$9),TimingDB!$F$31:$F$46) -> 0 | BW56: =SUMPRODUCT(--(TimingDB!$E$31:$E$46=BW$9),TimingDB!$F$31:$F$46) -> 0 | BX56: =SUMPRODUCT(--(TimingDB!$E$31:$E$46=BX$9),TimingDB!$F$31:$F$46) -> 0 | BY56: =SUMPRODUCT(--(TimingDB!$E$31:$E$46=BY$9),TimingDB!$F$31:$F$46) -> 0 | BZ56: =SUMPRODUCT(--(TimingDB!$E$31:$E$46=BZ$9),TimingDB!$F$31:$F$46) -> 0 | CA56: =SUMPRODUCT(--(TimingDB!$E$31:$E$46=CA$9),TimingDB!$F$31:$F$46) -> 0 | CB56: =SUMPRODUCT(--(TimingDB!$E$31:$E$46=CB$9),TimingDB!$F$31:$F$46) -> 0 | CC56: =SUMPRODUCT(--(TimingDB!$E$31:$E$46=CC$9),TimingDB!$F$31:$F$46) -> 0 | CD56: =SUMPRODUCT(--(TimingDB!$E$31:$E$46=CD$9),TimingDB!$F$31:$F$46) -> 0 | CE56: =SUMPRODUCT(--(TimingDB!$E$31:$E$46=CE$9),TimingDB!$F$31:$F$46) -> 0.06 | CF56: =SUMPRODUCT(--(TimingDB!$E$31:$E$46=CF$9),TimingDB!$F$31:$F$46) -> 0.12 | CG56: =SUMPRODUCT(--(TimingDB!$E$31:$E$46=CG$9),TimingDB!$F$31:$F$46) -> 0.12 | CH56: =SUMPRODUCT(--(TimingDB!$E$31:$E$46=CH$9),TimingDB!$F$31:$F$46) -> 0.12 | CI56: =SUMPRODUCT(--(TimingDB!$E$31:$E$46=CI$9),TimingDB!$F$31:$F$46) -> 0.12 | CJ56: =SUMPRODUCT(--(TimingDB!$E$31:$E$46=CJ$9),TimingDB!$F$31:$F$46) -> 0.12 | CK56: =SUMPRODUCT(--(TimingDB!$E$31:$E$46=CK$9),TimingDB!$F$31:$F$46) -> 0.12 | CL56: =SUMPRODUCT(--(TimingDB!$E$31:$E$46=CL$9),TimingDB!$F$31:$F$46) -> 0.12 | CM56: =SUMPRODUCT(--(TimingDB!$E$31:$E$46=CM$9),TimingDB!$F$31:$F$46) -> 0.05 | CN56: =SUMPRODUCT(--(TimingDB!$E$31:$E$46=CN$9),TimingDB!$F$31:$F$46) -> 0.05 | CO56: =SUMPRODUCT(--(TimingDB!$E$31:$E$46=CO$9),TimingDB!$F$31:$F$46) -> 0 | CP56: =SUMPRODUCT(--(TimingDB!$E$31:$E$46=CP$9),TimingDB!$F$31:$F$46) -> 0 | CQ56: =SUMPRODUCT(--(TimingDB!$E$31:$E$46=CQ$9),TimingDB!$F$31:$F$46) -> 0 | CR56: =SUMPRODUCT(--(TimingDB!$E$31:$E$46=CR$9),TimingDB!$F$31:$F$46) -> 0 | CS56: =SUMPRODUCT(--(TimingDB!$E$31:$E$46=CS$9),TimingDB!$F$31:$F$46) -> 0 | CT56: =SUMPRODUCT(--(TimingDB!$E$31:$E$46=CT$9),TimingDB!$F$31:$F$46) -> 0 | CU56: =SUMPRODUCT(--(TimingDB!$E$31:$E$46=CU$9),TimingDB!$F$31:$F$46) -> 0 | CV56: =SUMPRODUCT(--(TimingDB!$E$31:$E$46=CV$9),TimingDB!$F$31:$F$46) -> 0 | CW56: =SUMPRODUCT(--(TimingDB!$E$31:$E$46=CW$9),TimingDB!$F$31:$F$46) -> 0 | CX56: =SUMPRODUCT(--(TimingDB!$E$31:$E$46=CX$9),TimingDB!$F$31:$F$46) -> 0 | CY56: =SUMPRODUCT(--(TimingDB!$E$31:$E$46=CY$9),TimingDB!$F$31:$F$46) -> 0 | CZ56: =SUMPRODUCT(--(TimingDB!$E$31:$E$46=CZ$9),TimingDB!$F$31:$F$46) -> 0 | DA56: =SUMPRODUCT(--(TimingDB!$E$31:$E$46=DA$9),TimingDB!$F$31:$F$46) -> 0 | DB56: =SUMPRODUCT(--(TimingDB!$E$31:$E$46=DB$9),TimingDB!$F$31:$F$46) -> 0 | DC56: =SUMPRODUCT(--(TimingDB!$E$31:$E$46=DC$9),TimingDB!$F$31:$F$46) -> 0 | DD56: =SUMPRODUCT(--(TimingDB!$E$31:$E$46=DD$9),TimingDB!$F$31:$F$46) -> 0 | DE56: =SUMPRODUCT(--(TimingDB!$E$31:$E$46=DE$9),TimingDB!$F$31:$F$46) -> 0 | DF56: =SUMPRODUCT(--(TimingDB!$E$31:$E$46=DF$9),TimingDB!$F$31:$F$46) -> 0 | DG56: =SUMPRODUCT(--(TimingDB!$E$31:$E$46=DG$9),TimingDB!$F$31:$F$46) -> 0 | DH56: =SUMPRODUCT(--(TimingDB!$E$31:$E$46=DH$9),TimingDB!$F$31:$F$46) -> 0 | DI56: =SUMPRODUCT(--(TimingDB!$E$31:$E$46=DI$9),TimingDB!$F$31:$F$46) -> 0 | DJ56: =SUMPRODUCT(--(TimingDB!$E$31:$E$46=DJ$9),TimingDB!$F$31:$F$46) -> 0 | DK56: =SUMPRODUCT(--(TimingDB!$E$31:$E$46=DK$9),TimingDB!$F$31:$F$46) -> 0 | DL56: =SUMPRODUCT(--(TimingDB!$E$31:$E$46=DL$9),TimingDB!$F$31:$F$46) -> 0 | DM56: =SUMPRODUCT(--(TimingDB!$E$31:$E$46=DM$9),TimingDB!$F$31:$F$46) -> 0 | DN56: =SUMPRODUCT(--(TimingDB!$E$31:$E$46=DN$9),TimingDB!$F$31:$F$46) -> 0 | DO56: =SUMPRODUCT(--(TimingDB!$E$31:$E$46=DO$9),TimingDB!$F$31:$F$46) -> 0 | DP56: =SUMPRODUCT(--(TimingDB!$E$31:$E$46=DP$9),TimingDB!$F$31:$F$46) -> 0 | DQ56: =SUMPRODUCT(--(TimingDB!$E$31:$E$46=DQ$9),TimingDB!$F$31:$F$46) -> 0 | DR56: =SUMPRODUCT(--(TimingDB!$E$31:$E$46=DR$9),TimingDB!$F$31:$F$46) -> 0 | DS56: =SUMPRODUCT(--(TimingDB!$E$31:$E$46=DS$9),TimingDB!$F$31:$F$46) -> 0 | DT56: =SUMPRODUCT(--(TimingDB!$E$31:$E$46=DT$9),TimingDB!$F$31:$F$46) -> 0 | DU56: =SUMPRODUCT(--(TimingDB!$E$31:$E$46=DU$9),TimingDB!$F$31:$F$46) -> 0 | DV56: =SUMPRODUCT(--(TimingDB!$E$31:$E$46=DV$9),TimingDB!$F$31:$F$46) -> 0 | DW56: =SUMPRODUCT(--(TimingDB!$E$31:$E$46=DW$9),TimingDB!$F$31:$F$46) -> 0 | DX56: =SUMPRODUCT(--(TimingDB!$E$31:$E$46=DX$9),TimingDB!$F$31:$F$46) -> 0 | DY56: =SUMPRODUCT(--(TimingDB!$E$31:$E$46=DY$9),TimingDB!$F$31:$F$46) -> 0 | DZ56: =SUMPRODUCT(--(TimingDB!$E$31:$E$46=DZ$9),TimingDB!$F$31:$F$46) -> 0 | EA56: =SUMPRODUCT(--(TimingDB!$E$31:$E$46=EA$9),TimingDB!$F$31:$F$46) -> 0 | EB56: =SUMPRODUCT(--(TimingDB!$E$31:$E$46=EB$9),TimingDB!$F$31:$F$46) -> 0 | EC56: =SUMPRODUCT(--(TimingDB!$E$31:$E$46=EC$9),TimingDB!$F$31:$F$46) -> 0 | ED56: =SUMPRODUCT(--(TimingDB!$E$31:$E$46=ED$9),TimingDB!$F$31:$F$46) -> 0 | EE56: =SUMPRODUCT(--(TimingDB!$E$31:$E$46=EE$9),TimingDB!$F$31:$F$46) -> 0 | EF56: =SUMPRODUCT(--(TimingDB!$E$31:$E$46=EF$9),TimingDB!$F$31:$F$46) -> 0 | EG56: =SUMPRODUCT(--(TimingDB!$E$31:$E$46=EG$9),TimingDB!$F$31:$F$46) -> 0 | EH56: =SUMPRODUCT(--(TimingDB!$E$31:$E$46=EH$9),TimingDB!$F$31:$F$46) -> 0 | EI56: =SUMPRODUCT(--(TimingDB!$E$31:$E$46=EI$9),TimingDB!$F$31:$F$46) -> 0 | EJ56: =SUMPRODUCT(--(TimingDB!$E$31:$E$46=EJ$9),TimingDB!$F$31:$F$46) -> 0 | EK56: =SUMPRODUCT(--(TimingDB!$E$31:$E$46=EK$9),TimingDB!$F$31:$F$46) -> 0 | EL56: =SUMPRODUCT(--(TimingDB!$E$31:$E$46=EL$9),TimingDB!$F$31:$F$46) -> 0 | EM56: =SUMPRODUCT(--(TimingDB!$E$31:$E$46=EM$9),TimingDB!$F$31:$F$46) -> 0 | EN56: =SUMPRODUCT(--(TimingDB!$E$31:$E$46=EN$9),TimingDB!$F$31:$F$46) -> 0 | EO56: =SUMPRODUCT(--(TimingDB!$E$31:$E$46=EO$9),TimingDB!$F$31:$F$46) -> 0 | EP56: =SUMPRODUCT(--(TimingDB!$E$31:$E$46=EP$9),TimingDB!$F$31:$F$46) -> 0 | EQ56: =SUMPRODUCT(--(TimingDB!$E$31:$E$46=EQ$9),TimingDB!$F$31:$F$46) -> 0 | ER56: =SUMPRODUCT(--(TimingDB!$E$31:$E$46=ER$9),TimingDB!$F$31:$F$46) -> 0 | ES56: =SUMPRODUCT(--(TimingDB!$E$31:$E$46=ES$9),TimingDB!$F$31:$F$46) -> 0 | ET56: =SUMPRODUCT(--(TimingDB!$E$31:$E$46=ET$9),TimingDB!$F$31:$F$46) -> 0 | EU56: =SUMPRODUCT(--(TimingDB!$E$31:$E$46=EU$9),TimingDB!$F$31:$F$46) -> 0 | EV56: =SUMPRODUCT(--(TimingDB!$E$31:$E$46=EV$9),TimingDB!$F$31:$F$46) -> 0 | EW56: =SUMPRODUCT(--(TimingDB!$E$31:$E$46=EW$9),TimingDB!$F$31:$F$46) -> 0 | EX56: =SUMPRODUCT(--(TimingDB!$E$31:$E$46=EX$9),TimingDB!$F$31:$F$46) -> 0 | EY56: =SUMPRODUCT(--(TimingDB!$E$31:$E$46=EY$9),TimingDB!$F$31:$F$46) -> 0 | EZ56: =SUMPRODUCT(--(TimingDB!$E$31:$E$46=EZ$9),TimingDB!$F$31:$F$46) -> 0 | FA56: =SUMPRODUCT(--(TimingDB!$E$31:$E$46=FA$9),TimingDB!$F$31:$F$46) -> 0 | FB56: =SUMPRODUCT(--(TimingDB!$E$31:$E$46=FB$9),TimingDB!$F$31:$F$46) -> 0 | FC56: =SUMPRODUCT(--(TimingDB!$E$31:$E$46=FC$9),TimingDB!$F$31:$F$46) -> 0 | FD56: =SUMPRODUCT(--(TimingDB!$E$31:$E$46=FD$9),TimingDB!$F$31:$F$46) -> 0 | FE56: =SUMPRODUCT(--(TimingDB!$E$31:$E$46=FE$9),TimingDB!$F$31:$F$46) -> 0 | FF56: =SUMPRODUCT(--(TimingDB!$E$31:$E$46=FF$9),TimingDB!$F$31:$F$46) -> 0 | FG56: =SUMPRODUCT(--(TimingDB!$E$31:$E$46=FG$9),TimingDB!$F$31:$F$46) -> 0 | FH56: =SUMPRODUCT(--(TimingDB!$E$31:$E$46=FH$9),TimingDB!$F$31:$F$46) -> 0 | FI56: =SUMPRODUCT(--(TimingDB!$E$31:$E$46=FI$9),TimingDB!$F$31:$F$46) -> 0 | FJ56: =SUMPRODUCT(--(TimingDB!$E$31:$E$46=FJ$9),TimingDB!$F$31:$F$46) -> 0 | FK56: =SUMPRODUCT(--(TimingDB!$E$31:$E$46=FK$9),TimingDB!$F$31:$F$46) -> 0 | FL56: =SUMPRODUCT(--(TimingDB!$E$31:$E$46=FL$9),TimingDB!$F$31:$F$46) -> 0
B57: Contingencies | F57: =AR57 -> 0.04 | G57: 0 | H57: 0 | I57: 0 | J57: 0 | K57: 0 | L57: 0 | M57: 0 | N57: 0 | O57: 0 | P57: -280.3514105 | Q57: -774.4472671 | R57: -573.5649297 | S57: 0 | T57: 0 | U57: 0 | V57: 0 | W57: 0 | X57: 0 | Y57: 0 | Z57: 0 | AA57: 0 | AB57: 0 | AC57: 0 | AD57: 0 | AE57: 0 | AF57: 0 | AG57: 0 | AH57: 0 | AI57: 0 | AJ57: 0 | AK57: 0 | AM57: -1628.363607 | AO57: Contingencies | AR57: =INDEX(AssetDB!$G$51:$AR$51,MATCH(DevCosts!$AR$53,AssetDB!$G$1:$AR$1,0)) -> 0.04 | AV57: =$AR57*AV55 -> 0 | AW57: 0 | AX57: 0 | AY57: 0 | AZ57: 0 | BA57: 0 | BB57: 0 | BC57: 0 | BD57: 0 | BE57: 0 | BF57: 0 | BG57: 0 | BH57: 0 | BI57: 0 | BJ57: 0 | BK57: 0 | BL57: 0 | BM57: 0 | BN57: 0 | BO57: 0 | BP57: 0 | BQ57: 0 | BR57: 0 | BS57: 0 | BT57: 0 | BU57: 0 | BV57: 0 | BW57: 0 | BX57: 0 | BY57: 0 | BZ57: 0 | CA57: 0 | CB57: 0 | CC57: 0 | CD57: 0 | CE57: -92.67815222 | CF57: -187.6732582 | CG57: -190.019174 | CH57: -192.3944137 | CI57: -194.7993438 | CJ57: -197.2343356 | CK57: -199.6997648 | CL57: -202.1960119 | CM57: -85.30144251 | CN57: -86.36771054 | CO57: 0 | CP57: 0 | CQ57: 0 | CR57: 0 | CS57: 0 | CT57: 0 | CU57: 0 | CV57: 0 | CW57: 0 | CX57: 0 | CY57: 0 | CZ57: 0 | DA57: 0 | DB57: 0 | DC57: 0 | DD57: 0 | DE57: 0 | DF57: 0 | DG57: 0 | DH57: =$AR57*DH55 -> 0 | DI57: 0 | DJ57: 0 | DK57: 0 | DL57: 0 | DM57: 0 | DN57: 0 | DO57: 0 | DP57: 0 | DQ57: 0 | DR57: 0 | DS57: 0 | DT57: 0 | DU57: 0 | DV57: 0 | DW57: 0 | DX57: 0 | DY57: 0 | DZ57: 0 | EA57: 0 | EB57: 0 | EC57: 0 | ED57: 0 | EE57: 0 | EF57: 0 | EG57: 0 | EH57: 0 | EI57: 0 | EJ57: 0 | EK57: 0 | EL57: 0 | EM57: 0 | EN57: 0 | EO57: 0 | EP57: 0 | EQ57: 0 | ER57: 0 | ES57: 0 | ET57: 0 | EU57: 0 | EV57: 0 | EW57: 0 | EX57: 0 | EY57: 0 | EZ57: 0 | FA57: 0 | FB57: 0 | FC57: 0 | FD57: 0 | FE57: 0 | FF57: 0 | FG57: 0 | FH57: 0 | FI57: 0 | FJ57: 0 | FK57: 0 | FL57: 0
B58: Other Miscellaneous Cost | F58: =AR58 -> 0.05 | G58: 0 | H58: 0 | I58: 0 | J58: 0 | K58: 0 | L58: 0 | M58: 0 | N58: 0 | O58: 0 | P58: -350.4392631 | Q58: -968.0590838 | R58: -716.9561622 | S58: 0 | T58: 0 | U58: 0 | V58: 0 | W58: 0 | X58: 0 | Y58: 0 | Z58: 0 | AA58: 0 | AB58: 0 | AC58: 0 | AD58: 0 | AE58: 0 | AF58: 0 | AG58: 0 | AH58: 0 | AI58: 0 | AJ58: 0 | AK58: 0 | AM58: -2035.454509 | AO58: Other Miscellaneous Cost | AR58: =INDEX(AssetDB!$G$53:$AR$53,MATCH(DevCosts!$AR$53,AssetDB!$G$1:$AR$1,0)) -> 0.05 | AV58: =$AR58*AV55 -> 0 | AW58: 0 | AX58: 0 | AY58: 0 | AZ58: 0 | BA58: 0 | BB58: 0 | BC58: 0 | BD58: 0 | BE58: 0 | BF58: 0 | BG58: 0 | BH58: 0 | BI58: 0 | BJ58: 0 | BK58: 0 | BL58: 0 | BM58: 0 | BN58: 0 | BO58: 0 | BP58: 0 | BQ58: 0 | BR58: 0 | BS58: 0 | BT58: 0 | BU58: 0 | BV58: 0 | BW58: 0 | BX58: 0 | BY58: 0 | BZ58: 0 | CA58: 0 | CB58: 0 | CC58: 0 | CD58: 0 | CE58: -115.8476903 | CF58: -234.5915728 | CG58: -237.5239675 | CH58: -240.4930171 | CI58: -243.4991798 | CJ58: -246.5429195 | CK58: -249.624706 | CL58: -252.7450148 | CM58: -106.6268031 | CN58: -107.9596382 | CO58: 0 | CP58: 0 | CQ58: 0 | CR58: 0 | CS58: 0 | CT58: 0 | CU58: 0 | CV58: 0 | CW58: 0 | CX58: 0 | CY58: 0 | CZ58: 0 | DA58: 0 | DB58: 0 | DC58: 0 | DD58: 0 | DE58: 0 | DF58: 0 | DG58: 0 | DH58: =$AR58*DH55 -> 0 | DI58: 0 | DJ58: 0 | DK58: 0 | DL58: 0 | DM58: 0 | DN58: 0 | DO58: 0 | DP58: 0 | DQ58: 0 | DR58: 0 | DS58: 0 | DT58: 0 | DU58: 0 | DV58: 0 | DW58: 0 | DX58: 0 | DY58: 0 | DZ58: 0 | EA58: 0 | EB58: 0 | EC58: 0 | ED58: 0 | EE58: 0 | EF58: 0 | EG58: 0 | EH58: 0 | EI58: 0 | EJ58: 0 | EK58: 0 | EL58: 0 | EM58: 0 | EN58: 0 | EO58: 0 | EP58: 0 | EQ58: 0 | ER58: 0 | ES58: 0 | ET58: 0 | EU58: 0 | EV58: 0 | EW58: 0 | EX58: 0 | EY58: 0 | EZ58: 0 | FA58: 0 | FB58: 0 | FC58: 0 | FD58: 0 | FE58: 0 | FF58: 0 | FG58: 0 | FH58: 0 | FI58: 0 | FJ58: 0 | FK58: 0 | FL58: 0
B59: Additional Phasing Cost | G59: 0 | H59: 0 | I59: 0 | J59: 0 | K59: 0 | L59: 0 | M59: 0 | N59: 0 | O59: 0 | P59: -700.8785262 | Q59: -1936.118168 | R59: -1433.912324 | S59: 0 | T59: 0 | U59: 0 | V59: 0 | W59: 0 | X59: 0 | Y59: 0 | Z59: 0 | AA59: 0 | AB59: 0 | AC59: 0 | AD59: 0 | AE59: 0 | AF59: 0 | AG59: 0 | AH59: 0 | AI59: 0 | AJ59: 0 | AK59: 0 | AM59: -4070.909018 | AO59: Additional Phasing Cost | AR59: =INDEX(AssetDB!$G$54:$AR$54,MATCH(AR53,AssetDB!$G$1:$AR$1,0)) -> 2500 | AV59: =-$AR59*AV56*AV$12 -> 0 | AW59: 0 | AX59: 0 | AY59: 0 | AZ59: 0 | BA59: 0 | BB59: 0 | BC59: 0 | BD59: 0 | BE59: 0 | BF59: 0 | BG59: 0 | BH59: 0 | BI59: 0 | BJ59: 0 | BK59: 0 | BL59: 0 | BM59: 0 | BN59: 0 | BO59: 0 | BP59: 0 | BQ59: 0 | BR59: 0 | BS59: 0 | BT59: 0 | BU59: 0 | BV59: 0 | BW59: 0 | BX59: 0 | BY59: 0 | BZ59: 0 | CA59: 0 | CB59: 0 | CC59: 0 | CD59: 0 | CE59: -231.6953806 | CF59: -469.1831456 | CG59: -475.0479349 | CH59: -480.9860341 | CI59: -486.9983596 | CJ59: -493.085839 | CK59: -499.249412 | CL59: -505.4900297 | CM59: -213.2536063 | CN59: -215.9192764 | CO59: 0 | CP59: 0 | CQ59: 0 | CR59: 0 | CS59: 0 | CT59: 0 | CU59: 0 | CV59: 0 | CW59: 0 | CX59: 0 | CY59: 0 | CZ59: 0 | DA59: 0 | DB59: 0 | DC59: 0 | DD59: 0 | DE59: 0 | DF59: 0 | DG59: 0 | DH59: =-$AR59*DH56*DH$12 -> 0 | DI59: 0 | DJ59: 0 | DK59: 0 | DL59: 0 | DM59: 0 | DN59: 0 | DO59: 0 | DP59: 0 | DQ59: 0 | DR59: 0 | DS59: 0 | DT59: 0 | DU59: 0 | DV59: 0 | DW59: 0 | DX59: 0 | DY59: 0 | DZ59: 0 | EA59: 0 | EB59: 0 | EC59: 0 | ED59: 0 | EE59: 0 | EF59: 0 | EG59: 0 | EH59: 0 | EI59: 0 | EJ59: 0 | EK59: 0 | EL59: 0 | EM59: 0 | EN59: 0 | EO59: 0 | EP59: 0 | EQ59: 0 | ER59: 0 | ES59: 0 | ET59: 0 | EU59: 0 | EV59: 0 | EW59: 0 | EX59: 0 | EY59: 0 | EZ59: 0 | FA59: 0 | FB59: 0 | FC59: 0 | FD59: 0 | FE59: 0 | FF59: 0 | FG59: 0 | FH59: 0 | FI59: 0 | FJ59: 0 | FK59: 0 | FL59: 0
B60: Site Preparation Costs | G60: 0 | H60: 0 | I60: 0 | J60: 0 | K60: 0 | L60: 0 | M60: 0 | N60: 0 | O60: 0 | P60: -379.037304 | Q60: 0 | R60: 0 | S60: 0 | T60: 0 | U60: 0 | V60: 0 | W60: 0 | X60: 0 | Y60: 0 | Z60: 0 | AA60: 0 | AB60: 0 | AC60: 0 | AD60: 0 | AE60: 0 | AF60: 0 | AG60: 0 | AH60: 0 | AI60: 0 | AJ60: 0 | AK60: 0 | AM60: -379.037304 | AO60: Site Preparation Costs | AR60: =INDEX(AssetDB!$G$56:$AR$56,MATCH(DevCosts!$AR$53,AssetDB!$G$1:$AR$1,0)) -> 250 | AS60: =MAX(INDEX(AssetDB!$G$80:$AR$80,MATCH(DevCosts!$AR$53,AssetDB!$G$1:$AR$1,0))-2,0) -> 33 | AT60: =MAX(INDEX(AssetDB!$G$80:$AR$80,MATCH(DevCosts!$AR$53,AssetDB!$G$1:$AR$1,0))-1,0) -> 34 | AV60: =-($AS60<=AV$1)*($AT60>=AV$1)*$AR60/($AT60-$AS60+1)*AV$12 -> 0 | AW60: 0 | AX60: 0 | AY60: 0 | AZ60: 0 | BA60: 0 | BB60: 0 | BC60: 0 | BD60: 0 | BE60: 0 | BF60: 0 | BG60: 0 | BH60: 0 | BI60: 0 | BJ60: 0 | BK60: 0 | BL60: =-($AS60<=BL$1)*($AT60>=BL$1)*$AR60/($AT60-$AS60+1)*BL$12 -> 0 | BM60: 0 | BN60: 0 | BO60: 0 | BP60: 0 | BQ60: 0 | BR60: 0 | BS60: 0 | BT60: 0 | BU60: 0 | BV60: 0 | BW60: 0 | BX60: 0 | BY60: 0 | BZ60: 0 | CA60: 0 | CB60: =-($AS60<=CB$1)*($AT60>=CB$1)*$AR60/($AT60-$AS60+1)*CB$12 -> 0 | CC60: -188.3415175 | CD60: -190.6957865 | CE60: 0 | CF60: 0 | CG60: 0 | CH60: 0 | CI60: 0 | CJ60: 0 | CK60: 0 | CL60: 0 | CM60: 0 | CN60: 0 | CO60: 0 | CP60: 0 | CQ60: 0 | CR60: =-($AS60<=CR$1)*($AT60>=CR$1)*$AR60/($AT60-$AS60+1)*CR$12 -> 0 | CS60: 0 | CT60: 0 | CU60: 0 | CV60: 0 | CW60: 0 | CX60: 0 | CY60: 0 | CZ60: 0 | DA60: 0 | DB60: 0 | DC60: 0 | DD60: 0 | DE60: 0 | DF60: 0 | DG60: 0 | DH60: 0 | DI60: 0 | DJ60: 0 | DK60: 0 | DL60: 0 | DM60: 0 | DN60: 0 | DO60: 0 | DP60: 0 | DQ60: 0 | DR60: 0 | DS60: 0 | DT60: 0 | DU60: 0 | DV60: 0 | DW60: 0 | DX60: 0 | DY60: 0 | DZ60: 0 | EA60: 0 | EB60: 0 | EC60: 0 | ED60: 0 | EE60: 0 | EF60: 0 | EG60: 0 | EH60: 0 | EI60: 0 | EJ60: 0 | EK60: 0 | EL60: 0 | EM60: 0 | EN60: 0 | EO60: 0 | EP60: 0 | EQ60: 0 | ER60: 0 | ES60: 0 | ET60: 0 | EU60: 0 | EV60: 0 | EW60: 0 | EX60: 0 | EY60: 0 | EZ60: 0 | FA60: 0 | FB60: 0 | FC60: 0 | FD60: 0 | FE60: 0 | FF60: 0 | FG60: 0 | FH60: 0 | FI60: 0 | FJ60: 0 | FK60: 0 | FL60: 0
B62: =B40 -> Total Construction Cost | G62: =SUM(G55,G57,G58,G59,G60) -> 0 | H62: 0 | I62: 0 | J62: 0 | K62: 0 | L62: 0 | M62: 0 | N62: 0 | O62: 0 | P62: -8719.491765 | Q62: -23039.8062 | R62: -17063.55666 | S62: 0 | T62: 0 | U62: 0 | V62: 0 | W62: =SUM(W55,W57,W58,W59,W60) -> 0 | X62: 0 | Y62: 0 | Z62: 0 | AA62: 0 | AB62: 0 | AC62: 0 | AD62: 0 | AE62: 0 | AF62: 0 | AG62: 0 | AH62: 0 | AI62: 0 | AJ62: 0 | AK62: 0 | AM62: =SUM(G62:AK62) -> -48822.85462 | AO62: =B62 -> Total Construction Cost | AV62: =SUM(AV60,AV59,AV58,AV57,AV55) -> 0 | AW62: 0 | AX62: 0 | AY62: 0 | AZ62: 0 | BA62: 0 | BB62: 0 | BC62: 0 | BD62: 0 | BE62: 0 | BF62: 0 | BG62: 0 | BH62: 0 | BI62: 0 | BJ62: 0 | BK62: 0 | BL62: 0 | BM62: 0 | BN62: 0 | BO62: 0 | BP62: 0 | BQ62: 0 | BR62: 0 | BS62: 0 | BT62: 0 | BU62: 0 | BV62: 0 | BW62: 0 | BX62: 0 | BY62: 0 | BZ62: 0 | CA62: 0 | CB62: 0 | CC62: -188.3415175 | CD62: -190.6957865 | CE62: -2757.175029 | CF62: -5583.279433 | CG62: -5653.070426 | CH62: -5723.733806 | CI62: -5795.280479 | CJ62: -5867.721485 | CK62: -5941.068003 | CL62: -6015.331353 | CM62: -2537.717915 | CN62: -2569.439389 | CO62: 0 | CP62: 0 | CQ62: 0 | CR62: 0 | CS62: 0 | CT62: 0 | CU62: 0 | CV62: 0 | CW62: 0 | CX62: 0 | CY62: 0 | CZ62: 0 | DA62: 0 | DB62: 0 | DC62: 0 | DD62: =SUM(DD60,DD59,DD58,DD57,DD55) -> 0 | DE62: 0 | DF62: 0 | DG62: 0 | DH62: 0 | DI62: 0 | DJ62: 0 | DK62: 0 | DL62: 0 | DM62: 0 | DN62: 0 | DO62: 0 | DP62: 0 | DQ62: 0 | DR62: 0 | DS62: 0 | DT62: 0 | DU62: 0 | DV62: 0 | DW62: 0 | DX62: 0 | DY62: 0 | DZ62: 0 | EA62: 0 | EB62: 0 | EC62: 0 | ED62: 0 | EE62: 0 | EF62: 0 | EG62: 0 | EH62: 0 | EI62: 0 | EJ62: 0 | EK62: 0 | EL62: 0 | EM62: 0 | EN62: 0 | EO62: 0 | EP62: 0 | EQ62: 0 | ER62: 0 | ES62: 0 | ET62: 0 | EU62: 0 | EV62: 0 | EW62: 0 | EX62: 0 | EY62: 0 | EZ62: 0 | FA62: 0 | FB62: 0 | FC62: 0 | FD62: 0 | FE62: 0 | FF62: 0 | FG62: 0 | FH62: 0 | FI62: 0 | FJ62: 0 | FK62: 0 | FL62: 0
B64: =B42 -> Architects and Engineer Fees | F64: =AM64/AM$40 -> 0.15 | G64: =SUMIF($AV$8:$FL$8,G$8,$AV64:$FL64) -> 0 | H64: -7323.428193 | I64: 0 | J64: 0 | K64: 0 | L64: 0 | M64: 0 | N64: 0 | O64: 0 | P64: 0 | Q64: =SUMIF($AV$8:$FL$8,Q$8,$AV64:$FL64) -> 0 | R64: 0 | S64: 0 | T64: 0 | U64: 0 | V64: 0 | W64: 0 | X64: 0 | Y64: 0 | Z64: 0 | AA64: =SUMIF($AV$8:$FL$8,AA$8,$AV64:$FL64) -> 0 | AB64: 0 | AC64: 0 | AD64: 0 | AE64: 0 | AF64: 0 | AG64: 0 | AH64: 0 | AI64: 0 | AJ64: 0 | AK64: 0 | AM64: =SUM(G64:AK64) -> -7323.428193 | AO64: =B64 -> Architects and Engineer Fees | AR64: =IF(AR55=0,0,INDEX(AssetDB!$G$62:$AR$62,MATCH(DevCosts!$AR$141,AssetDB!$G$1:$AR$1,0))) -> 0.15 | AV64: =$AR64*$AM$40*AV65 -> 0 | AW64: 0 | AX64: -3661.714097 | AY64: 0 | AZ64: -3661.714097 | BA64: 0 | BB64: 0 | BC64: 0 | BD64: 0 | BE64: 0 | BF64: 0 | BG64: 0 | BH64: 0 | BI64: 0 | BJ64: 0 | BK64: 0 | BL64: 0 | BM64: 0 | BN64: 0 | BO64: 0 | BP64: 0 | BQ64: 0 | BR64: 0 | BS64: 0 | BT64: 0 | BU64: 0 | BV64: 0 | BW64: 0 | BX64: 0 | BY64: 0 | BZ64: 0 | CA64: 0 | CB64: =$AR64*$AM$40*CB65 -> 0 | CC64: 0 | CD64: 0 | CE64: 0 | CF64: 0 | CG64: 0 | CH64: 0 | CI64: 0 | CJ64: 0 | CK64: 0 | CL64: 0 | CM64: 0 | CN64: 0 | CO64: 0 | CP64: 0 | CQ64: 0 | CR64: 0 | CS64: 0 | CT64: 0 | CU64: 0 | CV64: 0 | CW64: 0 | CX64: 0 | CY64: 0 | CZ64: 0 | DA64: 0 | DB64: 0 | DC64: 0 | DD64: 0 | DE64: 0 | DF64: 0 | DG64: 0 | DH64: 0 | DI64: 0 | DJ64: 0 | DK64: 0 | DL64: 0 | DM64: 0 | DN64: 0 | DO64: 0 | DP64: 0 | DQ64: 0 | DR64: 0 | DS64: 0 | DT64: 0 | DU64: 0 | DV64: 0 | DW64: 0 | DX64: 0 | DY64: 0 | DZ64: 0 | EA64: 0 | EB64: 0 | EC64: 0 | ED64: 0 | EE64: 0 | EF64: 0 | EG64: 0 | EH64: 0 | EI64: 0 | EJ64: 0 | EK64: 0 | EL64: 0 | EM64: 0 | EN64: 0 | EO64: 0 | EP64: 0 | EQ64: 0 | ER64: 0 | ES64: 0 | ET64: 0 | EU64: 0 | EV64: 0 | EW64: 0 | EX64: 0 | EY64: 0 | EZ64: 0 | FA64: 0 | FB64: 0 | FC64: 0 | FD64: 0 | FE64: 0 | FF64: 0 | FG64: 0 | FH64: 0 | FI64: 0 | FJ64: 0 | FK64: 0 | FL64: 0
B65: =B43 -> Payment Schedule | G65: 0 | H65: 1 | I65: 0 | J65: 0 | K65: 0 | L65: 0 | M65: 0 | N65: 0 | O65: 0 | P65: 0 | Q65: 0 | R65: 0 | S65: 0 | T65: 0 | U65: 0 | V65: 0 | W65: 0 | X65: 0 | Y65: 0 | Z65: 0 | AA65: 0 | AB65: 0 | AC65: 0 | AD65: 0 | AE65: 0 | AF65: 0 | AG65: 0 | AH65: 0 | AI65: 0 | AJ65: 0 | AK65: 0 | AM65: =SUM(G65:AK65) -> 1 | AO65: =B65 -> Payment Schedule | AV65: =SUMPRODUCT(--(TimingDB!$E$11:$E$26=AV$9),TimingDB!$F$11:$F$26) -> 0 | AW65: =SUMPRODUCT(--(TimingDB!$E$11:$E$26=AW$9),TimingDB!$F$11:$F$26) -> 0 | AX65: =SUMPRODUCT(--(TimingDB!$E$11:$E$26=AX$9),TimingDB!$F$11:$F$26) -> 0.5 | AY65: =SUMPRODUCT(--(TimingDB!$E$11:$E$26=AY$9),TimingDB!$F$11:$F$26) -> 0 | AZ65: =SUMPRODUCT(--(TimingDB!$E$11:$E$26=AZ$9),TimingDB!$F$11:$F$26) -> 0.5 | BA65: =SUMPRODUCT(--(TimingDB!$E$11:$E$26=BA$9),TimingDB!$F$11:$F$26) -> 0 | BB65: =SUMPRODUCT(--(TimingDB!$E$11:$E$26=BB$9),TimingDB!$F$11:$F$26) -> 0 | BC65: =SUMPRODUCT(--(TimingDB!$E$11:$E$26=BC$9),TimingDB!$F$11:$F$26) -> 0 | BD65: =SUMPRODUCT(--(TimingDB!$E$11:$E$26=BD$9),TimingDB!$F$11:$F$26) -> 0 | BE65: =SUMPRODUCT(--(TimingDB!$E$11:$E$26=BE$9),TimingDB!$F$11:$F$26) -> 0 | BF65: =SUMPRODUCT(--(TimingDB!$E$11:$E$26=BF$9),TimingDB!$F$11:$F$26) -> 0 | BG65: =SUMPRODUCT(--(TimingDB!$E$11:$E$26=BG$9),TimingDB!$F$11:$F$26) -> 0 | BH65: =SUMPRODUCT(--(TimingDB!$E$11:$E$26=BH$9),TimingDB!$F$11:$F$26) -> 0 | BI65: =SUMPRODUCT(--(TimingDB!$E$11:$E$26=BI$9),TimingDB!$F$11:$F$26) -> 0 | BJ65: =SUMPRODUCT(--(TimingDB!$E$11:$E$26=BJ$9),TimingDB!$F$11:$F$26) -> 0 | BK65: =SUMPRODUCT(--(TimingDB!$E$11:$E$26=BK$9),TimingDB!$F$11:$F$26) -> 0 | BL65: =SUMPRODUCT(--(TimingDB!$E$11:$E$26=BL$9),TimingDB!$F$11:$F$26) -> 0 | BM65: =SUMPRODUCT(--(TimingDB!$E$11:$E$26=BM$9),TimingDB!$F$11:$F$26) -> 0 | BN65: =SUMPRODUCT(--(TimingDB!$E$11:$E$26=BN$9),TimingDB!$F$11:$F$26) -> 0 | BO65: =SUMPRODUCT(--(TimingDB!$E$11:$E$26=BO$9),TimingDB!$F$11:$F$26) -> 0 | BP65: =SUMPRODUCT(--(TimingDB!$E$11:$E$26=BP$9),TimingDB!$F$11:$F$26) -> 0 | BQ65: =SUMPRODUCT(--(TimingDB!$E$11:$E$26=BQ$9),TimingDB!$F$11:$F$26) -> 0 | BR65: =SUMPRODUCT(--(TimingDB!$E$11:$E$26=BR$9),TimingDB!$F$11:$F$26) -> 0 | BS65: =SUMPRODUCT(--(TimingDB!$E$11:$E$26=BS$9),TimingDB!$F$11:$F$26) -> 0 | BT65: =SUMPRODUCT(--(TimingDB!$E$11:$E$26=BT$9),TimingDB!$F$11:$F$26) -> 0 | BU65: =SUMPRODUCT(--(TimingDB!$E$11:$E$26=BU$9),TimingDB!$F$11:$F$26) -> 0 | BV65: =SUMPRODUCT(--(TimingDB!$E$11:$E$26=BV$9),TimingDB!$F$11:$F$26) -> 0 | BW65: =SUMPRODUCT(--(TimingDB!$E$11:$E$26=BW$9),TimingDB!$F$11:$F$26) -> 0 | BX65: =SUMPRODUCT(--(TimingDB!$E$11:$E$26=BX$9),TimingDB!$F$11:$F$26) -> 0 | BY65: =SUMPRODUCT(--(TimingDB!$E$11:$E$26=BY$9),TimingDB!$F$11:$F$26) -> 0 | BZ65: =SUMPRODUCT(--(TimingDB!$E$11:$E$26=BZ$9),TimingDB!$F$11:$F$26) -> 0 | CA65: =SUMPRODUCT(--(TimingDB!$E$11:$E$26=CA$9),TimingDB!$F$11:$F$26) -> 0 | CB65: =SUMPRODUCT(--(TimingDB!$E$11:$E$26=CB$9),TimingDB!$F$11:$F$26) -> 0 | CC65: =SUMPRODUCT(--(TimingDB!$E$11:$E$26=CC$9),TimingDB!$F$11:$F$26) -> 0 | CD65: =SUMPRODUCT(--(TimingDB!$E$11:$E$26=CD$9),TimingDB!$F$11:$F$26) -> 0 | CE65: =SUMPRODUCT(--(TimingDB!$E$11:$E$26=CE$9),TimingDB!$F$11:$F$26) -> 0 | CF65: =SUMPRODUCT(--(TimingDB!$E$11:$E$26=CF$9),TimingDB!$F$11:$F$26) -> 0 | CG65: =SUMPRODUCT(--(TimingDB!$E$11:$E$26=CG$9),TimingDB!$F$11:$F$26) -> 0 | CH65: =SUMPRODUCT(--(TimingDB!$E$11:$E$26=CH$9),TimingDB!$F$11:$F$26) -> 0 | CI65: =SUMPRODUCT(--(TimingDB!$E$11:$E$26=CI$9),TimingDB!$F$11:$F$26) -> 0 | CJ65: =SUMPRODUCT(--(TimingDB!$E$11:$E$26=CJ$9),TimingDB!$F$11:$F$26) -> 0 | CK65: =SUMPRODUCT(--(TimingDB!$E$11:$E$26=CK$9),TimingDB!$F$11:$F$26) -> 0 | CL65: =SUMPRODUCT(--(TimingDB!$E$11:$E$26=CL$9),TimingDB!$F$11:$F$26) -> 0 | CM65: =SUMPRODUCT(--(TimingDB!$E$11:$E$26=CM$9),TimingDB!$F$11:$F$26) -> 0 | CN65: =SUMPRODUCT(--(TimingDB!$E$11:$E$26=CN$9),TimingDB!$F$11:$F$26) -> 0 | CO65: =SUMPRODUCT(--(TimingDB!$E$11:$E$26=CO$9),TimingDB!$F$11:$F$26) -> 0 | CP65: =SUMPRODUCT(--(TimingDB!$E$11:$E$26=CP$9),TimingDB!$F$11:$F$26) -> 0 | CQ65: =SUMPRODUCT(--(TimingDB!$E$11:$E$26=CQ$9),TimingDB!$F$11:$F$26) -> 0 | CR65: =SUMPRODUCT(--(TimingDB!$E$11:$E$26=CR$9),TimingDB!$F$11:$F$26) -> 0 | CS65: =SUMPRODUCT(--(TimingDB!$E$11:$E$26=CS$9),TimingDB!$F$11:$F$26) -> 0 | CT65: =SUMPRODUCT(--(TimingDB!$E$11:$E$26=CT$9),TimingDB!$F$11:$F$26) -> 0 | CU65: =SUMPRODUCT(--(TimingDB!$E$11:$E$26=CU$9),TimingDB!$F$11:$F$26) -> 0 | CV65: =SUMPRODUCT(--(TimingDB!$E$11:$E$26=CV$9),TimingDB!$F$11:$F$26) -> 0 | CW65: =SUMPRODUCT(--(TimingDB!$E$11:$E$26=CW$9),TimingDB!$F$11:$F$26) -> 0 | CX65: =SUMPRODUCT(--(TimingDB!$E$11:$E$26=CX$9),TimingDB!$F$11:$F$26) -> 0 | CY65: =SUMPRODUCT(--(TimingDB!$E$11:$E$26=CY$9),TimingDB!$F$11:$F$26) -> 0 | CZ65: =SUMPRODUCT(--(TimingDB!$E$11:$E$26=CZ$9),TimingDB!$F$11:$F$26) -> 0 | DA65: =SUMPRODUCT(--(TimingDB!$E$11:$E$26=DA$9),TimingDB!$F$11:$F$26) -> 0 | DB65: =SUMPRODUCT(--(TimingDB!$E$11:$E$26=DB$9),TimingDB!$F$11:$F$26) -> 0 | DC65: =SUMPRODUCT(--(TimingDB!$E$11:$E$26=DC$9),TimingDB!$F$11:$F$26) -> 0 | DD65: =SUMPRODUCT(--(TimingDB!$E$11:$E$26=DD$9),TimingDB!$F$11:$F$26) -> 0 | DE65: =SUMPRODUCT(--(TimingDB!$E$11:$E$26=DE$9),TimingDB!$F$11:$F$26) -> 0 | DF65: =SUMPRODUCT(--(TimingDB!$E$11:$E$26=DF$9),TimingDB!$F$11:$F$26) -> 0 | DG65: =SUMPRODUCT(--(TimingDB!$E$11:$E$26=DG$9),TimingDB!$F$11:$F$26) -> 0 | DH65: =SUMPRODUCT(--(TimingDB!$E$11:$E$26=DH$9),TimingDB!$F$11:$F$26) -> 0 | DI65: =SUMPRODUCT(--(TimingDB!$E$11:$E$26=DI$9),TimingDB!$F$11:$F$26) -> 0 | DJ65: =SUMPRODUCT(--(TimingDB!$E$11:$E$26=DJ$9),TimingDB!$F$11:$F$26) -> 0 | DK65: =SUMPRODUCT(--(TimingDB!$E$11:$E$26=DK$9),TimingDB!$F$11:$F$26) -> 0 | DL65: =SUMPRODUCT(--(TimingDB!$E$11:$E$26=DL$9),TimingDB!$F$11:$F$26) -> 0 | DM65: =SUMPRODUCT(--(TimingDB!$E$11:$E$26=DM$9),TimingDB!$F$11:$F$26) -> 0 | DN65: =SUMPRODUCT(--(TimingDB!$E$11:$E$26=DN$9),TimingDB!$F$11:$F$26) -> 0 | DO65: =SUMPRODUCT(--(TimingDB!$E$11:$E$26=DO$9),TimingDB!$F$11:$F$26) -> 0 | DP65: =SUMPRODUCT(--(TimingDB!$E$11:$E$26=DP$9),TimingDB!$F$11:$F$26) -> 0 | DQ65: =SUMPRODUCT(--(TimingDB!$E$11:$E$26=DQ$9),TimingDB!$F$11:$F$26) -> 0 | DR65: =SUMPRODUCT(--(TimingDB!$E$11:$E$26=DR$9),TimingDB!$F$11:$F$26) -> 0 | DS65: =SUMPRODUCT(--(TimingDB!$E$11:$E$26=DS$9),TimingDB!$F$11:$F$26) -> 0 | DT65: =SUMPRODUCT(--(TimingDB!$E$11:$E$26=DT$9),TimingDB!$F$11:$F$26) -> 0 | DU65: =SUMPRODUCT(--(TimingDB!$E$11:$E$26=DU$9),TimingDB!$F$11:$F$26) -> 0 | DV65: =SUMPRODUCT(--(TimingDB!$E$11:$E$26=DV$9),TimingDB!$F$11:$F$26) -> 0 | DW65: =SUMPRODUCT(--(TimingDB!$E$11:$E$26=DW$9),TimingDB!$F$11:$F$26) -> 0 | DX65: =SUMPRODUCT(--(TimingDB!$E$11:$E$26=DX$9),TimingDB!$F$11:$F$26) -> 0 | DY65: =SUMPRODUCT(--(TimingDB!$E$11:$E$26=DY$9),TimingDB!$F$11:$F$26) -> 0 | DZ65: =SUMPRODUCT(--(TimingDB!$E$11:$E$26=DZ$9),TimingDB!$F$11:$F$26) -> 0 | EA65: =SUMPRODUCT(--(TimingDB!$E$11:$E$26=EA$9),TimingDB!$F$11:$F$26) -> 0 | EB65: =SUMPRODUCT(--(TimingDB!$E$11:$E$26=EB$9),TimingDB!$F$11:$F$26) -> 0 | EC65: =SUMPRODUCT(--(TimingDB!$E$11:$E$26=EC$9),TimingDB!$F$11:$F$26) -> 0 | ED65: =SUMPRODUCT(--(TimingDB!$E$11:$E$26=ED$9),TimingDB!$F$11:$F$26) -> 0 | EE65: =SUMPRODUCT(--(TimingDB!$E$11:$E$26=EE$9),TimingDB!$F$11:$F$26) -> 0 | EF65: =SUMPRODUCT(--(TimingDB!$E$11:$E$26=EF$9),TimingDB!$F$11:$F$26) -> 0 | EG65: =SUMPRODUCT(--(TimingDB!$E$11:$E$26=EG$9),TimingDB!$F$11:$F$26) -> 0 | EH65: =SUMPRODUCT(--(TimingDB!$E$11:$E$26=EH$9),TimingDB!$F$11:$F$26) -> 0 | EI65: =SUMPRODUCT(--(TimingDB!$E$11:$E$26=EI$9),TimingDB!$F$11:$F$26) -> 0 | EJ65: =SUMPRODUCT(--(TimingDB!$E$11:$E$26=EJ$9),TimingDB!$F$11:$F$26) -> 0 | EK65: =SUMPRODUCT(--(TimingDB!$E$11:$E$26=EK$9),TimingDB!$F$11:$F$26) -> 0 | EL65: =SUMPRODUCT(--(TimingDB!$E$11:$E$26=EL$9),TimingDB!$F$11:$F$26) -> 0 | EM65: =SUMPRODUCT(--(TimingDB!$E$11:$E$26=EM$9),TimingDB!$F$11:$F$26) -> 0 | EN65: =SUMPRODUCT(--(TimingDB!$E$11:$E$26=EN$9),TimingDB!$F$11:$F$26) -> 0 | EO65: =SUMPRODUCT(--(TimingDB!$E$11:$E$26=EO$9),TimingDB!$F$11:$F$26) -> 0 | EP65: =SUMPRODUCT(--(TimingDB!$E$11:$E$26=EP$9),TimingDB!$F$11:$F$26) -> 0 | EQ65: =SUMPRODUCT(--(TimingDB!$E$11:$E$26=EQ$9),TimingDB!$F$11:$F$26) -> 0 | ER65: =SUMPRODUCT(--(TimingDB!$E$11:$E$26=ER$9),TimingDB!$F$11:$F$26) -> 0 | ES65: =SUMPRODUCT(--(TimingDB!$E$11:$E$26=ES$9),TimingDB!$F$11:$F$26) -> 0 | ET65: =SUMPRODUCT(--(TimingDB!$E$11:$E$26=ET$9),TimingDB!$F$11:$F$26) -> 0 | EU65: =SUMPRODUCT(--(TimingDB!$E$11:$E$26=EU$9),TimingDB!$F$11:$F$26) -> 0 | EV65: =SUMPRODUCT(--(TimingDB!$E$11:$E$26=EV$9),TimingDB!$F$11:$F$26) -> 0 | EW65: =SUMPRODUCT(--(TimingDB!$E$11:$E$26=EW$9),TimingDB!$F$11:$F$26) -> 0 | EX65: =SUMPRODUCT(--(TimingDB!$E$11:$E$26=EX$9),TimingDB!$F$11:$F$26) -> 0 | EY65: =SUMPRODUCT(--(TimingDB!$E$11:$E$26=EY$9),TimingDB!$F$11:$F$26) -> 0 | EZ65: =SUMPRODUCT(--(TimingDB!$E$11:$E$26=EZ$9),TimingDB!$F$11:$F$26) -> 0 | FA65: =SUMPRODUCT(--(TimingDB!$E$11:$E$26=FA$9),TimingDB!$F$11:$F$26) -> 0 | FB65: =SUMPRODUCT(--(TimingDB!$E$11:$E$26=FB$9),TimingDB!$F$11:$F$26) -> 0 | FC65: =SUMPRODUCT(--(TimingDB!$E$11:$E$26=FC$9),TimingDB!$F$11:$F$26) -> 0 | FD65: =SUMPRODUCT(--(TimingDB!$E$11:$E$26=FD$9),TimingDB!$F$11:$F$26) -> 0 | FE65: =SUMPRODUCT(--(TimingDB!$E$11:$E$26=FE$9),TimingDB!$F$11:$F$26) -> 0 | FF65: =SUMPRODUCT(--(TimingDB!$E$11:$E$26=FF$9),TimingDB!$F$11:$F$26) -> 0 | FG65: =SUMPRODUCT(--(TimingDB!$E$11:$E$26=FG$9),TimingDB!$F$11:$F$26) -> 0 | FH65: =SUMPRODUCT(--(TimingDB!$E$11:$E$26=FH$9),TimingDB!$F$11:$F$26) -> 0 | FI65: =SUMPRODUCT(--(TimingDB!$E$11:$E$26=FI$9),TimingDB!$F$11:$F$26) -> 0 | FJ65: =SUMPRODUCT(--(TimingDB!$E$11:$E$26=FJ$9),TimingDB!$F$11:$F$26) -> 0 | FK65: =SUMPRODUCT(--(TimingDB!$E$11:$E$26=FK$9),TimingDB!$F$11:$F$26) -> 0 | FL65: =SUMPRODUCT(--(TimingDB!$E$11:$E$26=FL$9),TimingDB!$F$11:$F$26) -> 0
B66: =B44 -> Other Soft Costs (Consultants, Insurance) | F66: =AM66/AM$40 -> 0.02 | G66: 0 | H66: 0 | I66: 0 | J66: 0 | K66: 0 | L66: 0 | M66: 0 | N66: 0 | O66: 0 | P66: -174.3898353 | Q66: -460.7961239 | R66: -341.2711332 | S66: 0 | T66: 0 | U66: 0 | V66: 0 | W66: 0 | X66: 0 | Y66: 0 | Z66: 0 | AA66: 0 | AB66: 0 | AC66: 0 | AD66: 0 | AE66: 0 | AF66: 0 | AG66: 0 | AH66: 0 | AI66: 0 | AJ66: 0 | AK66: 0 | AM66: =SUM(G66:AK66) -> -976.4570924 | AO66: =B66 -> Other Soft Costs (Consultants, Insurance) | AR66: =INDEX(AssetDB!$G$64:$AR$64,MATCH(DevCosts!$AR$53,AssetDB!$G$1:$AR$1,0)) -> 0.02 | AV66: =$AR66*AV62 -> 0 | AW66: 0 | AX66: 0 | AY66: 0 | AZ66: 0 | BA66: 0 | BB66: 0 | BC66: 0 | BD66: 0 | BE66: 0 | BF66: 0 | BG66: 0 | BH66: 0 | BI66: 0 | BJ66: 0 | BK66: 0 | BL66: 0 | BM66: 0 | BN66: 0 | BO66: 0 | BP66: 0 | BQ66: 0 | BR66: 0 | BS66: 0 | BT66: 0 | BU66: 0 | BV66: 0 | BW66: 0 | BX66: 0 | BY66: 0 | BZ66: 0 | CA66: 0 | CB66: 0 | CC66: -3.76683035 | CD66: -3.813915729 | CE66: -55.14350057 | CF66: -111.6655887 | CG66: -113.0614085 | CH66: -114.4746761 | CI66: -115.9056096 | CJ66: -117.3544297 | CK66: -118.8213601 | CL66: -120.3066271 | CM66: -50.75435829 | CN66: -51.38878777 | CO66: 0 | CP66: 0 | CQ66: 0 | CR66: 0 | CS66: 0 | CT66: 0 | CU66: 0 | CV66: 0 | CW66: 0 | CX66: 0 | CY66: 0 | CZ66: 0 | DA66: 0 | DB66: 0 | DC66: 0 | DD66: 0 | DE66: 0 | DF66: 0 | DG66: 0 | DH66: =$AR66*DH62 -> 0 | DI66: 0 | DJ66: 0 | DK66: 0 | DL66: 0 | DM66: 0 | DN66: 0 | DO66: 0 | DP66: 0 | DQ66: 0 | DR66: 0 | DS66: 0 | DT66: 0 | DU66: 0 | DV66: 0 | DW66: 0 | DX66: 0 | DY66: 0 | DZ66: 0 | EA66: 0 | EB66: 0 | EC66: 0 | ED66: 0 | EE66: 0 | EF66: 0 | EG66: 0 | EH66: 0 | EI66: 0 | EJ66: 0 | EK66: 0 | EL66: 0 | EM66: 0 | EN66: 0 | EO66: 0 | EP66: 0 | EQ66: 0 | ER66: 0 | ES66: 0 | ET66: 0 | EU66: 0 | EV66: 0 | EW66: 0 | EX66: 0 | EY66: 0 | EZ66: 0 | FA66: 0 | FB66: 0 | FC66: 0 | FD66: 0 | FE66: 0 | FF66: 0 | FG66: 0 | FH66: 0 | FI66: 0 | FJ66: 0 | FK66: 0 | FL66: 0
B68: =B46 -> Total Fees & Other Soft Costs | G68: =G64+G66 -> 0 | H68: -7323.428193 | I68: 0 | J68: 0 | K68: 0 | L68: 0 | M68: 0 | N68: 0 | O68: 0 | P68: -174.3898353 | Q68: -460.7961239 | R68: -341.2711332 | S68: 0 | T68: 0 | U68: 0 | V68: 0 | W68: =W64+W66 -> 0 | X68: 0 | Y68: 0 | Z68: 0 | AA68: 0 | AB68: 0 | AC68: 0 | AD68: 0 | AE68: 0 | AF68: 0 | AG68: 0 | AH68: 0 | AI68: 0 | AJ68: 0 | AK68: 0 | AM68: =SUM(G68:AK68) -> -8299.885285 | AO68: =B68 -> Total Fees & Other Soft Costs | AV68: =AV64+AV66 -> 0 | AW68: 0 | AX68: -3661.714097 | AY68: 0 | AZ68: -3661.714097 | BA68: 0 | BB68: 0 | BC68: 0 | BD68: 0 | BE68: 0 | BF68: 0 | BG68: 0 | BH68: 0 | BI68: 0 | BJ68: 0 | BK68: 0 | BL68: 0 | BM68: 0 | BN68: 0 | BO68: 0 | BP68: 0 | BQ68: 0 | BR68: 0 | BS68: 0 | BT68: 0 | BU68: 0 | BV68: 0 | BW68: 0 | BX68: 0 | BY68: 0 | BZ68: 0 | CA68: 0 | CB68: 0 | CC68: -3.76683035 | CD68: -3.813915729 | CE68: -55.14350057 | CF68: -111.6655887 | CG68: -113.0614085 | CH68: -114.4746761 | CI68: -115.9056096 | CJ68: -117.3544297 | CK68: -118.8213601 | CL68: -120.3066271 | CM68: -50.75435829 | CN68: -51.38878777 | CO68: 0 | CP68: 0 | CQ68: 0 | CR68: 0 | CS68: 0 | CT68: 0 | CU68: 0 | CV68: 0 | CW68: 0 | CX68: 0 | CY68: 0 | CZ68: 0 | DA68: 0 | DB68: 0 | DC68: 0 | DD68: =DD64+DD66 -> 0 | DE68: 0 | DF68: 0 | DG68: 0 | DH68: 0 | DI68: 0 | DJ68: 0 | DK68: 0 | DL68: 0 | DM68: 0 | DN68: 0 | DO68: 0 | DP68: 0 | DQ68: 0 | DR68: 0 | DS68: 0 | DT68: 0 | DU68: 0 | DV68: 0 | DW68: 0 | DX68: 0 | DY68: 0 | DZ68: 0 | EA68: 0 | EB68: 0 | EC68: 0 | ED68: 0 | EE68: 0 | EF68: 0 | EG68: 0 | EH68: 0 | EI68: 0 | EJ68: 0 | EK68: 0 | EL68: 0 | EM68: 0 | EN68: 0 | EO68: 0 | EP68: 0 | EQ68: 0 | ER68: 0 | ES68: 0 | ET68: 0 | EU68: 0 | EV68: 0 | EW68: 0 | EX68: 0 | EY68: 0 | EZ68: 0 | FA68: 0 | FB68: 0 | FC68: 0 | FD68: 0 | FE68: 0 | FF68: 0 | FG68: 0 | FH68: 0 | FI68: 0 | FJ68: 0 | FK68: 0 | FL68: 0
B70: =B48 -> Total Construction Costs & Fees | G70: =G68+G62 -> 0 | H70: -7323.428193 | I70: 0 | J70: 0 | K70: 0 | L70: 0 | M70: 0 | N70: 0 | O70: 0 | P70: -8893.881601 | Q70: -23500.60232 | R70: -17404.82779 | S70: 0 | T70: 0 | U70: 0 | V70: 0 | W70: =W68+W62 -> 0 | X70: 0 | Y70: 0 | Z70: 0 | AA70: 0 | AB70: 0 | AC70: 0 | AD70: 0 | AE70: 0 | AF70: 0 | AG70: 0 | AH70: 0 | AI70: 0 | AJ70: 0 | AK70: 0 | AM70: =SUM(G70:AK70) -> -57122.73991 | AO70: =B70 -> Total Construction Costs & Fees | AV70: =AV62+AV68 -> 0 | AW70: 0 | AX70: -3661.714097 | AY70: 0 | AZ70: -3661.714097 | BA70: 0 | BB70: 0 | BC70: 0 | BD70: 0 | BE70: 0 | BF70: 0 | BG70: 0 | BH70: 0 | BI70: 0 | BJ70: 0 | BK70: 0 | BL70: 0 | BM70: 0 | BN70: 0 | BO70: 0 | BP70: 0 | BQ70: 0 | BR70: 0 | BS70: 0 | BT70: 0 | BU70: 0 | BV70: 0 | BW70: 0 | BX70: 0 | BY70: 0 | BZ70: 0 | CA70: 0 | CB70: 0 | CC70: -192.1083478 | CD70: -194.5097022 | CE70: -2812.318529 | CF70: -5694.945022 | CG70: -5766.131834 | CH70: -5838.208482 | CI70: -5911.186088 | CJ70: -5985.075914 | CK70: -6059.889363 | CL70: -6135.63798 | CM70: -2588.472273 | CN70: -2620.828176 | CO70: 0 | CP70: 0 | CQ70: 0 | CR70: 0 | CS70: 0 | CT70: 0 | CU70: 0 | CV70: 0 | CW70: 0 | CX70: 0 | CY70: 0 | CZ70: 0 | DA70: 0 | DB70: 0 | DC70: 0 | DD70: =DD62+DD68 -> 0 | DE70: 0 | DF70: 0 | DG70: 0 | DH70: 0 | DI70: 0 | DJ70: 0 | DK70: 0 | DL70: 0 | DM70: 0 | DN70: 0 | DO70: 0 | DP70: 0 | DQ70: 0 | DR70: 0 | DS70: 0 | DT70: 0 | DU70: 0 | DV70: 0 | DW70: 0 | DX70: 0 | DY70: 0 | DZ70: 0 | EA70: 0 | EB70: 0 | EC70: 0 | ED70: 0 | EE70: 0 | EF70: 0 | EG70: 0 | EH70: 0 | EI70: 0 | EJ70: 0 | EK70: 0 | EL70: 0 | EM70: 0 | EN70: 0 | EO70: 0 | EP70: 0 | EQ70: 0 | ER70: 0 | ES70: 0 | ET70: 0 | EU70: 0 | EV70: 0 | EW70: 0 | EX70: 0 | EY70: 0 | EZ70: 0 | FA70: 0 | FB70: 0 | FC70: 0 | FD70: 0 | FE70: 0 | FF70: 0 | FG70: 0 | FH70: 0 | FI70: 0 | FJ70: 0 | FK70: 0 | FL70: 0
B72: =B50 -> Planned Gross Area | G72: =SUMPRODUCT(--($AV$8:$FL$8=G$8),--($AV$7:$FL$7=4),$AV72:$FL72) -> 0 | H72: 0 | I72: 0 | J72: 0 | K72: 0 | L72: 0 | M72: 0 | N72: 0 | O72: 0 | P72: 0 | Q72: =SUMPRODUCT(--($AV$8:$FL$8=Q$8),--($AV$7:$FL$7=4),$AV72:$FL72) -> 0 | R72: 0 | S72: 10000 | T72: 10000 | U72: 10000 | V72: 10000 | W72: 10000 | X72: 10000 | Y72: 10000 | Z72: 10000 | AA72: =SUMPRODUCT(--($AV$8:$FL$8=AA$8),--($AV$7:$FL$7=4),$AV72:$FL72) -> 10000 | AB72: 10000 | AC72: 0 | AD72: 0 | AE72: 0 | AF72: 0 | AG72: 0 | AH72: 0 | AI72: 0 | AJ72: 0 | AK72: 0 | AO72: =B72 -> Planned Gross Area | AR72: =INDEX(AssetDB!$G$15:$AR$15,MATCH(DevCosts!$AR$53,AssetDB!$G$1:$AR$1,0)) -> 10000 | AS72: =INDEX(AssetDB!$G$84:$AR$84,MATCH(DevCosts!$AR$53,AssetDB!$G$1:$AR$1,0)) -> 44 | AT72: =INDEX(AssetDB!$G$86:$AR$86,MATCH(DevCosts!$AR$53,AssetDB!$G$1:$AR$1,0)) -> 84 | AV72: =$AR72*(AV$9<=$AT72)*(AV$9>$AS72) -> 0 | AW72: 0 | AX72: 0 | AY72: 0 | AZ72: 0 | BA72: 0 | BB72: 0 | BC72: 0 | BD72: 0 | BE72: 0 | BF72: 0 | BG72: 0 | BH72: 0 | BI72: 0 | BJ72: 0 | BK72: 0 | BL72: =$AR72*(BL$9<=$AT72)*(BL$9>$AS72) -> 0 | BM72: 0 | BN72: 0 | BO72: 0 | BP72: 0 | BQ72: 0 | BR72: 0 | BS72: 0 | BT72: 0 | BU72: 0 | BV72: 0 | BW72: 0 | BX72: 0 | BY72: 0 | BZ72: 0 | CA72: 0 | CB72: =$AR72*(CB$9<=$AT72)*(CB$9>$AS72) -> 0 | CC72: 0 | CD72: 0 | CE72: 0 | CF72: 0 | CG72: 0 | CH72: 0 | CI72: 0 | CJ72: 0 | CK72: 0 | CL72: 0 | CM72: 0 | CN72: 0 | CO72: 10000 | CP72: 10000 | CQ72: 10000 | CR72: =$AR72*(CR$9<=$AT72)*(CR$9>$AS72) -> 10000 | CS72: 10000 | CT72: 10000 | CU72: 10000 | CV72: 10000 | CW72: 10000 | CX72: 10000 | CY72: 10000 | CZ72: 10000 | DA72: 10000 | DB72: 10000 | DC72: 10000 | DD72: 10000 | DE72: 10000 | DF72: 10000 | DG72: 10000 | DH72: 10000 | DI72: 10000 | DJ72: 10000 | DK72: 10000 | DL72: 10000 | DM72: 10000 | DN72: 10000 | DO72: 10000 | DP72: 10000 | DQ72: 10000 | DR72: 10000 | DS72: 10000 | DT72: 10000 | DU72: 10000 | DV72: 10000 | DW72: 10000 | DX72: 10000 | DY72: 10000 | DZ72: 10000 | EA72: 10000 | EB72: 10000 | EC72: 0 | ED72: 0 | EE72: 0 | EF72: 0 | EG72: 0 | EH72: 0 | EI72: 0 | EJ72: 0 | EK72: 0 | EL72: 0 | EM72: 0 | EN72: 0 | EO72: 0 | EP72: 0 | EQ72: 0 | ER72: 0 | ES72: 0 | ET72: 0 | EU72: 0 | EV72: 0 | EW72: 0 | EX72: 0 | EY72: 0 | EZ72: 0 | FA72: 0 | FB72: 0 | FC72: 0 | FD72: 0 | FE72: 0 | FF72: 0 | FG72: 0 | FH72: 0 | FI72: 0 | FJ72: 0 | FK72: 0 | FL72: 0
B73: =B51 -> Planned Lettable Area | G73: 0 | H73: 0 | I73: 0 | J73: 0 | K73: 0 | L73: 0 | M73: 0 | N73: 0 | O73: 0 | P73: 0 | Q73: 0 | R73: 0 | S73: 7500 | T73: 7500 | U73: 7500 | V73: 7500 | W73: 7500 | X73: 7500 | Y73: 7500 | Z73: 7500 | AA73: 7500 | AB73: 7500 | AC73: 0 | AD73: 0 | AE73: 0 | AF73: 0 | AG73: 0 | AH73: 0 | AI73: 0 | AJ73: 0 | AK73: 0 | AO73: =B73 -> Planned Lettable Area | AR73: =INDEX(AssetDB!$G$17:$AR$17,MATCH(DevCosts!$AR$53,AssetDB!$G$1:$AR$1,0)) -> 7500 | AS73: =AS72 -> 44 | AT73: =AT72 -> 84 | AV73: 0 | AW73: 0 | AX73: 0 | AY73: 0 | AZ73: 0 | BA73: 0 | BB73: 0 | BC73: 0 | BD73: 0 | BE73: 0 | BF73: 0 | BG73: 0 | BH73: 0 | BI73: 0 | BJ73: 0 | BK73: 0 | BL73: 0 | BM73: 0 | BN73: 0 | BO73: 0 | BP73: 0 | BQ73: 0 | BR73: 0 | BS73: 0 | BT73: 0 | BU73: 0 | BV73: 0 | BW73: 0 | BX73: 0 | BY73: 0 | BZ73: 0 | CA73: 0 | CB73: 0 | CC73: 0 | CD73: 0 | CE73: 0 | CF73: 0 | CG73: 0 | CH73: 0 | CI73: 0 | CJ73: 0 | CK73: 0 | CL73: 0 | CM73: 0 | CN73: 0 | CO73: 7500 | CP73: 7500 | CQ73: 7500 | CR73: 7500 | CS73: 7500 | CT73: 7500 | CU73: 7500 | CV73: 7500 | CW73: 7500 | CX73: 7500 | CY73: 7500 | CZ73: 7500 | DA73: 7500 | DB73: 7500 | DC73: 7500 | DD73: 7500 | DE73: 7500 | DF73: 7500 | DG73: 7500 | DH73: 7500 | DI73: 7500 | DJ73: 7500 | DK73: 7500 | DL73: 7500 | DM73: 7500 | DN73: 7500 | DO73: 7500 | DP73: 7500 | DQ73: 7500 | DR73: 7500 | DS73: 7500 | DT73: 7500 | DU73: 7500 | DV73: 7500 | DW73: 7500 | DX73: 7500 | DY73: 7500 | DZ73: 7500 | EA73: 7500 | EB73: 7500 | EC73: 0 | ED73: 0 | EE73: 0 | EF73: 0 | EG73: 0 | EH73: 0 | EI73: 0 | EJ73: 0 | EK73: 0 | EL73: 0 | EM73: 0 | EN73: 0 | EO73: 0 | EP73: 0 | EQ73: 0 | ER73: 0 | ES73: 0 | ET73: 0 | EU73: 0 | EV73: 0 | EW73: 0 | EX73: 0 | EY73: 0 | EZ73: 0 | FA73: 0 | FB73: 0 | FC73: 0 | FD73: 0 | FE73: 0 | FF73: 0 | FG73: 0 | FH73: 0 | FI73: 0 | FJ73: 0 | FK73: 0 | FL73: 0
A75: 2 | B75: Phase 2 | AO75: =B75 -> Phase 2 | AR75: =A75 -> 2
B77: =B55 -> Construction Cost | G77: =SUMIF($AV$8:$FL$8,G$8,$AV77:$FL77) -> 0 | H77: 0 | I77: 0 | J77: 0 | K77: 0 | L77: 0 | M77: 0 | N77: 0 | O77: 0 | P77: 0 | Q77: =SUMIF($AV$8:$FL$8,Q$8,$AV77:$FL77) -> 0 | R77: 0 | S77: -14726.40744 | T77: -12615.32464 | U77: 0 | V77: 0 | W77: 0 | X77: 0 | Y77: 0 | Z77: 0 | AA77: =SUMIF($AV$8:$FL$8,AA$8,$AV77:$FL77) -> 0 | AB77: 0 | AC77: 0 | AD77: 0 | AE77: 0 | AF77: 0 | AG77: 0 | AH77: 0 | AI77: 0 | AJ77: 0 | AK77: 0 | AM77: =SUM(G77:AK77) -> -27341.73209 | AO77: =B77 -> Construction Cost | AR77: =INDEX(AssetDB!$G$47:$AR$47,MATCH(DevCosts!$AR$75,AssetDB!$G$1:$AR$1,0)) -> 15000 | AV77: =-$AR77*AV78*AV$12 -> 0 | AW77: 0 | AX77: 0 | AY77: 0 | AZ77: 0 | BA77: 0 | BB77: 0 | BC77: 0 | BD77: 0 | BE77: 0 | BF77: 0 | BG77: 0 | BH77: 0 | BI77: 0 | BJ77: 0 | BK77: 0 | BL77: 0 | BM77: 0 | BN77: 0 | BO77: 0 | BP77: 0 | BQ77: 0 | BR77: 0 | BS77: 0 | BT77: 0 | BU77: 0 | BV77: 0 | BW77: 0 | BX77: 0 | BY77: 0 | BZ77: 0 | CA77: 0 | CB77: 0 | CC77: 0 | CD77: 0 | CE77: 0 | CF77: 0 | CG77: 0 | CH77: 0 | CI77: 0 | CJ77: 0 | CK77: 0 | CL77: 0 | CM77: 0 | CN77: 0 | CO77: -2623.419208 | CP77: -3984.317922 | CQ77: -4034.121896 | CR77: -4084.548419 | CS77: -4135.605275 | CT77: -2791.53356 | CU77: -2826.42773 | CV77: -2861.758076 | CW77: 0 | CX77: 0 | CY77: 0 | CZ77: 0 | DA77: 0 | DB77: 0 | DC77: 0 | DD77: 0 | DE77: 0 | DF77: 0 | DG77: 0 | DH77: 0 | DI77: 0 | DJ77: 0 | DK77: 0 | DL77: 0 | DM77: 0 | DN77: 0 | DO77: 0 | DP77: 0 | DQ77: 0 | DR77: 0 | DS77: 0 | DT77: 0 | DU77: 0 | DV77: 0 | DW77: 0 | DX77: 0 | DY77: 0 | DZ77: 0 | EA77: 0 | EB77: 0 | EC77: 0 | ED77: 0 | EE77: 0 | EF77: 0 | EG77: 0 | EH77: 0 | EI77: 0 | EJ77: 0 | EK77: 0 | EL77: 0 | EM77: 0 | EN77: 0 | EO77: 0 | EP77: 0 | EQ77: 0 | ER77: 0 | ES77: 0 | ET77: 0 | EU77: 0 | EV77: 0 | EW77: 0 | EX77: 0 | EY77: 0 | EZ77: 0 | FA77: 0 | FB77: 0 | FC77: 0 | FD77: 0 | FE77: 0 | FF77: 0 | FG77: 0 | FH77: 0 | FI77: 0 | FJ77: 0 | FK77: 0 | FL77: 0
B78: Payment Schedule | G78: 0 | H78: 0 | I78: 0 | J78: 0 | K78: 0 | L78: 0 | M78: 0 | N78: 0 | O78: 0 | P78: 0 | Q78: 0 | R78: 0 | S78: 0.55 | T78: 0.45 | U78: 0 | V78: 0 | W78: 0 | X78: 0 | Y78: 0 | Z78: 0 | AA78: 0 | AB78: 0 | AC78: 0 | AD78: 0 | AE78: 0 | AF78: 0 | AG78: 0 | AH78: 0 | AI78: 0 | AJ78: 0 | AK78: 0 | AM78: 1 | AO78: Payment Schedule | AV78: =SUMPRODUCT(--(TimingDB!$G$31:$G$46=AV$9),TimingDB!$H$31:$H$46) -> 0 | AW78: =SUMPRODUCT(--(TimingDB!$G$31:$G$46=AW$9),TimingDB!$H$31:$H$46) -> 0 | AX78: =SUMPRODUCT(--(TimingDB!$G$31:$G$46=AX$9),TimingDB!$H$31:$H$46) -> 0 | AY78: =SUMPRODUCT(--(TimingDB!$G$31:$G$46=AY$9),TimingDB!$H$31:$H$46) -> 0 | AZ78: =SUMPRODUCT(--(TimingDB!$G$31:$G$46=AZ$9),TimingDB!$H$31:$H$46) -> 0 | BA78: =SUMPRODUCT(--(TimingDB!$G$31:$G$46=BA$9),TimingDB!$H$31:$H$46) -> 0 | BB78: =SUMPRODUCT(--(TimingDB!$G$31:$G$46=BB$9),TimingDB!$H$31:$H$46) -> 0 | BC78: =SUMPRODUCT(--(TimingDB!$G$31:$G$46=BC$9),TimingDB!$H$31:$H$46) -> 0 | BD78: =SUMPRODUCT(--(TimingDB!$G$31:$G$46=BD$9),TimingDB!$H$31:$H$46) -> 0 | BE78: =SUMPRODUCT(--(TimingDB!$G$31:$G$46=BE$9),TimingDB!$H$31:$H$46) -> 0 | BF78: =SUMPRODUCT(--(TimingDB!$G$31:$G$46=BF$9),TimingDB!$H$31:$H$46) -> 0 | BG78: =SUMPRODUCT(--(TimingDB!$G$31:$G$46=BG$9),TimingDB!$H$31:$H$46) -> 0 | BH78: =SUMPRODUCT(--(TimingDB!$G$31:$G$46=BH$9),TimingDB!$H$31:$H$46) -> 0 | BI78: =SUMPRODUCT(--(TimingDB!$G$31:$G$46=BI$9),TimingDB!$H$31:$H$46) -> 0 | BJ78: =SUMPRODUCT(--(TimingDB!$G$31:$G$46=BJ$9),TimingDB!$H$31:$H$46) -> 0 | BK78: =SUMPRODUCT(--(TimingDB!$G$31:$G$46=BK$9),TimingDB!$H$31:$H$46) -> 0 | BL78: =SUMPRODUCT(--(TimingDB!$G$31:$G$46=BL$9),TimingDB!$H$31:$H$46) -> 0 | BM78: =SUMPRODUCT(--(TimingDB!$G$31:$G$46=BM$9),TimingDB!$H$31:$H$46) -> 0 | BN78: =SUMPRODUCT(--(TimingDB!$G$31:$G$46=BN$9),TimingDB!$H$31:$H$46) -> 0 | BO78: =SUMPRODUCT(--(TimingDB!$G$31:$G$46=BO$9),TimingDB!$H$31:$H$46) -> 0 | BP78: =SUMPRODUCT(--(TimingDB!$G$31:$G$46=BP$9),TimingDB!$H$31:$H$46) -> 0 | BQ78: =SUMPRODUCT(--(TimingDB!$G$31:$G$46=BQ$9),TimingDB!$H$31:$H$46) -> 0 | BR78: =SUMPRODUCT(--(TimingDB!$G$31:$G$46=BR$9),TimingDB!$H$31:$H$46) -> 0 | BS78: =SUMPRODUCT(--(TimingDB!$G$31:$G$46=BS$9),TimingDB!$H$31:$H$46) -> 0 | BT78: =SUMPRODUCT(--(TimingDB!$G$31:$G$46=BT$9),TimingDB!$H$31:$H$46) -> 0 | BU78: =SUMPRODUCT(--(TimingDB!$G$31:$G$46=BU$9),TimingDB!$H$31:$H$46) -> 0 | BV78: =SUMPRODUCT(--(TimingDB!$G$31:$G$46=BV$9),TimingDB!$H$31:$H$46) -> 0 | BW78: =SUMPRODUCT(--(TimingDB!$G$31:$G$46=BW$9),TimingDB!$H$31:$H$46) -> 0 | BX78: =SUMPRODUCT(--(TimingDB!$G$31:$G$46=BX$9),TimingDB!$H$31:$H$46) -> 0 | BY78: =SUMPRODUCT(--(TimingDB!$G$31:$G$46=BY$9),TimingDB!$H$31:$H$46) -> 0 | BZ78: =SUMPRODUCT(--(TimingDB!$G$31:$G$46=BZ$9),TimingDB!$H$31:$H$46) -> 0 | CA78: =SUMPRODUCT(--(TimingDB!$G$31:$G$46=CA$9),TimingDB!$H$31:$H$46) -> 0 | CB78: =SUMPRODUCT(--(TimingDB!$G$31:$G$46=CB$9),TimingDB!$H$31:$H$46) -> 0 | CC78: =SUMPRODUCT(--(TimingDB!$G$31:$G$46=CC$9),TimingDB!$H$31:$H$46) -> 0 | CD78: =SUMPRODUCT(--(TimingDB!$G$31:$G$46=CD$9),TimingDB!$H$31:$H$46) -> 0 | CE78: =SUMPRODUCT(--(TimingDB!$G$31:$G$46=CE$9),TimingDB!$H$31:$H$46) -> 0 | CF78: =SUMPRODUCT(--(TimingDB!$G$31:$G$46=CF$9),TimingDB!$H$31:$H$46) -> 0 | CG78: =SUMPRODUCT(--(TimingDB!$G$31:$G$46=CG$9),TimingDB!$H$31:$H$46) -> 0 | CH78: =SUMPRODUCT(--(TimingDB!$G$31:$G$46=CH$9),TimingDB!$H$31:$H$46) -> 0 | CI78: =SUMPRODUCT(--(TimingDB!$G$31:$G$46=CI$9),TimingDB!$H$31:$H$46) -> 0 | CJ78: =SUMPRODUCT(--(TimingDB!$G$31:$G$46=CJ$9),TimingDB!$H$31:$H$46) -> 0 | CK78: =SUMPRODUCT(--(TimingDB!$G$31:$G$46=CK$9),TimingDB!$H$31:$H$46) -> 0 | CL78: =SUMPRODUCT(--(TimingDB!$G$31:$G$46=CL$9),TimingDB!$H$31:$H$46) -> 0 | CM78: =SUMPRODUCT(--(TimingDB!$G$31:$G$46=CM$9),TimingDB!$H$31:$H$46) -> 0 | CN78: =SUMPRODUCT(--(TimingDB!$G$31:$G$46=CN$9),TimingDB!$H$31:$H$46) -> 0 | CO78: =SUMPRODUCT(--(TimingDB!$G$31:$G$46=CO$9),TimingDB!$H$31:$H$46) -> 0.1 | CP78: =SUMPRODUCT(--(TimingDB!$G$31:$G$46=CP$9),TimingDB!$H$31:$H$46) -> 0.15 | CQ78: =SUMPRODUCT(--(TimingDB!$G$31:$G$46=CQ$9),TimingDB!$H$31:$H$46) -> 0.15 | CR78: =SUMPRODUCT(--(TimingDB!$G$31:$G$46=CR$9),TimingDB!$H$31:$H$46) -> 0.15 | CS78: =SUMPRODUCT(--(TimingDB!$G$31:$G$46=CS$9),TimingDB!$H$31:$H$46) -> 0.15 | CT78: =SUMPRODUCT(--(TimingDB!$G$31:$G$46=CT$9),TimingDB!$H$31:$H$46) -> 0.1 | CU78: =SUMPRODUCT(--(TimingDB!$G$31:$G$46=CU$9),TimingDB!$H$31:$H$46) -> 0.1 | CV78: =SUMPRODUCT(--(TimingDB!$G$31:$G$46=CV$9),TimingDB!$H$31:$H$46) -> 0.1 | CW78: =SUMPRODUCT(--(TimingDB!$G$31:$G$46=CW$9),TimingDB!$H$31:$H$46) -> 0 | CX78: =SUMPRODUCT(--(TimingDB!$G$31:$G$46=CX$9),TimingDB!$H$31:$H$46) -> 0 | CY78: =SUMPRODUCT(--(TimingDB!$G$31:$G$46=CY$9),TimingDB!$H$31:$H$46) -> 0 | CZ78: =SUMPRODUCT(--(TimingDB!$G$31:$G$46=CZ$9),TimingDB!$H$31:$H$46) -> 0 | DA78: =SUMPRODUCT(--(TimingDB!$G$31:$G$46=DA$9),TimingDB!$H$31:$H$46) -> 0 | DB78: =SUMPRODUCT(--(TimingDB!$G$31:$G$46=DB$9),TimingDB!$H$31:$H$46) -> 0 | DC78: =SUMPRODUCT(--(TimingDB!$G$31:$G$46=DC$9),TimingDB!$H$31:$H$46) -> 0 | DD78: =SUMPRODUCT(--(TimingDB!$G$31:$G$46=DD$9),TimingDB!$H$31:$H$46) -> 0 | DE78: =SUMPRODUCT(--(TimingDB!$G$31:$G$46=DE$9),TimingDB!$H$31:$H$46) -> 0 | DF78: =SUMPRODUCT(--(TimingDB!$G$31:$G$46=DF$9),TimingDB!$H$31:$H$46) -> 0 | DG78: =SUMPRODUCT(--(TimingDB!$G$31:$G$46=DG$9),TimingDB!$H$31:$H$46) -> 0 | DH78: =SUMPRODUCT(--(TimingDB!$G$31:$G$46=DH$9),TimingDB!$H$31:$H$46) -> 0 | DI78: =SUMPRODUCT(--(TimingDB!$G$31:$G$46=DI$9),TimingDB!$H$31:$H$46) -> 0 | DJ78: =SUMPRODUCT(--(TimingDB!$G$31:$G$46=DJ$9),TimingDB!$H$31:$H$46) -> 0 | DK78: =SUMPRODUCT(--(TimingDB!$G$31:$G$46=DK$9),TimingDB!$H$31:$H$46) -> 0 | DL78: =SUMPRODUCT(--(TimingDB!$G$31:$G$46=DL$9),TimingDB!$H$31:$H$46) -> 0 | DM78: =SUMPRODUCT(--(TimingDB!$G$31:$G$46=DM$9),TimingDB!$H$31:$H$46) -> 0 | DN78: =SUMPRODUCT(--(TimingDB!$G$31:$G$46=DN$9),TimingDB!$H$31:$H$46) -> 0 | DO78: =SUMPRODUCT(--(TimingDB!$G$31:$G$46=DO$9),TimingDB!$H$31:$H$46) -> 0 | DP78: =SUMPRODUCT(--(TimingDB!$G$31:$G$46=DP$9),TimingDB!$H$31:$H$46) -> 0 | DQ78: =SUMPRODUCT(--(TimingDB!$G$31:$G$46=DQ$9),TimingDB!$H$31:$H$46) -> 0 | DR78: =SUMPRODUCT(--(TimingDB!$G$31:$G$46=DR$9),TimingDB!$H$31:$H$46) -> 0 | DS78: =SUMPRODUCT(--(TimingDB!$G$31:$G$46=DS$9),TimingDB!$H$31:$H$46) -> 0 | DT78: =SUMPRODUCT(--(TimingDB!$G$31:$G$46=DT$9),TimingDB!$H$31:$H$46) -> 0 | DU78: =SUMPRODUCT(--(TimingDB!$G$31:$G$46=DU$9),TimingDB!$H$31:$H$46) -> 0 | DV78: =SUMPRODUCT(--(TimingDB!$G$31:$G$46=DV$9),TimingDB!$H$31:$H$46) -> 0 | DW78: =SUMPRODUCT(--(TimingDB!$G$31:$G$46=DW$9),TimingDB!$H$31:$H$46) -> 0 | DX78: =SUMPRODUCT(--(TimingDB!$G$31:$G$46=DX$9),TimingDB!$H$31:$H$46) -> 0 | DY78: =SUMPRODUCT(--(TimingDB!$G$31:$G$46=DY$9),TimingDB!$H$31:$H$46) -> 0 | DZ78: =SUMPRODUCT(--(TimingDB!$G$31:$G$46=DZ$9),TimingDB!$H$31:$H$46) -> 0 | EA78: =SUMPRODUCT(--(TimingDB!$G$31:$G$46=EA$9),TimingDB!$H$31:$H$46) -> 0 | EB78: =SUMPRODUCT(--(TimingDB!$G$31:$G$46=EB$9),TimingDB!$H$31:$H$46) -> 0 | EC78: =SUMPRODUCT(--(TimingDB!$G$31:$G$46=EC$9),TimingDB!$H$31:$H$46) -> 0 | ED78: =SUMPRODUCT(--(TimingDB!$G$31:$G$46=ED$9),TimingDB!$H$31:$H$46) -> 0 | EE78: =SUMPRODUCT(--(TimingDB!$G$31:$G$46=EE$9),TimingDB!$H$31:$H$46) -> 0 | EF78: =SUMPRODUCT(--(TimingDB!$G$31:$G$46=EF$9),TimingDB!$H$31:$H$46) -> 0 | EG78: =SUMPRODUCT(--(TimingDB!$G$31:$G$46=EG$9),TimingDB!$H$31:$H$46) -> 0 | EH78: =SUMPRODUCT(--(TimingDB!$G$31:$G$46=EH$9),TimingDB!$H$31:$H$46) -> 0 | EI78: =SUMPRODUCT(--(TimingDB!$G$31:$G$46=EI$9),TimingDB!$H$31:$H$46) -> 0 | EJ78: =SUMPRODUCT(--(TimingDB!$G$31:$G$46=EJ$9),TimingDB!$H$31:$H$46) -> 0 | EK78: =SUMPRODUCT(--(TimingDB!$G$31:$G$46=EK$9),TimingDB!$H$31:$H$46) -> 0 | EL78: =SUMPRODUCT(--(TimingDB!$G$31:$G$46=EL$9),TimingDB!$H$31:$H$46) -> 0 | EM78: =SUMPRODUCT(--(TimingDB!$G$31:$G$46=EM$9),TimingDB!$H$31:$H$46) -> 0 | EN78: =SUMPRODUCT(--(TimingDB!$G$31:$G$46=EN$9),TimingDB!$H$31:$H$46) -> 0 | EO78: =SUMPRODUCT(--(TimingDB!$G$31:$G$46=EO$9),TimingDB!$H$31:$H$46) -> 0 | EP78: =SUMPRODUCT(--(TimingDB!$G$31:$G$46=EP$9),TimingDB!$H$31:$H$46) -> 0 | EQ78: =SUMPRODUCT(--(TimingDB!$G$31:$G$46=EQ$9),TimingDB!$H$31:$H$46) -> 0 | ER78: =SUMPRODUCT(--(TimingDB!$G$31:$G$46=ER$9),TimingDB!$H$31:$H$46) -> 0 | ES78: =SUMPRODUCT(--(TimingDB!$G$31:$G$46=ES$9),TimingDB!$H$31:$H$46) -> 0 | ET78: =SUMPRODUCT(--(TimingDB!$G$31:$G$46=ET$9),TimingDB!$H$31:$H$46) -> 0 | EU78: =SUMPRODUCT(--(TimingDB!$G$31:$G$46=EU$9),TimingDB!$H$31:$H$46) -> 0 | EV78: =SUMPRODUCT(--(TimingDB!$G$31:$G$46=EV$9),TimingDB!$H$31:$H$46) -> 0 | EW78: =SUMPRODUCT(--(TimingDB!$G$31:$G$46=EW$9),TimingDB!$H$31:$H$46) -> 0 | EX78: =SUMPRODUCT(--(TimingDB!$G$31:$G$46=EX$9),TimingDB!$H$31:$H$46) -> 0 | EY78: =SUMPRODUCT(--(TimingDB!$G$31:$G$46=EY$9),TimingDB!$H$31:$H$46) -> 0 | EZ78: =SUMPRODUCT(--(TimingDB!$G$31:$G$46=EZ$9),TimingDB!$H$31:$H$46) -> 0 | FA78: =SUMPRODUCT(--(TimingDB!$G$31:$G$46=FA$9),TimingDB!$H$31:$H$46) -> 0 | FB78: =SUMPRODUCT(--(TimingDB!$G$31:$G$46=FB$9),TimingDB!$H$31:$H$46) -> 0 | FC78: =SUMPRODUCT(--(TimingDB!$G$31:$G$46=FC$9),TimingDB!$H$31:$H$46) -> 0 | FD78: =SUMPRODUCT(--(TimingDB!$G$31:$G$46=FD$9),TimingDB!$H$31:$H$46) -> 0 | FE78: =SUMPRODUCT(--(TimingDB!$G$31:$G$46=FE$9),TimingDB!$H$31:$H$46) -> 0 | FF78: =SUMPRODUCT(--(TimingDB!$G$31:$G$46=FF$9),TimingDB!$H$31:$H$46) -> 0 | FG78: =SUMPRODUCT(--(TimingDB!$G$31:$G$46=FG$9),TimingDB!$H$31:$H$46) -> 0 | FH78: =SUMPRODUCT(--(TimingDB!$G$31:$G$46=FH$9),TimingDB!$H$31:$H$46) -> 0 | FI78: =SUMPRODUCT(--(TimingDB!$G$31:$G$46=FI$9),TimingDB!$H$31:$H$46) -> 0 | FJ78: =SUMPRODUCT(--(TimingDB!$G$31:$G$46=FJ$9),TimingDB!$H$31:$H$46) -> 0 | FK78: =SUMPRODUCT(--(TimingDB!$G$31:$G$46=FK$9),TimingDB!$H$31:$H$46) -> 0 | FL78: =SUMPRODUCT(--(TimingDB!$G$31:$G$46=FL$9),TimingDB!$H$31:$H$46) -> 0
B79: Contingencies | F79: =AR79 -> 0.04 | G79: 0 | H79: 0 | I79: 0 | J79: 0 | K79: 0 | L79: 0 | M79: 0 | N79: 0 | O79: 0 | P79: 0 | Q79: 0 | R79: 0 | S79: -589.0562978 | T79: -504.6129857 | U79: 0 | V79: 0 | W79: 0 | X79: 0 | Y79: 0 | Z79: 0 | AA79: 0 | AB79: 0 | AC79: 0 | AD79: 0 | AE79: 0 | AF79: 0 | AG79: 0 | AH79: 0 | AI79: 0 | AJ79: 0 | AK79: 0 | AM79: -1093.669283 | AO79: Contingencies | AR79: =INDEX(AssetDB!$G$51:$AR$51,MATCH(DevCosts!$AR$75,AssetDB!$G$1:$AR$1,0)) -> 0.04 | AV79: =$AR79*AV77 -> 0 | AW79: 0 | AX79: 0 | AY79: 0 | AZ79: 0 | BA79: 0 | BB79: 0 | BC79: 0 | BD79: 0 | BE79: 0 | BF79: 0 | BG79: 0 | BH79: 0 | BI79: 0 | BJ79: 0 | BK79: 0 | BL79: 0 | BM79: 0 | BN79: 0 | BO79: 0 | BP79: 0 | BQ79: 0 | BR79: 0 | BS79: 0 | BT79: 0 | BU79: 0 | BV79: 0 | BW79: 0 | BX79: 0 | BY79: 0 | BZ79: 0 | CA79: 0 | CB79: 0 | CC79: 0 | CD79: 0 | CE79: 0 | CF79: 0 | CG79: 0 | CH79: 0 | CI79: 0 | CJ79: 0 | CK79: 0 | CL79: 0 | CM79: 0 | CN79: 0 | CO79: -104.9367683 | CP79: -159.3727169 | CQ79: -161.3648758 | CR79: -163.3819368 | CS79: -165.424211 | CT79: -111.6613424 | CU79: -113.0571092 | CV79: -114.4703231 | CW79: 0 | CX79: 0 | CY79: 0 | CZ79: 0 | DA79: 0 | DB79: 0 | DC79: 0 | DD79: 0 | DE79: 0 | DF79: 0 | DG79: 0 | DH79: =$AR79*DH77 -> 0 | DI79: 0 | DJ79: 0 | DK79: 0 | DL79: 0 | DM79: 0 | DN79: 0 | DO79: 0 | DP79: 0 | DQ79: 0 | DR79: 0 | DS79: 0 | DT79: 0 | DU79: 0 | DV79: 0 | DW79: 0 | DX79: 0 | DY79: 0 | DZ79: 0 | EA79: 0 | EB79: 0 | EC79: 0 | ED79: 0 | EE79: 0 | EF79: 0 | EG79: 0 | EH79: 0 | EI79: 0 | EJ79: 0 | EK79: 0 | EL79: 0 | EM79: 0 | EN79: 0 | EO79: 0 | EP79: 0 | EQ79: 0 | ER79: 0 | ES79: 0 | ET79: 0 | EU79: 0 | EV79: 0 | EW79: 0 | EX79: 0 | EY79: 0 | EZ79: 0 | FA79: 0 | FB79: 0 | FC79: 0 | FD79: 0 | FE79: 0 | FF79: 0 | FG79: 0 | FH79: 0 | FI79: 0 | FJ79: 0 | FK79: 0 | FL79: 0
B80: Other Miscellaneous Cost | F80: =AR80 -> 0.05 | G80: 0 | H80: 0 | I80: 0 | J80: 0 | K80: 0 | L80: 0 | M80: 0 | N80: 0 | O80: 0 | P80: 0 | Q80: 0 | R80: 0 | S80: -736.3203722 | T80: -630.7662321 | U80: 0 | V80: 0 | W80: 0 | X80: 0 | Y80: 0 | Z80: 0 | AA80: 0 | AB80: 0 | AC80: 0 | AD80: 0 | AE80: 0 | AF80: 0 | AG80: 0 | AH80: 0 | AI80: 0 | AJ80: 0 | AK80: 0 | AM80: -1367.086604 | AO80: Other Miscellaneous Cost | AR80: =INDEX(AssetDB!$G$53:$AR$53,MATCH(DevCosts!$AR$75,AssetDB!$G$1:$AR$1,0)) -> 0.05 | AV80: =$AR80*AV77 -> 0 | AW80: 0 | AX80: 0 | AY80: 0 | AZ80: 0 | BA80: 0 | BB80: 0 | BC80: 0 | BD80: 0 | BE80: 0 | BF80: 0 | BG80: 0 | BH80: 0 | BI80: 0 | BJ80: 0 | BK80: 0 | BL80: 0 | BM80: 0 | BN80: 0 | BO80: 0 | BP80: 0 | BQ80: 0 | BR80: 0 | BS80: 0 | BT80: 0 | BU80: 0 | BV80: 0 | BW80: 0 | BX80: 0 | BY80: 0 | BZ80: 0 | CA80: 0 | CB80: 0 | CC80: 0 | CD80: 0 | CE80: 0 | CF80: 0 | CG80: 0 | CH80: 0 | CI80: 0 | CJ80: 0 | CK80: 0 | CL80: 0 | CM80: 0 | CN80: 0 | CO80: -131.1709604 | CP80: -199.2158961 | CQ80: -201.7060948 | CR80: -204.227421 | CS80: -206.7802637 | CT80: -139.576678 | CU80: -141.3213865 | CV80: -143.0879038 | CW80: 0 | CX80: 0 | CY80: 0 | CZ80: 0 | DA80: 0 | DB80: 0 | DC80: 0 | DD80: 0 | DE80: 0 | DF80: 0 | DG80: 0 | DH80: =$AR80*DH77 -> 0 | DI80: 0 | DJ80: 0 | DK80: 0 | DL80: 0 | DM80: 0 | DN80: 0 | DO80: 0 | DP80: 0 | DQ80: 0 | DR80: 0 | DS80: 0 | DT80: 0 | DU80: 0 | DV80: 0 | DW80: 0 | DX80: 0 | DY80: 0 | DZ80: 0 | EA80: 0 | EB80: 0 | EC80: 0 | ED80: 0 | EE80: 0 | EF80: 0 | EG80: 0 | EH80: 0 | EI80: 0 | EJ80: 0 | EK80: 0 | EL80: 0 | EM80: 0 | EN80: 0 | EO80: 0 | EP80: 0 | EQ80: 0 | ER80: 0 | ES80: 0 | ET80: 0 | EU80: 0 | EV80: 0 | EW80: 0 | EX80: 0 | EY80: 0 | EZ80: 0 | FA80: 0 | FB80: 0 | FC80: 0 | FD80: 0 | FE80: 0 | FF80: 0 | FG80: 0 | FH80: 0 | FI80: 0 | FJ80: 0 | FK80: 0 | FL80: 0
B81: Additional Phasing Cost | G81: 0 | H81: 0 | I81: 0 | J81: 0 | K81: 0 | L81: 0 | M81: 0 | N81: 0 | O81: 0 | P81: 0 | Q81: 0 | R81: 0 | S81: -3681.601861 | T81: -3153.83116 | U81: 0 | V81: 0 | W81: 0 | X81: 0 | Y81: 0 | Z81: 0 | AA81: 0 | AB81: 0 | AC81: 0 | AD81: 0 | AE81: 0 | AF81: 0 | AG81: 0 | AH81: 0 | AI81: 0 | AJ81: 0 | AK81: 0 | AM81: -6835.433021 | AO81: Additional Phasing Cost | AR81: =INDEX(AssetDB!$G$54:$AR$54,MATCH(AR75,AssetDB!$G$1:$AR$1,0)) -> 3750 | AV81: =-$AR81*AV78*AV$12 -> 0 | AW81: 0 | AX81: 0 | AY81: 0 | AZ81: 0 | BA81: 0 | BB81: 0 | BC81: 0 | BD81: 0 | BE81: 0 | BF81: 0 | BG81: 0 | BH81: 0 | BI81: 0 | BJ81: 0 | BK81: 0 | BL81: 0 | BM81: 0 | BN81: 0 | BO81: 0 | BP81: 0 | BQ81: 0 | BR81: 0 | BS81: 0 | BT81: 0 | BU81: 0 | BV81: 0 | BW81: 0 | BX81: 0 | BY81: 0 | BZ81: 0 | CA81: 0 | CB81: 0 | CC81: 0 | CD81: 0 | CE81: 0 | CF81: 0 | CG81: 0 | CH81: 0 | CI81: 0 | CJ81: 0 | CK81: 0 | CL81: 0 | CM81: 0 | CN81: 0 | CO81: -655.8548019 | CP81: -996.0794804 | CQ81: -1008.530474 | CR81: -1021.137105 | CS81: -1033.901319 | CT81: -697.8833901 | CU81: -706.6069325 | CV81: -715.4395191 | CW81: 0 | CX81: 0 | CY81: 0 | CZ81: 0 | DA81: 0 | DB81: 0 | DC81: 0 | DD81: 0 | DE81: 0 | DF81: 0 | DG81: 0 | DH81: =-$AR81*DH78*DH$12 -> 0 | DI81: 0 | DJ81: 0 | DK81: 0 | DL81: 0 | DM81: 0 | DN81: 0 | DO81: 0 | DP81: 0 | DQ81: 0 | DR81: 0 | DS81: 0 | DT81: 0 | DU81: 0 | DV81: 0 | DW81: 0 | DX81: 0 | DY81: 0 | DZ81: 0 | EA81: 0 | EB81: 0 | EC81: 0 | ED81: 0 | EE81: 0 | EF81: 0 | EG81: 0 | EH81: 0 | EI81: 0 | EJ81: 0 | EK81: 0 | EL81: 0 | EM81: 0 | EN81: 0 | EO81: 0 | EP81: 0 | EQ81: 0 | ER81: 0 | ES81: 0 | ET81: 0 | EU81: 0 | EV81: 0 | EW81: 0 | EX81: 0 | EY81: 0 | EZ81: 0 | FA81: 0 | FB81: 0 | FC81: 0 | FD81: 0 | FE81: 0 | FF81: 0 | FG81: 0 | FH81: 0 | FI81: 0 | FJ81: 0 | FK81: 0 | FL81: 0
B82: Site Preparation Costs | G82: 0 | H82: 0 | I82: 0 | J82: 0 | K82: 0 | L82: 0 | M82: 0 | N82: 0 | O82: 0 | P82: 0 | Q82: 0 | R82: 0 | S82: 0 | T82: 0 | U82: 0 | V82: 0 | W82: 0 | X82: 0 | Y82: 0 | Z82: 0 | AA82: 0 | AB82: 0 | AC82: 0 | AD82: -233.7303226 | AE82: 0 | AF82: 0 | AG82: 0 | AH82: 0 | AI82: 0 | AJ82: 0 | AK82: 0 | AM82: -233.7303226 | AO82: Site Preparation Costs | AR82: =INDEX(AssetDB!$G$56:$AR$56,MATCH(DevCosts!$AR$75,AssetDB!$G$1:$AR$1,0)) -> 75 | AS82: =MAX(INDEX(AssetDB!$G$80:$AR$80,MATCH(DevCosts!$AR$75,AssetDB!$G$1:$AR$1,0))-2,0) -> 91 | AT82: =MAX(INDEX(AssetDB!$G$80:$AR$80,MATCH(DevCosts!$AR$75,AssetDB!$G$1:$AR$1,0))-1,0) -> 92 | AV82: =-($AS82<=AV$1)*($AT82>=AV$1)*$AR82/($AT82-$AS82+1)*AV$12 -> 0 | AW82: 0 | AX82: 0 | AY82: 0 | AZ82: 0 | BA82: 0 | BB82: 0 | BC82: 0 | BD82: 0 | BE82: 0 | BF82: 0 | BG82: 0 | BH82: 0 | BI82: 0 | BJ82: 0 | BK82: 0 | BL82: =-($AS82<=BL$1)*($AT82>=BL$1)*$AR82/($AT82-$AS82+1)*BL$12 -> 0 | BM82: 0 | BN82: 0 | BO82: 0 | BP82: 0 | BQ82: 0 | BR82: 0 | BS82: 0 | BT82: 0 | BU82: 0 | BV82: 0 | BW82: 0 | BX82: 0 | BY82: 0 | BZ82: 0 | CA82: 0 | CB82: =-($AS82<=CB$1)*($AT82>=CB$1)*$AR82/($AT82-$AS82+1)*CB$12 -> 0 | CC82: 0 | CD82: 0 | CE82: 0 | CF82: 0 | CG82: 0 | CH82: 0 | CI82: 0 | CJ82: 0 | CK82: 0 | CL82: 0 | CM82: 0 | CN82: 0 | CO82: 0 | CP82: 0 | CQ82: 0 | CR82: =-($AS82<=CR$1)*($AT82>=CR$1)*$AR82/($AT82-$AS82+1)*CR$12 -> 0 | CS82: 0 | CT82: 0 | CU82: 0 | CV82: 0 | CW82: 0 | CX82: 0 | CY82: 0 | CZ82: 0 | DA82: 0 | DB82: 0 | DC82: 0 | DD82: 0 | DE82: 0 | DF82: 0 | DG82: 0 | DH82: 0 | DI82: 0 | DJ82: 0 | DK82: 0 | DL82: 0 | DM82: 0 | DN82: 0 | DO82: 0 | DP82: 0 | DQ82: 0 | DR82: 0 | DS82: 0 | DT82: 0 | DU82: 0 | DV82: 0 | DW82: 0 | DX82: 0 | DY82: 0 | DZ82: 0 | EA82: 0 | EB82: 0 | EC82: 0 | ED82: 0 | EE82: 0 | EF82: 0 | EG82: 0 | EH82: 0 | EI82: -116.1392907 | EJ82: -117.5910319 | EK82: 0 | EL82: 0 | EM82: 0 | EN82: 0 | EO82: 0 | EP82: 0 | EQ82: 0 | ER82: 0 | ES82: 0 | ET82: 0 | EU82: 0 | EV82: 0 | EW82: 0 | EX82: 0 | EY82: 0 | EZ82: 0 | FA82: 0 | FB82: 0 | FC82: 0 | FD82: 0 | FE82: 0 | FF82: 0 | FG82: 0 | FH82: 0 | FI82: 0 | FJ82: 0 | FK82: 0 | FL82: 0
B84: =B62 -> Total Construction Cost | G84: =SUM(G77,G79,G80,G81,G82) -> 0 | H84: 0 | I84: 0 | J84: 0 | K84: 0 | L84: 0 | M84: 0 | N84: 0 | O84: 0 | P84: 0 | Q84: 0 | R84: 0 | S84: -19733.38598 | T84: -16904.53502 | U84: 0 | V84: 0 | W84: =SUM(W77,W79,W80,W81,W82) -> 0 | X84: 0 | Y84: 0 | Z84: 0 | AA84: 0 | AB84: 0 | AC84: 0 | AD84: -233.7303226 | AE84: 0 | AF84: 0 | AG84: 0 | AH84: 0 | AI84: 0 | AJ84: 0 | AK84: 0 | AM84: =SUM(G84:AK84) -> -36871.65132 | AO84: =B84 -> Total Construction Cost | AV84: =SUM(AV82,AV81,AV80,AV79,AV77) -> 0 | AW84: 0 | AX84: 0 | AY84: 0 | AZ84: 0 | BA84: 0 | BB84: 0 | BC84: 0 | BD84: 0 | BE84: 0 | BF84: 0 | BG84: 0 | BH84: 0 | BI84: 0 | BJ84: 0 | BK84: 0 | BL84: 0 | BM84: 0 | BN84: 0 | BO84: 0 | BP84: 0 | BQ84: 0 | BR84: 0 | BS84: 0 | BT84: 0 | BU84: 0 | BV84: 0 | BW84: 0 | BX84: 0 | BY84: 0 | BZ84: 0 | CA84: 0 | CB84: 0 | CC84: 0 | CD84: 0 | CE84: 0 | CF84: 0 | CG84: 0 | CH84: 0 | CI84: 0 | CJ84: 0 | CK84: 0 | CL84: 0 | CM84: 0 | CN84: 0 | CO84: -3515.381738 | CP84: -5338.986015 | CQ84: -5405.72334 | CR84: -5473.294882 | CS84: -5541.711068 | CT84: -3740.654971 | CU84: -3787.413158 | CV84: -3834.755822 | CW84: 0 | CX84: 0 | CY84: 0 | CZ84: 0 | DA84: 0 | DB84: 0 | DC84: 0 | DD84: =SUM(DD82,DD81,DD80,DD79,DD77) -> 0 | DE84: 0 | DF84: 0 | DG84: 0 | DH84: 0 | DI84: 0 | DJ84: 0 | DK84: 0 | DL84: 0 | DM84: 0 | DN84: 0 | DO84: 0 | DP84: 0 | DQ84: 0 | DR84: 0 | DS84: 0 | DT84: 0 | DU84: 0 | DV84: 0 | DW84: 0 | DX84: 0 | DY84: 0 | DZ84: 0 | EA84: 0 | EB84: 0 | EC84: 0 | ED84: 0 | EE84: 0 | EF84: 0 | EG84: 0 | EH84: 0 | EI84: -116.1392907 | EJ84: -117.5910319 | EK84: 0 | EL84: 0 | EM84: 0 | EN84: 0 | EO84: 0 | EP84: 0 | EQ84: 0 | ER84: 0 | ES84: 0 | ET84: 0 | EU84: 0 | EV84: 0 | EW84: 0 | EX84: 0 | EY84: 0 | EZ84: 0 | FA84: 0 | FB84: 0 | FC84: 0 | FD84: 0 | FE84: 0 | FF84: 0 | FG84: 0 | FH84: 0 | FI84: 0 | FJ84: 0 | FK84: 0 | FL84: 0
B86: =B64 -> Architects and Engineer Fees | F86: =AM86/AM$40 -> 0.15 | G86: =SUMIF($AV$8:$FL$8,G$8,$AV86:$FL86) -> 0 | H86: -732.3428193 | I86: 0 | J86: 0 | K86: 0 | L86: 0 | M86: 0 | N86: 0 | O86: 0 | P86: 0 | Q86: =SUMIF($AV$8:$FL$8,Q$8,$AV86:$FL86) -> 0 | R86: -6591.085374 | S86: 0 | T86: 0 | U86: 0 | V86: 0 | W86: 0 | X86: 0 | Y86: 0 | Z86: 0 | AA86: =SUMIF($AV$8:$FL$8,AA$8,$AV86:$FL86) -> 0 | AB86: 0 | AC86: 0 | AD86: 0 | AE86: 0 | AF86: 0 | AG86: 0 | AH86: 0 | AI86: 0 | AJ86: 0 | AK86: 0 | AM86: =SUM(G86:AK86) -> -7323.428193 | AO86: =B86 -> Architects and Engineer Fees | AR86: =IF(AR77=0,0,INDEX(AssetDB!$G$62:$AR$62,MATCH(DevCosts!$AR$141,AssetDB!$G$1:$AR$1,0))) -> 0.15 | AV86: =$AR86*$AM$40*AV87 -> 0 | AW86: 0 | AX86: -732.3428193 | AY86: 0 | AZ86: 0 | BA86: 0 | BB86: 0 | BC86: 0 | BD86: 0 | BE86: 0 | BF86: 0 | BG86: 0 | BH86: 0 | BI86: 0 | BJ86: 0 | BK86: 0 | BL86: 0 | BM86: 0 | BN86: 0 | BO86: 0 | BP86: 0 | BQ86: 0 | BR86: 0 | BS86: 0 | BT86: 0 | BU86: 0 | BV86: 0 | BW86: 0 | BX86: 0 | BY86: 0 | BZ86: 0 | CA86: 0 | CB86: =$AR86*$AM$40*CB87 -> 0 | CC86: 0 | CD86: 0 | CE86: 0 | CF86: 0 | CG86: 0 | CH86: 0 | CI86: 0 | CJ86: 0 | CK86: 0 | CL86: 0 | CM86: -6591.085374 | CN86: 0 | CO86: 0 | CP86: 0 | CQ86: 0 | CR86: 0 | CS86: 0 | CT86: 0 | CU86: 0 | CV86: 0 | CW86: 0 | CX86: 0 | CY86: 0 | CZ86: 0 | DA86: 0 | DB86: 0 | DC86: 0 | DD86: 0 | DE86: 0 | DF86: 0 | DG86: 0 | DH86: 0 | DI86: 0 | DJ86: 0 | DK86: 0 | DL86: 0 | DM86: 0 | DN86: 0 | DO86: 0 | DP86: 0 | DQ86: 0 | DR86: 0 | DS86: 0 | DT86: 0 | DU86: 0 | DV86: 0 | DW86: 0 | DX86: 0 | DY86: 0 | DZ86: 0 | EA86: 0 | EB86: 0 | EC86: 0 | ED86: 0 | EE86: 0 | EF86: 0 | EG86: 0 | EH86: 0 | EI86: 0 | EJ86: 0 | EK86: 0 | EL86: 0 | EM86: 0 | EN86: 0 | EO86: 0 | EP86: 0 | EQ86: 0 | ER86: 0 | ES86: 0 | ET86: 0 | EU86: 0 | EV86: 0 | EW86: 0 | EX86: 0 | EY86: 0 | EZ86: 0 | FA86: 0 | FB86: 0 | FC86: 0 | FD86: 0 | FE86: 0 | FF86: 0 | FG86: 0 | FH86: 0 | FI86: 0 | FJ86: 0 | FK86: 0 | FL86: 0
B87: =B65 -> Payment Schedule | G87: 0 | H87: 0.1 | I87: 0 | J87: 0 | K87: 0 | L87: 0 | M87: 0 | N87: 0 | O87: 0 | P87: 0 | Q87: 0 | R87: 0.9 | S87: 0 | T87: 0 | U87: 0 | V87: 0 | W87: 0 | X87: 0 | Y87: 0 | Z87: 0 | AA87: 0 | AB87: 0 | AC87: 0 | AD87: 0 | AE87: 0 | AF87: 0 | AG87: 0 | AH87: 0 | AI87: 0 | AJ87: 0 | AK87: 0 | AM87: =SUM(G87:AK87) -> 1 | AO87: =B87 -> Payment Schedule | AV87: =SUMPRODUCT(--(TimingDB!$G$11:$G$26=AV$9),TimingDB!$H$11:$H$26) -> 0 | AW87: =SUMPRODUCT(--(TimingDB!$G$11:$G$26=AW$9),TimingDB!$H$11:$H$26) -> 0 | AX87: =SUMPRODUCT(--(TimingDB!$G$11:$G$26=AX$9),TimingDB!$H$11:$H$26) -> 0.1 | AY87: =SUMPRODUCT(--(TimingDB!$G$11:$G$26=AY$9),TimingDB!$H$11:$H$26) -> 0 | AZ87: =SUMPRODUCT(--(TimingDB!$G$11:$G$26=AZ$9),TimingDB!$H$11:$H$26) -> 0 | BA87: =SUMPRODUCT(--(TimingDB!$G$11:$G$26=BA$9),TimingDB!$H$11:$H$26) -> 0 | BB87: =SUMPRODUCT(--(TimingDB!$G$11:$G$26=BB$9),TimingDB!$H$11:$H$26) -> 0 | BC87: =SUMPRODUCT(--(TimingDB!$G$11:$G$26=BC$9),TimingDB!$H$11:$H$26) -> 0 | BD87: =SUMPRODUCT(--(TimingDB!$G$11:$G$26=BD$9),TimingDB!$H$11:$H$26) -> 0 | BE87: =SUMPRODUCT(--(TimingDB!$G$11:$G$26=BE$9),TimingDB!$H$11:$H$26) -> 0 | BF87: =SUMPRODUCT(--(TimingDB!$G$11:$G$26=BF$9),TimingDB!$H$11:$H$26) -> 0 | BG87: =SUMPRODUCT(--(TimingDB!$G$11:$G$26=BG$9),TimingDB!$H$11:$H$26) -> 0 | BH87: =SUMPRODUCT(--(TimingDB!$G$11:$G$26=BH$9),TimingDB!$H$11:$H$26) -> 0 | BI87: =SUMPRODUCT(--(TimingDB!$G$11:$G$26=BI$9),TimingDB!$H$11:$H$26) -> 0 | BJ87: =SUMPRODUCT(--(TimingDB!$G$11:$G$26=BJ$9),TimingDB!$H$11:$H$26) -> 0 | BK87: =SUMPRODUCT(--(TimingDB!$G$11:$G$26=BK$9),TimingDB!$H$11:$H$26) -> 0 | BL87: =SUMPRODUCT(--(TimingDB!$G$11:$G$26=BL$9),TimingDB!$H$11:$H$26) -> 0 | BM87: =SUMPRODUCT(--(TimingDB!$G$11:$G$26=BM$9),TimingDB!$H$11:$H$26) -> 0 | BN87: =SUMPRODUCT(--(TimingDB!$G$11:$G$26=BN$9),TimingDB!$H$11:$H$26) -> 0 | BO87: =SUMPRODUCT(--(TimingDB!$G$11:$G$26=BO$9),TimingDB!$H$11:$H$26) -> 0 | BP87: =SUMPRODUCT(--(TimingDB!$G$11:$G$26=BP$9),TimingDB!$H$11:$H$26) -> 0 | BQ87: =SUMPRODUCT(--(TimingDB!$G$11:$G$26=BQ$9),TimingDB!$H$11:$H$26) -> 0 | BR87: =SUMPRODUCT(--(TimingDB!$G$11:$G$26=BR$9),TimingDB!$H$11:$H$26) -> 0 | BS87: =SUMPRODUCT(--(TimingDB!$G$11:$G$26=BS$9),TimingDB!$H$11:$H$26) -> 0 | BT87: =SUMPRODUCT(--(TimingDB!$G$11:$G$26=BT$9),TimingDB!$H$11:$H$26) -> 0 | BU87: =SUMPRODUCT(--(TimingDB!$G$11:$G$26=BU$9),TimingDB!$H$11:$H$26) -> 0 | BV87: =SUMPRODUCT(--(TimingDB!$G$11:$G$26=BV$9),TimingDB!$H$11:$H$26) -> 0 | BW87: =SUMPRODUCT(--(TimingDB!$G$11:$G$26=BW$9),TimingDB!$H$11:$H$26) -> 0 | BX87: =SUMPRODUCT(--(TimingDB!$G$11:$G$26=BX$9),TimingDB!$H$11:$H$26) -> 0 | BY87: =SUMPRODUCT(--(TimingDB!$G$11:$G$26=BY$9),TimingDB!$H$11:$H$26) -> 0 | BZ87: =SUMPRODUCT(--(TimingDB!$G$11:$G$26=BZ$9),TimingDB!$H$11:$H$26) -> 0 | CA87: =SUMPRODUCT(--(TimingDB!$G$11:$G$26=CA$9),TimingDB!$H$11:$H$26) -> 0 | CB87: =SUMPRODUCT(--(TimingDB!$G$11:$G$26=CB$9),TimingDB!$H$11:$H$26) -> 0 | CC87: =SUMPRODUCT(--(TimingDB!$G$11:$G$26=CC$9),TimingDB!$H$11:$H$26) -> 0 | CD87: =SUMPRODUCT(--(TimingDB!$G$11:$G$26=CD$9),TimingDB!$H$11:$H$26) -> 0 | CE87: =SUMPRODUCT(--(TimingDB!$G$11:$G$26=CE$9),TimingDB!$H$11:$H$26) -> 0 | CF87: =SUMPRODUCT(--(TimingDB!$G$11:$G$26=CF$9),TimingDB!$H$11:$H$26) -> 0 | CG87: =SUMPRODUCT(--(TimingDB!$G$11:$G$26=CG$9),TimingDB!$H$11:$H$26) -> 0 | CH87: =SUMPRODUCT(--(TimingDB!$G$11:$G$26=CH$9),TimingDB!$H$11:$H$26) -> 0 | CI87: =SUMPRODUCT(--(TimingDB!$G$11:$G$26=CI$9),TimingDB!$H$11:$H$26) -> 0 | CJ87: =SUMPRODUCT(--(TimingDB!$G$11:$G$26=CJ$9),TimingDB!$H$11:$H$26) -> 0 | CK87: =SUMPRODUCT(--(TimingDB!$G$11:$G$26=CK$9),TimingDB!$H$11:$H$26) -> 0 | CL87: =SUMPRODUCT(--(TimingDB!$G$11:$G$26=CL$9),TimingDB!$H$11:$H$26) -> 0 | CM87: =SUMPRODUCT(--(TimingDB!$G$11:$G$26=CM$9),TimingDB!$H$11:$H$26) -> 0.9 | CN87: =SUMPRODUCT(--(TimingDB!$G$11:$G$26=CN$9),TimingDB!$H$11:$H$26) -> 0 | CO87: =SUMPRODUCT(--(TimingDB!$G$11:$G$26=CO$9),TimingDB!$H$11:$H$26) -> 0 | CP87: =SUMPRODUCT(--(TimingDB!$G$11:$G$26=CP$9),TimingDB!$H$11:$H$26) -> 0 | CQ87: =SUMPRODUCT(--(TimingDB!$G$11:$G$26=CQ$9),TimingDB!$H$11:$H$26) -> 0 | CR87: =SUMPRODUCT(--(TimingDB!$G$11:$G$26=CR$9),TimingDB!$H$11:$H$26) -> 0 | CS87: =SUMPRODUCT(--(TimingDB!$G$11:$G$26=CS$9),TimingDB!$H$11:$H$26) -> 0 | CT87: =SUMPRODUCT(--(TimingDB!$G$11:$G$26=CT$9),TimingDB!$H$11:$H$26) -> 0 | CU87: =SUMPRODUCT(--(TimingDB!$G$11:$G$26=CU$9),TimingDB!$H$11:$H$26) -> 0 | CV87: =SUMPRODUCT(--(TimingDB!$G$11:$G$26=CV$9),TimingDB!$H$11:$H$26) -> 0 | CW87: =SUMPRODUCT(--(TimingDB!$G$11:$G$26=CW$9),TimingDB!$H$11:$H$26) -> 0 | CX87: =SUMPRODUCT(--(TimingDB!$G$11:$G$26=CX$9),TimingDB!$H$11:$H$26) -> 0 | CY87: =SUMPRODUCT(--(TimingDB!$G$11:$G$26=CY$9),TimingDB!$H$11:$H$26) -> 0 | CZ87: =SUMPRODUCT(--(TimingDB!$G$11:$G$26=CZ$9),TimingDB!$H$11:$H$26) -> 0 | DA87: =SUMPRODUCT(--(TimingDB!$G$11:$G$26=DA$9),TimingDB!$H$11:$H$26) -> 0 | DB87: =SUMPRODUCT(--(TimingDB!$G$11:$G$26=DB$9),TimingDB!$H$11:$H$26) -> 0 | DC87: =SUMPRODUCT(--(TimingDB!$G$11:$G$26=DC$9),TimingDB!$H$11:$H$26) -> 0 | DD87: =SUMPRODUCT(--(TimingDB!$G$11:$G$26=DD$9),TimingDB!$H$11:$H$26) -> 0 | DE87: =SUMPRODUCT(--(TimingDB!$G$11:$G$26=DE$9),TimingDB!$H$11:$H$26) -> 0 | DF87: =SUMPRODUCT(--(TimingDB!$G$11:$G$26=DF$9),TimingDB!$H$11:$H$26) -> 0 | DG87: =SUMPRODUCT(--(TimingDB!$G$11:$G$26=DG$9),TimingDB!$H$11:$H$26) -> 0 | DH87: =SUMPRODUCT(--(TimingDB!$G$11:$G$26=DH$9),TimingDB!$H$11:$H$26) -> 0 | DI87: =SUMPRODUCT(--(TimingDB!$G$11:$G$26=DI$9),TimingDB!$H$11:$H$26) -> 0 | DJ87: =SUMPRODUCT(--(TimingDB!$G$11:$G$26=DJ$9),TimingDB!$H$11:$H$26) -> 0 | DK87: =SUMPRODUCT(--(TimingDB!$G$11:$G$26=DK$9),TimingDB!$H$11:$H$26) -> 0 | DL87: =SUMPRODUCT(--(TimingDB!$G$11:$G$26=DL$9),TimingDB!$H$11:$H$26) -> 0 | DM87: =SUMPRODUCT(--(TimingDB!$G$11:$G$26=DM$9),TimingDB!$H$11:$H$26) -> 0 | DN87: =SUMPRODUCT(--(TimingDB!$G$11:$G$26=DN$9),TimingDB!$H$11:$H$26) -> 0 | DO87: =SUMPRODUCT(--(TimingDB!$G$11:$G$26=DO$9),TimingDB!$H$11:$H$26) -> 0 | DP87: =SUMPRODUCT(--(TimingDB!$G$11:$G$26=DP$9),TimingDB!$H$11:$H$26) -> 0 | DQ87: =SUMPRODUCT(--(TimingDB!$G$11:$G$26=DQ$9),TimingDB!$H$11:$H$26) -> 0 | DR87: =SUMPRODUCT(--(TimingDB!$G$11:$G$26=DR$9),TimingDB!$H$11:$H$26) -> 0 | DS87: =SUMPRODUCT(--(TimingDB!$G$11:$G$26=DS$9),TimingDB!$H$11:$H$26) -> 0 | DT87: =SUMPRODUCT(--(TimingDB!$G$11:$G$26=DT$9),TimingDB!$H$11:$H$26) -> 0 | DU87: =SUMPRODUCT(--(TimingDB!$G$11:$G$26=DU$9),TimingDB!$H$11:$H$26) -> 0 | DV87: =SUMPRODUCT(--(TimingDB!$G$11:$G$26=DV$9),TimingDB!$H$11:$H$26) -> 0 | DW87: =SUMPRODUCT(--(TimingDB!$G$11:$G$26=DW$9),TimingDB!$H$11:$H$26) -> 0 | DX87: =SUMPRODUCT(--(TimingDB!$G$11:$G$26=DX$9),TimingDB!$H$11:$H$26) -> 0 | DY87: =SUMPRODUCT(--(TimingDB!$G$11:$G$26=DY$9),TimingDB!$H$11:$H$26) -> 0 | DZ87: =SUMPRODUCT(--(TimingDB!$G$11:$G$26=DZ$9),TimingDB!$H$11:$H$26) -> 0 | EA87: =SUMPRODUCT(--(TimingDB!$G$11:$G$26=EA$9),TimingDB!$H$11:$H$26) -> 0 | EB87: =SUMPRODUCT(--(TimingDB!$G$11:$G$26=EB$9),TimingDB!$H$11:$H$26) -> 0 | EC87: =SUMPRODUCT(--(TimingDB!$G$11:$G$26=EC$9),TimingDB!$H$11:$H$26) -> 0 | ED87: =SUMPRODUCT(--(TimingDB!$G$11:$G$26=ED$9),TimingDB!$H$11:$H$26) -> 0 | EE87: =SUMPRODUCT(--(TimingDB!$G$11:$G$26=EE$9),TimingDB!$H$11:$H$26) -> 0 | EF87: =SUMPRODUCT(--(TimingDB!$G$11:$G$26=EF$9),TimingDB!$H$11:$H$26) -> 0 | EG87: =SUMPRODUCT(--(TimingDB!$G$11:$G$26=EG$9),TimingDB!$H$11:$H$26) -> 0 | EH87: =SUMPRODUCT(--(TimingDB!$G$11:$G$26=EH$9),TimingDB!$H$11:$H$26) -> 0 | EI87: =SUMPRODUCT(--(TimingDB!$G$11:$G$26=EI$9),TimingDB!$H$11:$H$26) -> 0 | EJ87: =SUMPRODUCT(--(TimingDB!$G$11:$G$26=EJ$9),TimingDB!$H$11:$H$26) -> 0 | EK87: =SUMPRODUCT(--(TimingDB!$G$11:$G$26=EK$9),TimingDB!$H$11:$H$26) -> 0 | EL87: =SUMPRODUCT(--(TimingDB!$G$11:$G$26=EL$9),TimingDB!$H$11:$H$26) -> 0 | EM87: =SUMPRODUCT(--(TimingDB!$G$11:$G$26=EM$9),TimingDB!$H$11:$H$26) -> 0 | EN87: =SUMPRODUCT(--(TimingDB!$G$11:$G$26=EN$9),TimingDB!$H$11:$H$26) -> 0 | EO87: =SUMPRODUCT(--(TimingDB!$G$11:$G$26=EO$9),TimingDB!$H$11:$H$26) -> 0 | EP87: =SUMPRODUCT(--(TimingDB!$G$11:$G$26=EP$9),TimingDB!$H$11:$H$26) -> 0 | EQ87: =SUMPRODUCT(--(TimingDB!$G$11:$G$26=EQ$9),TimingDB!$H$11:$H$26) -> 0 | ER87: =SUMPRODUCT(--(TimingDB!$G$11:$G$26=ER$9),TimingDB!$H$11:$H$26) -> 0 | ES87: =SUMPRODUCT(--(TimingDB!$G$11:$G$26=ES$9),TimingDB!$H$11:$H$26) -> 0 | ET87: =SUMPRODUCT(--(TimingDB!$G$11:$G$26=ET$9),TimingDB!$H$11:$H$26) -> 0 | EU87: =SUMPRODUCT(--(TimingDB!$G$11:$G$26=EU$9),TimingDB!$H$11:$H$26) -> 0 | EV87: =SUMPRODUCT(--(TimingDB!$G$11:$G$26=EV$9),TimingDB!$H$11:$H$26) -> 0 | EW87: =SUMPRODUCT(--(TimingDB!$G$11:$G$26=EW$9),TimingDB!$H$11:$H$26) -> 0 | EX87: =SUMPRODUCT(--(TimingDB!$G$11:$G$26=EX$9),TimingDB!$H$11:$H$26) -> 0 | EY87: =SUMPRODUCT(--(TimingDB!$G$11:$G$26=EY$9),TimingDB!$H$11:$H$26) -> 0 | EZ87: =SUMPRODUCT(--(TimingDB!$G$11:$G$26=EZ$9),TimingDB!$H$11:$H$26) -> 0 | FA87: =SUMPRODUCT(--(TimingDB!$G$11:$G$26=FA$9),TimingDB!$H$11:$H$26) -> 0 | FB87: =SUMPRODUCT(--(TimingDB!$G$11:$G$26=FB$9),TimingDB!$H$11:$H$26) -> 0 | FC87: =SUMPRODUCT(--(TimingDB!$G$11:$G$26=FC$9),TimingDB!$H$11:$H$26) -> 0 | FD87: =SUMPRODUCT(--(TimingDB!$G$11:$G$26=FD$9),TimingDB!$H$11:$H$26) -> 0 | FE87: =SUMPRODUCT(--(TimingDB!$G$11:$G$26=FE$9),TimingDB!$H$11:$H$26) -> 0 | FF87: =SUMPRODUCT(--(TimingDB!$G$11:$G$26=FF$9),TimingDB!$H$11:$H$26) -> 0 | FG87: =SUMPRODUCT(--(TimingDB!$G$11:$G$26=FG$9),TimingDB!$H$11:$H$26) -> 0 | FH87: =SUMPRODUCT(--(TimingDB!$G$11:$G$26=FH$9),TimingDB!$H$11:$H$26) -> 0 | FI87: =SUMPRODUCT(--(TimingDB!$G$11:$G$26=FI$9),TimingDB!$H$11:$H$26) -> 0 | FJ87: =SUMPRODUCT(--(TimingDB!$G$11:$G$26=FJ$9),TimingDB!$H$11:$H$26) -> 0 | FK87: =SUMPRODUCT(--(TimingDB!$G$11:$G$26=FK$9),TimingDB!$H$11:$H$26) -> 0 | FL87: =SUMPRODUCT(--(TimingDB!$G$11:$G$26=FL$9),TimingDB!$H$11:$H$26) -> 0
B88: =B66 -> Other Soft Costs (Consultants, Insurance) | F88: =AM88/AM$40 -> 0.01510425869 | G88: 0 | H88: 0 | I88: 0 | J88: 0 | K88: 0 | L88: 0 | M88: 0 | N88: 0 | O88: 0 | P88: 0 | Q88: 0 | R88: 0 | S88: -394.6677195 | T88: -338.0907004 | U88: 0 | V88: 0 | W88: 0 | X88: 0 | Y88: 0 | Z88: 0 | AA88: 0 | AB88: 0 | AC88: 0 | AD88: -4.674606452 | AE88: 0 | AF88: 0 | AG88: 0 | AH88: 0 | AI88: 0 | AJ88: 0 | AK88: 0 | AM88: =SUM(G88:AK88) -> -737.4330263 | AO88: =B88 -> Other Soft Costs (Consultants, Insurance) | AR88: =INDEX(AssetDB!$G$64:$AR$64,MATCH(DevCosts!$AR$75,AssetDB!$G$1:$AR$1,0)) -> 0.02 | AV88: =$AR88*AV84 -> 0 | AW88: 0 | AX88: 0 | AY88: 0 | AZ88: 0 | BA88: 0 | BB88: 0 | BC88: 0 | BD88: 0 | BE88: 0 | BF88: 0 | BG88: 0 | BH88: 0 | BI88: 0 | BJ88: 0 | BK88: 0 | BL88: 0 | BM88: 0 | BN88: 0 | BO88: 0 | BP88: 0 | BQ88: 0 | BR88: 0 | BS88: 0 | BT88: 0 | BU88: 0 | BV88: 0 | BW88: 0 | BX88: 0 | BY88: 0 | BZ88: 0 | CA88: 0 | CB88: 0 | CC88: 0 | CD88: 0 | CE88: 0 | CF88: 0 | CG88: 0 | CH88: 0 | CI88: 0 | CJ88: 0 | CK88: 0 | CL88: 0 | CM88: 0 | CN88: 0 | CO88: -70.30763477 | CP88: -106.7797203 | CQ88: -108.1144668 | CR88: -109.4658976 | CS88: -110.8342214 | CT88: -74.81309942 | CU88: -75.74826316 | CV88: -76.69511645 | CW88: 0 | CX88: 0 | CY88: 0 | CZ88: 0 | DA88: 0 | DB88: 0 | DC88: 0 | DD88: 0 | DE88: 0 | DF88: 0 | DG88: 0 | DH88: =$AR88*DH84 -> 0 | DI88: 0 | DJ88: 0 | DK88: 0 | DL88: 0 | DM88: 0 | DN88: 0 | DO88: 0 | DP88: 0 | DQ88: 0 | DR88: 0 | DS88: 0 | DT88: 0 | DU88: 0 | DV88: 0 | DW88: 0 | DX88: 0 | DY88: 0 | DZ88: 0 | EA88: 0 | EB88: 0 | EC88: 0 | ED88: 0 | EE88: 0 | EF88: 0 | EG88: 0 | EH88: 0 | EI88: -2.322785814 | EJ88: -2.351820637 | EK88: 0 | EL88: 0 | EM88: 0 | EN88: 0 | EO88: 0 | EP88: 0 | EQ88: 0 | ER88: 0 | ES88: 0 | ET88: 0 | EU88: 0 | EV88: 0 | EW88: 0 | EX88: 0 | EY88: 0 | EZ88: 0 | FA88: 0 | FB88: 0 | FC88: 0 | FD88: 0 | FE88: 0 | FF88: 0 | FG88: 0 | FH88: 0 | FI88: 0 | FJ88: 0 | FK88: 0 | FL88: 0
B90: =B68 -> Total Fees & Other Soft Costs | G90: =G86+G88 -> 0 | H90: -732.3428193 | I90: 0 | J90: 0 | K90: 0 | L90: 0 | M90: 0 | N90: 0 | O90: 0 | P90: 0 | Q90: 0 | R90: -6591.085374 | S90: -394.6677195 | T90: -338.0907004 | U90: 0 | V90: 0 | W90: =W86+W88 -> 0 | X90: 0 | Y90: 0 | Z90: 0 | AA90: 0 | AB90: 0 | AC90: 0 | AD90: -4.674606452 | AE90: 0 | AF90: 0 | AG90: 0 | AH90: 0 | AI90: 0 | AJ90: 0 | AK90: 0 | AM90: =SUM(G90:AK90) -> -8060.861219 | AO90: =B90 -> Total Fees & Other Soft Costs | AV90: =AV86+AV88 -> 0 | AW90: 0 | AX90: -732.3428193 | AY90: 0 | AZ90: 0 | BA90: 0 | BB90: 0 | BC90: 0 | BD90: 0 | BE90: 0 | BF90: 0 | BG90: 0 | BH90: 0 | BI90: 0 | BJ90: 0 | BK90: 0 | BL90: 0 | BM90: 0 | BN90: 0 | BO90: 0 | BP90: 0 | BQ90: 0 | BR90: 0 | BS90: 0 | BT90: 0 | BU90: 0 | BV90: 0 | BW90: 0 | BX90: 0 | BY90: 0 | BZ90: 0 | CA90: 0 | CB90: 0 | CC90: 0 | CD90: 0 | CE90: 0 | CF90: 0 | CG90: 0 | CH90: 0 | CI90: 0 | CJ90: 0 | CK90: 0 | CL90: 0 | CM90: -6591.085374 | CN90: 0 | CO90: -70.30763477 | CP90: -106.7797203 | CQ90: -108.1144668 | CR90: -109.4658976 | CS90: -110.8342214 | CT90: -74.81309942 | CU90: -75.74826316 | CV90: -76.69511645 | CW90: 0 | CX90: 0 | CY90: 0 | CZ90: 0 | DA90: 0 | DB90: 0 | DC90: 0 | DD90: =DD86+DD88 -> 0 | DE90: 0 | DF90: 0 | DG90: 0 | DH90: 0 | DI90: 0 | DJ90: 0 | DK90: 0 | DL90: 0 | DM90: 0 | DN90: 0 | DO90: 0 | DP90: 0 | DQ90: 0 | DR90: 0 | DS90: 0 | DT90: 0 | DU90: 0 | DV90: 0 | DW90: 0 | DX90: 0 | DY90: 0 | DZ90: 0 | EA90: 0 | EB90: 0 | EC90: 0 | ED90: 0 | EE90: 0 | EF90: 0 | EG90: 0 | EH90: 0 | EI90: -2.322785814 | EJ90: -2.351820637 | EK90: 0 | EL90: 0 | EM90: 0 | EN90: 0 | EO90: 0 | EP90: 0 | EQ90: 0 | ER90: 0 | ES90: 0 | ET90: 0 | EU90: 0 | EV90: 0 | EW90: 0 | EX90: 0 | EY90: 0 | EZ90: 0 | FA90: 0 | FB90: 0 | FC90: 0 | FD90: 0 | FE90: 0 | FF90: 0 | FG90: 0 | FH90: 0 | FI90: 0 | FJ90: 0 | FK90: 0 | FL90: 0
B92: =B70 -> Total Construction Costs & Fees | G92: =G90+G84 -> 0 | H92: -732.3428193 | I92: 0 | J92: 0 | K92: 0 | L92: 0 | M92: 0 | N92: 0 | O92: 0 | P92: 0 | Q92: 0 | R92: -6591.085374 | S92: -20128.05369 | T92: -17242.62572 | U92: 0 | V92: 0 | W92: =W90+W84 -> 0 | X92: 0 | Y92: 0 | Z92: 0 | AA92: 0 | AB92: 0 | AC92: 0 | AD92: -238.404929 | AE92: 0 | AF92: 0 | AG92: 0 | AH92: 0 | AI92: 0 | AJ92: 0 | AK92: 0 | AM92: =SUM(G92:AK92) -> -44932.51254 | AO92: =B92 -> Total Construction Costs & Fees | AV92: =AV84+AV90 -> 0 | AW92: 0 | AX92: -732.3428193 | AY92: 0 | AZ92: 0 | BA92: 0 | BB92: 0 | BC92: 0 | BD92: 0 | BE92: 0 | BF92: 0 | BG92: 0 | BH92: 0 | BI92: 0 | BJ92: 0 | BK92: 0 | BL92: 0 | BM92: 0 | BN92: 0 | BO92: 0 | BP92: 0 | BQ92: 0 | BR92: 0 | BS92: 0 | BT92: 0 | BU92: 0 | BV92: 0 | BW92: 0 | BX92: 0 | BY92: 0 | BZ92: 0 | CA92: 0 | CB92: 0 | CC92: 0 | CD92: 0 | CE92: 0 | CF92: 0 | CG92: 0 | CH92: 0 | CI92: 0 | CJ92: 0 | CK92: 0 | CL92: 0 | CM92: -6591.085374 | CN92: 0 | CO92: -3585.689373 | CP92: -5445.765735 | CQ92: -5513.837807 | CR92: -5582.76078 | CS92: -5652.545289 | CT92: -3815.46807 | CU92: -3863.161421 | CV92: -3911.450939 | CW92: 0 | CX92: 0 | CY92: 0 | CZ92: 0 | DA92: 0 | DB92: 0 | DC92: 0 | DD92: =DD84+DD90 -> 0 | DE92: 0 | DF92: 0 | DG92: 0 | DH92: 0 | DI92: 0 | DJ92: 0 | DK92: 0 | DL92: 0 | DM92: 0 | DN92: 0 | DO92: 0 | DP92: 0 | DQ92: 0 | DR92: 0 | DS92: 0 | DT92: 0 | DU92: 0 | DV92: 0 | DW92: 0 | DX92: 0 | DY92: 0 | DZ92: 0 | EA92: 0 | EB92: 0 | EC92: 0 | ED92: 0 | EE92: 0 | EF92: 0 | EG92: 0 | EH92: 0 | EI92: -118.4620765 | EJ92: -119.9428525 | EK92: 0 | EL92: 0 | EM92: 0 | EN92: 0 | EO92: 0 | EP92: 0 | EQ92: 0 | ER92: 0 | ES92: 0 | ET92: 0 | EU92: 0 | EV92: 0 | EW92: 0 | EX92: 0 | EY92: 0 | EZ92: 0 | FA92: 0 | FB92: 0 | FC92: 0 | FD92: 0 | FE92: 0 | FF92: 0 | FG92: 0 | FH92: 0 | FI92: 0 | FJ92: 0 | FK92: 0 | FL92: 0
B94: =B72 -> Planned Gross Area | G94: =SUMPRODUCT(--($AV$8:$FL$8=G$8),--($AV$7:$FL$7=4),$AV94:$FL94) -> 0 | H94: 0 | I94: 0 | J94: 0 | K94: 0 | L94: 0 | M94: 0 | N94: 0 | O94: 0 | P94: 0 | Q94: =SUMPRODUCT(--($AV$8:$FL$8=Q$8),--($AV$7:$FL$7=4),$AV94:$FL94) -> 0 | R94: 0 | S94: 0 | T94: 0 | U94: 0 | V94: 0 | W94: 0 | X94: 0 | Y94: 0 | Z94: 0 | AA94: =SUMPRODUCT(--($AV$8:$FL$8=AA$8),--($AV$7:$FL$7=4),$AV94:$FL94) -> 0 | AB94: 0 | AC94: 0 | AD94: 0 | AE94: 0 | AF94: 0 | AG94: 5000 | AH94: 5000 | AI94: 5000 | AJ94: 5000 | AK94: 5000 | AO94: =B94 -> Planned Gross Area | AR94: =INDEX(AssetDB!$G$15:$AR$15,MATCH(DevCosts!$AR$75,AssetDB!$G$1:$AR$1,0)) -> 5000 | AS94: =INDEX(AssetDB!$G$84:$AR$84,MATCH(DevCosts!$AR$75,AssetDB!$G$1:$AR$1,0)) -> 100 | AT94: =INDEX(AssetDB!$G$86:$AR$86,MATCH(DevCosts!$AR$75,AssetDB!$G$1:$AR$1,0)) -> 140 | AV94: =$AR94*(AV$9<=$AT94)*(AV$9>$AS94) -> 0 | AW94: 0 | AX94: 0 | AY94: 0 | AZ94: 0 | BA94: 0 | BB94: 0 | BC94: 0 | BD94: 0 | BE94: 0 | BF94: 0 | BG94: 0 | BH94: 0 | BI94: 0 | BJ94: 0 | BK94: 0 | BL94: =$AR94*(BL$9<=$AT94)*(BL$9>$AS94) -> 0 | BM94: 0 | BN94: 0 | BO94: 0 | BP94: 0 | BQ94: 0 | BR94: 0 | BS94: 0 | BT94: 0 | BU94: 0 | BV94: 0 | BW94: 0 | BX94: 0 | BY94: 0 | BZ94: 0 | CA94: 0 | CB94: =$AR94*(CB$9<=$AT94)*(CB$9>$AS94) -> 0 | CC94: 0 | CD94: 0 | CE94: 0 | CF94: 0 | CG94: 0 | CH94: 0 | CI94: 0 | CJ94: 0 | CK94: 0 | CL94: 0 | CM94: 0 | CN94: 0 | CO94: 0 | CP94: 0 | CQ94: 0 | CR94: =$AR94*(CR$9<=$AT94)*(CR$9>$AS94) -> 0 | CS94: 0 | CT94: 0 | CU94: 0 | CV94: 0 | CW94: 0 | CX94: 0 | CY94: 0 | CZ94: 0 | DA94: 0 | DB94: 0 | DC94: 0 | DD94: 0 | DE94: 0 | DF94: 0 | DG94: 0 | DH94: 0 | DI94: 0 | DJ94: 0 | DK94: 0 | DL94: 0 | DM94: 0 | DN94: 0 | DO94: 0 | DP94: 0 | DQ94: 0 | DR94: 0 | DS94: 0 | DT94: 0 | DU94: 0 | DV94: 0 | DW94: 0 | DX94: 0 | DY94: 0 | DZ94: 0 | EA94: 0 | EB94: 0 | EC94: 0 | ED94: 0 | EE94: 0 | EF94: 0 | EG94: 0 | EH94: 0 | EI94: 0 | EJ94: 0 | EK94: 0 | EL94: 0 | EM94: 0 | EN94: 0 | EO94: 0 | EP94: 0 | EQ94: 0 | ER94: 0 | ES94: 5000 | ET94: 5000 | EU94: 5000 | EV94: 5000 | EW94: 5000 | EX94: 5000 | EY94: 5000 | EZ94: 5000 | FA94: 5000 | FB94: 5000 | FC94: 5000 | FD94: 5000 | FE94: 5000 | FF94: 5000 | FG94: 5000 | FH94: 5000 | FI94: 5000 | FJ94: 5000 | FK94: 5000 | FL94: 5000
B95: =B73 -> Planned Lettable Area | G95: 0 | H95: 0 | I95: 0 | J95: 0 | K95: 0 | L95: 0 | M95: 0 | N95: 0 | O95: 0 | P95: 0 | Q95: 0 | R95: 0 | S95: 0 | T95: 0 | U95: 0 | V95: 0 | W95: 0 | X95: 0 | Y95: 0 | Z95: 0 | AA95: 0 | AB95: 0 | AC95: 0 | AD95: 0 | AE95: 0 | AF95: 0 | AG95: 4000 | AH95: 4000 | AI95: 4000 | AJ95: 4000 | AK95: 4000 | AO95: =B95 -> Planned Lettable Area | AR95: =INDEX(AssetDB!$G$17:$AR$17,MATCH(DevCosts!$AR$75,AssetDB!$G$1:$AR$1,0)) -> 4000 | AS95: =AS94 -> 100 | AT95: =AT94 -> 140 | AV95: 0 | AW95: 0 | AX95: 0 | AY95: 0 | AZ95: 0 | BA95: 0 | BB95: 0 | BC95: 0 | BD95: 0 | BE95: 0 | BF95: 0 | BG95: 0 | BH95: 0 | BI95: 0 | BJ95: 0 | BK95: 0 | BL95: 0 | BM95: 0 | BN95: 0 | BO95: 0 | BP95: 0 | BQ95: 0 | BR95: 0 | BS95: 0 | BT95: 0 | BU95: 0 | BV95: 0 | BW95: 0 | BX95: 0 | BY95: 0 | BZ95: 0 | CA95: 0 | CB95: 0 | CC95: 0 | CD95: 0 | CE95: 0 | CF95: 0 | CG95: 0 | CH95: 0 | CI95: 0 | CJ95: 0 | CK95: 0 | CL95: 0 | CM95: 0 | CN95: 0 | CO95: 0 | CP95: 0 | CQ95: 0 | CR95: 0 | CS95: 0 | CT95: 0 | CU95: 0 | CV95: 0 | CW95: 0 | CX95: 0 | CY95: 0 | CZ95: 0 | DA95: 0 | DB95: 0 | DC95: 0 | DD95: 0 | DE95: 0 | DF95: 0 | DG95: 0 | DH95: 0 | DI95: 0 | DJ95: 0 | DK95: 0 | DL95: 0 | DM95: 0 | DN95: 0 | DO95: 0 | DP95: 0 | DQ95: 0 | DR95: 0 | DS95: 0 | DT95: 0 | DU95: 0 | DV95: 0 | DW95: 0 | DX95: 0 | DY95: 0 | DZ95: 0 | EA95: 0 | EB95: 0 | EC95: 0 | ED95: 0 | EE95: 0 | EF95: 0 | EG95: 0 | EH95: 0 | EI95: 0 | EJ95: 0 | EK95: 0 | EL95: 0 | EM95: 0 | EN95: 0 | EO95: 0 | EP95: 0 | EQ95: 0 | ER95: 0 | ES95: 4000 | ET95: 4000 | EU95: 4000 | EV95: 4000 | EW95: 4000 | EX95: 4000 | EY95: 4000 | EZ95: 4000 | FA95: 4000 | FB95: 4000 | FC95: 4000 | FD95: 4000 | FE95: 4000 | FF95: 4000 | FG95: 4000 | FH95: 4000 | FI95: 4000 | FJ95: 4000 | FK95: 4000 | FL95: 4000
A97: 3 | B97: Phase 3 | AO97: =B97 -> Phase 3 | AR97: =A97 -> 3
B99: =B77 -> Construction Cost | G99: =SUMIF($AV$8:$FL$8,G$8,$AV99:$FL99) -> 0 | H99: 0 | I99: 0 | J99: 0 | K99: 0 | L99: 0 | M99: 0 | N99: 0 | O99: 0 | P99: 0 | Q99: =SUMIF($AV$8:$FL$8,Q$8,$AV99:$FL99) -> 0 | R99: 0 | S99: 0 | T99: 0 | U99: -13257.04016 | V99: -7746.008481 | W99: 0 | X99: 0 | Y99: 0 | Z99: 0 | AA99: =SUMIF($AV$8:$FL$8,AA$8,$AV99:$FL99) -> 0 | AB99: 0 | AC99: 0 | AD99: 0 | AE99: 0 | AF99: 0 | AG99: 0 | AH99: 0 | AI99: 0 | AJ99: 0 | AK99: 0 | AM99: =SUM(G99:AK99) -> -21003.04864 | AO99: =B99 -> Construction Cost | AR99: =INDEX(AssetDB!$G$47:$AR$47,MATCH(DevCosts!$AR$97,AssetDB!$G$1:$AR$1,0)) -> 10500 | AV99: =-$AR99*AV100*AV$12 -> 0 | AW99: 0 | AX99: 0 | AY99: 0 | AZ99: 0 | BA99: 0 | BB99: 0 | BC99: 0 | BD99: 0 | BE99: 0 | BF99: 0 | BG99: 0 | BH99: 0 | BI99: 0 | BJ99: 0 | BK99: 0 | BL99: 0 | BM99: 0 | BN99: 0 | BO99: 0 | BP99: 0 | BQ99: 0 | BR99: 0 | BS99: 0 | BT99: 0 | BU99: 0 | BV99: 0 | BW99: 0 | BX99: 0 | BY99: 0 | BZ99: 0 | CA99: 0 | CB99: 0 | CC99: 0 | CD99: 0 | CE99: 0 | CF99: 0 | CG99: 0 | CH99: 0 | CI99: 0 | CJ99: 0 | CK99: 0 | CL99: 0 | CM99: 0 | CN99: 0 | CO99: 0 | CP99: 0 | CQ99: 0 | CR99: 0 | CS99: 0 | CT99: 0 | CU99: 0 | CV99: 0 | CW99: -2028.271037 | CX99: -3696.523964 | CY99: -3742.730514 | CZ99: -3789.514645 | DA99: -3836.883578 | DB99: -1942.422312 | DC99: -1966.70259 | DD99: 0 | DE99: 0 | DF99: 0 | DG99: 0 | DH99: 0 | DI99: 0 | DJ99: 0 | DK99: 0 | DL99: 0 | DM99: 0 | DN99: 0 | DO99: 0 | DP99: 0 | DQ99: 0 | DR99: 0 | DS99: 0 | DT99: 0 | DU99: 0 | DV99: 0 | DW99: 0 | DX99: 0 | DY99: 0 | DZ99: 0 | EA99: 0 | EB99: 0 | EC99: 0 | ED99: 0 | EE99: 0 | EF99: 0 | EG99: 0 | EH99: 0 | EI99: 0 | EJ99: 0 | EK99: 0 | EL99: 0 | EM99: 0 | EN99: 0 | EO99: 0 | EP99: 0 | EQ99: 0 | ER99: 0 | ES99: 0 | ET99: 0 | EU99: 0 | EV99: 0 | EW99: 0 | EX99: 0 | EY99: 0 | EZ99: 0 | FA99: 0 | FB99: 0 | FC99: 0 | FD99: 0 | FE99: 0 | FF99: 0 | FG99: 0 | FH99: 0 | FI99: 0 | FJ99: 0 | FK99: 0 | FL99: 0
B100: Payment Schedule | G100: 0 | H100: 0 | I100: 0 | J100: 0 | K100: 0 | L100: 0 | M100: 0 | N100: 0 | O100: 0 | P100: 0 | Q100: 0 | R100: 0 | S100: 0 | T100: 0 | U100: 0.64 | V100: 0.36 | W100: 0 | X100: 0 | Y100: 0 | Z100: 0 | AA100: 0 | AB100: 0 | AC100: 0 | AD100: 0 | AE100: 0 | AF100: 0 | AG100: 0 | AH100: 0 | AI100: 0 | AJ100: 0 | AK100: 0 | AM100: 1 | AO100: Payment Schedule | AV100: =SUMPRODUCT(--(TimingDB!$I$31:$I$46=AV$9),TimingDB!$J$31:$J$46) -> 0 | AW100: =SUMPRODUCT(--(TimingDB!$I$31:$I$46=AW$9),TimingDB!$J$31:$J$46) -> 0 | AX100: =SUMPRODUCT(--(TimingDB!$I$31:$I$46=AX$9),TimingDB!$J$31:$J$46) -> 0 | AY100: =SUMPRODUCT(--(TimingDB!$I$31:$I$46=AY$9),TimingDB!$J$31:$J$46) -> 0 | AZ100: =SUMPRODUCT(--(TimingDB!$I$31:$I$46=AZ$9),TimingDB!$J$31:$J$46) -> 0 | BA100: =SUMPRODUCT(--(TimingDB!$I$31:$I$46=BA$9),TimingDB!$J$31:$J$46) -> 0 | BB100: =SUMPRODUCT(--(TimingDB!$I$31:$I$46=BB$9),TimingDB!$J$31:$J$46) -> 0 | BC100: =SUMPRODUCT(--(TimingDB!$I$31:$I$46=BC$9),TimingDB!$J$31:$J$46) -> 0 | BD100: =SUMPRODUCT(--(TimingDB!$I$31:$I$46=BD$9),TimingDB!$J$31:$J$46) -> 0 | BE100: =SUMPRODUCT(--(TimingDB!$I$31:$I$46=BE$9),TimingDB!$J$31:$J$46) -> 0 | BF100: =SUMPRODUCT(--(TimingDB!$I$31:$I$46=BF$9),TimingDB!$J$31:$J$46) -> 0 | BG100: =SUMPRODUCT(--(TimingDB!$I$31:$I$46=BG$9),TimingDB!$J$31:$J$46) -> 0 | BH100: =SUMPRODUCT(--(TimingDB!$I$31:$I$46=BH$9),TimingDB!$J$31:$J$46) -> 0 | BI100: =SUMPRODUCT(--(TimingDB!$I$31:$I$46=BI$9),TimingDB!$J$31:$J$46) -> 0 | BJ100: =SUMPRODUCT(--(TimingDB!$I$31:$I$46=BJ$9),TimingDB!$J$31:$J$46) -> 0 | BK100: =SUMPRODUCT(--(TimingDB!$I$31:$I$46=BK$9),TimingDB!$J$31:$J$46) -> 0 | BL100: =SUMPRODUCT(--(TimingDB!$I$31:$I$46=BL$9),TimingDB!$J$31:$J$46) -> 0 | BM100: =SUMPRODUCT(--(TimingDB!$I$31:$I$46=BM$9),TimingDB!$J$31:$J$46) -> 0 | BN100: =SUMPRODUCT(--(TimingDB!$I$31:$I$46=BN$9),TimingDB!$J$31:$J$46) -> 0 | BO100: =SUMPRODUCT(--(TimingDB!$I$31:$I$46=BO$9),TimingDB!$J$31:$J$46) -> 0 | BP100: =SUMPRODUCT(--(TimingDB!$I$31:$I$46=BP$9),TimingDB!$J$31:$J$46) -> 0 | BQ100: =SUMPRODUCT(--(TimingDB!$I$31:$I$46=BQ$9),TimingDB!$J$31:$J$46) -> 0 | BR100: =SUMPRODUCT(--(TimingDB!$I$31:$I$46=BR$9),TimingDB!$J$31:$J$46) -> 0 | BS100: =SUMPRODUCT(--(TimingDB!$I$31:$I$46=BS$9),TimingDB!$J$31:$J$46) -> 0 | BT100: =SUMPRODUCT(--(TimingDB!$I$31:$I$46=BT$9),TimingDB!$J$31:$J$46) -> 0 | BU100: =SUMPRODUCT(--(TimingDB!$I$31:$I$46=BU$9),TimingDB!$J$31:$J$46) -> 0 | BV100: =SUMPRODUCT(--(TimingDB!$I$31:$I$46=BV$9),TimingDB!$J$31:$J$46) -> 0 | BW100: =SUMPRODUCT(--(TimingDB!$I$31:$I$46=BW$9),TimingDB!$J$31:$J$46) -> 0 | BX100: =SUMPRODUCT(--(TimingDB!$I$31:$I$46=BX$9),TimingDB!$J$31:$J$46) -> 0 | BY100: =SUMPRODUCT(--(TimingDB!$I$31:$I$46=BY$9),TimingDB!$J$31:$J$46) -> 0 | BZ100: =SUMPRODUCT(--(TimingDB!$I$31:$I$46=BZ$9),TimingDB!$J$31:$J$46) -> 0 | CA100: =SUMPRODUCT(--(TimingDB!$I$31:$I$46=CA$9),TimingDB!$J$31:$J$46) -> 0 | CB100: =SUMPRODUCT(--(TimingDB!$I$31:$I$46=CB$9),TimingDB!$J$31:$J$46) -> 0 | CC100: =SUMPRODUCT(--(TimingDB!$I$31:$I$46=CC$9),TimingDB!$J$31:$J$46) -> 0 | CD100: =SUMPRODUCT(--(TimingDB!$I$31:$I$46=CD$9),TimingDB!$J$31:$J$46) -> 0 | CE100: =SUMPRODUCT(--(TimingDB!$I$31:$I$46=CE$9),TimingDB!$J$31:$J$46) -> 0 | CF100: =SUMPRODUCT(--(TimingDB!$I$31:$I$46=CF$9),TimingDB!$J$31:$J$46) -> 0 | CG100: =SUMPRODUCT(--(TimingDB!$I$31:$I$46=CG$9),TimingDB!$J$31:$J$46) -> 0 | CH100: =SUMPRODUCT(--(TimingDB!$I$31:$I$46=CH$9),TimingDB!$J$31:$J$46) -> 0 | CI100: =SUMPRODUCT(--(TimingDB!$I$31:$I$46=CI$9),TimingDB!$J$31:$J$46) -> 0 | CJ100: =SUMPRODUCT(--(TimingDB!$I$31:$I$46=CJ$9),TimingDB!$J$31:$J$46) -> 0 | CK100: =SUMPRODUCT(--(TimingDB!$I$31:$I$46=CK$9),TimingDB!$J$31:$J$46) -> 0 | CL100: =SUMPRODUCT(--(TimingDB!$I$31:$I$46=CL$9),TimingDB!$J$31:$J$46) -> 0 | CM100: =SUMPRODUCT(--(TimingDB!$I$31:$I$46=CM$9),TimingDB!$J$31:$J$46) -> 0 | CN100: =SUMPRODUCT(--(TimingDB!$I$31:$I$46=CN$9),TimingDB!$J$31:$J$46) -> 0 | CO100: =SUMPRODUCT(--(TimingDB!$I$31:$I$46=CO$9),TimingDB!$J$31:$J$46) -> 0 | CP100: =SUMPRODUCT(--(TimingDB!$I$31:$I$46=CP$9),TimingDB!$J$31:$J$46) -> 0 | CQ100: =SUMPRODUCT(--(TimingDB!$I$31:$I$46=CQ$9),TimingDB!$J$31:$J$46) -> 0 | CR100: =SUMPRODUCT(--(TimingDB!$I$31:$I$46=CR$9),TimingDB!$J$31:$J$46) -> 0 | CS100: =SUMPRODUCT(--(TimingDB!$I$31:$I$46=CS$9),TimingDB!$J$31:$J$46) -> 0 | CT100: =SUMPRODUCT(--(TimingDB!$I$31:$I$46=CT$9),TimingDB!$J$31:$J$46) -> 0 | CU100: =SUMPRODUCT(--(TimingDB!$I$31:$I$46=CU$9),TimingDB!$J$31:$J$46) -> 0 | CV100: =SUMPRODUCT(--(TimingDB!$I$31:$I$46=CV$9),TimingDB!$J$31:$J$46) -> 0 | CW100: =SUMPRODUCT(--(TimingDB!$I$31:$I$46=CW$9),TimingDB!$J$31:$J$46) -> 0.1 | CX100: =SUMPRODUCT(--(TimingDB!$I$31:$I$46=CX$9),TimingDB!$J$31:$J$46) -> 0.18 | CY100: =SUMPRODUCT(--(TimingDB!$I$31:$I$46=CY$9),TimingDB!$J$31:$J$46) -> 0.18 | CZ100: =SUMPRODUCT(--(TimingDB!$I$31:$I$46=CZ$9),TimingDB!$J$31:$J$46) -> 0.18 | DA100: =SUMPRODUCT(--(TimingDB!$I$31:$I$46=DA$9),TimingDB!$J$31:$J$46) -> 0.18 | DB100: =SUMPRODUCT(--(TimingDB!$I$31:$I$46=DB$9),TimingDB!$J$31:$J$46) -> 0.09 | DC100: =SUMPRODUCT(--(TimingDB!$I$31:$I$46=DC$9),TimingDB!$J$31:$J$46) -> 0.09 | DD100: =SUMPRODUCT(--(TimingDB!$I$31:$I$46=DD$9),TimingDB!$J$31:$J$46) -> 0 | DE100: =SUMPRODUCT(--(TimingDB!$I$31:$I$46=DE$9),TimingDB!$J$31:$J$46) -> 0 | DF100: =SUMPRODUCT(--(TimingDB!$I$31:$I$46=DF$9),TimingDB!$J$31:$J$46) -> 0 | DG100: =SUMPRODUCT(--(TimingDB!$I$31:$I$46=DG$9),TimingDB!$J$31:$J$46) -> 0 | DH100: =SUMPRODUCT(--(TimingDB!$I$31:$I$46=DH$9),TimingDB!$J$31:$J$46) -> 0 | DI100: =SUMPRODUCT(--(TimingDB!$I$31:$I$46=DI$9),TimingDB!$J$31:$J$46) -> 0 | DJ100: =SUMPRODUCT(--(TimingDB!$I$31:$I$46=DJ$9),TimingDB!$J$31:$J$46) -> 0 | DK100: =SUMPRODUCT(--(TimingDB!$I$31:$I$46=DK$9),TimingDB!$J$31:$J$46) -> 0 | DL100: =SUMPRODUCT(--(TimingDB!$I$31:$I$46=DL$9),TimingDB!$J$31:$J$46) -> 0 | DM100: =SUMPRODUCT(--(TimingDB!$I$31:$I$46=DM$9),TimingDB!$J$31:$J$46) -> 0 | DN100: =SUMPRODUCT(--(TimingDB!$I$31:$I$46=DN$9),TimingDB!$J$31:$J$46) -> 0 | DO100: =SUMPRODUCT(--(TimingDB!$I$31:$I$46=DO$9),TimingDB!$J$31:$J$46) -> 0 | DP100: =SUMPRODUCT(--(TimingDB!$I$31:$I$46=DP$9),TimingDB!$J$31:$J$46) -> 0 | DQ100: =SUMPRODUCT(--(TimingDB!$I$31:$I$46=DQ$9),TimingDB!$J$31:$J$46) -> 0 | DR100: =SUMPRODUCT(--(TimingDB!$I$31:$I$46=DR$9),TimingDB!$J$31:$J$46) -> 0 | DS100: =SUMPRODUCT(--(TimingDB!$I$31:$I$46=DS$9),TimingDB!$J$31:$J$46) -> 0 | DT100: =SUMPRODUCT(--(TimingDB!$I$31:$I$46=DT$9),TimingDB!$J$31:$J$46) -> 0 | DU100: =SUMPRODUCT(--(TimingDB!$I$31:$I$46=DU$9),TimingDB!$J$31:$J$46) -> 0 | DV100: =SUMPRODUCT(--(TimingDB!$I$31:$I$46=DV$9),TimingDB!$J$31:$J$46) -> 0 | DW100: =SUMPRODUCT(--(TimingDB!$I$31:$I$46=DW$9),TimingDB!$J$31:$J$46) -> 0 | DX100: =SUMPRODUCT(--(TimingDB!$I$31:$I$46=DX$9),TimingDB!$J$31:$J$46) -> 0 | DY100: =SUMPRODUCT(--(TimingDB!$I$31:$I$46=DY$9),TimingDB!$J$31:$J$46) -> 0 | DZ100: =SUMPRODUCT(--(TimingDB!$I$31:$I$46=DZ$9),TimingDB!$J$31:$J$46) -> 0 | EA100: =SUMPRODUCT(--(TimingDB!$I$31:$I$46=EA$9),TimingDB!$J$31:$J$46) -> 0 | EB100: =SUMPRODUCT(--(TimingDB!$I$31:$I$46=EB$9),TimingDB!$J$31:$J$46) -> 0 | EC100: =SUMPRODUCT(--(TimingDB!$I$31:$I$46=EC$9),TimingDB!$J$31:$J$46) -> 0 | ED100: =SUMPRODUCT(--(TimingDB!$I$31:$I$46=ED$9),TimingDB!$J$31:$J$46) -> 0 | EE100: =SUMPRODUCT(--(TimingDB!$I$31:$I$46=EE$9),TimingDB!$J$31:$J$46) -> 0 | EF100: =SUMPRODUCT(--(TimingDB!$I$31:$I$46=EF$9),TimingDB!$J$31:$J$46) -> 0 | EG100: =SUMPRODUCT(--(TimingDB!$I$31:$I$46=EG$9),TimingDB!$J$31:$J$46) -> 0 | EH100: =SUMPRODUCT(--(TimingDB!$I$31:$I$46=EH$9),TimingDB!$J$31:$J$46) -> 0 | EI100: =SUMPRODUCT(--(TimingDB!$I$31:$I$46=EI$9),TimingDB!$J$31:$J$46) -> 0 | EJ100: =SUMPRODUCT(--(TimingDB!$I$31:$I$46=EJ$9),TimingDB!$J$31:$J$46) -> 0 | EK100: =SUMPRODUCT(--(TimingDB!$I$31:$I$46=EK$9),TimingDB!$J$31:$J$46) -> 0 | EL100: =SUMPRODUCT(--(TimingDB!$I$31:$I$46=EL$9),TimingDB!$J$31:$J$46) -> 0 | EM100: =SUMPRODUCT(--(TimingDB!$I$31:$I$46=EM$9),TimingDB!$J$31:$J$46) -> 0 | EN100: =SUMPRODUCT(--(TimingDB!$I$31:$I$46=EN$9),TimingDB!$J$31:$J$46) -> 0 | EO100: =SUMPRODUCT(--(TimingDB!$I$31:$I$46=EO$9),TimingDB!$J$31:$J$46) -> 0 | EP100: =SUMPRODUCT(--(TimingDB!$I$31:$I$46=EP$9),TimingDB!$J$31:$J$46) -> 0 | EQ100: =SUMPRODUCT(--(TimingDB!$I$31:$I$46=EQ$9),TimingDB!$J$31:$J$46) -> 0 | ER100: =SUMPRODUCT(--(TimingDB!$I$31:$I$46=ER$9),TimingDB!$J$31:$J$46) -> 0 | ES100: =SUMPRODUCT(--(TimingDB!$I$31:$I$46=ES$9),TimingDB!$J$31:$J$46) -> 0 | ET100: =SUMPRODUCT(--(TimingDB!$I$31:$I$46=ET$9),TimingDB!$J$31:$J$46) -> 0 | EU100: =SUMPRODUCT(--(TimingDB!$I$31:$I$46=EU$9),TimingDB!$J$31:$J$46) -> 0 | EV100: =SUMPRODUCT(--(TimingDB!$I$31:$I$46=EV$9),TimingDB!$J$31:$J$46) -> 0 | EW100: =SUMPRODUCT(--(TimingDB!$I$31:$I$46=EW$9),TimingDB!$J$31:$J$46) -> 0 | EX100: =SUMPRODUCT(--(TimingDB!$I$31:$I$46=EX$9),TimingDB!$J$31:$J$46) -> 0 | EY100: =SUMPRODUCT(--(TimingDB!$I$31:$I$46=EY$9),TimingDB!$J$31:$J$46) -> 0 | EZ100: =SUMPRODUCT(--(TimingDB!$I$31:$I$46=EZ$9),TimingDB!$J$31:$J$46) -> 0 | FA100: =SUMPRODUCT(--(TimingDB!$I$31:$I$46=FA$9),TimingDB!$J$31:$J$46) -> 0 | FB100: =SUMPRODUCT(--(TimingDB!$I$31:$I$46=FB$9),TimingDB!$J$31:$J$46) -> 0 | FC100: =SUMPRODUCT(--(TimingDB!$I$31:$I$46=FC$9),TimingDB!$J$31:$J$46) -> 0 | FD100: =SUMPRODUCT(--(TimingDB!$I$31:$I$46=FD$9),TimingDB!$J$31:$J$46) -> 0 | FE100: =SUMPRODUCT(--(TimingDB!$I$31:$I$46=FE$9),TimingDB!$J$31:$J$46) -> 0 | FF100: =SUMPRODUCT(--(TimingDB!$I$31:$I$46=FF$9),TimingDB!$J$31:$J$46) -> 0 | FG100: =SUMPRODUCT(--(TimingDB!$I$31:$I$46=FG$9),TimingDB!$J$31:$J$46) -> 0 | FH100: =SUMPRODUCT(--(TimingDB!$I$31:$I$46=FH$9),TimingDB!$J$31:$J$46) -> 0 | FI100: =SUMPRODUCT(--(TimingDB!$I$31:$I$46=FI$9),TimingDB!$J$31:$J$46) -> 0 | FJ100: =SUMPRODUCT(--(TimingDB!$I$31:$I$46=FJ$9),TimingDB!$J$31:$J$46) -> 0 | FK100: =SUMPRODUCT(--(TimingDB!$I$31:$I$46=FK$9),TimingDB!$J$31:$J$46) -> 0 | FL100: =SUMPRODUCT(--(TimingDB!$I$31:$I$46=FL$9),TimingDB!$J$31:$J$46) -> 0
B101: Contingencies | F101: =AR101 -> 0.04 | G101: 0 | H101: 0 | I101: 0 | J101: 0 | K101: 0 | L101: 0 | M101: 0 | N101: 0 | O101: 0 | P101: 0 | Q101: 0 | R101: 0 | S101: 0 | T101: 0 | U101: -530.2816064 | V101: -309.8403392 | W101: 0 | X101: 0 | Y101: 0 | Z101: 0 | AA101: 0 | AB101: 0 | AC101: 0 | AD101: 0 | AE101: 0 | AF101: 0 | AG101: 0 | AH101: 0 | AI101: 0 | AJ101: 0 | AK101: 0 | AM101: -840.1219456 | AO101: Contingencies | AR101: =INDEX(AssetDB!$G$51:$AR$51,MATCH(DevCosts!$AR$97,AssetDB!$G$1:$AR$1,0)) -> 0.04 | AV101: =$AR101*AV99 -> 0 | AW101: 0 | AX101: 0 | AY101: 0 | AZ101: 0 | BA101: 0 | BB101: 0 | BC101: 0 | BD101: 0 | BE101: 0 | BF101: 0 | BG101: 0 | BH101: 0 | BI101: 0 | BJ101: 0 | BK101: 0 | BL101: 0 | BM101: 0 | BN101: 0 | BO101: 0 | BP101: 0 | BQ101: 0 | BR101: 0 | BS101: 0 | BT101: 0 | BU101: 0 | BV101: 0 | BW101: 0 | BX101: 0 | BY101: 0 | BZ101: 0 | CA101: 0 | CB101: =$AR101*CB99 -> 0 | CC101: 0 | CD101: 0 | CE101: 0 | CF101: 0 | CG101: 0 | CH101: 0 | CI101: 0 | CJ101: 0 | CK101: 0 | CL101: 0 | CM101: 0 | CN101: 0 | CO101: 0 | CP101: 0 | CQ101: 0 | CR101: 0 | CS101: 0 | CT101: 0 | CU101: 0 | CV101: 0 | CW101: -81.13084147 | CX101: -147.8609586 | CY101: -149.7092206 | CZ101: -151.5805858 | DA101: -153.4753431 | DB101: -77.69689246 | DC101: -78.66810362 | DD101: 0 | DE101: 0 | DF101: 0 | DG101: 0 | DH101: =$AR101*DH99 -> 0 | DI101: 0 | DJ101: 0 | DK101: 0 | DL101: 0 | DM101: 0 | DN101: 0 | DO101: 0 | DP101: 0 | DQ101: 0 | DR101: 0 | DS101: 0 | DT101: 0 | DU101: 0 | DV101: 0 | DW101: 0 | DX101: 0 | DY101: 0 | DZ101: 0 | EA101: 0 | EB101: 0 | EC101: 0 | ED101: 0 | EE101: 0 | EF101: 0 | EG101: 0 | EH101: 0 | EI101: 0 | EJ101: 0 | EK101: 0 | EL101: 0 | EM101: 0 | EN101: =$AR101*EN99 -> 0 | EO101: 0 | EP101: 0 | EQ101: 0 | ER101: 0 | ES101: 0 | ET101: 0 | EU101: 0 | EV101: 0 | EW101: 0 | EX101: 0 | EY101: 0 | EZ101: 0 | FA101: 0 | FB101: 0 | FC101: 0 | FD101: 0 | FE101: 0 | FF101: 0 | FG101: 0 | FH101: 0 | FI101: 0 | FJ101: 0 | FK101: 0 | FL101: 0
B102: Other Miscellaneous Cost | F102: =AR102 -> 0.05 | G102: 0 | H102: 0 | I102: 0 | J102: 0 | K102: 0 | L102: 0 | M102: 0 | N102: 0 | O102: 0 | P102: 0 | Q102: 0 | R102: 0 | S102: 0 | T102: 0 | U102: -662.852008 | V102: -387.300424 | W102: 0 | X102: 0 | Y102: 0 | Z102: 0 | AA102: 0 | AB102: 0 | AC102: 0 | AD102: 0 | AE102: 0 | AF102: 0 | AG102: 0 | AH102: 0 | AI102: 0 | AJ102: 0 | AK102: 0 | AM102: -1050.152432 | AO102: Other Miscellaneous Cost | AR102: =INDEX(AssetDB!$G$53:$AR$53,MATCH(DevCosts!$AR$97,AssetDB!$G$1:$AR$1,0)) -> 0.05 | AV102: =$AR102*AV99 -> 0 | AW102: 0 | AX102: 0 | AY102: 0 | AZ102: 0 | BA102: 0 | BB102: 0 | BC102: 0 | BD102: 0 | BE102: 0 | BF102: 0 | BG102: 0 | BH102: 0 | BI102: 0 | BJ102: 0 | BK102: 0 | BL102: 0 | BM102: 0 | BN102: 0 | BO102: 0 | BP102: 0 | BQ102: 0 | BR102: 0 | BS102: 0 | BT102: 0 | BU102: 0 | BV102: 0 | BW102: 0 | BX102: 0 | BY102: 0 | BZ102: 0 | CA102: 0 | CB102: =$AR102*CB99 -> 0 | CC102: 0 | CD102: 0 | CE102: 0 | CF102: 0 | CG102: 0 | CH102: 0 | CI102: 0 | CJ102: 0 | CK102: 0 | CL102: 0 | CM102: 0 | CN102: 0 | CO102: 0 | CP102: 0 | CQ102: 0 | CR102: 0 | CS102: 0 | CT102: 0 | CU102: 0 | CV102: 0 | CW102: -101.4135518 | CX102: -184.8261982 | CY102: -187.1365257 | CZ102: -189.4757323 | DA102: -191.8441789 | DB102: -97.12111558 | DC102: -98.33512952 | DD102: 0 | DE102: 0 | DF102: 0 | DG102: 0 | DH102: =$AR102*DH99 -> 0 | DI102: 0 | DJ102: 0 | DK102: 0 | DL102: 0 | DM102: 0 | DN102: 0 | DO102: 0 | DP102: 0 | DQ102: 0 | DR102: 0 | DS102: 0 | DT102: 0 | DU102: 0 | DV102: 0 | DW102: 0 | DX102: 0 | DY102: 0 | DZ102: 0 | EA102: 0 | EB102: 0 | EC102: 0 | ED102: 0 | EE102: 0 | EF102: 0 | EG102: 0 | EH102: 0 | EI102: 0 | EJ102: 0 | EK102: 0 | EL102: 0 | EM102: 0 | EN102: =$AR102*EN99 -> 0 | EO102: 0 | EP102: 0 | EQ102: 0 | ER102: 0 | ES102: 0 | ET102: 0 | EU102: 0 | EV102: 0 | EW102: 0 | EX102: 0 | EY102: 0 | EZ102: 0 | FA102: 0 | FB102: 0 | FC102: 0 | FD102: 0 | FE102: 0 | FF102: 0 | FG102: 0 | FH102: 0 | FI102: 0 | FJ102: 0 | FK102: 0 | FL102: 0
B103: Additional Phasing Cost | G103: 0 | H103: 0 | I103: 0 | J103: 0 | K103: 0 | L103: 0 | M103: 0 | N103: 0 | O103: 0 | P103: 0 | Q103: 0 | R103: 0 | S103: 0 | T103: 0 | U103: 0 | V103: 0 | W103: 0 | X103: 0 | Y103: 0 | Z103: 0 | AA103: 0 | AB103: 0 | AC103: 0 | AD103: 0 | AE103: 0 | AF103: 0 | AG103: 0 | AH103: 0 | AI103: 0 | AJ103: 0 | AK103: 0 | AM103: 0 | AO103: Additional Phasing Cost | AR103: =INDEX(AssetDB!$G$54:$AR$54,MATCH(AR97,AssetDB!$G$1:$AR$1,0)) -> 0 | AV103: =-$AR103*AV100*AV$12 -> 0 | AW103: 0 | AX103: 0 | AY103: 0 | AZ103: 0 | BA103: 0 | BB103: 0 | BC103: 0 | BD103: 0 | BE103: 0 | BF103: 0 | BG103: 0 | BH103: 0 | BI103: 0 | BJ103: 0 | BK103: 0 | BL103: 0 | BM103: 0 | BN103: 0 | BO103: 0 | BP103: 0 | BQ103: 0 | BR103: 0 | BS103: 0 | BT103: 0 | BU103: 0 | BV103: 0 | BW103: 0 | BX103: 0 | BY103: 0 | BZ103: 0 | CA103: 0 | CB103: 0 | CC103: 0 | CD103: 0 | CE103: 0 | CF103: 0 | CG103: 0 | CH103: 0 | CI103: 0 | CJ103: 0 | CK103: 0 | CL103: 0 | CM103: 0 | CN103: 0 | CO103: 0 | CP103: 0 | CQ103: 0 | CR103: 0 | CS103: 0 | CT103: 0 | CU103: 0 | CV103: 0 | CW103: 0 | CX103: 0 | CY103: 0 | CZ103: 0 | DA103: 0 | DB103: 0 | DC103: 0 | DD103: 0 | DE103: 0 | DF103: 0 | DG103: 0 | DH103: =-$AR103*DH100*DH$12 -> 0 | DI103: 0 | DJ103: 0 | DK103: 0 | DL103: 0 | DM103: 0 | DN103: 0 | DO103: 0 | DP103: 0 | DQ103: 0 | DR103: 0 | DS103: 0 | DT103: 0 | DU103: 0 | DV103: 0 | DW103: 0 | DX103: 0 | DY103: 0 | DZ103: 0 | EA103: 0 | EB103: 0 | EC103: 0 | ED103: 0 | EE103: 0 | EF103: 0 | EG103: 0 | EH103: 0 | EI103: 0 | EJ103: 0 | EK103: 0 | EL103: 0 | EM103: 0 | EN103: 0 | EO103: 0 | EP103: 0 | EQ103: 0 | ER103: 0 | ES103: 0 | ET103: 0 | EU103: 0 | EV103: 0 | EW103: 0 | EX103: 0 | EY103: 0 | EZ103: 0 | FA103: 0 | FB103: 0 | FC103: 0 | FD103: 0 | FE103: 0 | FF103: 0 | FG103: 0 | FH103: 0 | FI103: 0 | FJ103: 0 | FK103: 0 | FL103: 0
B104: Site Preparation Costs | G104: 0 | H104: 0 | I104: 0 | J104: 0 | K104: 0 | L104: 0 | M104: 0 | N104: 0 | O104: 0 | P104: 0 | Q104: 0 | R104: 0 | S104: 0 | T104: 0 | U104: 0 | V104: 0 | W104: 0 | X104: 0 | Y104: 0 | Z104: 0 | AA104: 0 | AB104: 0 | AC104: 0 | AD104: -163.6112258 | AE104: 0 | AF104: 0 | AG104: 0 | AH104: 0 | AI104: 0 | AJ104: 0 | AK104: 0 | AM104: -163.6112258 | AO104: Site Preparation Costs | AR104: =INDEX(AssetDB!$G$56:$AR$56,MATCH(DevCosts!$AR$97,AssetDB!$G$1:$AR$1,0)) -> 52.5 | AS104: =MAX(INDEX(AssetDB!$G$80:$AR$80,MATCH(DevCosts!$AR$97,AssetDB!$G$1:$AR$1,0))-2,0) -> 91 | AT104: =MAX(INDEX(AssetDB!$G$80:$AR$80,MATCH(DevCosts!$AR$97,AssetDB!$G$1:$AR$1,0))-1,0) -> 92 | AV104: =-($AS104<=AV$1)*($AT104>=AV$1)*$AR104/($AT104-$AS104+1)*AV$12 -> 0 | AW104: 0 | AX104: 0 | AY104: 0 | AZ104: 0 | BA104: 0 | BB104: 0 | BC104: 0 | BD104: 0 | BE104: 0 | BF104: 0 | BG104: 0 | BH104: 0 | BI104: 0 | BJ104: 0 | BK104: 0 | BL104: =-($AS104<=BL$1)*($AT104>=BL$1)*$AR104/($AT104-$AS104+1)*BL$12 -> 0 | BM104: 0 | BN104: 0 | BO104: 0 | BP104: 0 | BQ104: 0 | BR104: 0 | BS104: 0 | BT104: 0 | BU104: 0 | BV104: 0 | BW104: 0 | BX104: 0 | BY104: 0 | BZ104: 0 | CA104: 0 | CB104: =-($AS104<=CB$1)*($AT104>=CB$1)*$AR104/($AT104-$AS104+1)*CB$12 -> 0 | CC104: 0 | CD104: 0 | CE104: 0 | CF104: 0 | CG104: 0 | CH104: 0 | CI104: 0 | CJ104: 0 | CK104: 0 | CL104: 0 | CM104: 0 | CN104: 0 | CO104: 0 | CP104: 0 | CQ104: 0 | CR104: =-($AS104<=CR$1)*($AT104>=CR$1)*$AR104/($AT104-$AS104+1)*CR$12 -> 0 | CS104: 0 | CT104: 0 | CU104: 0 | CV104: 0 | CW104: 0 | CX104: 0 | CY104: 0 | CZ104: 0 | DA104: 0 | DB104: 0 | DC104: 0 | DD104: 0 | DE104: 0 | DF104: 0 | DG104: 0 | DH104: 0 | DI104: 0 | DJ104: 0 | DK104: 0 | DL104: 0 | DM104: 0 | DN104: 0 | DO104: 0 | DP104: 0 | DQ104: 0 | DR104: 0 | DS104: 0 | DT104: 0 | DU104: 0 | DV104: 0 | DW104: 0 | DX104: 0 | DY104: 0 | DZ104: 0 | EA104: 0 | EB104: 0 | EC104: 0 | ED104: 0 | EE104: 0 | EF104: 0 | EG104: 0 | EH104: 0 | EI104: -81.29750351 | EJ104: -82.3137223 | EK104: 0 | EL104: 0 | EM104: 0 | EN104: 0 | EO104: 0 | EP104: 0 | EQ104: 0 | ER104: 0 | ES104: 0 | ET104: 0 | EU104: 0 | EV104: 0 | EW104: 0 | EX104: 0 | EY104: 0 | EZ104: 0 | FA104: 0 | FB104: 0 | FC104: 0 | FD104: 0 | FE104: 0 | FF104: 0 | FG104: 0 | FH104: 0 | FI104: 0 | FJ104: 0 | FK104: 0 | FL104: 0
B106: =B84 -> Total Construction Cost | G106: =SUM(G99,G101,G102,G103,G104) -> 0 | H106: 0 | I106: 0 | J106: 0 | K106: 0 | L106: 0 | M106: 0 | N106: 0 | O106: 0 | P106: 0 | Q106: 0 | R106: 0 | S106: 0 | T106: 0 | U106: -14450.17377 | V106: -8443.149244 | W106: =SUM(W99,W101,W102,W103,W104) -> 0 | X106: 0 | Y106: 0 | Z106: 0 | AA106: 0 | AB106: 0 | AC106: 0 | AD106: -163.6112258 | AE106: 0 | AF106: 0 | AG106: 0 | AH106: 0 | AI106: 0 | AJ106: 0 | AK106: 0 | AM106: =SUM(G106:AK106) -> -23056.93424 | AO106: =B106 -> Total Construction Cost | AV106: =SUM(AV104,AV103,AV102,AV101,AV99) -> 0 | AW106: 0 | AX106: 0 | AY106: 0 | AZ106: 0 | BA106: 0 | BB106: 0 | BC106: 0 | BD106: 0 | BE106: 0 | BF106: 0 | BG106: 0 | BH106: 0 | BI106: 0 | BJ106: 0 | BK106: 0 | BL106: 0 | BM106: 0 | BN106: 0 | BO106: 0 | BP106: 0 | BQ106: 0 | BR106: 0 | BS106: 0 | BT106: 0 | BU106: 0 | BV106: 0 | BW106: 0 | BX106: 0 | BY106: 0 | BZ106: 0 | CA106: 0 | CB106: 0 | CC106: 0 | CD106: 0 | CE106: 0 | CF106: 0 | CG106: 0 | CH106: 0 | CI106: 0 | CJ106: 0 | CK106: 0 | CL106: 0 | CM106: 0 | CN106: 0 | CO106: 0 | CP106: 0 | CQ106: 0 | CR106: 0 | CS106: 0 | CT106: 0 | CU106: 0 | CV106: 0 | CW106: -2210.81543 | CX106: -4029.211121 | CY106: -4079.57626 | CZ106: -4130.570963 | DA106: -4182.203101 | DB106: -2117.24032 | DC106: -2143.705824 | DD106: =SUM(DD104,DD103,DD102,DD101,DD99) -> 0 | DE106: 0 | DF106: 0 | DG106: 0 | DH106: 0 | DI106: 0 | DJ106: 0 | DK106: 0 | DL106: 0 | DM106: 0 | DN106: 0 | DO106: 0 | DP106: 0 | DQ106: 0 | DR106: 0 | DS106: 0 | DT106: 0 | DU106: 0 | DV106: 0 | DW106: 0 | DX106: 0 | DY106: 0 | DZ106: 0 | EA106: 0 | EB106: 0 | EC106: 0 | ED106: 0 | EE106: 0 | EF106: 0 | EG106: 0 | EH106: 0 | EI106: -81.29750351 | EJ106: -82.3137223 | EK106: 0 | EL106: 0 | EM106: 0 | EN106: 0 | EO106: 0 | EP106: 0 | EQ106: 0 | ER106: 0 | ES106: 0 | ET106: 0 | EU106: 0 | EV106: 0 | EW106: 0 | EX106: 0 | EY106: 0 | EZ106: 0 | FA106: 0 | FB106: 0 | FC106: 0 | FD106: 0 | FE106: 0 | FF106: 0 | FG106: 0 | FH106: 0 | FI106: 0 | FJ106: 0 | FK106: 0 | FL106: 0
B108: =B86 -> Architects and Engineer Fees | F108: =AM108/AM$40 -> 0.15 | G108: =SUMIF($AV$8:$FL$8,G$8,$AV108:$FL108) -> 0 | H108: -732.3428193 | I108: 0 | J108: 0 | K108: 0 | L108: 0 | M108: 0 | N108: 0 | O108: 0 | P108: 0 | Q108: =SUMIF($AV$8:$FL$8,Q$8,$AV108:$FL108) -> 0 | R108: 0 | S108: 0 | T108: -6591.085374 | U108: 0 | V108: 0 | W108: 0 | X108: 0 | Y108: 0 | Z108: 0 | AA108: =SUMIF($AV$8:$FL$8,AA$8,$AV108:$FL108) -> 0 | AB108: 0 | AC108: 0 | AD108: 0 | AE108: 0 | AF108: 0 | AG108: 0 | AH108: 0 | AI108: 0 | AJ108: 0 | AK108: 0 | AM108: =SUM(G108:AK108) -> -7323.428193 | AO108: =B108 -> Architects and Engineer Fees | AR108: =IF(AR99=0,0,INDEX(AssetDB!$G$62:$AR$62,MATCH(DevCosts!$AR$141,AssetDB!$G$1:$AR$1,0))) -> 0.15 | AV108: =$AR108*$AM$40*AV109 -> 0 | AW108: 0 | AX108: -732.3428193 | AY108: 0 | AZ108: 0 | BA108: 0 | BB108: 0 | BC108: 0 | BD108: 0 | BE108: 0 | BF108: 0 | BG108: 0 | BH108: 0 | BI108: 0 | BJ108: 0 | BK108: 0 | BL108: 0 | BM108: 0 | BN108: 0 | BO108: 0 | BP108: 0 | BQ108: 0 | BR108: 0 | BS108: 0 | BT108: 0 | BU108: 0 | BV108: 0 | BW108: 0 | BX108: 0 | BY108: 0 | BZ108: 0 | CA108: 0 | CB108: =$AR108*$AM$40*CB109 -> 0 | CC108: 0 | CD108: 0 | CE108: 0 | CF108: 0 | CG108: 0 | CH108: 0 | CI108: 0 | CJ108: 0 | CK108: 0 | CL108: 0 | CM108: 0 | CN108: 0 | CO108: 0 | CP108: 0 | CQ108: 0 | CR108: 0 | CS108: 0 | CT108: 0 | CU108: -6591.085374 | CV108: 0 | CW108: 0 | CX108: 0 | CY108: 0 | CZ108: 0 | DA108: 0 | DB108: 0 | DC108: 0 | DD108: 0 | DE108: 0 | DF108: 0 | DG108: 0 | DH108: 0 | DI108: 0 | DJ108: 0 | DK108: 0 | DL108: 0 | DM108: 0 | DN108: 0 | DO108: 0 | DP108: 0 | DQ108: 0 | DR108: 0 | DS108: 0 | DT108: 0 | DU108: 0 | DV108: 0 | DW108: 0 | DX108: 0 | DY108: 0 | DZ108: 0 | EA108: 0 | EB108: 0 | EC108: 0 | ED108: 0 | EE108: 0 | EF108: 0 | EG108: 0 | EH108: 0 | EI108: 0 | EJ108: 0 | EK108: 0 | EL108: 0 | EM108: 0 | EN108: 0 | EO108: 0 | EP108: 0 | EQ108: 0 | ER108: 0 | ES108: 0 | ET108: 0 | EU108: 0 | EV108: 0 | EW108: 0 | EX108: 0 | EY108: 0 | EZ108: 0 | FA108: 0 | FB108: 0 | FC108: 0 | FD108: 0 | FE108: 0 | FF108: 0 | FG108: 0 | FH108: 0 | FI108: 0 | FJ108: 0 | FK108: 0 | FL108: 0
